Workbook

Sheet Pedido
F2: PADRÃO | H2: ] | K2: Versão Planilha | L2: Atualização | M2: Versão | AG2: open25 | BV2: FILIAL
K3: V1113 | L3: 25042025 | M3: 1.01 | AF3: SIMULADOR DE DESCONTO | BV3: =B7 -> 0
D4: =IFERROR(VLOOKUP(B13,Clientes!$B$2:$F$4371,5,FALSE),"-") -> - | E4: NOVIDADE!! | F4: V.1.2 | K4: =IFERROR(VLOOKUP(L5,Prazo!F:G,2,0),"") ->  | L4: PRAZO | AF4: Preço de tabela | AG4: Preço negociado | BV4: UF
F5: =IF(B11=211," Pedido de Bonificação",IF(B11=705," Pedido de Troca ou Brinde","Formulário de Pedido de Venda")) -> Formulário de Pedido de Venda | I5: SELADO? | J5: NÃO | K5: CONTRATO | S5: =IF($BE$23>0.4,"a",IF(AND($BE$23>=0.3,$BE$23<=0.4),"n",IF($BE$23<0.3,"r"," "))) -> a | AF5: 7.29 | AG5: 2.4 | BC5: MARGEM | BD5: =IFERROR(ROUNDUP(BE23*100,2),0) -> 0 | BV5: =B16 -> -
I6: Fraciona? | J6: NÃO | K6: 0 | L6: REDE | M6: =IFERROR(VLOOKUP(B13,Clientes!B:L,11,0),"") ->  | AG6: =AF8 -> -0.670781893 | BC6: LUCRO | BD6: =TEXT(BD7,"#.##0,00") -> 0,00
A7: EMPRESA | C7: Centro de Custo | D7: =IF(B7=100,"PROBELLE COSME/TICA PROFISSIONAIS LTDA ME", IF(B7=200,"MEGA VITAL", IF(B7=300,"MEGA RIO SUL COMERCIO DE COSMETICOS EIRELI", IF(B7=400,"PRO SP COMERCIO DE COSMETICOS - EIRELI", IF(B7=500,"PSD COMERCIO DE COSMETICOS EIRELI", IF(B7=600,"UNI MEGA DISTRIBUIDORA DE COSMETICOS MINEIRA EIRELI", IF(B7=700,"UNIVERSAL DISTRIBUIDORA DE COSMETICOS PARANAENSE LTDA", IF(B7=800,"SUPER PODEROSA COMERCIO DE COSMETICOS LTDA", IF(B7=901,"ALTA PERFORMACE COSMETICOS - EIRELI", IF(B7=902,"TOTAL VERDE TREINAMENTO PROFISSIONAL E GERENCIAL EIRELI", IF(B7=904,"ULTRAMAIS CATARINENSE COMERCIO DE COSMÉTICOS LTDA", IF(B7=980,"SEXY FISH LTDA", IF(B7=950,"PARALELO SUL RIO GRANDENSE COMÉRCIO DE COSMÉTICOS LTDA",""))))))))))))) ->  | J7: ATENDIMENTO | K7: =BH23 ->  | L7: SELL OUT | S7: =IF($BE$23>=0.2,"a",IF(AND($BE$23>=0.15,$BE$23<0.2),"n",IF($BE$23<0.15,"r"," "))) -> a | W7: =VLOOKUP(B13,'Sell Out'!A1:C5018,3,0) -> 0 | BD7: =ROUNDUP(BB22-BG22,2) -> 0
AF8: =+(AG5/AF5-1) -> -0.670781893
A9: RCA | B9: =D4 -> - | C9: =IF(B16="-","",IF(B16="RJ","74",IF(B16="SP","75",IF(B16="EX","73","76")))) ->  | D9: =IF(B13="","",IF(B13<>"",VLOOKUP(B13,Clientes!B2:H4098,7,FALSE))) ->  | S9: =IF($BE$23>0.3,"a",IF(AND($BE$23>=0.2,$BE$23<=0.3),"n",IF($BE$23<0.2,"r"," "))) -> a | AF9: Digite o CNPJ e seu código de RCA para consultar o código do Cliente
A11: OPERAÇÃO | C11: Projeto | D11: =IF(B11=103,"PEDIDO VENDA DENTRO ES",IF(B11=168,"PEDIDO DE VENDA",IF(B11=211,"PEDIDO DE BONIFICAÇÃO",IF(B11=713,"PEDIDO DE TROCA/BRINDE",IF(B11=121,"PEDIDO DE VENDA A ORDEM",IF(B11=717,"PEDIDO DE VENDA ESPECIAL",IF(B11=169,"PEDIDO DE VENDA - RET.OP.ANT",IF(B11=110,"PEDIDO SUFRAMA","")))))))) ->  | J11: COMISSÃO (COM) | K11: COMISSÃO (PROF) | L11: % BONIFICADO | M11: % DESC NOTA FISCAL | S11: =IF($BE$23>0.3,"a",IF(AND($BE$23>=0.2,$BE$23<=0.3),"n",IF($BE$23<0.2,"r"," "))) -> a | AF11: CNPJ | AG11: Código Representante
A13: CÓD. CLIENTE | C13: 6 | D13: NOME CLIENTE | F13: =IF(B13="","",IF(B13<>"",VLOOKUP(B13,Clientes!B2:G4098,2,FALSE))) ->  | J13: 0 | K13: 0 | L13: 0 | M13: 0
J14: 3 | AF14: Código de Cliente: | AG14: =IFERROR(IF(AND(AF13=VLOOKUP(AF13,Clientes!G:H,1,0),Pedido!AG13=VLOOKUP(Pedido!AG13,Clientes!F:G,1,0)),VLOOKUP(Pedido!AF13,Clientes!G:P,10,0),""),"") ->  | AS14: 40
A15: MIX CANAL | B15: TODOS | F15: =IFERROR(IF(H15=VLOOKUP(B13,Clientes!B:O,14,0),"Pedido Mínimo:","333"),"") ->  | H15: =IFERROR(IF(VLOOKUP($B$13,Clientes!B:O,14,0)>0,VLOOKUP(Pedido!$B$13,Clientes!B:O,14,0),""),"") ->  | J15: FRETE | K15: CIF | L15: % Prazo | M15: =IFERROR(VLOOKUP(L5,Prazo!F:I,4,0),0) -> 0 | P15: MAGAZINE
A16: UF | B16: =IFERROR(+VLOOKUP(B13,Clientes!B:I,8,FALSE),"-") -> - | D16: CNPJ | F16: =IF(B13="","",IF(B13<>"",VLOOKUP(B13,Clientes!B2:G4098,6,FALSE))) ->  | J16: << Número Pedido | K16: PALETIZADO POR SKU? | M16: NÃO | O16: =IFERROR(IF(B15="COMBO ESP (P)","BLACK FRIDAY ESPECIALIZADA (P)",IF(B15="COMBO ESP (M)","BLACK FRIDAY ESPECIALIZADA (M)",IF(B15="COMBO DIST (M)","BLACK FRIDAY DISTRIBUIDOR (M)",IF(B15="COMBO DIST (G)","BLACK FRIDAY DISTRIBUIDOR (G)",(VLOOKUP(B13,Clientes!B1:K8071,10,0)))))),"Insira um Cliente") -> Insira um Cliente | P16: ESPECIALIZADA
AH17: MAGAZINE
A18: OBSERVAÇÃO | J18: % Margem | L18: Receita | M18: REP | P18: DISTRIBUIDOR | Y18: Valor | AD18: Comissão Prev. | AH18: ESPECIALIZADA
J19: PROFISSIONAL | K19: =$BP$25 ->  | L19: =IFERROR(BM29,"") ->  | M19: =BO25 ->  | P19: FARMA | Y19: =IFERROR($M$19*$M$22,"") ->  | AD19: =IFERROR($Y$19*$K$13,"") ->  | AH19: DISTRIBUIDOR | BB19: =SUM(AW25:AW432) -> 0 | BI19: =M7 -> 0
J20: COMERCIAL | K20: =$BP$26 ->  | L20: =IFERROR(BN29,"") ->  | M20: =BO26 ->  | P20: SUPERMERCADO | Y20: =IFERROR($M$20*$M$22,"") ->  | AD20: =IFERROR($Y$20*$J$13,"") ->  | AH20: FARMA | AT20: =IFERROR(B13,"") -> 0 | AU20: =F13 ->  | AV20: =D9 ->  | AW20: Preço Mix | AX20: Preço médio Pedido | AY20: PREÇO MÉDIO IDEAL | AZ20: Desconto Pré Autorizado | BA20: Desconto Concedido | BB20: Total Venda | BC20: CUSTO | BD20: CUSTO TOTAL | BE20: CUSTO BONIFICAÇÃO | BF20: CUSTO FINANCEIRO | BG20: TOTAL CUSTO GERAL | BH20: =O16 -> Insira um Cliente | BI20: FRETE | BJ20: Margem c/ Sellout | BK20: =IFERROR(VLOOKUP(AT20,Clientes!B1:N99366,13,0),"") -> 
P21: DIST MEGA VALE | AH21: SUPERMERCADO
A22: =IF($O$16="ESPECIALIZADA",$S$5,IF($O$16="DISTRIBUIDOR",$S$7,IF($O$16="SUPERMERCADO",$S$9,IF($O$16="FARMA",$S$11,"")))) ->  | B22: TOTAL DE ITENS | C22: =+COUNTIFS(I25:I628,">0") -> 0 | D22: PREÇO MIX | E22: =IFERROR(M22/BASE!E417,"-") -> - | F22: PESO TOTAL | G22: =SUM(N27:N330) -> 0 | H22: =IF($O$16="ESPECIALIZADA",$S$5,IF($O$16="DISTRIBUIDOR",$S$7,IF($O$16="SUPERMERCADO",$S$9,IF($O$16="FARMA",$S$11,"")))) ->  | I22: =SUM(I25:I508) -> 0 | J22: =IFERROR(BASE!E664,) -> 0 | K22: =IF(J22>0,J22-M22,"-") -> - | L22: =SUM(M25:M478) -> 0 | M22: =SUM(M25:M478)-(M13*L22) -> 0 | P22: CUSTO | Y22: =BE23 ->  | AH22: TODOS | AT22: UF | AU22: =B16 -> - | AV22: =TODAY() -> 2025-04-25 | AW22: =IF(AW23>=25,"5","6") -> 5 | AX22: =IF(AX23<AY23,"6","5") -> 5 | BB22: =L22 -> 0 | BC22: =+SUM(BB25:BB476) -> 0 | BD22: =SUM(BG25:BG476) -> 0 | BE22: =L13*BD22 -> 0 | BF22: =-(M15*BB22) -> 0 | BG22: =BD22+BE22+BF22 -> 0 | BH22: =IFERROR(IF(BH23<=0,"NEGADO",IF(BH23<=0.5,"MENOR QUE 50%",IF(BH23>=1,"BATEU",IF(BH23<=0.99,"MAIOR QUE 50%","")))),"") -> BATEU | BI22: =IF(VLOOKUP(B13,Clientes!B:R,17,0)>0,Base_Frete!F3/Pedido!M22,VLOOKUP(B16,'Base Imposto Mega Vital'!C:G,5,0)) ->  | BJ22: =IFERROR(IF(BI19=0%,"0",BE23-BI19),"") -> 0
B23: =IF(A22="a","Condição OK",IF(A22="n","Incluir mais itens",IF(A22="r","Alto Risco Reprovação",IF(M22="","Incluir Itens","")))) ->  | C23: PREÇO MÉDIO | E23: =AX23 -> - | I23: QTDE TOTAL | J23: VALOR S/ DESC | K23: VALOR DESC | L23: VALOR TOTAL PRODUTOS | M23: VALOR TOTAL NOTA | AH23: =B15 -> TODOS | AT23: FILIAL | AU23: =D7 ->  | AV23: =_xlfn.CONCAT("DESC NOTA FISCAL: ",DOLLAR((M13*L22),2)) -> DESC NOTA FISCAL: R$ 0,00 | AW23: =E22 -> - | AX23: =IFERROR(BB22/BB19,"-") -> - | AY23: =IFERROR(AVERAGE(AY25:AY476),"-") -> - | AZ23: ='Regra Desconto'!G1 -> 0 | BA23: =IFERROR(J22/M22-1,0) -> 0 | BB23: MARGEM BRUTA | BC23: =IFERROR(1-(BC22/M22),"-") -> - | BD23: MARGEM LIQUIDA | BE23: =IFERROR((1-(BG22/BB22))-M13,"") ->  | BG23: META | BH23: =IFERROR(BB22/BK20,"") ->  | BI23: =SUM(BI25:BI476) -> 0 | BJ23: =BJ22*BB22 -> 0
A24: Código | B24: Descrição | G24: EAN | H24: Linha | I24: Quantidade | J24: Preço | K24: Desconto (%) | L24: Preço Liquido | M24: Preço Total | P24: 0 | R24: Rlx | T24: Rlx 2 | U24: Result | Y24: ATD | Z24: FRETE | AA24: Valor | AB24: PREÇO MIN | AC24: Cálculo | AD24: Qtde/CX | AE24: LIMITE DCNT % | AF24: =IF($B$15="FDL","Estoque","") ->  | AH24: DIST MEGA VALE | AT24: =A24 -> Código | AU24: =B24 -> Descrição | AV24: =H24 -> Linha | AW24: =I24 -> Quantidade | AX24: Custo | AY24: Preço Mín | AZ24: D.P.A | BA24: D.C | BB24: CT | BC24: Margem Bruta | BD24: Preço Padrão | BE24: =L24 -> Preço Liquido | BF24: Margem Lucro | BG24: Mín Total | BH24: =M24 -> Preço Total | BI24: FRETE | BJ24: LINHA | BL24: Rateio Desc | BM24: CUSTO | BN24: Venda | BO24: Rep | BP24: % Margem | BQ24: Frete Um
A25: =IFERROR(IF($B$15="TODOS",VLOOKUP($B$15,Catalogação!A2:B958,2,0),IF($B$15="ESPECIALIZADA",VLOOKUP($B$15,Catalogação!O2:P958,2,0),IF($B$15="DISTRIBUIDOR",VLOOKUP($B$15,Catalogação!X2:Y998,2,0),IF($B$15="FARMA",VLOOKUP($B$15,Catalogação!AG2:AH979,2,0),IF($B$15="SUPERMERCADO",VLOOKUP($B$15,Catalogação!AP2:AQ1001,2,0),IF($B$15="COMBO ESP (P)",VLOOKUP($B$15,Catalogação!$AY1:AZ999,2,0),IF($B$15="COMBO ESP (M)",VLOOKUP($B$15,Catalogação!BH1:BI999,2,0),IF($B$15="COMBO DIST (M)",VLOOKUP($B$15,Catalogação!BQ1:BR999,2,0),IF($B$15="BONIFICADO",VLOOKUP($B$15,Catalogação!BZ2:CA999,2,0),IF($B$15="FDL",VLOOKUP($B$15,Catalogação!CI2:CJ999,2,0))))))))))),) -> P01620 | B25: =IFERROR(IF($B$15="FDL",VLOOKUP(A25,Catalogação!$CJ$1:CO576,2,0),VLOOKUP(Pedido!A25,Catalogação!B:G,2,0)),"") -> KIT SABONETE ÍNTIMO FRESH SINTA-SE BEM PROBELLE LABORATÓRIO 500mL | G25: =IFERROR(IF($B$15="FDL",VLOOKUP(A25,Catalogação!$CJ$1:CP576,7,0),VLOOKUP(Pedido!A25,Catalogação!$B$1:H2940,7,0)),"") -> SUSPENSO | H25: =IFERROR(IF($B$15="FDL",VLOOKUP(A25,Catalogação!$CJ$1:CQ27,8,0),VLOOKUP(Pedido!A25,Catalogação!$B$1:I393,8,0)),"") -> LABORATÓRIO | J25: =IFERROR(IF(AND($B$15="COMBO ESP (P)",$B$16="RJ"),VLOOKUP(A25,'Tabela Preço'!$Q$2:W982,7,0),IF(AND(Pedido!$B$15="COMBO ESP (M)",Pedido!$B$16="RJ"),VLOOKUP(Pedido!A25,'Tabela Preço'!$Q$2:Y982,8,0),IF(AND(Pedido!$B$15="COMBO ESP (P)",Pedido!$B$16="SP"),VLOOKUP(Pedido!A25,'Tabela Preço'!$Q$2:AB982,11,0),IF(AND(Pedido!$B$15="COMBO ESP (M)",Pedido!$B$16="SP"),VLOOKUP(Pedido!A25,'Tabela Preço'!$Q$2:AC982,12,0),IF(Pedido!$B$15="COMBO DIST (M)",VLOOKUP(Pedido!A25,'Tabela Preço'!$Q$2:Z982,9,0),IF(Pedido!$B$15="COMBO DIST (G)",VLOOKUP(Pedido!A25,'Tabela Preço'!$Q$2:AA982,10,0),IF($O$16=$P$16,VLOOKUP(A25,'Tabela Preço'!$A$3:E982,2,0),IF(AND($B$15="COMBO ESP (P)",$B$16="RJ"),VLOOKUP(A25,'Tabela Preço'!$Q$2:W982,7,0),IF(AND(Pedido!$B$15="COMBO ESP (M)",Pedido!$B$16="RJ"),VLOOKUP(Pedido!A25,'Tabela Preço'!$Q$2:Y982,8,0),IF(AND(Pedido!$B$15="COMBO ESP (P)",Pedido!$B$16="MG"),VLOOKUP(Pedido!A25,'Tabela Preço'!$Q$2:AB982,11,0),IF(AND(Pedido!$B$15="COMBO ESP (M)",Pedido!$B$16="MG"),VLOOKUP(Pedido!A25,'Tabela Preço'!$Q$2:AC982,12,0),IF(Pedido!$B$15="COMBO DIST (M)",VLOOKUP(Pedido!A25,'Tabela Preço'!$Q$2:Z982,9,0),IF(Pedido!$B$15="COMBO DIST (G)",VLOOKUP(Pedido!A25,'Tabela Preço'!Q2:AA982,10,0),IF($O$16=$P$16,VLOOKUP(A25,'Tabela Preço'!$A$3:E982,2,0),IF($O$16=$P$18,VLOOKUP(A25,'Tabela Preço'!$A$3:E982,3,0),IF($O$16=$P$19,VLOOKUP(A25,'Tabela Preço'!$A$3:E3583,4,0),IF($O$16=$P$15,VLOOKUP(A25,'Tabela Preço'!$A$3:G3583,7,0),IF($O$16=$P$21,VLOOKUP(A25,'Tabela Preço'!A:K,11,0),IF($O$16=$P$20,VLOOKUP(A25,'Tabela Preço'!$A$3:E982,5,0),IF($O$16=$P$22,VLOOKUP(A25,'Tabela Preço'!$A$3:F982,6,0),"")))))))))))))))))))),) ->  | L25: =IFERROR(ROUNDUP(J25-(J25*(K25/1)),2),) -> 0 | M25: =I25*L25 -> 0 | R25: =ABS(IFERROR(V25-BE25,"")) ->  | S25: 2.488766134 | T25: =ABS(R25/L25-1) ->  | U25: =ABS(T25-1) ->  | V25: =AY25/0.96 ->  | Y25: =IF(I25>0,BF25,"") ->  | Z25: =IFERROR(BI25/BH25,"") ->  | AA25: =ROUNDUP(J25-(J25*(K25/1)),2) ->  | AC25: =IF(AE25>0,AE25,IFERROR(VLOOKUP(A25,Trava_Desconto!A:B,2,0),"")) -> 1 | AD25: =IFERROR(VLOOKUP(A25,Dados!A:H,8,0),"") -> 6 | AG25: =IFERROR(VLOOKUP(A25,'Relação SB e BURG - Preço Maior'!A:A,1,0),"") ->  | AT25: P01620 | AU25: =B25 -> KIT SABONETE ÍNTIMO FRESH SINTA-SE BEM PROBELLE LABORATÓRIO 500mL | AV25: =H25 -> LABORATÓRIO | AW25: =I25 -> 0 | AX25: =IFERROR(VLOOKUP(AT25,'Tabela Preço Minimo'!$A$14:H998,8,0),"") -> 3.502089401 | AY25: =IFERROR(IF(AW25>0,VLOOKUP(AT25,'Tabela Preço Minimo'!$A$14:$AB$984,27,0),""),"") ->  | AZ25: =IFERROR(VLOOKUP(AT25,Trava_Desconto!A1:U544,21,0),0) -> 0.1 | BA25: =IFERROR(VLOOKUP(AT25,A24:K462,11,0),0) -> 0 | BB25: =IFERROR(AX25*I25,"0") -> 0 | BC25: =IFERROR(1-(BB25/M25)," ") ->  | BD25: =J25 ->  | BE25: =L25 -> 0 | BF25: =IFERROR(1-(BG25/BH25),"") ->  | BG25: =IFERROR(IF(AW25>0,(AW25*AY25),0),"") -> 0 | BH25: =M25 -> 0 | BI25: =VLOOKUP(AT25,BASE!AC:AM,11,0) -> 0 | BJ25: =IFERROR(VLOOKUP(AT25,Produtos_Linha!A:C,3,0),"") -> Comercial | BK25: PROFISSIONAL | BL25: =IFERROR((BE22+BF22)*BO25,"") ->  | BM25: =IFERROR(+SUMIF(BJ25:BJ478,$BK$25,BG25:BG476)+BL25,"") ->  | BN25: =+SUMIF(BJ25:BJ500,$BK$25,BH25:BH500) -> 0 | BO25: =IFERROR(BN25/$BN$28,"") ->  | BP25: =IFERROR(1-(BM25/BN25),"") ->  | BQ25: =IFERROR(VLOOKUP(AT25,'Tabela Preço Minimo'!$A$14:V565,22,0),"") -> 0 | BV25: =IFERROR(IF($BV$3<>200, IF($B$11=168,VLOOKUP(Pedido!AT25,Regra_Aplicação!$A$5:$D$99999,4,0), IF($B$11=715,VLOOKUP(Pedido!AT25,Regra_Aplicação!$A$5:$E$99999,5,0), IF($B$11=103,VLOOKUP(Pedido!AT25,Regra_Aplicação!$A$5:$F$99999,6,0), IF($B$11=713,VLOOKUP(Pedido!AT25,Regra_Aplicação!$A$5:$G$99999,7,0), IF($B$11=110,VLOOKUP(Pedido!AT25,Regra_Aplicação!$A$5:$H$99999,8,0), IF($B$11=211,VLOOKUP(Pedido!AT25,Regra_Aplicação!$A$5:$I$99999,9,0), IF($B$11=705,VLOOKUP(Pedido!AT25,Regra_Aplicação!$A$5:$J$99999,10,0), IF($B$11=121,VLOOKUP(Pedido!AT25,Regra_Aplicação!$A$5:$K$99999,11,0), IF($B$11=169,VLOOKUP(Pedido!AT25,Regra_Aplicação!$A$5:$L$99999,12,0),IF($B$11=717,VLOOKUP(Pedido!AT25,Regra_Aplicação!$A$5:$AN$99999,40,0), )))))))))),IF(OR($BV$5="RJ",$BV$5="MG",$BV$5="SP",$BV$5="RS",$BV$5="PR"), IF($B$11=168,VLOOKUP(Pedido!AT25,Regra_Aplicação!$A$5:$V$99999,22,0), IF($B$11=715,VLOOKUP(Pedido!AT25,Regra_Aplicação!$A$5:$W$99999,23,0), IF($B$11=103,VLOOKUP(Pedido!AT25,Regra_Aplicação!$A$5:$X$99999,24,0), IF($B$11=713,VLOOKUP(Pedido!AT25,Regra_Aplicação!$A$5:$Y$99999,25,0), IF($B$11=110,VLOOKUP(Pedido!AT25,Regra_Aplicação!$A$5:$Z$99999,26,0), IF($B$11=211,VLOOKUP(Pedido!AT25,Regra_Aplicação!$A$5:$AA$99999,27,0), IF($B$11=705,VLOOKUP(Pedido!AT25,Regra_Aplicação!$A$5:$AB$99999,28,0), IF($B$11=121,VLOOKUP(Pedido!AT25,Regra_Aplicação!$A$5:$AC$99999,29,0), IF($B$11=169,VLOOKUP(Pedido!AT25,Regra_Aplicação!$A$5:$AD$99999,30,0),))))))))), IF($BV$5="ES", IF($B$11=168,VLOOKUP(Pedido!AT25,Regra_Aplicação!$A$5:$AE$99999,31,0), IF($B$11=715,VLOOKUP(Pedido!AT25,Regra_Aplicação!$A$5:$AF$99999,32,0), IF($B$11=103,VLOOKUP(Pedido!AT25,Regra_Aplicação!$A$5:$AG$99999,33,0), IF($B$11=713,VLOOKUP(Pedido!AT25,Regra_Aplicação!$A$5:$AH$99999,34,0), IF($B$11=110,VLOOKUP(Pedido!AT25,Regra_Aplicação!$A$5:$AI$99999,35,0), IF($B$11=211,VLOOKUP(Pedido!AT25,Regra_Aplicação!$A$5:$AJ$99999,36,0), IF($B$11=705,VLOOKUP(Pedido!AT25,Regra_Aplicação!$A$5:$AK$99999,37,0), IF($B$11=121,VLOOKUP(Pedido!AT25,Regra_Aplicação!$A$5:$AL$99999,38,0), IF($B$11=169,VLOOKUP(Pedido!AT25,Regra_Aplicação!$A$5:$AM$99999,39,0),))))))))), IF($B$11=168,VLOOKUP(Pedido!AT25,Regra_Aplicação!$A$5:$M$99999,13,0), IF($B$11=715,VLOOKUP(Pedido!AT25,Regra_Aplicação!$A$5:$N$99999,14,0), IF($B$11=103,VLOOKUP(Pedido!AT25,Regra_Aplicação!$A$5:$O$99999,15,0), IF($B$11=713,VLOOKUP(Pedido!AT25,Regra_Aplicação!$A$5:$P$99999,16,0), IF($B$11=110,VLOOKUP(Pedido!AT25,Regra_Aplicação!$A$5:$Q$99999,17,0), IF($B$11=211,VLOOKUP(Pedido!AT25,Regra_Aplicação!$A$5:$R$99999,18,0), IF($B$11=705,VLOOKUP(Pedido!AT25,Regra_Aplicação!$A$5:$S$99999,19,0), IF($B$11=121,VLOOKUP(Pedido!AT25,Regra_Aplicação!$A$5:$T$99999,20,0), IF($B$11=169,VLOOKUP(Pedido!AT25,Regra_Aplicação!$A$5:$U$99999,21,0),)))))))))))),) -> 0
A26: =IFERROR(IF($B$15="TODOS",VLOOKUP($B$15,Catalogação!A3:B959,2,0),IF($B$15="ESPECIALIZADA",VLOOKUP($B$15,Catalogação!O3:P959,2,0),IF($B$15="DISTRIBUIDOR",VLOOKUP($B$15,Catalogação!X3:Y999,2,0),IF($B$15="FARMA",VLOOKUP($B$15,Catalogação!AG3:AH980,2,0),IF($B$15="SUPERMERCADO",VLOOKUP($B$15,Catalogação!AP3:AQ1002,2,0),IF($B$15="COMBO ESP (P)",VLOOKUP($B$15,Catalogação!$AY2:AZ1000,2,0),IF($B$15="COMBO ESP (M)",VLOOKUP($B$15,Catalogação!BH2:BI1000,2,0),IF($B$15="COMBO DIST (M)",VLOOKUP($B$15,Catalogação!BQ2:BR1000,2,0),IF($B$15="BONIFICADO",VLOOKUP($B$15,Catalogação!BZ3:CA1000,2,0),IF($B$15="FDL",VLOOKUP($B$15,Catalogação!CI3:CJ1000,2,0))))))))))),) -> P01622 | B26: =IFERROR(IF($B$15="FDL",VLOOKUP(A26,Catalogação!$CJ$1:CO577,2,0),VLOOKUP(Pedido!A26,Catalogação!B:G,2,0)),"") -> KIT SABONETE ÍNTIMO NEUTRO SINTA-SE BEM PROBELLE LABORATÓRIO 500mL | G26: =IFERROR(IF($B$15="FDL",VLOOKUP(A26,Catalogação!$CJ$1:CP577,7,0),VLOOKUP(Pedido!A26,Catalogação!$B$1:H2941,7,0)),"") -> 7898617528696 | H26: =IFERROR(IF($B$15="FDL",VLOOKUP(A26,Catalogação!$CJ$1:CQ28,8,0),VLOOKUP(Pedido!A26,Catalogação!$B$1:I394,8,0)),"") -> LABORATÓRIO | J26: =IFERROR(IF(AND($B$15="COMBO ESP (P)",$B$16="RJ"),VLOOKUP(A26,'Tabela Preço'!$Q$2:W983,7,0),IF(AND(Pedido!$B$15="COMBO ESP (M)",Pedido!$B$16="RJ"),VLOOKUP(Pedido!A26,'Tabela Preço'!$Q$2:Y983,8,0),IF(AND(Pedido!$B$15="COMBO ESP (P)",Pedido!$B$16="SP"),VLOOKUP(Pedido!A26,'Tabela Preço'!$Q$2:AB983,11,0),IF(AND(Pedido!$B$15="COMBO ESP (M)",Pedido!$B$16="SP"),VLOOKUP(Pedido!A26,'Tabela Preço'!$Q$2:AC983,12,0),IF(Pedido!$B$15="COMBO DIST (M)",VLOOKUP(Pedido!A26,'Tabela Preço'!$Q$2:Z983,9,0),IF(Pedido!$B$15="COMBO DIST (G)",VLOOKUP(Pedido!A26,'Tabela Preço'!$Q$2:AA983,10,0),IF($O$16=$P$16,VLOOKUP(A26,'Tabela Preço'!$A$3:E983,2,0),IF(AND($B$15="COMBO ESP (P)",$B$16="RJ"),VLOOKUP(A26,'Tabela Preço'!$Q$2:W983,7,0),IF(AND(Pedido!$B$15="COMBO ESP (M)",Pedido!$B$16="RJ"),VLOOKUP(Pedido!A26,'Tabela Preço'!$Q$2:Y983,8,0),IF(AND(Pedido!$B$15="COMBO ESP (P)",Pedido!$B$16="MG"),VLOOKUP(Pedido!A26,'Tabela Preço'!$Q$2:AB983,11,0),IF(AND(Pedido!$B$15="COMBO ESP (M)",Pedido!$B$16="MG"),VLOOKUP(Pedido!A26,'Tabela Preço'!$Q$2:AC983,12,0),IF(Pedido!$B$15="COMBO DIST (M)",VLOOKUP(Pedido!A26,'Tabela Preço'!$Q$2:Z983,9,0),IF(Pedido!$B$15="COMBO DIST (G)",VLOOKUP(Pedido!A26,'Tabela Preço'!Q3:AA983,10,0),IF($O$16=$P$16,VLOOKUP(A26,'Tabela Preço'!$A$3:E983,2,0),IF($O$16=$P$18,VLOOKUP(A26,'Tabela Preço'!$A$3:E983,3,0),IF($O$16=$P$19,VLOOKUP(A26,'Tabela Preço'!$A$3:E3584,4,0),IF($O$16=$P$15,VLOOKUP(A26,'Tabela Preço'!$A$3:G3584,7,0),IF($O$16=$P$21,VLOOKUP(A26,'Tabela Preço'!A:K,11,0),IF($O$16=$P$20,VLOOKUP(A26,'Tabela Preço'!$A$3:E983,5,0),IF($O$16=$P$22,VLOOKUP(A26,'Tabela Preço'!$A$3:F983,6,0),"")))))))))))))))))))),) ->  | L26: =IFERROR(ROUNDUP(J26-(J26*(K26/1)),2),) -> 0 | M26: =I26*L26 -> 0 | R26: =ABS(IFERROR(V26-BE26,"")) ->  | S26: 3.488766134 | T26: =ABS(R26/L26-1) ->  | U26: =ABS(T26-1) ->  | V26: =AY26/0.96 ->  | Y26: =IF(I26>0,BF26,"") ->  | Z26: =IFERROR(BI26/BH26,"") ->  | AA26: =ROUNDUP(J26-(J26*(K26/1)),2) ->  | AC26: =IF(AE26>0,AE26,IFERROR(VLOOKUP(A26,Trava_Desconto!A:B,2,0),"")) -> 1 | AD26: =IFERROR(VLOOKUP(A26,Dados!A:H,8,0),"") -> 6 | AG26: =IFERROR(VLOOKUP(A26,'Relação SB e BURG - Preço Maior'!A:A,1,0),"") ->  | AT26: P01622 | AU26: =B26 -> KIT SABONETE ÍNTIMO NEUTRO SINTA-SE BEM PROBELLE LABORATÓRIO 500mL | AV26: =H26 -> LABORATÓRIO | AW26: =I26 -> 0 | AX26: =IFERROR(VLOOKUP(AT26,'Tabela Preço Minimo'!$A$14:H999,8,0),"") -> 3.847324837 | AY26: =IFERROR(IF(AW26>0,VLOOKUP(AT26,'Tabela Preço Minimo'!$A$14:$AB$984,27,0),""),"") ->  | AZ26: =IFERROR(VLOOKUP(AT26,Trava_Desconto!A2:U545,21,0),0) -> 0.1 | BA26: =IFERROR(VLOOKUP(AT26,A25:K463,11,0),0) -> 0 | BB26: =IFERROR(AX26*I26,"0") -> 0 | BC26: =IFERROR(1-(BB26/M26)," ") ->  | BD26: =J26 ->  | BE26: =L26 -> 0 | BF26: =IFERROR(1-(BG26/BH26),"") ->  | BG26: =IFERROR(IF(AW26>0,(AW26*AY26),0),"") -> 0 | BH26: =M26 -> 0 | BI26: =VLOOKUP(AT26,BASE!AC:AM,11,0) -> 0 | BJ26: =IFERROR(VLOOKUP(AT26,Produtos_Linha!A:C,3,0),"") -> Comercial | BK26: COMERCIAL | BL26: =IFERROR((BE22+BF22)*BO26,"") ->  | BM26: =IFERROR(+SUMIF(BJ25:BJ564,$BK$26,BG25:BG564)+BL26,"") ->  | BN26: =+SUMIF(BJ25:BJ503,$BK$26,BH25:BH503) -> 0 | BO26: =IFERROR(BN26/$BN$28,"") ->  | BP26: =IFERROR(1-(BM26/BN26),"") ->  | BQ26: =IFERROR(VLOOKUP(AT26,'Tabela Preço Minimo'!$A$14:V566,22,0),"") -> 0 | BV26: =IFERROR(IF($BV$3<>200, IF($B$11=168,VLOOKUP(Pedido!AT26,Regra_Aplicação!$A$5:$D$99999,4,0), IF($B$11=715,VLOOKUP(Pedido!AT26,Regra_Aplicação!$A$5:$E$99999,5,0), IF($B$11=103,VLOOKUP(Pedido!AT26,Regra_Aplicação!$A$5:$F$99999,6,0), IF($B$11=713,VLOOKUP(Pedido!AT26,Regra_Aplicação!$A$5:$G$99999,7,0), IF($B$11=110,VLOOKUP(Pedido!AT26,Regra_Aplicação!$A$5:$H$99999,8,0), IF($B$11=211,VLOOKUP(Pedido!AT26,Regra_Aplicação!$A$5:$I$99999,9,0), IF($B$11=705,VLOOKUP(Pedido!AT26,Regra_Aplicação!$A$5:$J$99999,10,0), IF($B$11=121,VLOOKUP(Pedido!AT26,Regra_Aplicação!$A$5:$K$99999,11,0), IF($B$11=169,VLOOKUP(Pedido!AT26,Regra_Aplicação!$A$5:$L$99999,12,0),IF($B$11=717,VLOOKUP(Pedido!AT26,Regra_Aplicação!$A$5:$AN$99999,40,0), )))))))))),IF(OR($BV$5="RJ",$BV$5="MG",$BV$5="SP",$BV$5="RS",$BV$5="PR"), IF($B$11=168,VLOOKUP(Pedido!AT26,Regra_Aplicação!$A$5:$V$99999,22,0), IF($B$11=715,VLOOKUP(Pedido!AT26,Regra_Aplicação!$A$5:$W$99999,23,0), IF($B$11=103,VLOOKUP(Pedido!AT26,Regra_Aplicação!$A$5:$X$99999,24,0), IF($B$11=713,VLOOKUP(Pedido!AT26,Regra_Aplicação!$A$5:$Y$99999,25,0), IF($B$11=110,VLOOKUP(Pedido!AT26,Regra_Aplicação!$A$5:$Z$99999,26,0), IF($B$11=211,VLOOKUP(Pedido!AT26,Regra_Aplicação!$A$5:$AA$99999,27,0), IF($B$11=705,VLOOKUP(Pedido!AT26,Regra_Aplicação!$A$5:$AB$99999,28,0), IF($B$11=121,VLOOKUP(Pedido!AT26,Regra_Aplicação!$A$5:$AC$99999,29,0), IF($B$11=169,VLOOKUP(Pedido!AT26,Regra_Aplicação!$A$5:$AD$99999,30,0),))))))))), IF($BV$5="ES", IF($B$11=168,VLOOKUP(Pedido!AT26,Regra_Aplicação!$A$5:$AE$99999,31,0), IF($B$11=715,VLOOKUP(Pedido!AT26,Regra_Aplicação!$A$5:$AF$99999,32,0), IF($B$11=103,VLOOKUP(Pedido!AT26,Regra_Aplicação!$A$5:$AG$99999,33,0), IF($B$11=713,VLOOKUP(Pedido!AT26,Regra_Aplicação!$A$5:$AH$99999,34,0), IF($B$11=110,VLOOKUP(Pedido!AT26,Regra_Aplicação!$A$5:$AI$99999,35,0), IF($B$11=211,VLOOKUP(Pedido!AT26,Regra_Aplicação!$A$5:$AJ$99999,36,0), IF($B$11=705,VLOOKUP(Pedido!AT26,Regra_Aplicação!$A$5:$AK$99999,37,0), IF($B$11=121,VLOOKUP(Pedido!AT26,Regra_Aplicação!$A$5:$AL$99999,38,0), IF($B$11=169,VLOOKUP(Pedido!AT26,Regra_Aplicação!$A$5:$AM$99999,39,0),))))))))), IF($B$11=168,VLOOKUP(Pedido!AT26,Regra_Aplicação!$A$5:$M$99999,13,0), IF($B$11=715,VLOOKUP(Pedido!AT26,Regra_Aplicação!$A$5:$N$99999,14,0), IF($B$11=103,VLOOKUP(Pedido!AT26,Regra_Aplicação!$A$5:$O$99999,15,0), IF($B$11=713,VLOOKUP(Pedido!AT26,Regra_Aplicação!$A$5:$P$99999,16,0), IF($B$11=110,VLOOKUP(Pedido!AT26,Regra_Aplicação!$A$5:$Q$99999,17,0), IF($B$11=211,VLOOKUP(Pedido!AT26,Regra_Aplicação!$A$5:$R$99999,18,0), IF($B$11=705,VLOOKUP(Pedido!AT26,Regra_Aplicação!$A$5:$S$99999,19,0), IF($B$11=121,VLOOKUP(Pedido!AT26,Regra_Aplicação!$A$5:$T$99999,20,0), IF($B$11=169,VLOOKUP(Pedido!AT26,Regra_Aplicação!$A$5:$U$99999,21,0),)))))))))))),) -> 0
A27: =IFERROR(IF($B$15="TODOS",VLOOKUP($B$15,Catalogação!A4:B960,2,0),IF($B$15="ESPECIALIZADA",VLOOKUP($B$15,Catalogação!O4:P960,2,0),IF($B$15="DISTRIBUIDOR",VLOOKUP($B$15,Catalogação!X4:Y1000,2,0),IF($B$15="FARMA",VLOOKUP($B$15,Catalogação!AG4:AH981,2,0),IF($B$15="SUPERMERCADO",VLOOKUP($B$15,Catalogação!AP4:AQ1003,2,0),IF($B$15="COMBO ESP (P)",VLOOKUP($B$15,Catalogação!$AY3:AZ1001,2,0),IF($B$15="COMBO ESP (M)",VLOOKUP($B$15,Catalogação!BH3:BI1001,2,0),IF($B$15="COMBO DIST (M)",VLOOKUP($B$15,Catalogação!BQ3:BR1001,2,0),IF($B$15="BONIFICADO",VLOOKUP($B$15,Catalogação!BZ4:CA1001,2,0),IF($B$15="FDL",VLOOKUP($B$15,Catalogação!CI4:CJ1001,2,0))))))))))),) -> P02063 | B27: =IFERROR(IF($B$15="FDL",VLOOKUP(A27,Catalogação!$CJ$1:CO578,2,0),VLOOKUP(Pedido!A27,Catalogação!B:G,2,0)),"") -> Repelente Máxima Proteção 100mL LANÇAMENTO!!! | G27: =IFERROR(IF($B$15="FDL",VLOOKUP(A27,Catalogação!$CJ$1:CP578,7,0),VLOOKUP(Pedido!A27,Catalogação!$B$1:H2942,7,0)),"") -> 7898746930827 | H27: =IFERROR(IF($B$15="FDL",VLOOKUP(A27,Catalogação!$CJ$1:CQ29,8,0),VLOOKUP(Pedido!A27,Catalogação!$B$1:I395,8,0)),"") -> REPELENTE - MEGA VITAL | J27: =IFERROR(IF(AND($B$15="COMBO ESP (P)",$B$16="RJ"),VLOOKUP(A27,'Tabela Preço'!$Q$2:W984,7,0),IF(AND(Pedido!$B$15="COMBO ESP (M)",Pedido!$B$16="RJ"),VLOOKUP(Pedido!A27,'Tabela Preço'!$Q$2:Y984,8,0),IF(AND(Pedido!$B$15="COMBO ESP (P)",Pedido!$B$16="SP"),VLOOKUP(Pedido!A27,'Tabela Preço'!$Q$2:AB984,11,0),IF(AND(Pedido!$B$15="COMBO ESP (M)",Pedido!$B$16="SP"),VLOOKUP(Pedido!A27,'Tabela Preço'!$Q$2:AC984,12,0),IF(Pedido!$B$15="COMBO DIST (M)",VLOOKUP(Pedido!A27,'Tabela Preço'!$Q$2:Z984,9,0),IF(Pedido!$B$15="COMBO DIST (G)",VLOOKUP(Pedido!A27,'Tabela Preço'!$Q$2:AA984,10,0),IF($O$16=$P$16,VLOOKUP(A27,'Tabela Preço'!$A$3:E984,2,0),IF(AND($B$15="COMBO ESP (P)",$B$16="RJ"),VLOOKUP(A27,'Tabela Preço'!$Q$2:W984,7,0),IF(AND(Pedido!$B$15="COMBO ESP (M)",Pedido!$B$16="RJ"),VLOOKUP(Pedido!A27,'Tabela Preço'!$Q$2:Y984,8,0),IF(AND(Pedido!$B$15="COMBO ESP (P)",Pedido!$B$16="MG"),VLOOKUP(Pedido!A27,'Tabela Preço'!$Q$2:AB984,11,0),IF(AND(Pedido!$B$15="COMBO ESP (M)",Pedido!$B$16="MG"),VLOOKUP(Pedido!A27,'Tabela Preço'!$Q$2:AC984,12,0),IF(Pedido!$B$15="COMBO DIST (M)",VLOOKUP(Pedido!A27,'Tabela Preço'!$Q$2:Z984,9,0),IF(Pedido!$B$15="COMBO DIST (G)",VLOOKUP(Pedido!A27,'Tabela Preço'!Q4:AA984,10,0),IF($O$16=$P$16,VLOOKUP(A27,'Tabela Preço'!$A$3:E984,2,0),IF($O$16=$P$18,VLOOKUP(A27,'Tabela Preço'!$A$3:E984,3,0),IF($O$16=$P$19,VLOOKUP(A27,'Tabela Preço'!$A$3:E3585,4,0),IF($O$16=$P$15,VLOOKUP(A27,'Tabela Preço'!$A$3:G3585,7,0),IF($O$16=$P$21,VLOOKUP(A27,'Tabela Preço'!A:K,11,0),IF($O$16=$P$20,VLOOKUP(A27,'Tabela Preço'!$A$3:E984,5,0),IF($O$16=$P$22,VLOOKUP(A27,'Tabela Preço'!$A$3:F984,6,0),"")))))))))))))))))))),) ->  | L27: 0 | M27: 0 | S27: 4.488766134 | AC27: =IF(AE27>0,AE27,IFERROR(VLOOKUP(A27,Trava_Desconto!A:B,2,0),"")) -> 1 | AD27: =IFERROR(VLOOKUP(A27,Dados!A:H,8,0),"") -> 24 | AG27: =IFERROR(VLOOKUP(A27,'Relação SB e BURG - Preço Maior'!A:A,1,0),"") ->  | AT27: P02063 | AU27: Repelente Máxima Proteção 100mL LANÇAMENTO!!! | AV27: REPELENTE - MEGA VITAL | AW27: 0 | AX27: =IFERROR(VLOOKUP(AT27,'Tabela Preço Minimo'!$A$14:H1000,8,0),"") -> 2.224465193 | AY27: =IFERROR(IF(AW27>0,VLOOKUP(AT27,'Tabela Preço Minimo'!$A$14:$AB$984,27,0),""),"") ->  | AZ27: =IFERROR(VLOOKUP(AT27,Trava_Desconto!A3:U546,21,0),0) -> 0 | BA27: 0 | BB27: 0 | BE27: 0 | BG27: 0 | BH27: 0 | BI27: =VLOOKUP(AT27,BASE!AC:AM,11,0) -> 0 | BJ27: =IFERROR(VLOOKUP(AT27,Produtos_Linha!A:C,3,0),"") -> Comercial | BL27: =IFERROR((BE24+BF24)*BO27,"") ->  | BQ27: =IFERROR(VLOOKUP(AT27,'Tabela Preço Minimo'!$A$14:V567,22,0),"") ->  | BV27: =IFERROR(IF($BV$3<>200, IF($B$11=168,VLOOKUP(Pedido!AT27,Regra_Aplicação!$A$5:$D$99999,4,0), IF($B$11=715,VLOOKUP(Pedido!AT27,Regra_Aplicação!$A$5:$E$99999,5,0), IF($B$11=103,VLOOKUP(Pedido!AT27,Regra_Aplicação!$A$5:$F$99999,6,0), IF($B$11=713,VLOOKUP(Pedido!AT27,Regra_Aplicação!$A$5:$G$99999,7,0), IF($B$11=110,VLOOKUP(Pedido!AT27,Regra_Aplicação!$A$5:$H$99999,8,0), IF($B$11=211,VLOOKUP(Pedido!AT27,Regra_Aplicação!$A$5:$I$99999,9,0), IF($B$11=705,VLOOKUP(Pedido!AT27,Regra_Aplicação!$A$5:$J$99999,10,0), IF($B$11=121,VLOOKUP(Pedido!AT27,Regra_Aplicação!$A$5:$K$99999,11,0), IF($B$11=169,VLOOKUP(Pedido!AT27,Regra_Aplicação!$A$5:$L$99999,12,0),IF($B$11=717,VLOOKUP(Pedido!AT27,Regra_Aplicação!$A$5:$AN$99999,40,0), )))))))))),IF(OR($BV$5="RJ",$BV$5="MG",$BV$5="SP",$BV$5="RS",$BV$5="PR"), IF($B$11=168,VLOOKUP(Pedido!AT27,Regra_Aplicação!$A$5:$V$99999,22,0), IF($B$11=715,VLOOKUP(Pedido!AT27,Regra_Aplicação!$A$5:$W$99999,23,0), IF($B$11=103,VLOOKUP(Pedido!AT27,Regra_Aplicação!$A$5:$X$99999,24,0), IF($B$11=713,VLOOKUP(Pedido!AT27,Regra_Aplicação!$A$5:$Y$99999,25,0), IF($B$11=110,VLOOKUP(Pedido!AT27,Regra_Aplicação!$A$5:$Z$99999,26,0), IF($B$11=211,VLOOKUP(Pedido!AT27,Regra_Aplicação!$A$5:$AA$99999,27,0), IF($B$11=705,VLOOKUP(Pedido!AT27,Regra_Aplicação!$A$5:$AB$99999,28,0), IF($B$11=121,VLOOKUP(Pedido!AT27,Regra_Aplicação!$A$5:$AC$99999,29,0), IF($B$11=169,VLOOKUP(Pedido!AT27,Regra_Aplicação!$A$5:$AD$99999,30,0),))))))))), IF($BV$5="ES", IF($B$11=168,VLOOKUP(Pedido!AT27,Regra_Aplicação!$A$5:$AE$99999,31,0), IF($B$11=715,VLOOKUP(Pedido!AT27,Regra_Aplicação!$A$5:$AF$99999,32,0), IF($B$11=103,VLOOKUP(Pedido!AT27,Regra_Aplicação!$A$5:$AG$99999,33,0), IF($B$11=713,VLOOKUP(Pedido!AT27,Regra_Aplicação!$A$5:$AH$99999,34,0), IF($B$11=110,VLOOKUP(Pedido!AT27,Regra_Aplicação!$A$5:$AI$99999,35,0), IF($B$11=211,VLOOKUP(Pedido!AT27,Regra_Aplicação!$A$5:$AJ$99999,36,0), IF($B$11=705,VLOOKUP(Pedido!AT27,Regra_Aplicação!$A$5:$AK$99999,37,0), IF($B$11=121,VLOOKUP(Pedido!AT27,Regra_Aplicação!$A$5:$AL$99999,38,0), IF($B$11=169,VLOOKUP(Pedido!AT27,Regra_Aplicação!$A$5:$AM$99999,39,0),))))))))), IF($B$11=168,VLOOKUP(Pedido!AT27,Regra_Aplicação!$A$5:$M$99999,13,0), IF($B$11=715,VLOOKUP(Pedido!AT27,Regra_Aplicação!$A$5:$N$99999,14,0), IF($B$11=103,VLOOKUP(Pedido!AT27,Regra_Aplicação!$A$5:$O$99999,15,0), IF($B$11=713,VLOOKUP(Pedido!AT27,Regra_Aplicação!$A$5:$P$99999,16,0), IF($B$11=110,VLOOKUP(Pedido!AT27,Regra_Aplicação!$A$5:$Q$99999,17,0), IF($B$11=211,VLOOKUP(Pedido!AT27,Regra_Aplicação!$A$5:$R$99999,18,0), IF($B$11=705,VLOOKUP(Pedido!AT27,Regra_Aplicação!$A$5:$S$99999,19,0), IF($B$11=121,VLOOKUP(Pedido!AT27,Regra_Aplicação!$A$5:$T$99999,20,0), IF($B$11=169,VLOOKUP(Pedido!AT27,Regra_Aplicação!$A$5:$U$99999,21,0),)))))))))))),) -> 0
A28: =IFERROR(IF($B$15="TODOS",VLOOKUP($B$15,Catalogação!A5:B961,2,0),IF($B$15="ESPECIALIZADA",VLOOKUP($B$15,Catalogação!O5:P961,2,0),IF($B$15="DISTRIBUIDOR",VLOOKUP($B$15,Catalogação!X5:Y1001,2,0),IF($B$15="FARMA",VLOOKUP($B$15,Catalogação!AG5:AH982,2,0),IF($B$15="SUPERMERCADO",VLOOKUP($B$15,Catalogação!AP5:AQ1004,2,0),IF($B$15="COMBO ESP (P)",VLOOKUP($B$15,Catalogação!$AY4:AZ1002,2,0),IF($B$15="COMBO ESP (M)",VLOOKUP($B$15,Catalogação!BH4:BI1002,2,0),IF($B$15="COMBO DIST (M)",VLOOKUP($B$15,Catalogação!BQ4:BR1002,2,0),IF($B$15="BONIFICADO",VLOOKUP($B$15,Catalogação!BZ5:CA1002,2,0),IF($B$15="FDL",VLOOKUP($B$15,Catalogação!CI5:CJ1002,2,0))))))))))),) -> P02243 | B28: =IFERROR(IF($B$15="FDL",VLOOKUP(A28,Catalogação!$CJ$1:CO579,2,0),VLOOKUP(Pedido!A28,Catalogação!B:G,2,0)),"") -> Shampoo 400mL LANÇAMENTO!!! | G28: =IFERROR(IF($B$15="FDL",VLOOKUP(A28,Catalogação!$CJ$1:CP579,7,0),VLOOKUP(Pedido!A28,Catalogação!$B$1:H2943,7,0)),"") -> 7898746931541 | H28: =IFERROR(IF($B$15="FDL",VLOOKUP(A28,Catalogação!$CJ$1:CQ30,8,0),VLOOKUP(Pedido!A28,Catalogação!$B$1:I396,8,0)),"") -> LUMINO MAX - PROBELLE | J28: =IFERROR(IF(AND($B$15="COMBO ESP (P)",$B$16="RJ"),VLOOKUP(A28,'Tabela Preço'!$Q$2:W985,7,0),IF(AND(Pedido!$B$15="COMBO ESP (M)",Pedido!$B$16="RJ"),VLOOKUP(Pedido!A28,'Tabela Preço'!$Q$2:Y985,8,0),IF(AND(Pedido!$B$15="COMBO ESP (P)",Pedido!$B$16="SP"),VLOOKUP(Pedido!A28,'Tabela Preço'!$Q$2:AB985,11,0),IF(AND(Pedido!$B$15="COMBO ESP (M)",Pedido!$B$16="SP"),VLOOKUP(Pedido!A28,'Tabela Preço'!$Q$2:AC985,12,0),IF(Pedido!$B$15="COMBO DIST (M)",VLOOKUP(Pedido!A28,'Tabela Preço'!$Q$2:Z985,9,0),IF(Pedido!$B$15="COMBO DIST (G)",VLOOKUP(Pedido!A28,'Tabela Preço'!$Q$2:AA985,10,0),IF($O$16=$P$16,VLOOKUP(A28,'Tabela Preço'!$A$3:E985,2,0),IF(AND($B$15="COMBO ESP (P)",$B$16="RJ"),VLOOKUP(A28,'Tabela Preço'!$Q$2:W985,7,0),IF(AND(Pedido!$B$15="COMBO ESP (M)",Pedido!$B$16="RJ"),VLOOKUP(Pedido!A28,'Tabela Preço'!$Q$2:Y985,8,0),IF(AND(Pedido!$B$15="COMBO ESP (P)",Pedido!$B$16="MG"),VLOOKUP(Pedido!A28,'Tabela Preço'!$Q$2:AB985,11,0),IF(AND(Pedido!$B$15="COMBO ESP (M)",Pedido!$B$16="MG"),VLOOKUP(Pedido!A28,'Tabela Preço'!$Q$2:AC985,12,0),IF(Pedido!$B$15="COMBO DIST (M)",VLOOKUP(Pedido!A28,'Tabela Preço'!$Q$2:Z985,9,0),IF(Pedido!$B$15="COMBO DIST (G)",VLOOKUP(Pedido!A28,'Tabela Preço'!Q5:AA985,10,0),IF($O$16=$P$16,VLOOKUP(A28,'Tabela Preço'!$A$3:E985,2,0),IF($O$16=$P$18,VLOOKUP(A28,'Tabela Preço'!$A$3:E985,3,0),IF($O$16=$P$19,VLOOKUP(A28,'Tabela Preço'!$A$3:E3586,4,0),IF($O$16=$P$15,VLOOKUP(A28,'Tabela Preço'!$A$3:G3586,7,0),IF($O$16=$P$21,VLOOKUP(A28,'Tabela Preço'!A:K,11,0),IF($O$16=$P$20,VLOOKUP(A28,'Tabela Preço'!$A$3:E985,5,0),IF($O$16=$P$22,VLOOKUP(A28,'Tabela Preço'!$A$3:F985,6,0),"")))))))))))))))))))),) ->  | L28: 0 | M28: 0 | S28: 5.488766134 | AC28: =IF(AE28>0,AE28,IFERROR(VLOOKUP(A28,Trava_Desconto!A:B,2,0),"")) -> 1 | AD28: =IFERROR(VLOOKUP(A28,Dados!A:H,8,0),"") -> 12 | AG28: =IFERROR(VLOOKUP(A28,'Relação SB e BURG - Preço Maior'!A:A,1,0),"") ->  | AH28: FDL | AT28: P02243 | AU28: Shampoo 400mL LANÇAMENTO!!! | AV28: LUMINO MAX - PROBELLE | AW28: 0 | AX28: =IFERROR(VLOOKUP(AT28,'Tabela Preço Minimo'!$A$14:H1001,8,0),"") -> 3.099 | AY28: =IFERROR(IF(AW28>0,VLOOKUP(AT28,'Tabela Preço Minimo'!$A$14:$AB$984,27,0),""),"") ->  | AZ28: =IFERROR(VLOOKUP(AT28,Trava_Desconto!A4:U547,21,0),0) -> 0 | BA28: 0 | BB28: 0 | BE28: 0 | BG28: 0 | BH28: 0 | BI28: =VLOOKUP(AT28,BASE!AC:AM,11,0) -> 0 | BJ28: =IFERROR(VLOOKUP(AT28,Produtos_Linha!A:C,3,0),"") -> Profissional | BM28: =BM26+BM25 ->  | BN28: =BN26+BN25 -> 0 | BO28: =IFERROR(BM29/$BN$28,"") ->  | BP28: =IFERROR(1-(BN29/BN28),"") ->  | BQ28: =IFERROR(VLOOKUP(AT28,'Tabela Preço Minimo'!$A$14:V568,22,0),"") ->  | BV28: =IFERROR(IF($BV$3<>200, IF($B$11=168,VLOOKUP(Pedido!AT28,Regra_Aplicação!$A$5:$D$99999,4,0), IF($B$11=715,VLOOKUP(Pedido!AT28,Regra_Aplicação!$A$5:$E$99999,5,0), IF($B$11=103,VLOOKUP(Pedido!AT28,Regra_Aplicação!$A$5:$F$99999,6,0), IF($B$11=713,VLOOKUP(Pedido!AT28,Regra_Aplicação!$A$5:$G$99999,7,0), IF($B$11=110,VLOOKUP(Pedido!AT28,Regra_Aplicação!$A$5:$H$99999,8,0), IF($B$11=211,VLOOKUP(Pedido!AT28,Regra_Aplicação!$A$5:$I$99999,9,0), IF($B$11=705,VLOOKUP(Pedido!AT28,Regra_Aplicação!$A$5:$J$99999,10,0), IF($B$11=121,VLOOKUP(Pedido!AT28,Regra_Aplicação!$A$5:$K$99999,11,0), IF($B$11=169,VLOOKUP(Pedido!AT28,Regra_Aplicação!$A$5:$L$99999,12,0),IF($B$11=717,VLOOKUP(Pedido!AT28,Regra_Aplicação!$A$5:$AN$99999,40,0), )))))))))),IF(OR($BV$5="RJ",$BV$5="MG",$BV$5="SP",$BV$5="RS",$BV$5="PR"), IF($B$11=168,VLOOKUP(Pedido!AT28,Regra_Aplicação!$A$5:$V$99999,22,0), IF($B$11=715,VLOOKUP(Pedido!AT28,Regra_Aplicação!$A$5:$W$99999,23,0), IF($B$11=103,VLOOKUP(Pedido!AT28,Regra_Aplicação!$A$5:$X$99999,24,0), IF($B$11=713,VLOOKUP(Pedido!AT28,Regra_Aplicação!$A$5:$Y$99999,25,0), IF($B$11=110,VLOOKUP(Pedido!AT28,Regra_Aplicação!$A$5:$Z$99999,26,0), IF($B$11=211,VLOOKUP(Pedido!AT28,Regra_Aplicação!$A$5:$AA$99999,27,0), IF($B$11=705,VLOOKUP(Pedido!AT28,Regra_Aplicação!$A$5:$AB$99999,28,0), IF($B$11=121,VLOOKUP(Pedido!AT28,Regra_Aplicação!$A$5:$AC$99999,29,0), IF($B$11=169,VLOOKUP(Pedido!AT28,Regra_Aplicação!$A$5:$AD$99999,30,0),))))))))), IF($BV$5="ES", IF($B$11=168,VLOOKUP(Pedido!AT28,Regra_Aplicação!$A$5:$AE$99999,31,0), IF($B$11=715,VLOOKUP(Pedido!AT28,Regra_Aplicação!$A$5:$AF$99999,32,0), IF($B$11=103,VLOOKUP(Pedido!AT28,Regra_Aplicação!$A$5:$AG$99999,33,0), IF($B$11=713,VLOOKUP(Pedido!AT28,Regra_Aplicação!$A$5:$AH$99999,34,0), IF($B$11=110,VLOOKUP(Pedido!AT28,Regra_Aplicação!$A$5:$AI$99999,35,0), IF($B$11=211,VLOOKUP(Pedido!AT28,Regra_Aplicação!$A$5:$AJ$99999,36,0), IF($B$11=705,VLOOKUP(Pedido!AT28,Regra_Aplicação!$A$5:$AK$99999,37,0), IF($B$11=121,VLOOKUP(Pedido!AT28,Regra_Aplicação!$A$5:$AL$99999,38,0), IF($B$11=169,VLOOKUP(Pedido!AT28,Regra_Aplicação!$A$5:$AM$99999,39,0),))))))))), IF($B$11=168,VLOOKUP(Pedido!AT28,Regra_Aplicação!$A$5:$M$99999,13,0), IF($B$11=715,VLOOKUP(Pedido!AT28,Regra_Aplicação!$A$5:$N$99999,14,0), IF($B$11=103,VLOOKUP(Pedido!AT28,Regra_Aplicação!$A$5:$O$99999,15,0), IF($B$11=713,VLOOKUP(Pedido!AT28,Regra_Aplicação!$A$5:$P$99999,16,0), IF($B$11=110,VLOOKUP(Pedido!AT28,Regra_Aplicação!$A$5:$Q$99999,17,0), IF($B$11=211,VLOOKUP(Pedido!AT28,Regra_Aplicação!$A$5:$R$99999,18,0), IF($B$11=705,VLOOKUP(Pedido!AT28,Regra_Aplicação!$A$5:$S$99999,19,0), IF($B$11=121,VLOOKUP(Pedido!AT28,Regra_Aplicação!$A$5:$T$99999,20,0), IF($B$11=169,VLOOKUP(Pedido!AT28,Regra_Aplicação!$A$5:$U$99999,21,0),)))))))))))),) -> 0
A29: =IFERROR(IF($B$15="TODOS",VLOOKUP($B$15,Catalogação!A6:B962,2,0),IF($B$15="ESPECIALIZADA",VLOOKUP($B$15,Catalogação!O6:P962,2,0),IF($B$15="DISTRIBUIDOR",VLOOKUP($B$15,Catalogação!X6:Y1002,2,0),IF($B$15="FARMA",VLOOKUP($B$15,Catalogação!AG6:AH983,2,0),IF($B$15="SUPERMERCADO",VLOOKUP($B$15,Catalogação!AP6:AQ1005,2,0),IF($B$15="COMBO ESP (P)",VLOOKUP($B$15,Catalogação!$AY5:AZ1003,2,0),IF($B$15="COMBO ESP (M)",VLOOKUP($B$15,Catalogação!BH5:BI1003,2,0),IF($B$15="COMBO DIST (M)",VLOOKUP($B$15,Catalogação!BQ5:BR1003,2,0),IF($B$15="BONIFICADO",VLOOKUP($B$15,Catalogação!BZ6:CA1003,2,0),IF($B$15="FDL",VLOOKUP($B$15,Catalogação!CI6:CJ1003,2,0))))))))))),) -> P02244 | B29: =IFERROR(IF($B$15="FDL",VLOOKUP(A29,Catalogação!$CJ$1:CO580,2,0),VLOOKUP(Pedido!A29,Catalogação!B:G,2,0)),"") -> Condicionador 400mL LANÇAMENTO!!! | G29: =IFERROR(IF($B$15="FDL",VLOOKUP(A29,Catalogação!$CJ$1:CP580,7,0),VLOOKUP(Pedido!A29,Catalogação!$B$1:H2944,7,0)),"") -> 7898746931497 | H29: =IFERROR(IF($B$15="FDL",VLOOKUP(A29,Catalogação!$CJ$1:CQ31,8,0),VLOOKUP(Pedido!A29,Catalogação!$B$1:I397,8,0)),"") -> LUMINO MAX - PROBELLE | J29: =IFERROR(IF(AND($B$15="COMBO ESP (P)",$B$16="RJ"),VLOOKUP(A29,'Tabela Preço'!$Q$2:W986,7,0),IF(AND(Pedido!$B$15="COMBO ESP (M)",Pedido!$B$16="RJ"),VLOOKUP(Pedido!A29,'Tabela Preço'!$Q$2:Y986,8,0),IF(AND(Pedido!$B$15="COMBO ESP (P)",Pedido!$B$16="SP"),VLOOKUP(Pedido!A29,'Tabela Preço'!$Q$2:AB986,11,0),IF(AND(Pedido!$B$15="COMBO ESP (M)",Pedido!$B$16="SP"),VLOOKUP(Pedido!A29,'Tabela Preço'!$Q$2:AC986,12,0),IF(Pedido!$B$15="COMBO DIST (M)",VLOOKUP(Pedido!A29,'Tabela Preço'!$Q$2:Z986,9,0),IF(Pedido!$B$15="COMBO DIST (G)",VLOOKUP(Pedido!A29,'Tabela Preço'!$Q$2:AA986,10,0),IF($O$16=$P$16,VLOOKUP(A29,'Tabela Preço'!$A$3:E986,2,0),IF(AND($B$15="COMBO ESP (P)",$B$16="RJ"),VLOOKUP(A29,'Tabela Preço'!$Q$2:W986,7,0),IF(AND(Pedido!$B$15="COMBO ESP (M)",Pedido!$B$16="RJ"),VLOOKUP(Pedido!A29,'Tabela Preço'!$Q$2:Y986,8,0),IF(AND(Pedido!$B$15="COMBO ESP (P)",Pedido!$B$16="MG"),VLOOKUP(Pedido!A29,'Tabela Preço'!$Q$2:AB986,11,0),IF(AND(Pedido!$B$15="COMBO ESP (M)",Pedido!$B$16="MG"),VLOOKUP(Pedido!A29,'Tabela Preço'!$Q$2:AC986,12,0),IF(Pedido!$B$15="COMBO DIST (M)",VLOOKUP(Pedido!A29,'Tabela Preço'!$Q$2:Z986,9,0),IF(Pedido!$B$15="COMBO DIST (G)",VLOOKUP(Pedido!A29,'Tabela Preço'!Q6:AA986,10,0),IF($O$16=$P$16,VLOOKUP(A29,'Tabela Preço'!$A$3:E986,2,0),IF($O$16=$P$18,VLOOKUP(A29,'Tabela Preço'!$A$3:E986,3,0),IF($O$16=$P$19,VLOOKUP(A29,'Tabela Preço'!$A$3:E3587,4,0),IF($O$16=$P$15,VLOOKUP(A29,'Tabela Preço'!$A$3:G3587,7,0),IF($O$16=$P$21,VLOOKUP(A29,'Tabela Preço'!A:K,11,0),IF($O$16=$P$20,VLOOKUP(A29,'Tabela Preço'!$A$3:E986,5,0),IF($O$16=$P$22,VLOOKUP(A29,'Tabela Preço'!$A$3:F986,6,0),"")))))))))))))))))))),) ->  | L29: 0 | M29: 0 | S29: 6.488766134 | AC29: =IF(AE29>0,AE29,IFERROR(VLOOKUP(A29,Trava_Desconto!A:B,2,0),"")) -> 1 | AD29: =IFERROR(VLOOKUP(A29,Dados!A:H,8,0),"") -> 12 | AG29: =IFERROR(VLOOKUP(A29,'Relação SB e BURG - Preço Maior'!A:A,1,0),"") ->  | AT29: P02244 | AU29: Condicionador 400mL LANÇAMENTO!!! | AV29: LUMINO MAX - PROBELLE | AW29: 0 | AX29: =IFERROR(VLOOKUP(AT29,'Tabela Preço Minimo'!$A$14:H1002,8,0),"") -> 3.216 | AY29: =IFERROR(IF(AW29>0,VLOOKUP(AT29,'Tabela Preço Minimo'!$A$14:$AB$984,27,0),""),"") ->  | AZ29: =IFERROR(VLOOKUP(AT29,Trava_Desconto!A5:U548,21,0),0) -> 0 | BA29: 0 | BB29: 0 | BE29: 0 | BG29: 0 | BH29: 0 | BI29: =VLOOKUP(AT29,BASE!AC:AM,11,0) -> 0 | BJ29: =IFERROR(VLOOKUP(AT29,Produtos_Linha!A:C,3,0),"") -> Profissional | BM29: =ABS(BM25-BN25) ->  | BN29: =ABS(BM26-BN26) ->  | BQ29: =IFERROR(VLOOKUP(AT29,'Tabela Preço Minimo'!$A$14:V568,22,0),"") ->  | BV29: =IFERROR(IF($BV$3<>200, IF($B$11=168,VLOOKUP(Pedido!AT29,Regra_Aplicação!$A$5:$D$99999,4,0), IF($B$11=715,VLOOKUP(Pedido!AT29,Regra_Aplicação!$A$5:$E$99999,5,0), IF($B$11=103,VLOOKUP(Pedido!AT29,Regra_Aplicação!$A$5:$F$99999,6,0), IF($B$11=713,VLOOKUP(Pedido!AT29,Regra_Aplicação!$A$5:$G$99999,7,0), IF($B$11=110,VLOOKUP(Pedido!AT29,Regra_Aplicação!$A$5:$H$99999,8,0), IF($B$11=211,VLOOKUP(Pedido!AT29,Regra_Aplicação!$A$5:$I$99999,9,0), IF($B$11=705,VLOOKUP(Pedido!AT29,Regra_Aplicação!$A$5:$J$99999,10,0), IF($B$11=121,VLOOKUP(Pedido!AT29,Regra_Aplicação!$A$5:$K$99999,11,0), IF($B$11=169,VLOOKUP(Pedido!AT29,Regra_Aplicação!$A$5:$L$99999,12,0),IF($B$11=717,VLOOKUP(Pedido!AT29,Regra_Aplicação!$A$5:$AN$99999,40,0), )))))))))),IF(OR($BV$5="RJ",$BV$5="MG",$BV$5="SP",$BV$5="RS",$BV$5="PR"), IF($B$11=168,VLOOKUP(Pedido!AT29,Regra_Aplicação!$A$5:$V$99999,22,0), IF($B$11=715,VLOOKUP(Pedido!AT29,Regra_Aplicação!$A$5:$W$99999,23,0), IF($B$11=103,VLOOKUP(Pedido!AT29,Regra_Aplicação!$A$5:$X$99999,24,0), IF($B$11=713,VLOOKUP(Pedido!AT29,Regra_Aplicação!$A$5:$Y$99999,25,0), IF($B$11=110,VLOOKUP(Pedido!AT29,Regra_Aplicação!$A$5:$Z$99999,26,0), IF($B$11=211,VLOOKUP(Pedido!AT29,Regra_Aplicação!$A$5:$AA$99999,27,0), IF($B$11=705,VLOOKUP(Pedido!AT29,Regra_Aplicação!$A$5:$AB$99999,28,0), IF($B$11=121,VLOOKUP(Pedido!AT29,Regra_Aplicação!$A$5:$AC$99999,29,0), IF($B$11=169,VLOOKUP(Pedido!AT29,Regra_Aplicação!$A$5:$AD$99999,30,0),))))))))), IF($BV$5="ES", IF($B$11=168,VLOOKUP(Pedido!AT29,Regra_Aplicação!$A$5:$AE$99999,31,0), IF($B$11=715,VLOOKUP(Pedido!AT29,Regra_Aplicação!$A$5:$AF$99999,32,0), IF($B$11=103,VLOOKUP(Pedido!AT29,Regra_Aplicação!$A$5:$AG$99999,33,0), IF($B$11=713,VLOOKUP(Pedido!AT29,Regra_Aplicação!$A$5:$AH$99999,34,0), IF($B$11=110,VLOOKUP(Pedido!AT29,Regra_Aplicação!$A$5:$AI$99999,35,0), IF($B$11=211,VLOOKUP(Pedido!AT29,Regra_Aplicação!$A$5:$AJ$99999,36,0), IF($B$11=705,VLOOKUP(Pedido!AT29,Regra_Aplicação!$A$5:$AK$99999,37,0), IF($B$11=121,VLOOKUP(Pedido!AT29,Regra_Aplicação!$A$5:$AL$99999,38,0), IF($B$11=169,VLOOKUP(Pedido!AT29,Regra_Aplicação!$A$5:$AM$99999,39,0),))))))))), IF($B$11=168,VLOOKUP(Pedido!AT29,Regra_Aplicação!$A$5:$M$99999,13,0), IF($B$11=715,VLOOKUP(Pedido!AT29,Regra_Aplicação!$A$5:$N$99999,14,0), IF($B$11=103,VLOOKUP(Pedido!AT29,Regra_Aplicação!$A$5:$O$99999,15,0), IF($B$11=713,VLOOKUP(Pedido!AT29,Regra_Aplicação!$A$5:$P$99999,16,0), IF($B$11=110,VLOOKUP(Pedido!AT29,Regra_Aplicação!$A$5:$Q$99999,17,0), IF($B$11=211,VLOOKUP(Pedido!AT29,Regra_Aplicação!$A$5:$R$99999,18,0), IF($B$11=705,VLOOKUP(Pedido!AT29,Regra_Aplicação!$A$5:$S$99999,19,0), IF($B$11=121,VLOOKUP(Pedido!AT29,Regra_Aplicação!$A$5:$T$99999,20,0), IF($B$11=169,VLOOKUP(Pedido!AT29,Regra_Aplicação!$A$5:$U$99999,21,0),)))))))))))),) -> 0
A30: =IFERROR(IF($B$15="TODOS",VLOOKUP($B$15,Catalogação!A7:B963,2,0),IF($B$15="ESPECIALIZADA",VLOOKUP($B$15,Catalogação!O7:P963,2,0),IF($B$15="DISTRIBUIDOR",VLOOKUP($B$15,Catalogação!X7:Y1003,2,0),IF($B$15="FARMA",VLOOKUP($B$15,Catalogação!AG7:AH984,2,0),IF($B$15="SUPERMERCADO",VLOOKUP($B$15,Catalogação!AP7:AQ1006,2,0),IF($B$15="COMBO ESP (P)",VLOOKUP($B$15,Catalogação!$AY6:AZ1004,2,0),IF($B$15="COMBO ESP (M)",VLOOKUP($B$15,Catalogação!BH6:BI1004,2,0),IF($B$15="COMBO DIST (M)",VLOOKUP($B$15,Catalogação!BQ6:BR1004,2,0),IF($B$15="BONIFICADO",VLOOKUP($B$15,Catalogação!BZ7:CA1004,2,0),IF($B$15="FDL",VLOOKUP($B$15,Catalogação!CI7:CJ1004,2,0))))))))))),) -> P02306 | B30: =IFERROR(IF($B$15="FDL",VLOOKUP(A30,Catalogação!$CJ$1:CO581,2,0),VLOOKUP(Pedido!A30,Catalogação!B:G,2,0)),"") -> Máscara 300g LANÇAMENTO!!! | G30: =IFERROR(IF($B$15="FDL",VLOOKUP(A30,Catalogação!$CJ$1:CP581,7,0),VLOOKUP(Pedido!A30,Catalogação!$B$1:H2945,7,0)),"") -> 7898746933408 | H30: =IFERROR(IF($B$15="FDL",VLOOKUP(A30,Catalogação!$CJ$1:CQ32,8,0),VLOOKUP(Pedido!A30,Catalogação!$B$1:I398,8,0)),"") -> LUMINO MAX - PROBELLE | J30: =IFERROR(IF(AND($B$15="COMBO ESP (P)",$B$16="RJ"),VLOOKUP(A30,'Tabela Preço'!$Q$2:W987,7,0),IF(AND(Pedido!$B$15="COMBO ESP (M)",Pedido!$B$16="RJ"),VLOOKUP(Pedido!A30,'Tabela Preço'!$Q$2:Y987,8,0),IF(AND(Pedido!$B$15="COMBO ESP (P)",Pedido!$B$16="SP"),VLOOKUP(Pedido!A30,'Tabela Preço'!$Q$2:AB987,11,0),IF(AND(Pedido!$B$15="COMBO ESP (M)",Pedido!$B$16="SP"),VLOOKUP(Pedido!A30,'Tabela Preço'!$Q$2:AC987,12,0),IF(Pedido!$B$15="COMBO DIST (M)",VLOOKUP(Pedido!A30,'Tabela Preço'!$Q$2:Z987,9,0),IF(Pedido!$B$15="COMBO DIST (G)",VLOOKUP(Pedido!A30,'Tabela Preço'!$Q$2:AA987,10,0),IF($O$16=$P$16,VLOOKUP(A30,'Tabela Preço'!$A$3:E987,2,0),IF(AND($B$15="COMBO ESP (P)",$B$16="RJ"),VLOOKUP(A30,'Tabela Preço'!$Q$2:W987,7,0),IF(AND(Pedido!$B$15="COMBO ESP (M)",Pedido!$B$16="RJ"),VLOOKUP(Pedido!A30,'Tabela Preço'!$Q$2:Y987,8,0),IF(AND(Pedido!$B$15="COMBO ESP (P)",Pedido!$B$16="MG"),VLOOKUP(Pedido!A30,'Tabela Preço'!$Q$2:AB987,11,0),IF(AND(Pedido!$B$15="COMBO ESP (M)",Pedido!$B$16="MG"),VLOOKUP(Pedido!A30,'Tabela Preço'!$Q$2:AC987,12,0),IF(Pedido!$B$15="COMBO DIST (M)",VLOOKUP(Pedido!A30,'Tabela Preço'!$Q$2:Z987,9,0),IF(Pedido!$B$15="COMBO DIST (G)",VLOOKUP(Pedido!A30,'Tabela Preço'!Q7:AA987,10,0),IF($O$16=$P$16,VLOOKUP(A30,'Tabela Preço'!$A$3:E987,2,0),IF($O$16=$P$18,VLOOKUP(A30,'Tabela Preço'!$A$3:E987,3,0),IF($O$16=$P$19,VLOOKUP(A30,'Tabela Preço'!$A$3:E3588,4,0),IF($O$16=$P$15,VLOOKUP(A30,'Tabela Preço'!$A$3:G3588,7,0),IF($O$16=$P$21,VLOOKUP(A30,'Tabela Preço'!A:K,11,0),IF($O$16=$P$20,VLOOKUP(A30,'Tabela Preço'!$A$3:E987,5,0),IF($O$16=$P$22,VLOOKUP(A30,'Tabela Preço'!$A$3:F987,6,0),"")))))))))))))))))))),) ->  | L30: 0 | M30: 0 | S30: 7.488766134 | AC30: =IF(AE30>0,AE30,IFERROR(VLOOKUP(A30,Trava_Desconto!A:B,2,0),"")) -> 1 | AD30: =IFERROR(VLOOKUP(A30,Dados!A:H,8,0),"") -> 12 | AG30: =IFERROR(VLOOKUP(A30,'Relação SB e BURG - Preço Maior'!A:A,1,0),"") ->  | AT30: P02306 | AU30: Máscara 300g LANÇAMENTO!!! | AV30: LUMINO MAX - PROBELLE | AW30: 0 | AX30: =IFERROR(VLOOKUP(AT30,'Tabela Preço Minimo'!$A$14:H1003,8,0),"") -> 3.265741843 | AY30: =IFERROR(IF(AW30>0,VLOOKUP(AT30,'Tabela Preço Minimo'!$A$14:$AB$984,27,0),""),"") ->  | AZ30: =IFERROR(VLOOKUP(AT30,Trava_Desconto!A6:U549,21,0),0) -> 0.05 | BA30: 0 | BB30: 0 | BE30: 0 | BG30: 0 | BH30: 0 | BI30: =VLOOKUP(AT30,BASE!AC:AM,11,0) -> 0 | BJ30: =IFERROR(VLOOKUP(AT30,Produtos_Linha!A:C,3,0),"") -> Profissional | BM30: =K13*BN25 -> 0 | BQ30: =IFERROR(VLOOKUP(AT30,'Tabela Preço Minimo'!$A$14:V568,22,0),"") ->  | BV30: =IFERROR(IF($BV$3<>200, IF($B$11=168,VLOOKUP(Pedido!AT30,Regra_Aplicação!$A$5:$D$99999,4,0), IF($B$11=715,VLOOKUP(Pedido!AT30,Regra_Aplicação!$A$5:$E$99999,5,0), IF($B$11=103,VLOOKUP(Pedido!AT30,Regra_Aplicação!$A$5:$F$99999,6,0), IF($B$11=713,VLOOKUP(Pedido!AT30,Regra_Aplicação!$A$5:$G$99999,7,0), IF($B$11=110,VLOOKUP(Pedido!AT30,Regra_Aplicação!$A$5:$H$99999,8,0), IF($B$11=211,VLOOKUP(Pedido!AT30,Regra_Aplicação!$A$5:$I$99999,9,0), IF($B$11=705,VLOOKUP(Pedido!AT30,Regra_Aplicação!$A$5:$J$99999,10,0), IF($B$11=121,VLOOKUP(Pedido!AT30,Regra_Aplicação!$A$5:$K$99999,11,0), IF($B$11=169,VLOOKUP(Pedido!AT30,Regra_Aplicação!$A$5:$L$99999,12,0),IF($B$11=717,VLOOKUP(Pedido!AT30,Regra_Aplicação!$A$5:$AN$99999,40,0), )))))))))),IF(OR($BV$5="RJ",$BV$5="MG",$BV$5="SP",$BV$5="RS",$BV$5="PR"), IF($B$11=168,VLOOKUP(Pedido!AT30,Regra_Aplicação!$A$5:$V$99999,22,0), IF($B$11=715,VLOOKUP(Pedido!AT30,Regra_Aplicação!$A$5:$W$99999,23,0), IF($B$11=103,VLOOKUP(Pedido!AT30,Regra_Aplicação!$A$5:$X$99999,24,0), IF($B$11=713,VLOOKUP(Pedido!AT30,Regra_Aplicação!$A$5:$Y$99999,25,0), IF($B$11=110,VLOOKUP(Pedido!AT30,Regra_Aplicação!$A$5:$Z$99999,26,0), IF($B$11=211,VLOOKUP(Pedido!AT30,Regra_Aplicação!$A$5:$AA$99999,27,0), IF($B$11=705,VLOOKUP(Pedido!AT30,Regra_Aplicação!$A$5:$AB$99999,28,0), IF($B$11=121,VLOOKUP(Pedido!AT30,Regra_Aplicação!$A$5:$AC$99999,29,0), IF($B$11=169,VLOOKUP(Pedido!AT30,Regra_Aplicação!$A$5:$AD$99999,30,0),))))))))), IF($BV$5="ES", IF($B$11=168,VLOOKUP(Pedido!AT30,Regra_Aplicação!$A$5:$AE$99999,31,0), IF($B$11=715,VLOOKUP(Pedido!AT30,Regra_Aplicação!$A$5:$AF$99999,32,0), IF($B$11=103,VLOOKUP(Pedido!AT30,Regra_Aplicação!$A$5:$AG$99999,33,0), IF($B$11=713,VLOOKUP(Pedido!AT30,Regra_Aplicação!$A$5:$AH$99999,34,0), IF($B$11=110,VLOOKUP(Pedido!AT30,Regra_Aplicação!$A$5:$AI$99999,35,0), IF($B$11=211,VLOOKUP(Pedido!AT30,Regra_Aplicação!$A$5:$AJ$99999,36,0), IF($B$11=705,VLOOKUP(Pedido!AT30,Regra_Aplicação!$A$5:$AK$99999,37,0), IF($B$11=121,VLOOKUP(Pedido!AT30,Regra_Aplicação!$A$5:$AL$99999,38,0), IF($B$11=169,VLOOKUP(Pedido!AT30,Regra_Aplicação!$A$5:$AM$99999,39,0),))))))))), IF($B$11=168,VLOOKUP(Pedido!AT30,Regra_Aplicação!$A$5:$M$99999,13,0), IF($B$11=715,VLOOKUP(Pedido!AT30,Regra_Aplicação!$A$5:$N$99999,14,0), IF($B$11=103,VLOOKUP(Pedido!AT30,Regra_Aplicação!$A$5:$O$99999,15,0), IF($B$11=713,VLOOKUP(Pedido!AT30,Regra_Aplicação!$A$5:$P$99999,16,0), IF($B$11=110,VLOOKUP(Pedido!AT30,Regra_Aplicação!$A$5:$Q$99999,17,0), IF($B$11=211,VLOOKUP(Pedido!AT30,Regra_Aplicação!$A$5:$R$99999,18,0), IF($B$11=705,VLOOKUP(Pedido!AT30,Regra_Aplicação!$A$5:$S$99999,19,0), IF($B$11=121,VLOOKUP(Pedido!AT30,Regra_Aplicação!$A$5:$T$99999,20,0), IF($B$11=169,VLOOKUP(Pedido!AT30,Regra_Aplicação!$A$5:$U$99999,21,0),)))))))))))),) -> 0
A31: =IFERROR(IF($B$15="TODOS",VLOOKUP($B$15,Catalogação!A8:B964,2,0),IF($B$15="ESPECIALIZADA",VLOOKUP($B$15,Catalogação!O8:P964,2,0),IF($B$15="DISTRIBUIDOR",VLOOKUP($B$15,Catalogação!X8:Y1004,2,0),IF($B$15="FARMA",VLOOKUP($B$15,Catalogação!AG8:AH985,2,0),IF($B$15="SUPERMERCADO",VLOOKUP($B$15,Catalogação!AP8:AQ1007,2,0),IF($B$15="COMBO ESP (P)",VLOOKUP($B$15,Catalogação!$AY7:AZ1005,2,0),IF($B$15="COMBO ESP (M)",VLOOKUP($B$15,Catalogação!BH7:BI1005,2,0),IF($B$15="COMBO DIST (M)",VLOOKUP($B$15,Catalogação!BQ7:BR1005,2,0),IF($B$15="BONIFICADO",VLOOKUP($B$15,Catalogação!BZ8:CA1005,2,0),IF($B$15="FDL",VLOOKUP($B$15,Catalogação!CI8:CJ1005,2,0))))))))))),) -> P00002 | B31: =IFERROR(IF($B$15="FDL",VLOOKUP(A31,Catalogação!$CJ$1:CO582,2,0),VLOOKUP(Pedido!A31,Catalogação!B:G,2,0)),"") -> Leave in 250mL | G31: =IFERROR(IF($B$15="FDL",VLOOKUP(A31,Catalogação!$CJ$1:CP582,7,0),VLOOKUP(Pedido!A31,Catalogação!$B$1:H2946,7,0)),"") -> 7898617520133 | H31: =IFERROR(IF($B$15="FDL",VLOOKUP(A31,Catalogação!$CJ$1:CQ33,8,0),VLOOKUP(Pedido!A31,Catalogação!$B$1:I399,8,0)),"") -> LUMINO MAX - PROBELLE | J31: =IFERROR(IF(AND($B$15="COMBO ESP (P)",$B$16="RJ"),VLOOKUP(A31,'Tabela Preço'!$Q$2:W988,7,0),IF(AND(Pedido!$B$15="COMBO ESP (M)",Pedido!$B$16="RJ"),VLOOKUP(Pedido!A31,'Tabela Preço'!$Q$2:Y988,8,0),IF(AND(Pedido!$B$15="COMBO ESP (P)",Pedido!$B$16="SP"),VLOOKUP(Pedido!A31,'Tabela Preço'!$Q$2:AB988,11,0),IF(AND(Pedido!$B$15="COMBO ESP (M)",Pedido!$B$16="SP"),VLOOKUP(Pedido!A31,'Tabela Preço'!$Q$2:AC988,12,0),IF(Pedido!$B$15="COMBO DIST (M)",VLOOKUP(Pedido!A31,'Tabela Preço'!$Q$2:Z988,9,0),IF(Pedido!$B$15="COMBO DIST (G)",VLOOKUP(Pedido!A31,'Tabela Preço'!$Q$2:AA988,10,0),IF($O$16=$P$16,VLOOKUP(A31,'Tabela Preço'!$A$3:E988,2,0),IF(AND($B$15="COMBO ESP (P)",$B$16="RJ"),VLOOKUP(A31,'Tabela Preço'!$Q$2:W988,7,0),IF(AND(Pedido!$B$15="COMBO ESP (M)",Pedido!$B$16="RJ"),VLOOKUP(Pedido!A31,'Tabela Preço'!$Q$2:Y988,8,0),IF(AND(Pedido!$B$15="COMBO ESP (P)",Pedido!$B$16="MG"),VLOOKUP(Pedido!A31,'Tabela Preço'!$Q$2:AB988,11,0),IF(AND(Pedido!$B$15="COMBO ESP (M)",Pedido!$B$16="MG"),VLOOKUP(Pedido!A31,'Tabela Preço'!$Q$2:AC988,12,0),IF(Pedido!$B$15="COMBO DIST (M)",VLOOKUP(Pedido!A31,'Tabela Preço'!$Q$2:Z988,9,0),IF(Pedido!$B$15="COMBO DIST (G)",VLOOKUP(Pedido!A31,'Tabela Preço'!Q8:AA988,10,0),IF($O$16=$P$16,VLOOKUP(A31,'Tabela Preço'!$A$3:E988,2,0),IF($O$16=$P$18,VLOOKUP(A31,'Tabela Preço'!$A$3:E988,3,0),IF($O$16=$P$19,VLOOKUP(A31,'Tabela Preço'!$A$3:E3589,4,0),IF($O$16=$P$15,VLOOKUP(A31,'Tabela Preço'!$A$3:G3589,7,0),IF($O$16=$P$21,VLOOKUP(A31,'Tabela Preço'!A:K,11,0),IF($O$16=$P$20,VLOOKUP(A31,'Tabela Preço'!$A$3:E988,5,0),IF($O$16=$P$22,VLOOKUP(A31,'Tabela Preço'!$A$3:F988,6,0),"")))))))))))))))))))),) ->  | K31: 0.1 | L31: 0 | M31: 0 | S31: 8.488766134 | AC31: =IF(AE31>0,AE31,IFERROR(VLOOKUP(A31,Trava_Desconto!A:B,2,0),"")) -> 1 | AD31: =IFERROR(VLOOKUP(A31,Dados!A:H,8,0),"") -> 12 | AG31: =IFERROR(VLOOKUP(A31,'Relação SB e BURG - Preço Maior'!A:A,1,0),"") ->  | AT31: P00002 | AU31: Leave in 250mL | AV31: LUMINO MAX - PROBELLE | AW31: 0 | AX31: =IFERROR(VLOOKUP(AT31,'Tabela Preço Minimo'!$A$14:H1004,8,0),"") -> 3.271215602 | AY31: =IFERROR(IF(AW31>0,VLOOKUP(AT31,'Tabela Preço Minimo'!$A$14:$AB$984,27,0),""),"") ->  | AZ31: =IFERROR(VLOOKUP(AT31,Trava_Desconto!A7:U550,21,0),0) -> 0.1 | BA31: 0.1 | BB31: 0 | BE31: 0 | BG31: 0 | BH31: 0 | BI31: =VLOOKUP(AT31,BASE!AC:AM,11,0) -> 0 | BJ31: =IFERROR(VLOOKUP(AT31,Produtos_Linha!A:C,3,0),"") -> Profissional | BM31: =J13*BN26 -> 0 | BQ31: =IFERROR(VLOOKUP(AT31,'Tabela Preço Minimo'!$A$14:V568,22,0),"") -> 0 | BV31: =IFERROR(IF($BV$3<>200, IF($B$11=168,VLOOKUP(Pedido!AT31,Regra_Aplicação!$A$5:$D$99999,4,0), IF($B$11=715,VLOOKUP(Pedido!AT31,Regra_Aplicação!$A$5:$E$99999,5,0), IF($B$11=103,VLOOKUP(Pedido!AT31,Regra_Aplicação!$A$5:$F$99999,6,0), IF($B$11=713,VLOOKUP(Pedido!AT31,Regra_Aplicação!$A$5:$G$99999,7,0), IF($B$11=110,VLOOKUP(Pedido!AT31,Regra_Aplicação!$A$5:$H$99999,8,0), IF($B$11=211,VLOOKUP(Pedido!AT31,Regra_Aplicação!$A$5:$I$99999,9,0), IF($B$11=705,VLOOKUP(Pedido!AT31,Regra_Aplicação!$A$5:$J$99999,10,0), IF($B$11=121,VLOOKUP(Pedido!AT31,Regra_Aplicação!$A$5:$K$99999,11,0), IF($B$11=169,VLOOKUP(Pedido!AT31,Regra_Aplicação!$A$5:$L$99999,12,0),IF($B$11=717,VLOOKUP(Pedido!AT31,Regra_Aplicação!$A$5:$AN$99999,40,0), )))))))))),IF(OR($BV$5="RJ",$BV$5="MG",$BV$5="SP",$BV$5="RS",$BV$5="PR"), IF($B$11=168,VLOOKUP(Pedido!AT31,Regra_Aplicação!$A$5:$V$99999,22,0), IF($B$11=715,VLOOKUP(Pedido!AT31,Regra_Aplicação!$A$5:$W$99999,23,0), IF($B$11=103,VLOOKUP(Pedido!AT31,Regra_Aplicação!$A$5:$X$99999,24,0), IF($B$11=713,VLOOKUP(Pedido!AT31,Regra_Aplicação!$A$5:$Y$99999,25,0), IF($B$11=110,VLOOKUP(Pedido!AT31,Regra_Aplicação!$A$5:$Z$99999,26,0), IF($B$11=211,VLOOKUP(Pedido!AT31,Regra_Aplicação!$A$5:$AA$99999,27,0), IF($B$11=705,VLOOKUP(Pedido!AT31,Regra_Aplicação!$A$5:$AB$99999,28,0), IF($B$11=121,VLOOKUP(Pedido!AT31,Regra_Aplicação!$A$5:$AC$99999,29,0), IF($B$11=169,VLOOKUP(Pedido!AT31,Regra_Aplicação!$A$5:$AD$99999,30,0),))))))))), IF($BV$5="ES", IF($B$11=168,VLOOKUP(Pedido!AT31,Regra_Aplicação!$A$5:$AE$99999,31,0), IF($B$11=715,VLOOKUP(Pedido!AT31,Regra_Aplicação!$A$5:$AF$99999,32,0), IF($B$11=103,VLOOKUP(Pedido!AT31,Regra_Aplicação!$A$5:$AG$99999,33,0), IF($B$11=713,VLOOKUP(Pedido!AT31,Regra_Aplicação!$A$5:$AH$99999,34,0), IF($B$11=110,VLOOKUP(Pedido!AT31,Regra_Aplicação!$A$5:$AI$99999,35,0), IF($B$11=211,VLOOKUP(Pedido!AT31,Regra_Aplicação!$A$5:$AJ$99999,36,0), IF($B$11=705,VLOOKUP(Pedido!AT31,Regra_Aplicação!$A$5:$AK$99999,37,0), IF($B$11=121,VLOOKUP(Pedido!AT31,Regra_Aplicação!$A$5:$AL$99999,38,0), IF($B$11=169,VLOOKUP(Pedido!AT31,Regra_Aplicação!$A$5:$AM$99999,39,0),))))))))), IF($B$11=168,VLOOKUP(Pedido!AT31,Regra_Aplicação!$A$5:$M$99999,13,0), IF($B$11=715,VLOOKUP(Pedido!AT31,Regra_Aplicação!$A$5:$N$99999,14,0), IF($B$11=103,VLOOKUP(Pedido!AT31,Regra_Aplicação!$A$5:$O$99999,15,0), IF($B$11=713,VLOOKUP(Pedido!AT31,Regra_Aplicação!$A$5:$P$99999,16,0), IF($B$11=110,VLOOKUP(Pedido!AT31,Regra_Aplicação!$A$5:$Q$99999,17,0), IF($B$11=211,VLOOKUP(Pedido!AT31,Regra_Aplicação!$A$5:$R$99999,18,0), IF($B$11=705,VLOOKUP(Pedido!AT31,Regra_Aplicação!$A$5:$S$99999,19,0), IF($B$11=121,VLOOKUP(Pedido!AT31,Regra_Aplicação!$A$5:$T$99999,20,0), IF($B$11=169,VLOOKUP(Pedido!AT31,Regra_Aplicação!$A$5:$U$99999,21,0),)))))))))))),) -> 0
A32: =IFERROR(IF($B$15="TODOS",VLOOKUP($B$15,Catalogação!A9:B965,2,0),IF($B$15="ESPECIALIZADA",VLOOKUP($B$15,Catalogação!O9:P965,2,0),IF($B$15="DISTRIBUIDOR",VLOOKUP($B$15,Catalogação!X9:Y1005,2,0),IF($B$15="FARMA",VLOOKUP($B$15,Catalogação!AG9:AH986,2,0),IF($B$15="SUPERMERCADO",VLOOKUP($B$15,Catalogação!AP9:AQ1008,2,0),IF($B$15="COMBO ESP (P)",VLOOKUP($B$15,Catalogação!$AY8:AZ1006,2,0),IF($B$15="COMBO ESP (M)",VLOOKUP($B$15,Catalogação!BH8:BI1006,2,0),IF($B$15="COMBO DIST (M)",VLOOKUP($B$15,Catalogação!BQ8:BR1006,2,0),IF($B$15="BONIFICADO",VLOOKUP($B$15,Catalogação!BZ9:CA1006,2,0),IF($B$15="FDL",VLOOKUP($B$15,Catalogação!CI9:CJ1006,2,0))))))))))),) -> P00075 | B32: =IFERROR(IF($B$15="FDL",VLOOKUP(A32,Catalogação!$CJ$1:CO583,2,0),VLOOKUP(Pedido!A32,Catalogação!B:G,2,0)),"") -> Termo Protetor 120mL | G32: =IFERROR(IF($B$15="FDL",VLOOKUP(A32,Catalogação!$CJ$1:CP583,7,0),VLOOKUP(Pedido!A32,Catalogação!$B$1:H2947,7,0)),"") -> SUSPENSO | H32: =IFERROR(IF($B$15="FDL",VLOOKUP(A32,Catalogação!$CJ$1:CQ34,8,0),VLOOKUP(Pedido!A32,Catalogação!$B$1:I400,8,0)),"") -> LUMINO MAX - PROBELLE | J32: =IFERROR(IF(AND($B$15="COMBO ESP (P)",$B$16="RJ"),VLOOKUP(A32,'Tabela Preço'!$Q$2:W989,7,0),IF(AND(Pedido!$B$15="COMBO ESP (M)",Pedido!$B$16="RJ"),VLOOKUP(Pedido!A32,'Tabela Preço'!$Q$2:Y989,8,0),IF(AND(Pedido!$B$15="COMBO ESP (P)",Pedido!$B$16="SP"),VLOOKUP(Pedido!A32,'Tabela Preço'!$Q$2:AB989,11,0),IF(AND(Pedido!$B$15="COMBO ESP (M)",Pedido!$B$16="SP"),VLOOKUP(Pedido!A32,'Tabela Preço'!$Q$2:AC989,12,0),IF(Pedido!$B$15="COMBO DIST (M)",VLOOKUP(Pedido!A32,'Tabela Preço'!$Q$2:Z989,9,0),IF(Pedido!$B$15="COMBO DIST (G)",VLOOKUP(Pedido!A32,'Tabela Preço'!$Q$2:AA989,10,0),IF($O$16=$P$16,VLOOKUP(A32,'Tabela Preço'!$A$3:E989,2,0),IF(AND($B$15="COMBO ESP (P)",$B$16="RJ"),VLOOKUP(A32,'Tabela Preço'!$Q$2:W989,7,0),IF(AND(Pedido!$B$15="COMBO ESP (M)",Pedido!$B$16="RJ"),VLOOKUP(Pedido!A32,'Tabela Preço'!$Q$2:Y989,8,0),IF(AND(Pedido!$B$15="COMBO ESP (P)",Pedido!$B$16="MG"),VLOOKUP(Pedido!A32,'Tabela Preço'!$Q$2:AB989,11,0),IF(AND(Pedido!$B$15="COMBO ESP (M)",Pedido!$B$16="MG"),VLOOKUP(Pedido!A32,'Tabela Preço'!$Q$2:AC989,12,0),IF(Pedido!$B$15="COMBO DIST (M)",VLOOKUP(Pedido!A32,'Tabela Preço'!$Q$2:Z989,9,0),IF(Pedido!$B$15="COMBO DIST (G)",VLOOKUP(Pedido!A32,'Tabela Preço'!Q9:AA989,10,0),IF($O$16=$P$16,VLOOKUP(A32,'Tabela Preço'!$A$3:E989,2,0),IF($O$16=$P$18,VLOOKUP(A32,'Tabela Preço'!$A$3:E989,3,0),IF($O$16=$P$19,VLOOKUP(A32,'Tabela Preço'!$A$3:E3590,4,0),IF($O$16=$P$15,VLOOKUP(A32,'Tabela Preço'!$A$3:G3590,7,0),IF($O$16=$P$21,VLOOKUP(A32,'Tabela Preço'!A:K,11,0),IF($O$16=$P$20,VLOOKUP(A32,'Tabela Preço'!$A$3:E989,5,0),IF($O$16=$P$22,VLOOKUP(A32,'Tabela Preço'!$A$3:F989,6,0),"")))))))))))))))))))),) ->  | L32: 0 | M32: 0 | S32: 9.488766134 | AC32: =IF(AE32>0,AE32,IFERROR(VLOOKUP(A32,Trava_Desconto!A:B,2,0),"")) -> 1 | AD32: =IFERROR(VLOOKUP(A32,Dados!A:H,8,0),"") -> 12 | AG32: =IFERROR(VLOOKUP(A32,'Relação SB e BURG - Preço Maior'!A:A,1,0),"") ->  | AT32: P00075 | AU32: Termo Protetor 120mL | AV32: LUMINO MAX - PROBELLE | AW32: 0 | AX32: =IFERROR(VLOOKUP(AT32,'Tabela Preço Minimo'!$A$14:H1005,8,0),"") -> 5.149898868 | AY32: =IFERROR(IF(AW32>0,VLOOKUP(AT32,'Tabela Preço Minimo'!$A$14:$AB$984,27,0),""),"") ->  | AZ32: =IFERROR(VLOOKUP(AT32,Trava_Desconto!A8:U551,21,0),0) -> 0.1 | BA32: 0 | BB32: 0 | BE32: 0 | BG32: 0 | BH32: 0 | BI32: =VLOOKUP(AT32,BASE!AC:AM,11,0) -> 0 | BJ32: =IFERROR(VLOOKUP(AT32,Produtos_Linha!A:C,3,0),"") -> Profissional | BM32: =SUM(BM30:BM31) -> 0 | BN32: =BM32/$BN$28 ->  | BQ32: =IFERROR(VLOOKUP(AT32,'Tabela Preço Minimo'!$A$14:V569,22,0),"") -> 0 | BV32: =IFERROR(IF($BV$3<>200, IF($B$11=168,VLOOKUP(Pedido!AT32,Regra_Aplicação!$A$5:$D$99999,4,0), IF($B$11=715,VLOOKUP(Pedido!AT32,Regra_Aplicação!$A$5:$E$99999,5,0), IF($B$11=103,VLOOKUP(Pedido!AT32,Regra_Aplicação!$A$5:$F$99999,6,0), IF($B$11=713,VLOOKUP(Pedido!AT32,Regra_Aplicação!$A$5:$G$99999,7,0), IF($B$11=110,VLOOKUP(Pedido!AT32,Regra_Aplicação!$A$5:$H$99999,8,0), IF($B$11=211,VLOOKUP(Pedido!AT32,Regra_Aplicação!$A$5:$I$99999,9,0), IF($B$11=705,VLOOKUP(Pedido!AT32,Regra_Aplicação!$A$5:$J$99999,10,0), IF($B$11=121,VLOOKUP(Pedido!AT32,Regra_Aplicação!$A$5:$K$99999,11,0), IF($B$11=169,VLOOKUP(Pedido!AT32,Regra_Aplicação!$A$5:$L$99999,12,0),IF($B$11=717,VLOOKUP(Pedido!AT32,Regra_Aplicação!$A$5:$AN$99999,40,0), )))))))))),IF(OR($BV$5="RJ",$BV$5="MG",$BV$5="SP",$BV$5="RS",$BV$5="PR"), IF($B$11=168,VLOOKUP(Pedido!AT32,Regra_Aplicação!$A$5:$V$99999,22,0), IF($B$11=715,VLOOKUP(Pedido!AT32,Regra_Aplicação!$A$5:$W$99999,23,0), IF($B$11=103,VLOOKUP(Pedido!AT32,Regra_Aplicação!$A$5:$X$99999,24,0), IF($B$11=713,VLOOKUP(Pedido!AT32,Regra_Aplicação!$A$5:$Y$99999,25,0), IF($B$11=110,VLOOKUP(Pedido!AT32,Regra_Aplicação!$A$5:$Z$99999,26,0), IF($B$11=211,VLOOKUP(Pedido!AT32,Regra_Aplicação!$A$5:$AA$99999,27,0), IF($B$11=705,VLOOKUP(Pedido!AT32,Regra_Aplicação!$A$5:$AB$99999,28,0), IF($B$11=121,VLOOKUP(Pedido!AT32,Regra_Aplicação!$A$5:$AC$99999,29,0), IF($B$11=169,VLOOKUP(Pedido!AT32,Regra_Aplicação!$A$5:$AD$99999,30,0),))))))))), IF($BV$5="ES", IF($B$11=168,VLOOKUP(Pedido!AT32,Regra_Aplicação!$A$5:$AE$99999,31,0), IF($B$11=715,VLOOKUP(Pedido!AT32,Regra_Aplicação!$A$5:$AF$99999,32,0), IF($B$11=103,VLOOKUP(Pedido!AT32,Regra_Aplicação!$A$5:$AG$99999,33,0), IF($B$11=713,VLOOKUP(Pedido!AT32,Regra_Aplicação!$A$5:$AH$99999,34,0), IF($B$11=110,VLOOKUP(Pedido!AT32,Regra_Aplicação!$A$5:$AI$99999,35,0), IF($B$11=211,VLOOKUP(Pedido!AT32,Regra_Aplicação!$A$5:$AJ$99999,36,0), IF($B$11=705,VLOOKUP(Pedido!AT32,Regra_Aplicação!$A$5:$AK$99999,37,0), IF($B$11=121,VLOOKUP(Pedido!AT32,Regra_Aplicação!$A$5:$AL$99999,38,0), IF($B$11=169,VLOOKUP(Pedido!AT32,Regra_Aplicação!$A$5:$AM$99999,39,0),))))))))), IF($B$11=168,VLOOKUP(Pedido!AT32,Regra_Aplicação!$A$5:$M$99999,13,0), IF($B$11=715,VLOOKUP(Pedido!AT32,Regra_Aplicação!$A$5:$N$99999,14,0), IF($B$11=103,VLOOKUP(Pedido!AT32,Regra_Aplicação!$A$5:$O$99999,15,0), IF($B$11=713,VLOOKUP(Pedido!AT32,Regra_Aplicação!$A$5:$P$99999,16,0), IF($B$11=110,VLOOKUP(Pedido!AT32,Regra_Aplicação!$A$5:$Q$99999,17,0), IF($B$11=211,VLOOKUP(Pedido!AT32,Regra_Aplicação!$A$5:$R$99999,18,0), IF($B$11=705,VLOOKUP(Pedido!AT32,Regra_Aplicação!$A$5:$S$99999,19,0), IF($B$11=121,VLOOKUP(Pedido!AT32,Regra_Aplicação!$A$5:$T$99999,20,0), IF($B$11=169,VLOOKUP(Pedido!AT32,Regra_Aplicação!$A$5:$U$99999,21,0),)))))))))))),) -> 0
A33: =IFERROR(IF($B$15="TODOS",VLOOKUP($B$15,Catalogação!A10:B966,2,0),IF($B$15="ESPECIALIZADA",VLOOKUP($B$15,Catalogação!O10:P966,2,0),IF($B$15="DISTRIBUIDOR",VLOOKUP($B$15,Catalogação!X10:Y1006,2,0),IF($B$15="FARMA",VLOOKUP($B$15,Catalogação!AG10:AH987,2,0),IF($B$15="SUPERMERCADO",VLOOKUP($B$15,Catalogação!AP10:AQ1009,2,0),IF($B$15="COMBO ESP (P)",VLOOKUP($B$15,Catalogação!$AY9:AZ1007,2,0),IF($B$15="COMBO ESP (M)",VLOOKUP($B$15,Catalogação!BH9:BI1007,2,0),IF($B$15="COMBO DIST (M)",VLOOKUP($B$15,Catalogação!BQ9:BR1007,2,0),IF($B$15="BONIFICADO",VLOOKUP($B$15,Catalogação!BZ10:CA1007,2,0),IF($B$15="FDL",VLOOKUP($B$15,Catalogação!CI10:CJ1007,2,0))))))))))),) -> P02249 | B33: =IFERROR(IF($B$15="FDL",VLOOKUP(A33,Catalogação!$CJ$1:CO584,2,0),VLOOKUP(Pedido!A33,Catalogação!B:G,2,0)),"") -> Shampoo 400mL LANÇAMENTO!!! | G33: =IFERROR(IF($B$15="FDL",VLOOKUP(A33,Catalogação!$CJ$1:CP584,7,0),VLOOKUP(Pedido!A33,Catalogação!$B$1:H2948,7,0)),"") -> 7898746931480 | H33: =IFERROR(IF($B$15="FDL",VLOOKUP(A33,Catalogação!$CJ$1:CQ35,8,0),VLOOKUP(Pedido!A33,Catalogação!$B$1:I401,8,0)),"") -> LUMINO MAX ANTI-RESSECAMENTO - PROBELLE | J33: =IFERROR(IF(AND($B$15="COMBO ESP (P)",$B$16="RJ"),VLOOKUP(A33,'Tabela Preço'!$Q$2:W990,7,0),IF(AND(Pedido!$B$15="COMBO ESP (M)",Pedido!$B$16="RJ"),VLOOKUP(Pedido!A33,'Tabela Preço'!$Q$2:Y990,8,0),IF(AND(Pedido!$B$15="COMBO ESP (P)",Pedido!$B$16="SP"),VLOOKUP(Pedido!A33,'Tabela Preço'!$Q$2:AB990,11,0),IF(AND(Pedido!$B$15="COMBO ESP (M)",Pedido!$B$16="SP"),VLOOKUP(Pedido!A33,'Tabela Preço'!$Q$2:AC990,12,0),IF(Pedido!$B$15="COMBO DIST (M)",VLOOKUP(Pedido!A33,'Tabela Preço'!$Q$2:Z990,9,0),IF(Pedido!$B$15="COMBO DIST (G)",VLOOKUP(Pedido!A33,'Tabela Preço'!$Q$2:AA990,10,0),IF($O$16=$P$16,VLOOKUP(A33,'Tabela Preço'!$A$3:E990,2,0),IF(AND($B$15="COMBO ESP (P)",$B$16="RJ"),VLOOKUP(A33,'Tabela Preço'!$Q$2:W990,7,0),IF(AND(Pedido!$B$15="COMBO ESP (M)",Pedido!$B$16="RJ"),VLOOKUP(Pedido!A33,'Tabela Preço'!$Q$2:Y990,8,0),IF(AND(Pedido!$B$15="COMBO ESP (P)",Pedido!$B$16="MG"),VLOOKUP(Pedido!A33,'Tabela Preço'!$Q$2:AB990,11,0),IF(AND(Pedido!$B$15="COMBO ESP (M)",Pedido!$B$16="MG"),VLOOKUP(Pedido!A33,'Tabela Preço'!$Q$2:AC990,12,0),IF(Pedido!$B$15="COMBO DIST (M)",VLOOKUP(Pedido!A33,'Tabela Preço'!$Q$2:Z990,9,0),IF(Pedido!$B$15="COMBO DIST (G)",VLOOKUP(Pedido!A33,'Tabela Preço'!Q10:AA990,10,0),IF($O$16=$P$16,VLOOKUP(A33,'Tabela Preço'!$A$3:E990,2,0),IF($O$16=$P$18,VLOOKUP(A33,'Tabela Preço'!$A$3:E990,3,0),IF($O$16=$P$19,VLOOKUP(A33,'Tabela Preço'!$A$3:E3591,4,0),IF($O$16=$P$15,VLOOKUP(A33,'Tabela Preço'!$A$3:G3591,7,0),IF($O$16=$P$21,VLOOKUP(A33,'Tabela Preço'!A:K,11,0),IF($O$16=$P$20,VLOOKUP(A33,'Tabela Preço'!$A$3:E990,5,0),IF($O$16=$P$22,VLOOKUP(A33,'Tabela Preço'!$A$3:F990,6,0),"")))))))))))))))))))),) ->  | K33: 0.1 | L33: 0 | M33: 0 | S33: 10.48876613 | AC33: =IF(AE33>0,AE33,IFERROR(VLOOKUP(A33,Trava_Desconto!A:B,2,0),"")) -> 1 | AD33: =IFERROR(VLOOKUP(A33,Dados!A:H,8,0),"") -> 12 | AG33: =IFERROR(VLOOKUP(A33,'Relação SB e BURG - Preço Maior'!A:A,1,0),"") ->  | AT33: P02249 | AU33: Shampoo 400mL LANÇAMENTO!!! | AV33: LUMINO MAX ANTI-RESSECAMENTO - PROBELLE | AW33: 0 | AX33: =IFERROR(VLOOKUP(AT33,'Tabela Preço Minimo'!$A$14:H1006,8,0),"") -> 3.099 | AY33: =IFERROR(IF(AW33>0,VLOOKUP(AT33,'Tabela Preço Minimo'!$A$14:$AB$984,27,0),""),"") ->  | AZ33: =IFERROR(VLOOKUP(AT33,Trava_Desconto!A9:U552,21,0),0) -> 0 | BA33: 0.1 | BB33: 0 | BE33: 0 | BG33: 0 | BH33: 0 | BI33: =VLOOKUP(AT33,BASE!AC:AM,11,0) -> 0 | BJ33: =IFERROR(VLOOKUP(AT33,Produtos_Linha!A:C,3,0),"") -> Profissional | BQ33: =IFERROR(VLOOKUP(AT33,'Tabela Preço Minimo'!$A$14:V570,22,0),"") ->  | BV33: =IFERROR(IF($BV$3<>200, IF($B$11=168,VLOOKUP(Pedido!AT33,Regra_Aplicação!$A$5:$D$99999,4,0), IF($B$11=715,VLOOKUP(Pedido!AT33,Regra_Aplicação!$A$5:$E$99999,5,0), IF($B$11=103,VLOOKUP(Pedido!AT33,Regra_Aplicação!$A$5:$F$99999,6,0), IF($B$11=713,VLOOKUP(Pedido!AT33,Regra_Aplicação!$A$5:$G$99999,7,0), IF($B$11=110,VLOOKUP(Pedido!AT33,Regra_Aplicação!$A$5:$H$99999,8,0), IF($B$11=211,VLOOKUP(Pedido!AT33,Regra_Aplicação!$A$5:$I$99999,9,0), IF($B$11=705,VLOOKUP(Pedido!AT33,Regra_Aplicação!$A$5:$J$99999,10,0), IF($B$11=121,VLOOKUP(Pedido!AT33,Regra_Aplicação!$A$5:$K$99999,11,0), IF($B$11=169,VLOOKUP(Pedido!AT33,Regra_Aplicação!$A$5:$L$99999,12,0),IF($B$11=717,VLOOKUP(Pedido!AT33,Regra_Aplicação!$A$5:$AN$99999,40,0), )))))))))),IF(OR($BV$5="RJ",$BV$5="MG",$BV$5="SP",$BV$5="RS",$BV$5="PR"), IF($B$11=168,VLOOKUP(Pedido!AT33,Regra_Aplicação!$A$5:$V$99999,22,0), IF($B$11=715,VLOOKUP(Pedido!AT33,Regra_Aplicação!$A$5:$W$99999,23,0), IF($B$11=103,VLOOKUP(Pedido!AT33,Regra_Aplicação!$A$5:$X$99999,24,0), IF($B$11=713,VLOOKUP(Pedido!AT33,Regra_Aplicação!$A$5:$Y$99999,25,0), IF($B$11=110,VLOOKUP(Pedido!AT33,Regra_Aplicação!$A$5:$Z$99999,26,0), IF($B$11=211,VLOOKUP(Pedido!AT33,Regra_Aplicação!$A$5:$AA$99999,27,0), IF($B$11=705,VLOOKUP(Pedido!AT33,Regra_Aplicação!$A$5:$AB$99999,28,0), IF($B$11=121,VLOOKUP(Pedido!AT33,Regra_Aplicação!$A$5:$AC$99999,29,0), IF($B$11=169,VLOOKUP(Pedido!AT33,Regra_Aplicação!$A$5:$AD$99999,30,0),))))))))), IF($BV$5="ES", IF($B$11=168,VLOOKUP(Pedido!AT33,Regra_Aplicação!$A$5:$AE$99999,31,0), IF($B$11=715,VLOOKUP(Pedido!AT33,Regra_Aplicação!$A$5:$AF$99999,32,0), IF($B$11=103,VLOOKUP(Pedido!AT33,Regra_Aplicação!$A$5:$AG$99999,33,0), IF($B$11=713,VLOOKUP(Pedido!AT33,Regra_Aplicação!$A$5:$AH$99999,34,0), IF($B$11=110,VLOOKUP(Pedido!AT33,Regra_Aplicação!$A$5:$AI$99999,35,0), IF($B$11=211,VLOOKUP(Pedido!AT33,Regra_Aplicação!$A$5:$AJ$99999,36,0), IF($B$11=705,VLOOKUP(Pedido!AT33,Regra_Aplicação!$A$5:$AK$99999,37,0), IF($B$11=121,VLOOKUP(Pedido!AT33,Regra_Aplicação!$A$5:$AL$99999,38,0), IF($B$11=169,VLOOKUP(Pedido!AT33,Regra_Aplicação!$A$5:$AM$99999,39,0),))))))))), IF($B$11=168,VLOOKUP(Pedido!AT33,Regra_Aplicação!$A$5:$M$99999,13,0), IF($B$11=715,VLOOKUP(Pedido!AT33,Regra_Aplicação!$A$5:$N$99999,14,0), IF($B$11=103,VLOOKUP(Pedido!AT33,Regra_Aplicação!$A$5:$O$99999,15,0), IF($B$11=713,VLOOKUP(Pedido!AT33,Regra_Aplicação!$A$5:$P$99999,16,0), IF($B$11=110,VLOOKUP(Pedido!AT33,Regra_Aplicação!$A$5:$Q$99999,17,0), IF($B$11=211,VLOOKUP(Pedido!AT33,Regra_Aplicação!$A$5:$R$99999,18,0), IF($B$11=705,VLOOKUP(Pedido!AT33,Regra_Aplicação!$A$5:$S$99999,19,0), IF($B$11=121,VLOOKUP(Pedido!AT33,Regra_Aplicação!$A$5:$T$99999,20,0), IF($B$11=169,VLOOKUP(Pedido!AT33,Regra_Aplicação!$A$5:$U$99999,21,0),)))))))))))),) -> 0
A34: =IFERROR(IF($B$15="TODOS",VLOOKUP($B$15,Catalogação!A11:B967,2,0),IF($B$15="ESPECIALIZADA",VLOOKUP($B$15,Catalogação!O11:P967,2,0),IF($B$15="DISTRIBUIDOR",VLOOKUP($B$15,Catalogação!X11:Y1007,2,0),IF($B$15="FARMA",VLOOKUP($B$15,Catalogação!AG11:AH988,2,0),IF($B$15="SUPERMERCADO",VLOOKUP($B$15,Catalogação!AP11:AQ1010,2,0),IF($B$15="COMBO ESP (P)",VLOOKUP($B$15,Catalogação!$AY10:AZ1008,2,0),IF($B$15="COMBO ESP (M)",VLOOKUP($B$15,Catalogação!BH10:BI1008,2,0),IF($B$15="COMBO DIST (M)",VLOOKUP($B$15,Catalogação!BQ10:BR1008,2,0),IF($B$15="BONIFICADO",VLOOKUP($B$15,Catalogação!BZ11:CA1008,2,0),IF($B$15="FDL",VLOOKUP($B$15,Catalogação!CI11:CJ1008,2,0))))))))))),) -> P02250 | B34: =IFERROR(IF($B$15="FDL",VLOOKUP(A34,Catalogação!$CJ$1:CO585,2,0),VLOOKUP(Pedido!A34,Catalogação!B:G,2,0)),"") -> Condicionador 400mL LANÇAMENTO!!! | G34: =IFERROR(IF($B$15="FDL",VLOOKUP(A34,Catalogação!$CJ$1:CP585,7,0),VLOOKUP(Pedido!A34,Catalogação!$B$1:H2949,7,0)),"") -> 7898746931473 | H34: =IFERROR(IF($B$15="FDL",VLOOKUP(A34,Catalogação!$CJ$1:CQ36,8,0),VLOOKUP(Pedido!A34,Catalogação!$B$1:I402,8,0)),"") -> LUMINO MAX ANTI-RESSECAMENTO - PROBELLE | J34: =IFERROR(IF(AND($B$15="COMBO ESP (P)",$B$16="RJ"),VLOOKUP(A34,'Tabela Preço'!$Q$2:W991,7,0),IF(AND(Pedido!$B$15="COMBO ESP (M)",Pedido!$B$16="RJ"),VLOOKUP(Pedido!A34,'Tabela Preço'!$Q$2:Y991,8,0),IF(AND(Pedido!$B$15="COMBO ESP (P)",Pedido!$B$16="SP"),VLOOKUP(Pedido!A34,'Tabela Preço'!$Q$2:AB991,11,0),IF(AND(Pedido!$B$15="COMBO ESP (M)",Pedido!$B$16="SP"),VLOOKUP(Pedido!A34,'Tabela Preço'!$Q$2:AC991,12,0),IF(Pedido!$B$15="COMBO DIST (M)",VLOOKUP(Pedido!A34,'Tabela Preço'!$Q$2:Z991,9,0),IF(Pedido!$B$15="COMBO DIST (G)",VLOOKUP(Pedido!A34,'Tabela Preço'!$Q$2:AA991,10,0),IF($O$16=$P$16,VLOOKUP(A34,'Tabela Preço'!$A$3:E991,2,0),IF(AND($B$15="COMBO ESP (P)",$B$16="RJ"),VLOOKUP(A34,'Tabela Preço'!$Q$2:W991,7,0),IF(AND(Pedido!$B$15="COMBO ESP (M)",Pedido!$B$16="RJ"),VLOOKUP(Pedido!A34,'Tabela Preço'!$Q$2:Y991,8,0),IF(AND(Pedido!$B$15="COMBO ESP (P)",Pedido!$B$16="MG"),VLOOKUP(Pedido!A34,'Tabela Preço'!$Q$2:AB991,11,0),IF(AND(Pedido!$B$15="COMBO ESP (M)",Pedido!$B$16="MG"),VLOOKUP(Pedido!A34,'Tabela Preço'!$Q$2:AC991,12,0),IF(Pedido!$B$15="COMBO DIST (M)",VLOOKUP(Pedido!A34,'Tabela Preço'!$Q$2:Z991,9,0),IF(Pedido!$B$15="COMBO DIST (G)",VLOOKUP(Pedido!A34,'Tabela Preço'!Q11:AA991,10,0),IF($O$16=$P$16,VLOOKUP(A34,'Tabela Preço'!$A$3:E991,2,0),IF($O$16=$P$18,VLOOKUP(A34,'Tabela Preço'!$A$3:E991,3,0),IF($O$16=$P$19,VLOOKUP(A34,'Tabela Preço'!$A$3:E3592,4,0),IF($O$16=$P$15,VLOOKUP(A34,'Tabela Preço'!$A$3:G3592,7,0),IF($O$16=$P$21,VLOOKUP(A34,'Tabela Preço'!A:K,11,0),IF($O$16=$P$20,VLOOKUP(A34,'Tabela Preço'!$A$3:E991,5,0),IF($O$16=$P$22,VLOOKUP(A34,'Tabela Preço'!$A$3:F991,6,0),"")))))))))))))))))))),) ->  | K34: 0.7 | L34: 0 | M34: 0 | S34: 11.48876613 | AC34: =IF(AE34>0,AE34,IFERROR(VLOOKUP(A34,Trava_Desconto!A:B,2,0),"")) -> 1 | AD34: =IFERROR(VLOOKUP(A34,Dados!A:H,8,0),"") -> 12 | AG34: =IFERROR(VLOOKUP(A34,'Relação SB e BURG - Preço Maior'!A:A,1,0),"") ->  | AT34: P02250 | AU34: Condicionador 400mL LANÇAMENTO!!! | AV34: LUMINO MAX ANTI-RESSECAMENTO - PROBELLE | AW34: 0 | AX34: =IFERROR(VLOOKUP(AT34,'Tabela Preço Minimo'!$A$14:H1007,8,0),"") -> 3.216 | AY34: =IFERROR(IF(AW34>0,VLOOKUP(AT34,'Tabela Preço Minimo'!$A$14:$AB$984,27,0),""),"") ->  | AZ34: =IFERROR(VLOOKUP(AT34,Trava_Desconto!A10:U553,21,0),0) -> 0 | BA34: 0.7 | BB34: 0 | BE34: 0 | BG34: 0 | BH34: 0 | BI34: =VLOOKUP(AT34,BASE!AC:AM,11,0) -> 0 | BJ34: =IFERROR(VLOOKUP(AT34,Produtos_Linha!A:C,3,0),"") -> Profissional | BQ34: =IFERROR(VLOOKUP(AT34,'Tabela Preço Minimo'!$A$14:V571,22,0),"") ->  | BV34: =IFERROR(IF($BV$3<>200, IF($B$11=168,VLOOKUP(Pedido!AT34,Regra_Aplicação!$A$5:$D$99999,4,0), IF($B$11=715,VLOOKUP(Pedido!AT34,Regra_Aplicação!$A$5:$E$99999,5,0), IF($B$11=103,VLOOKUP(Pedido!AT34,Regra_Aplicação!$A$5:$F$99999,6,0), IF($B$11=713,VLOOKUP(Pedido!AT34,Regra_Aplicação!$A$5:$G$99999,7,0), IF($B$11=110,VLOOKUP(Pedido!AT34,Regra_Aplicação!$A$5:$H$99999,8,0), IF($B$11=211,VLOOKUP(Pedido!AT34,Regra_Aplicação!$A$5:$I$99999,9,0), IF($B$11=705,VLOOKUP(Pedido!AT34,Regra_Aplicação!$A$5:$J$99999,10,0), IF($B$11=121,VLOOKUP(Pedido!AT34,Regra_Aplicação!$A$5:$K$99999,11,0), IF($B$11=169,VLOOKUP(Pedido!AT34,Regra_Aplicação!$A$5:$L$99999,12,0),IF($B$11=717,VLOOKUP(Pedido!AT34,Regra_Aplicação!$A$5:$AN$99999,40,0), )))))))))),IF(OR($BV$5="RJ",$BV$5="MG",$BV$5="SP",$BV$5="RS",$BV$5="PR"), IF($B$11=168,VLOOKUP(Pedido!AT34,Regra_Aplicação!$A$5:$V$99999,22,0), IF($B$11=715,VLOOKUP(Pedido!AT34,Regra_Aplicação!$A$5:$W$99999,23,0), IF($B$11=103,VLOOKUP(Pedido!AT34,Regra_Aplicação!$A$5:$X$99999,24,0), IF($B$11=713,VLOOKUP(Pedido!AT34,Regra_Aplicação!$A$5:$Y$99999,25,0), IF($B$11=110,VLOOKUP(Pedido!AT34,Regra_Aplicação!$A$5:$Z$99999,26,0), IF($B$11=211,VLOOKUP(Pedido!AT34,Regra_Aplicação!$A$5:$AA$99999,27,0), IF($B$11=705,VLOOKUP(Pedido!AT34,Regra_Aplicação!$A$5:$AB$99999,28,0), IF($B$11=121,VLOOKUP(Pedido!AT34,Regra_Aplicação!$A$5:$AC$99999,29,0), IF($B$11=169,VLOOKUP(Pedido!AT34,Regra_Aplicação!$A$5:$AD$99999,30,0),))))))))), IF($BV$5="ES", IF($B$11=168,VLOOKUP(Pedido!AT34,Regra_Aplicação!$A$5:$AE$99999,31,0), IF($B$11=715,VLOOKUP(Pedido!AT34,Regra_Aplicação!$A$5:$AF$99999,32,0), IF($B$11=103,VLOOKUP(Pedido!AT34,Regra_Aplicação!$A$5:$AG$99999,33,0), IF($B$11=713,VLOOKUP(Pedido!AT34,Regra_Aplicação!$A$5:$AH$99999,34,0), IF($B$11=110,VLOOKUP(Pedido!AT34,Regra_Aplicação!$A$5:$AI$99999,35,0), IF($B$11=211,VLOOKUP(Pedido!AT34,Regra_Aplicação!$A$5:$AJ$99999,36,0), IF($B$11=705,VLOOKUP(Pedido!AT34,Regra_Aplicação!$A$5:$AK$99999,37,0), IF($B$11=121,VLOOKUP(Pedido!AT34,Regra_Aplicação!$A$5:$AL$99999,38,0), IF($B$11=169,VLOOKUP(Pedido!AT34,Regra_Aplicação!$A$5:$AM$99999,39,0),))))))))), IF($B$11=168,VLOOKUP(Pedido!AT34,Regra_Aplicação!$A$5:$M$99999,13,0), IF($B$11=715,VLOOKUP(Pedido!AT34,Regra_Aplicação!$A$5:$N$99999,14,0), IF($B$11=103,VLOOKUP(Pedido!AT34,Regra_Aplicação!$A$5:$O$99999,15,0), IF($B$11=713,VLOOKUP(Pedido!AT34,Regra_Aplicação!$A$5:$P$99999,16,0), IF($B$11=110,VLOOKUP(Pedido!AT34,Regra_Aplicação!$A$5:$Q$99999,17,0), IF($B$11=211,VLOOKUP(Pedido!AT34,Regra_Aplicação!$A$5:$R$99999,18,0), IF($B$11=705,VLOOKUP(Pedido!AT34,Regra_Aplicação!$A$5:$S$99999,19,0), IF($B$11=121,VLOOKUP(Pedido!AT34,Regra_Aplicação!$A$5:$T$99999,20,0), IF($B$11=169,VLOOKUP(Pedido!AT34,Regra_Aplicação!$A$5:$U$99999,21,0),)))))))))))),) -> 0
A35: =IFERROR(IF($B$15="TODOS",VLOOKUP($B$15,Catalogação!A12:B968,2,0),IF($B$15="ESPECIALIZADA",VLOOKUP($B$15,Catalogação!O12:P968,2,0),IF($B$15="DISTRIBUIDOR",VLOOKUP($B$15,Catalogação!X12:Y1008,2,0),IF($B$15="FARMA",VLOOKUP($B$15,Catalogação!AG12:AH989,2,0),IF($B$15="SUPERMERCADO",VLOOKUP($B$15,Catalogação!AP12:AQ1011,2,0),IF($B$15="COMBO ESP (P)",VLOOKUP($B$15,Catalogação!$AY11:AZ1009,2,0),IF($B$15="COMBO ESP (M)",VLOOKUP($B$15,Catalogação!BH11:BI1009,2,0),IF($B$15="COMBO DIST (M)",VLOOKUP($B$15,Catalogação!BQ11:BR1009,2,0),IF($B$15="BONIFICADO",VLOOKUP($B$15,Catalogação!BZ12:CA1009,2,0),IF($B$15="FDL",VLOOKUP($B$15,Catalogação!CI12:CJ1009,2,0))))))))))),) -> P02309 | B35: =IFERROR(IF($B$15="FDL",VLOOKUP(A35,Catalogação!$CJ$1:CO586,2,0),VLOOKUP(Pedido!A35,Catalogação!B:G,2,0)),"") -> Máscara 300g LANÇAMENTO!!! | G35: =IFERROR(IF($B$15="FDL",VLOOKUP(A35,Catalogação!$CJ$1:CP586,7,0),VLOOKUP(Pedido!A35,Catalogação!$B$1:H2950,7,0)),"") -> 7898746933378 | H35: =IFERROR(IF($B$15="FDL",VLOOKUP(A35,Catalogação!$CJ$1:CQ37,8,0),VLOOKUP(Pedido!A35,Catalogação!$B$1:I403,8,0)),"") -> LUMINO MAX ANTI-RESSECAMENTO - PROBELLE | J35: =IFERROR(IF(AND($B$15="COMBO ESP (P)",$B$16="RJ"),VLOOKUP(A35,'Tabela Preço'!$Q$2:W992,7,0),IF(AND(Pedido!$B$15="COMBO ESP (M)",Pedido!$B$16="RJ"),VLOOKUP(Pedido!A35,'Tabela Preço'!$Q$2:Y992,8,0),IF(AND(Pedido!$B$15="COMBO ESP (P)",Pedido!$B$16="SP"),VLOOKUP(Pedido!A35,'Tabela Preço'!$Q$2:AB992,11,0),IF(AND(Pedido!$B$15="COMBO ESP (M)",Pedido!$B$16="SP"),VLOOKUP(Pedido!A35,'Tabela Preço'!$Q$2:AC992,12,0),IF(Pedido!$B$15="COMBO DIST (M)",VLOOKUP(Pedido!A35,'Tabela Preço'!$Q$2:Z992,9,0),IF(Pedido!$B$15="COMBO DIST (G)",VLOOKUP(Pedido!A35,'Tabela Preço'!$Q$2:AA992,10,0),IF($O$16=$P$16,VLOOKUP(A35,'Tabela Preço'!$A$3:E992,2,0),IF(AND($B$15="COMBO ESP (P)",$B$16="RJ"),VLOOKUP(A35,'Tabela Preço'!$Q$2:W992,7,0),IF(AND(Pedido!$B$15="COMBO ESP (M)",Pedido!$B$16="RJ"),VLOOKUP(Pedido!A35,'Tabela Preço'!$Q$2:Y992,8,0),IF(AND(Pedido!$B$15="COMBO ESP (P)",Pedido!$B$16="MG"),VLOOKUP(Pedido!A35,'Tabela Preço'!$Q$2:AB992,11,0),IF(AND(Pedido!$B$15="COMBO ESP (M)",Pedido!$B$16="MG"),VLOOKUP(Pedido!A35,'Tabela Preço'!$Q$2:AC992,12,0),IF(Pedido!$B$15="COMBO DIST (M)",VLOOKUP(Pedido!A35,'Tabela Preço'!$Q$2:Z992,9,0),IF(Pedido!$B$15="COMBO DIST (G)",VLOOKUP(Pedido!A35,'Tabela Preço'!Q12:AA992,10,0),IF($O$16=$P$16,VLOOKUP(A35,'Tabela Preço'!$A$3:E992,2,0),IF($O$16=$P$18,VLOOKUP(A35,'Tabela Preço'!$A$3:E992,3,0),IF($O$16=$P$19,VLOOKUP(A35,'Tabela Preço'!$A$3:E3593,4,0),IF($O$16=$P$15,VLOOKUP(A35,'Tabela Preço'!$A$3:G3593,7,0),IF($O$16=$P$21,VLOOKUP(A35,'Tabela Preço'!A:K,11,0),IF($O$16=$P$20,VLOOKUP(A35,'Tabela Preço'!$A$3:E992,5,0),IF($O$16=$P$22,VLOOKUP(A35,'Tabela Preço'!$A$3:F992,6,0),"")))))))))))))))))))),) ->  | L35: 0 | M35: 0 | S35: 12.48876613 | AC35: =IF(AE35>0,AE35,IFERROR(VLOOKUP(A35,Trava_Desconto!A:B,2,0),"")) -> 1 | AD35: =IFERROR(VLOOKUP(A35,Dados!A:H,8,0),"") -> 12 | AG35: =IFERROR(VLOOKUP(A35,'Relação SB e BURG - Preço Maior'!A:A,1,0),"") ->  | AT35: P02309 | AU35: Máscara 300g LANÇAMENTO!!! | AV35: LUMINO MAX ANTI-RESSECAMENTO - PROBELLE | AW35: 0 | AX35: =IFERROR(VLOOKUP(AT35,'Tabela Preço Minimo'!$A$14:H1008,8,0),"") -> 3.265741843 | AY35: =IFERROR(IF(AW35>0,VLOOKUP(AT35,'Tabela Preço Minimo'!$A$14:$AB$984,27,0),""),"") ->  | AZ35: =IFERROR(VLOOKUP(AT35,Trava_Desconto!A11:U554,21,0),0) -> 0.05 | BA35: 0 | BB35: 0 | BE35: 0 | BG35: 0 | BH35: 0 | BI35: =VLOOKUP(AT35,BASE!AC:AM,11,0) -> 0 | BJ35: =IFERROR(VLOOKUP(AT35,Produtos_Linha!A:C,3,0),"") -> Profissional | BQ35: =IFERROR(VLOOKUP(AT35,'Tabela Preço Minimo'!$A$14:V572,22,0),"") ->  | BV35: =IFERROR(IF($BV$3<>200, IF($B$11=168,VLOOKUP(Pedido!AT35,Regra_Aplicação!$A$5:$D$99999,4,0), IF($B$11=715,VLOOKUP(Pedido!AT35,Regra_Aplicação!$A$5:$E$99999,5,0), IF($B$11=103,VLOOKUP(Pedido!AT35,Regra_Aplicação!$A$5:$F$99999,6,0), IF($B$11=713,VLOOKUP(Pedido!AT35,Regra_Aplicação!$A$5:$G$99999,7,0), IF($B$11=110,VLOOKUP(Pedido!AT35,Regra_Aplicação!$A$5:$H$99999,8,0), IF($B$11=211,VLOOKUP(Pedido!AT35,Regra_Aplicação!$A$5:$I$99999,9,0), IF($B$11=705,VLOOKUP(Pedido!AT35,Regra_Aplicação!$A$5:$J$99999,10,0), IF($B$11=121,VLOOKUP(Pedido!AT35,Regra_Aplicação!$A$5:$K$99999,11,0), IF($B$11=169,VLOOKUP(Pedido!AT35,Regra_Aplicação!$A$5:$L$99999,12,0),IF($B$11=717,VLOOKUP(Pedido!AT35,Regra_Aplicação!$A$5:$AN$99999,40,0), )))))))))),IF(OR($BV$5="RJ",$BV$5="MG",$BV$5="SP",$BV$5="RS",$BV$5="PR"), IF($B$11=168,VLOOKUP(Pedido!AT35,Regra_Aplicação!$A$5:$V$99999,22,0), IF($B$11=715,VLOOKUP(Pedido!AT35,Regra_Aplicação!$A$5:$W$99999,23,0), IF($B$11=103,VLOOKUP(Pedido!AT35,Regra_Aplicação!$A$5:$X$99999,24,0), IF($B$11=713,VLOOKUP(Pedido!AT35,Regra_Aplicação!$A$5:$Y$99999,25,0), IF($B$11=110,VLOOKUP(Pedido!AT35,Regra_Aplicação!$A$5:$Z$99999,26,0), IF($B$11=211,VLOOKUP(Pedido!AT35,Regra_Aplicação!$A$5:$AA$99999,27,0), IF($B$11=705,VLOOKUP(Pedido!AT35,Regra_Aplicação!$A$5:$AB$99999,28,0), IF($B$11=121,VLOOKUP(Pedido!AT35,Regra_Aplicação!$A$5:$AC$99999,29,0), IF($B$11=169,VLOOKUP(Pedido!AT35,Regra_Aplicação!$A$5:$AD$99999,30,0),))))))))), IF($BV$5="ES", IF($B$11=168,VLOOKUP(Pedido!AT35,Regra_Aplicação!$A$5:$AE$99999,31,0), IF($B$11=715,VLOOKUP(Pedido!AT35,Regra_Aplicação!$A$5:$AF$99999,32,0), IF($B$11=103,VLOOKUP(Pedido!AT35,Regra_Aplicação!$A$5:$AG$99999,33,0), IF($B$11=713,VLOOKUP(Pedido!AT35,Regra_Aplicação!$A$5:$AH$99999,34,0), IF($B$11=110,VLOOKUP(Pedido!AT35,Regra_Aplicação!$A$5:$AI$99999,35,0), IF($B$11=211,VLOOKUP(Pedido!AT35,Regra_Aplicação!$A$5:$AJ$99999,36,0), IF($B$11=705,VLOOKUP(Pedido!AT35,Regra_Aplicação!$A$5:$AK$99999,37,0), IF($B$11=121,VLOOKUP(Pedido!AT35,Regra_Aplicação!$A$5:$AL$99999,38,0), IF($B$11=169,VLOOKUP(Pedido!AT35,Regra_Aplicação!$A$5:$AM$99999,39,0),))))))))), IF($B$11=168,VLOOKUP(Pedido!AT35,Regra_Aplicação!$A$5:$M$99999,13,0), IF($B$11=715,VLOOKUP(Pedido!AT35,Regra_Aplicação!$A$5:$N$99999,14,0), IF($B$11=103,VLOOKUP(Pedido!AT35,Regra_Aplicação!$A$5:$O$99999,15,0), IF($B$11=713,VLOOKUP(Pedido!AT35,Regra_Aplicação!$A$5:$P$99999,16,0), IF($B$11=110,VLOOKUP(Pedido!AT35,Regra_Aplicação!$A$5:$Q$99999,17,0), IF($B$11=211,VLOOKUP(Pedido!AT35,Regra_Aplicação!$A$5:$R$99999,18,0), IF($B$11=705,VLOOKUP(Pedido!AT35,Regra_Aplicação!$A$5:$S$99999,19,0), IF($B$11=121,VLOOKUP(Pedido!AT35,Regra_Aplicação!$A$5:$T$99999,20,0), IF($B$11=169,VLOOKUP(Pedido!AT35,Regra_Aplicação!$A$5:$U$99999,21,0),)))))))))))),) -> 0
A36: =IFERROR(IF($B$15="TODOS",VLOOKUP($B$15,Catalogação!A13:B969,2,0),IF($B$15="ESPECIALIZADA",VLOOKUP($B$15,Catalogação!O13:P969,2,0),IF($B$15="DISTRIBUIDOR",VLOOKUP($B$15,Catalogação!X13:Y1009,2,0),IF($B$15="FARMA",VLOOKUP($B$15,Catalogação!AG13:AH990,2,0),IF($B$15="SUPERMERCADO",VLOOKUP($B$15,Catalogação!AP13:AQ1012,2,0),IF($B$15="COMBO ESP (P)",VLOOKUP($B$15,Catalogação!$AY12:AZ1010,2,0),IF($B$15="COMBO ESP (M)",VLOOKUP($B$15,Catalogação!BH12:BI1010,2,0),IF($B$15="COMBO DIST (M)",VLOOKUP($B$15,Catalogação!BQ12:BR1010,2,0),IF($B$15="BONIFICADO",VLOOKUP($B$15,Catalogação!BZ13:CA1010,2,0),IF($B$15="FDL",VLOOKUP($B$15,Catalogação!CI13:CJ1010,2,0))))))))))),) -> P02247 | B36: =IFERROR(IF($B$15="FDL",VLOOKUP(A36,Catalogação!$CJ$1:CO587,2,0),VLOOKUP(Pedido!A36,Catalogação!B:G,2,0)),"") -> Shampoo 400mL LANÇAMENTO!!! | G36: =IFERROR(IF($B$15="FDL",VLOOKUP(A36,Catalogação!$CJ$1:CP587,7,0),VLOOKUP(Pedido!A36,Catalogação!$B$1:H2951,7,0)),"") -> 7898746931534 | H36: =IFERROR(IF($B$15="FDL",VLOOKUP(A36,Catalogação!$CJ$1:CQ38,8,0),VLOOKUP(Pedido!A36,Catalogação!$B$1:I404,8,0)),"") -> LUMINO MAX MAIS VOLUME - PROBELLE | J36: =IFERROR(IF(AND($B$15="COMBO ESP (P)",$B$16="RJ"),VLOOKUP(A36,'Tabela Preço'!$Q$2:W993,7,0),IF(AND(Pedido!$B$15="COMBO ESP (M)",Pedido!$B$16="RJ"),VLOOKUP(Pedido!A36,'Tabela Preço'!$Q$2:Y993,8,0),IF(AND(Pedido!$B$15="COMBO ESP (P)",Pedido!$B$16="SP"),VLOOKUP(Pedido!A36,'Tabela Preço'!$Q$2:AB993,11,0),IF(AND(Pedido!$B$15="COMBO ESP (M)",Pedido!$B$16="SP"),VLOOKUP(Pedido!A36,'Tabela Preço'!$Q$2:AC993,12,0),IF(Pedido!$B$15="COMBO DIST (M)",VLOOKUP(Pedido!A36,'Tabela Preço'!$Q$2:Z993,9,0),IF(Pedido!$B$15="COMBO DIST (G)",VLOOKUP(Pedido!A36,'Tabela Preço'!$Q$2:AA993,10,0),IF($O$16=$P$16,VLOOKUP(A36,'Tabela Preço'!$A$3:E993,2,0),IF(AND($B$15="COMBO ESP (P)",$B$16="RJ"),VLOOKUP(A36,'Tabela Preço'!$Q$2:W993,7,0),IF(AND(Pedido!$B$15="COMBO ESP (M)",Pedido!$B$16="RJ"),VLOOKUP(Pedido!A36,'Tabela Preço'!$Q$2:Y993,8,0),IF(AND(Pedido!$B$15="COMBO ESP (P)",Pedido!$B$16="MG"),VLOOKUP(Pedido!A36,'Tabela Preço'!$Q$2:AB993,11,0),IF(AND(Pedido!$B$15="COMBO ESP (M)",Pedido!$B$16="MG"),VLOOKUP(Pedido!A36,'Tabela Preço'!$Q$2:AC993,12,0),IF(Pedido!$B$15="COMBO DIST (M)",VLOOKUP(Pedido!A36,'Tabela Preço'!$Q$2:Z993,9,0),IF(Pedido!$B$15="COMBO DIST (G)",VLOOKUP(Pedido!A36,'Tabela Preço'!Q13:AA993,10,0),IF($O$16=$P$16,VLOOKUP(A36,'Tabela Preço'!$A$3:E993,2,0),IF($O$16=$P$18,VLOOKUP(A36,'Tabela Preço'!$A$3:E993,3,0),IF($O$16=$P$19,VLOOKUP(A36,'Tabela Preço'!$A$3:E3594,4,0),IF($O$16=$P$15,VLOOKUP(A36,'Tabela Preço'!$A$3:G3594,7,0),IF($O$16=$P$21,VLOOKUP(A36,'Tabela Preço'!A:K,11,0),IF($O$16=$P$20,VLOOKUP(A36,'Tabela Preço'!$A$3:E993,5,0),IF($O$16=$P$22,VLOOKUP(A36,'Tabela Preço'!$A$3:F993,6,0),"")))))))))))))))))))),) ->  | L36: 0 | M36: 0 | S36: 13.48876613 | AC36: =IF(AE36>0,AE36,IFERROR(VLOOKUP(A36,Trava_Desconto!A:B,2,0),"")) -> 1 | AD36: =IFERROR(VLOOKUP(A36,Dados!A:H,8,0),"") -> 12 | AG36: =IFERROR(VLOOKUP(A36,'Relação SB e BURG - Preço Maior'!A:A,1,0),"") ->  | AT36: P02247 | AU36: Shampoo 400mL LANÇAMENTO!!! | AV36: LUMINO MAX MAIS VOLUME - PROBELLE | AW36: 0 | AX36: =IFERROR(VLOOKUP(AT36,'Tabela Preço Minimo'!$A$14:H1009,8,0),"") -> 3.099 | AY36: =IFERROR(IF(AW36>0,VLOOKUP(AT36,'Tabela Preço Minimo'!$A$14:$AB$984,27,0),""),"") ->  | AZ36: =IFERROR(VLOOKUP(AT36,Trava_Desconto!A12:U555,21,0),0) -> 0 | BA36: 0 | BB36: 0 | BE36: 0 | BG36: 0 | BH36: 0 | BI36: =VLOOKUP(AT36,BASE!AC:AM,11,0) -> 0 | BJ36: =IFERROR(VLOOKUP(AT36,Produtos_Linha!A:C,3,0),"") -> Profissional | BQ36: =IFERROR(VLOOKUP(AT36,'Tabela Preço Minimo'!$A$14:V573,22,0),"") ->  | BV36: =IFERROR(IF($BV$3<>200, IF($B$11=168,VLOOKUP(Pedido!AT36,Regra_Aplicação!$A$5:$D$99999,4,0), IF($B$11=715,VLOOKUP(Pedido!AT36,Regra_Aplicação!$A$5:$E$99999,5,0), IF($B$11=103,VLOOKUP(Pedido!AT36,Regra_Aplicação!$A$5:$F$99999,6,0), IF($B$11=713,VLOOKUP(Pedido!AT36,Regra_Aplicação!$A$5:$G$99999,7,0), IF($B$11=110,VLOOKUP(Pedido!AT36,Regra_Aplicação!$A$5:$H$99999,8,0), IF($B$11=211,VLOOKUP(Pedido!AT36,Regra_Aplicação!$A$5:$I$99999,9,0), IF($B$11=705,VLOOKUP(Pedido!AT36,Regra_Aplicação!$A$5:$J$99999,10,0), IF($B$11=121,VLOOKUP(Pedido!AT36,Regra_Aplicação!$A$5:$K$99999,11,0), IF($B$11=169,VLOOKUP(Pedido!AT36,Regra_Aplicação!$A$5:$L$99999,12,0),IF($B$11=717,VLOOKUP(Pedido!AT36,Regra_Aplicação!$A$5:$AN$99999,40,0), )))))))))),IF(OR($BV$5="RJ",$BV$5="MG",$BV$5="SP",$BV$5="RS",$BV$5="PR"), IF($B$11=168,VLOOKUP(Pedido!AT36,Regra_Aplicação!$A$5:$V$99999,22,0), IF($B$11=715,VLOOKUP(Pedido!AT36,Regra_Aplicação!$A$5:$W$99999,23,0), IF($B$11=103,VLOOKUP(Pedido!AT36,Regra_Aplicação!$A$5:$X$99999,24,0), IF($B$11=713,VLOOKUP(Pedido!AT36,Regra_Aplicação!$A$5:$Y$99999,25,0), IF($B$11=110,VLOOKUP(Pedido!AT36,Regra_Aplicação!$A$5:$Z$99999,26,0), IF($B$11=211,VLOOKUP(Pedido!AT36,Regra_Aplicação!$A$5:$AA$99999,27,0), IF($B$11=705,VLOOKUP(Pedido!AT36,Regra_Aplicação!$A$5:$AB$99999,28,0), IF($B$11=121,VLOOKUP(Pedido!AT36,Regra_Aplicação!$A$5:$AC$99999,29,0), IF($B$11=169,VLOOKUP(Pedido!AT36,Regra_Aplicação!$A$5:$AD$99999,30,0),))))))))), IF($BV$5="ES", IF($B$11=168,VLOOKUP(Pedido!AT36,Regra_Aplicação!$A$5:$AE$99999,31,0), IF($B$11=715,VLOOKUP(Pedido!AT36,Regra_Aplicação!$A$5:$AF$99999,32,0), IF($B$11=103,VLOOKUP(Pedido!AT36,Regra_Aplicação!$A$5:$AG$99999,33,0), IF($B$11=713,VLOOKUP(Pedido!AT36,Regra_Aplicação!$A$5:$AH$99999,34,0), IF($B$11=110,VLOOKUP(Pedido!AT36,Regra_Aplicação!$A$5:$AI$99999,35,0), IF($B$11=211,VLOOKUP(Pedido!AT36,Regra_Aplicação!$A$5:$AJ$99999,36,0), IF($B$11=705,VLOOKUP(Pedido!AT36,Regra_Aplicação!$A$5:$AK$99999,37,0), IF($B$11=121,VLOOKUP(Pedido!AT36,Regra_Aplicação!$A$5:$AL$99999,38,0), IF($B$11=169,VLOOKUP(Pedido!AT36,Regra_Aplicação!$A$5:$AM$99999,39,0),))))))))), IF($B$11=168,VLOOKUP(Pedido!AT36,Regra_Aplicação!$A$5:$M$99999,13,0), IF($B$11=715,VLOOKUP(Pedido!AT36,Regra_Aplicação!$A$5:$N$99999,14,0), IF($B$11=103,VLOOKUP(Pedido!AT36,Regra_Aplicação!$A$5:$O$99999,15,0), IF($B$11=713,VLOOKUP(Pedido!AT36,Regra_Aplicação!$A$5:$P$99999,16,0), IF($B$11=110,VLOOKUP(Pedido!AT36,Regra_Aplicação!$A$5:$Q$99999,17,0), IF($B$11=211,VLOOKUP(Pedido!AT36,Regra_Aplicação!$A$5:$R$99999,18,0), IF($B$11=705,VLOOKUP(Pedido!AT36,Regra_Aplicação!$A$5:$S$99999,19,0), IF($B$11=121,VLOOKUP(Pedido!AT36,Regra_Aplicação!$A$5:$T$99999,20,0), IF($B$11=169,VLOOKUP(Pedido!AT36,Regra_Aplicação!$A$5:$U$99999,21,0),)))))))))))),) -> 0
A37: =IFERROR(IF($B$15="TODOS",VLOOKUP($B$15,Catalogação!A14:B970,2,0),IF($B$15="ESPECIALIZADA",VLOOKUP($B$15,Catalogação!O14:P970,2,0),IF($B$15="DISTRIBUIDOR",VLOOKUP($B$15,Catalogação!X14:Y1010,2,0),IF($B$15="FARMA",VLOOKUP($B$15,Catalogação!AG14:AH991,2,0),IF($B$15="SUPERMERCADO",VLOOKUP($B$15,Catalogação!AP14:AQ1013,2,0),IF($B$15="COMBO ESP (P)",VLOOKUP($B$15,Catalogação!$AY13:AZ1011,2,0),IF($B$15="COMBO ESP (M)",VLOOKUP($B$15,Catalogação!BH13:BI1011,2,0),IF($B$15="COMBO DIST (M)",VLOOKUP($B$15,Catalogação!BQ13:BR1011,2,0),IF($B$15="BONIFICADO",VLOOKUP($B$15,Catalogação!BZ14:CA1011,2,0),IF($B$15="FDL",VLOOKUP($B$15,Catalogação!CI14:CJ1011,2,0))))))))))),) -> P02248 | B37: =IFERROR(IF($B$15="FDL",VLOOKUP(A37,Catalogação!$CJ$1:CO588,2,0),VLOOKUP(Pedido!A37,Catalogação!B:G,2,0)),"") -> Condicionador 400mL LANÇAMENTO!!! | G37: =IFERROR(IF($B$15="FDL",VLOOKUP(A37,Catalogação!$CJ$1:CP588,7,0),VLOOKUP(Pedido!A37,Catalogação!$B$1:H2952,7,0)),"") -> 7898746931527 | H37: =IFERROR(IF($B$15="FDL",VLOOKUP(A37,Catalogação!$CJ$1:CQ39,8,0),VLOOKUP(Pedido!A37,Catalogação!$B$1:I405,8,0)),"") -> LUMINO MAX MAIS VOLUME - PROBELLE | J37: =IFERROR(IF(AND($B$15="COMBO ESP (P)",$B$16="RJ"),VLOOKUP(A37,'Tabela Preço'!$Q$2:W994,7,0),IF(AND(Pedido!$B$15="COMBO ESP (M)",Pedido!$B$16="RJ"),VLOOKUP(Pedido!A37,'Tabela Preço'!$Q$2:Y994,8,0),IF(AND(Pedido!$B$15="COMBO ESP (P)",Pedido!$B$16="SP"),VLOOKUP(Pedido!A37,'Tabela Preço'!$Q$2:AB994,11,0),IF(AND(Pedido!$B$15="COMBO ESP (M)",Pedido!$B$16="SP"),VLOOKUP(Pedido!A37,'Tabela Preço'!$Q$2:AC994,12,0),IF(Pedido!$B$15="COMBO DIST (M)",VLOOKUP(Pedido!A37,'Tabela Preço'!$Q$2:Z994,9,0),IF(Pedido!$B$15="COMBO DIST (G)",VLOOKUP(Pedido!A37,'Tabela Preço'!$Q$2:AA994,10,0),IF($O$16=$P$16,VLOOKUP(A37,'Tabela Preço'!$A$3:E994,2,0),IF(AND($B$15="COMBO ESP (P)",$B$16="RJ"),VLOOKUP(A37,'Tabela Preço'!$Q$2:W994,7,0),IF(AND(Pedido!$B$15="COMBO ESP (M)",Pedido!$B$16="RJ"),VLOOKUP(Pedido!A37,'Tabela Preço'!$Q$2:Y994,8,0),IF(AND(Pedido!$B$15="COMBO ESP (P)",Pedido!$B$16="MG"),VLOOKUP(Pedido!A37,'Tabela Preço'!$Q$2:AB994,11,0),IF(AND(Pedido!$B$15="COMBO ESP (M)",Pedido!$B$16="MG"),VLOOKUP(Pedido!A37,'Tabela Preço'!$Q$2:AC994,12,0),IF(Pedido!$B$15="COMBO DIST (M)",VLOOKUP(Pedido!A37,'Tabela Preço'!$Q$2:Z994,9,0),IF(Pedido!$B$15="COMBO DIST (G)",VLOOKUP(Pedido!A37,'Tabela Preço'!Q14:AA994,10,0),IF($O$16=$P$16,VLOOKUP(A37,'Tabela Preço'!$A$3:E994,2,0),IF($O$16=$P$18,VLOOKUP(A37,'Tabela Preço'!$A$3:E994,3,0),IF($O$16=$P$19,VLOOKUP(A37,'Tabela Preço'!$A$3:E3595,4,0),IF($O$16=$P$15,VLOOKUP(A37,'Tabela Preço'!$A$3:G3595,7,0),IF($O$16=$P$21,VLOOKUP(A37,'Tabela Preço'!A:K,11,0),IF($O$16=$P$20,VLOOKUP(A37,'Tabela Preço'!$A$3:E994,5,0),IF($O$16=$P$22,VLOOKUP(A37,'Tabela Preço'!$A$3:F994,6,0),"")))))))))))))))))))),) ->  | L37: 0 | M37: 0 | S37: 14.48876613 | AC37: =IF(AE37>0,AE37,IFERROR(VLOOKUP(A37,Trava_Desconto!A:B,2,0),"")) -> 1 | AD37: =IFERROR(VLOOKUP(A37,Dados!A:H,8,0),"") -> 12 | AG37: =IFERROR(VLOOKUP(A37,'Relação SB e BURG - Preço Maior'!A:A,1,0),"") ->  | AT37: P02248 | AU37: Condicionador 400mL LANÇAMENTO!!! | AV37: LUMINO MAX MAIS VOLUME - PROBELLE | AW37: 0 | AX37: =IFERROR(VLOOKUP(AT37,'Tabela Preço Minimo'!$A$14:H1010,8,0),"") -> 3.216 | AY37: =IFERROR(IF(AW37>0,VLOOKUP(AT37,'Tabela Preço Minimo'!$A$14:$AB$984,27,0),""),"") ->  | AZ37: =IFERROR(VLOOKUP(AT37,Trava_Desconto!A13:U556,21,0),0) -> 0 | BA37: 0 | BB37: 0 | BE37: 0 | BG37: 0 | BH37: 0 | BI37: =VLOOKUP(AT37,BASE!AC:AM,11,0) -> 0 | BJ37: =IFERROR(VLOOKUP(AT37,Produtos_Linha!A:C,3,0),"") -> Profissional | BQ37: =IFERROR(VLOOKUP(AT37,'Tabela Preço Minimo'!$A$14:V574,22,0),"") ->  | BV37: =IFERROR(IF($BV$3<>200, IF($B$11=168,VLOOKUP(Pedido!AT37,Regra_Aplicação!$A$5:$D$99999,4,0), IF($B$11=715,VLOOKUP(Pedido!AT37,Regra_Aplicação!$A$5:$E$99999,5,0), IF($B$11=103,VLOOKUP(Pedido!AT37,Regra_Aplicação!$A$5:$F$99999,6,0), IF($B$11=713,VLOOKUP(Pedido!AT37,Regra_Aplicação!$A$5:$G$99999,7,0), IF($B$11=110,VLOOKUP(Pedido!AT37,Regra_Aplicação!$A$5:$H$99999,8,0), IF($B$11=211,VLOOKUP(Pedido!AT37,Regra_Aplicação!$A$5:$I$99999,9,0), IF($B$11=705,VLOOKUP(Pedido!AT37,Regra_Aplicação!$A$5:$J$99999,10,0), IF($B$11=121,VLOOKUP(Pedido!AT37,Regra_Aplicação!$A$5:$K$99999,11,0), IF($B$11=169,VLOOKUP(Pedido!AT37,Regra_Aplicação!$A$5:$L$99999,12,0),IF($B$11=717,VLOOKUP(Pedido!AT37,Regra_Aplicação!$A$5:$AN$99999,40,0), )))))))))),IF(OR($BV$5="RJ",$BV$5="MG",$BV$5="SP",$BV$5="RS",$BV$5="PR"), IF($B$11=168,VLOOKUP(Pedido!AT37,Regra_Aplicação!$A$5:$V$99999,22,0), IF($B$11=715,VLOOKUP(Pedido!AT37,Regra_Aplicação!$A$5:$W$99999,23,0), IF($B$11=103,VLOOKUP(Pedido!AT37,Regra_Aplicação!$A$5:$X$99999,24,0), IF($B$11=713,VLOOKUP(Pedido!AT37,Regra_Aplicação!$A$5:$Y$99999,25,0), IF($B$11=110,VLOOKUP(Pedido!AT37,Regra_Aplicação!$A$5:$Z$99999,26,0), IF($B$11=211,VLOOKUP(Pedido!AT37,Regra_Aplicação!$A$5:$AA$99999,27,0), IF($B$11=705,VLOOKUP(Pedido!AT37,Regra_Aplicação!$A$5:$AB$99999,28,0), IF($B$11=121,VLOOKUP(Pedido!AT37,Regra_Aplicação!$A$5:$AC$99999,29,0), IF($B$11=169,VLOOKUP(Pedido!AT37,Regra_Aplicação!$A$5:$AD$99999,30,0),))))))))), IF($BV$5="ES", IF($B$11=168,VLOOKUP(Pedido!AT37,Regra_Aplicação!$A$5:$AE$99999,31,0), IF($B$11=715,VLOOKUP(Pedido!AT37,Regra_Aplicação!$A$5:$AF$99999,32,0), IF($B$11=103,VLOOKUP(Pedido!AT37,Regra_Aplicação!$A$5:$AG$99999,33,0), IF($B$11=713,VLOOKUP(Pedido!AT37,Regra_Aplicação!$A$5:$AH$99999,34,0), IF($B$11=110,VLOOKUP(Pedido!AT37,Regra_Aplicação!$A$5:$AI$99999,35,0), IF($B$11=211,VLOOKUP(Pedido!AT37,Regra_Aplicação!$A$5:$AJ$99999,36,0), IF($B$11=705,VLOOKUP(Pedido!AT37,Regra_Aplicação!$A$5:$AK$99999,37,0), IF($B$11=121,VLOOKUP(Pedido!AT37,Regra_Aplicação!$A$5:$AL$99999,38,0), IF($B$11=169,VLOOKUP(Pedido!AT37,Regra_Aplicação!$A$5:$AM$99999,39,0),))))))))), IF($B$11=168,VLOOKUP(Pedido!AT37,Regra_Aplicação!$A$5:$M$99999,13,0), IF($B$11=715,VLOOKUP(Pedido!AT37,Regra_Aplicação!$A$5:$N$99999,14,0), IF($B$11=103,VLOOKUP(Pedido!AT37,Regra_Aplicação!$A$5:$O$99999,15,0), IF($B$11=713,VLOOKUP(Pedido!AT37,Regra_Aplicação!$A$5:$P$99999,16,0), IF($B$11=110,VLOOKUP(Pedido!AT37,Regra_Aplicação!$A$5:$Q$99999,17,0), IF($B$11=211,VLOOKUP(Pedido!AT37,Regra_Aplicação!$A$5:$R$99999,18,0), IF($B$11=705,VLOOKUP(Pedido!AT37,Regra_Aplicação!$A$5:$S$99999,19,0), IF($B$11=121,VLOOKUP(Pedido!AT37,Regra_Aplicação!$A$5:$T$99999,20,0), IF($B$11=169,VLOOKUP(Pedido!AT37,Regra_Aplicação!$A$5:$U$99999,21,0),)))))))))))),) -> 0
A38: =IFERROR(IF($B$15="TODOS",VLOOKUP($B$15,Catalogação!A15:B971,2,0),IF($B$15="ESPECIALIZADA",VLOOKUP($B$15,Catalogação!O15:P971,2,0),IF($B$15="DISTRIBUIDOR",VLOOKUP($B$15,Catalogação!X15:Y1011,2,0),IF($B$15="FARMA",VLOOKUP($B$15,Catalogação!AG15:AH992,2,0),IF($B$15="SUPERMERCADO",VLOOKUP($B$15,Catalogação!AP15:AQ1014,2,0),IF($B$15="COMBO ESP (P)",VLOOKUP($B$15,Catalogação!$AY14:AZ1012,2,0),IF($B$15="COMBO ESP (M)",VLOOKUP($B$15,Catalogação!BH14:BI1012,2,0),IF($B$15="COMBO DIST (M)",VLOOKUP($B$15,Catalogação!BQ14:BR1012,2,0),IF($B$15="BONIFICADO",VLOOKUP($B$15,Catalogação!BZ15:CA1012,2,0),IF($B$15="FDL",VLOOKUP($B$15,Catalogação!CI15:CJ1012,2,0))))))))))),) -> P02307 | B38: =IFERROR(IF($B$15="FDL",VLOOKUP(A38,Catalogação!$CJ$1:CO589,2,0),VLOOKUP(Pedido!A38,Catalogação!B:G,2,0)),"") -> Máscara 300g LANÇAMENTO!!! | G38: =IFERROR(IF($B$15="FDL",VLOOKUP(A38,Catalogação!$CJ$1:CP589,7,0),VLOOKUP(Pedido!A38,Catalogação!$B$1:H2953,7,0)),"") -> 7898746933392 | H38: =IFERROR(IF($B$15="FDL",VLOOKUP(A38,Catalogação!$CJ$1:CQ40,8,0),VLOOKUP(Pedido!A38,Catalogação!$B$1:I406,8,0)),"") -> LUMINO MAX MAIS VOLUME - PROBELLE | J38: =IFERROR(IF(AND($B$15="COMBO ESP (P)",$B$16="RJ"),VLOOKUP(A38,'Tabela Preço'!$Q$2:W995,7,0),IF(AND(Pedido!$B$15="COMBO ESP (M)",Pedido!$B$16="RJ"),VLOOKUP(Pedido!A38,'Tabela Preço'!$Q$2:Y995,8,0),IF(AND(Pedido!$B$15="COMBO ESP (P)",Pedido!$B$16="SP"),VLOOKUP(Pedido!A38,'Tabela Preço'!$Q$2:AB995,11,0),IF(AND(Pedido!$B$15="COMBO ESP (M)",Pedido!$B$16="SP"),VLOOKUP(Pedido!A38,'Tabela Preço'!$Q$2:AC995,12,0),IF(Pedido!$B$15="COMBO DIST (M)",VLOOKUP(Pedido!A38,'Tabela Preço'!$Q$2:Z995,9,0),IF(Pedido!$B$15="COMBO DIST (G)",VLOOKUP(Pedido!A38,'Tabela Preço'!$Q$2:AA995,10,0),IF($O$16=$P$16,VLOOKUP(A38,'Tabela Preço'!$A$3:E995,2,0),IF(AND($B$15="COMBO ESP (P)",$B$16="RJ"),VLOOKUP(A38,'Tabela Preço'!$Q$2:W995,7,0),IF(AND(Pedido!$B$15="COMBO ESP (M)",Pedido!$B$16="RJ"),VLOOKUP(Pedido!A38,'Tabela Preço'!$Q$2:Y995,8,0),IF(AND(Pedido!$B$15="COMBO ESP (P)",Pedido!$B$16="MG"),VLOOKUP(Pedido!A38,'Tabela Preço'!$Q$2:AB995,11,0),IF(AND(Pedido!$B$15="COMBO ESP (M)",Pedido!$B$16="MG"),VLOOKUP(Pedido!A38,'Tabela Preço'!$Q$2:AC995,12,0),IF(Pedido!$B$15="COMBO DIST (M)",VLOOKUP(Pedido!A38,'Tabela Preço'!$Q$2:Z995,9,0),IF(Pedido!$B$15="COMBO DIST (G)",VLOOKUP(Pedido!A38,'Tabela Preço'!Q15:AA995,10,0),IF($O$16=$P$16,VLOOKUP(A38,'Tabela Preço'!$A$3:E995,2,0),IF($O$16=$P$18,VLOOKUP(A38,'Tabela Preço'!$A$3:E995,3,0),IF($O$16=$P$19,VLOOKUP(A38,'Tabela Preço'!$A$3:E3596,4,0),IF($O$16=$P$15,VLOOKUP(A38,'Tabela Preço'!$A$3:G3596,7,0),IF($O$16=$P$21,VLOOKUP(A38,'Tabela Preço'!A:K,11,0),IF($O$16=$P$20,VLOOKUP(A38,'Tabela Preço'!$A$3:E995,5,0),IF($O$16=$P$22,VLOOKUP(A38,'Tabela Preço'!$A$3:F995,6,0),"")))))))))))))))))))),) ->  | L38: 0 | M38: 0 | S38: 15.48876613 | AC38: =IF(AE38>0,AE38,IFERROR(VLOOKUP(A38,Trava_Desconto!A:B,2,0),"")) -> 1 | AD38: =IFERROR(VLOOKUP(A38,Dados!A:H,8,0),"") -> 12 | AG38: =IFERROR(VLOOKUP(A38,'Relação SB e BURG - Preço Maior'!A:A,1,0),"") ->  | AT38: P02307 | AU38: Máscara 300g LANÇAMENTO!!! | AV38: LUMINO MAX MAIS VOLUME - PROBELLE | AW38: 0 | AX38: =IFERROR(VLOOKUP(AT38,'Tabela Preço Minimo'!$A$14:H1011,8,0),"") -> 3.265741843 | AY38: =IFERROR(IF(AW38>0,VLOOKUP(AT38,'Tabela Preço Minimo'!$A$14:$AB$984,27,0),""),"") ->  | AZ38: =IFERROR(VLOOKUP(AT38,Trava_Desconto!A14:U557,21,0),0) -> 0.05 | BA38: 0 | BB38: 0 | BE38: 0 | BG38: 0 | BH38: 0 | BI38: =VLOOKUP(AT38,BASE!AC:AM,11,0) -> 0 | BJ38: =IFERROR(VLOOKUP(AT38,Produtos_Linha!A:C,3,0),"") -> Profissional | BQ38: =IFERROR(VLOOKUP(AT38,'Tabela Preço Minimo'!$A$14:V575,22,0),"") ->  | BV38: =IFERROR(IF($BV$3<>200, IF($B$11=168,VLOOKUP(Pedido!AT38,Regra_Aplicação!$A$5:$D$99999,4,0), IF($B$11=715,VLOOKUP(Pedido!AT38,Regra_Aplicação!$A$5:$E$99999,5,0), IF($B$11=103,VLOOKUP(Pedido!AT38,Regra_Aplicação!$A$5:$F$99999,6,0), IF($B$11=713,VLOOKUP(Pedido!AT38,Regra_Aplicação!$A$5:$G$99999,7,0), IF($B$11=110,VLOOKUP(Pedido!AT38,Regra_Aplicação!$A$5:$H$99999,8,0), IF($B$11=211,VLOOKUP(Pedido!AT38,Regra_Aplicação!$A$5:$I$99999,9,0), IF($B$11=705,VLOOKUP(Pedido!AT38,Regra_Aplicação!$A$5:$J$99999,10,0), IF($B$11=121,VLOOKUP(Pedido!AT38,Regra_Aplicação!$A$5:$K$99999,11,0), IF($B$11=169,VLOOKUP(Pedido!AT38,Regra_Aplicação!$A$5:$L$99999,12,0),IF($B$11=717,VLOOKUP(Pedido!AT38,Regra_Aplicação!$A$5:$AN$99999,40,0), )))))))))),IF(OR($BV$5="RJ",$BV$5="MG",$BV$5="SP",$BV$5="RS",$BV$5="PR"), IF($B$11=168,VLOOKUP(Pedido!AT38,Regra_Aplicação!$A$5:$V$99999,22,0), IF($B$11=715,VLOOKUP(Pedido!AT38,Regra_Aplicação!$A$5:$W$99999,23,0), IF($B$11=103,VLOOKUP(Pedido!AT38,Regra_Aplicação!$A$5:$X$99999,24,0), IF($B$11=713,VLOOKUP(Pedido!AT38,Regra_Aplicação!$A$5:$Y$99999,25,0), IF($B$11=110,VLOOKUP(Pedido!AT38,Regra_Aplicação!$A$5:$Z$99999,26,0), IF($B$11=211,VLOOKUP(Pedido!AT38,Regra_Aplicação!$A$5:$AA$99999,27,0), IF($B$11=705,VLOOKUP(Pedido!AT38,Regra_Aplicação!$A$5:$AB$99999,28,0), IF($B$11=121,VLOOKUP(Pedido!AT38,Regra_Aplicação!$A$5:$AC$99999,29,0), IF($B$11=169,VLOOKUP(Pedido!AT38,Regra_Aplicação!$A$5:$AD$99999,30,0),))))))))), IF($BV$5="ES", IF($B$11=168,VLOOKUP(Pedido!AT38,Regra_Aplicação!$A$5:$AE$99999,31,0), IF($B$11=715,VLOOKUP(Pedido!AT38,Regra_Aplicação!$A$5:$AF$99999,32,0), IF($B$11=103,VLOOKUP(Pedido!AT38,Regra_Aplicação!$A$5:$AG$99999,33,0), IF($B$11=713,VLOOKUP(Pedido!AT38,Regra_Aplicação!$A$5:$AH$99999,34,0), IF($B$11=110,VLOOKUP(Pedido!AT38,Regra_Aplicação!$A$5:$AI$99999,35,0), IF($B$11=211,VLOOKUP(Pedido!AT38,Regra_Aplicação!$A$5:$AJ$99999,36,0), IF($B$11=705,VLOOKUP(Pedido!AT38,Regra_Aplicação!$A$5:$AK$99999,37,0), IF($B$11=121,VLOOKUP(Pedido!AT38,Regra_Aplicação!$A$5:$AL$99999,38,0), IF($B$11=169,VLOOKUP(Pedido!AT38,Regra_Aplicação!$A$5:$AM$99999,39,0),))))))))), IF($B$11=168,VLOOKUP(Pedido!AT38,Regra_Aplicação!$A$5:$M$99999,13,0), IF($B$11=715,VLOOKUP(Pedido!AT38,Regra_Aplicação!$A$5:$N$99999,14,0), IF($B$11=103,VLOOKUP(Pedido!AT38,Regra_Aplicação!$A$5:$O$99999,15,0), IF($B$11=713,VLOOKUP(Pedido!AT38,Regra_Aplicação!$A$5:$P$99999,16,0), IF($B$11=110,VLOOKUP(Pedido!AT38,Regra_Aplicação!$A$5:$Q$99999,17,0), IF($B$11=211,VLOOKUP(Pedido!AT38,Regra_Aplicação!$A$5:$R$99999,18,0), IF($B$11=705,VLOOKUP(Pedido!AT38,Regra_Aplicação!$A$5:$S$99999,19,0), IF($B$11=121,VLOOKUP(Pedido!AT38,Regra_Aplicação!$A$5:$T$99999,20,0), IF($B$11=169,VLOOKUP(Pedido!AT38,Regra_Aplicação!$A$5:$U$99999,21,0),)))))))))))),) -> 0
A39: =IFERROR(IF($B$15="TODOS",VLOOKUP($B$15,Catalogação!A16:B972,2,0),IF($B$15="ESPECIALIZADA",VLOOKUP($B$15,Catalogação!O16:P972,2,0),IF($B$15="DISTRIBUIDOR",VLOOKUP($B$15,Catalogação!X16:Y1012,2,0),IF($B$15="FARMA",VLOOKUP($B$15,Catalogação!AG16:AH993,2,0),IF($B$15="SUPERMERCADO",VLOOKUP($B$15,Catalogação!AP16:AQ1015,2,0),IF($B$15="COMBO ESP (P)",VLOOKUP($B$15,Catalogação!$AY15:AZ1013,2,0),IF($B$15="COMBO ESP (M)",VLOOKUP($B$15,Catalogação!BH15:BI1013,2,0),IF($B$15="COMBO DIST (M)",VLOOKUP($B$15,Catalogação!BQ15:BR1013,2,0),IF($B$15="BONIFICADO",VLOOKUP($B$15,Catalogação!BZ16:CA1013,2,0),IF($B$15="FDL",VLOOKUP($B$15,Catalogação!CI16:CJ1013,2,0))))))))))),) -> P02245 | B39: =IFERROR(IF($B$15="FDL",VLOOKUP(A39,Catalogação!$CJ$1:CO590,2,0),VLOOKUP(Pedido!A39,Catalogação!B:G,2,0)),"") -> Shampoo 400mL LANÇAMENTO!!! | G39: =IFERROR(IF($B$15="FDL",VLOOKUP(A39,Catalogação!$CJ$1:CP590,7,0),VLOOKUP(Pedido!A39,Catalogação!$B$1:H2954,7,0)),"") -> 7898746931510 | H39: =IFERROR(IF($B$15="FDL",VLOOKUP(A39,Catalogação!$CJ$1:CQ41,8,0),VLOOKUP(Pedido!A39,Catalogação!$B$1:I407,8,0)),"") -> LUMINO MAX MAIS CRESCIMENTO - PROBELLE | J39: =IFERROR(IF(AND($B$15="COMBO ESP (P)",$B$16="RJ"),VLOOKUP(A39,'Tabela Preço'!$Q$2:W996,7,0),IF(AND(Pedido!$B$15="COMBO ESP (M)",Pedido!$B$16="RJ"),VLOOKUP(Pedido!A39,'Tabela Preço'!$Q$2:Y996,8,0),IF(AND(Pedido!$B$15="COMBO ESP (P)",Pedido!$B$16="SP"),VLOOKUP(Pedido!A39,'Tabela Preço'!$Q$2:AB996,11,0),IF(AND(Pedido!$B$15="COMBO ESP (M)",Pedido!$B$16="SP"),VLOOKUP(Pedido!A39,'Tabela Preço'!$Q$2:AC996,12,0),IF(Pedido!$B$15="COMBO DIST (M)",VLOOKUP(Pedido!A39,'Tabela Preço'!$Q$2:Z996,9,0),IF(Pedido!$B$15="COMBO DIST (G)",VLOOKUP(Pedido!A39,'Tabela Preço'!$Q$2:AA996,10,0),IF($O$16=$P$16,VLOOKUP(A39,'Tabela Preço'!$A$3:E996,2,0),IF(AND($B$15="COMBO ESP (P)",$B$16="RJ"),VLOOKUP(A39,'Tabela Preço'!$Q$2:W996,7,0),IF(AND(Pedido!$B$15="COMBO ESP (M)",Pedido!$B$16="RJ"),VLOOKUP(Pedido!A39,'Tabela Preço'!$Q$2:Y996,8,0),IF(AND(Pedido!$B$15="COMBO ESP (P)",Pedido!$B$16="MG"),VLOOKUP(Pedido!A39,'Tabela Preço'!$Q$2:AB996,11,0),IF(AND(Pedido!$B$15="COMBO ESP (M)",Pedido!$B$16="MG"),VLOOKUP(Pedido!A39,'Tabela Preço'!$Q$2:AC996,12,0),IF(Pedido!$B$15="COMBO DIST (M)",VLOOKUP(Pedido!A39,'Tabela Preço'!$Q$2:Z996,9,0),IF(Pedido!$B$15="COMBO DIST (G)",VLOOKUP(Pedido!A39,'Tabela Preço'!Q16:AA996,10,0),IF($O$16=$P$16,VLOOKUP(A39,'Tabela Preço'!$A$3:E996,2,0),IF($O$16=$P$18,VLOOKUP(A39,'Tabela Preço'!$A$3:E996,3,0),IF($O$16=$P$19,VLOOKUP(A39,'Tabela Preço'!$A$3:E3597,4,0),IF($O$16=$P$15,VLOOKUP(A39,'Tabela Preço'!$A$3:G3597,7,0),IF($O$16=$P$21,VLOOKUP(A39,'Tabela Preço'!A:K,11,0),IF($O$16=$P$20,VLOOKUP(A39,'Tabela Preço'!$A$3:E996,5,0),IF($O$16=$P$22,VLOOKUP(A39,'Tabela Preço'!$A$3:F996,6,0),"")))))))))))))))))))),) ->  | L39: 0 | M39: 0 | S39: 16.48876613 | AC39: =IF(AE39>0,AE39,IFERROR(VLOOKUP(A39,Trava_Desconto!A:B,2,0),"")) -> 1 | AD39: =IFERROR(VLOOKUP(A39,Dados!A:H,8,0),"") -> 12 | AG39: =IFERROR(VLOOKUP(A39,'Relação SB e BURG - Preço Maior'!A:A,1,0),"") ->  | AT39: P02245 | AU39: Shampoo 400mL LANÇAMENTO!!! | AV39: LUMINO MAX MAIS CRESCIMENTO - PROBELLE | AW39: 0 | AX39: =IFERROR(VLOOKUP(AT39,'Tabela Preço Minimo'!$A$14:H1012,8,0),"") -> 3.099 | AY39: =IFERROR(IF(AW39>0,VLOOKUP(AT39,'Tabela Preço Minimo'!$A$14:$AB$984,27,0),""),"") ->  | AZ39: =IFERROR(VLOOKUP(AT39,Trava_Desconto!A15:U558,21,0),0) -> 0 | BA39: 0 | BB39: 0 | BE39: 0 | BG39: 0 | BH39: 0 | BI39: =VLOOKUP(AT39,BASE!AC:AM,11,0) -> 0 | BJ39: =IFERROR(VLOOKUP(AT39,Produtos_Linha!A:C,3,0),"") -> Profissional | BQ39: =IFERROR(VLOOKUP(AT39,'Tabela Preço Minimo'!$A$14:V576,22,0),"") ->  | BV39: =IFERROR(IF($BV$3<>200, IF($B$11=168,VLOOKUP(Pedido!AT39,Regra_Aplicação!$A$5:$D$99999,4,0), IF($B$11=715,VLOOKUP(Pedido!AT39,Regra_Aplicação!$A$5:$E$99999,5,0), IF($B$11=103,VLOOKUP(Pedido!AT39,Regra_Aplicação!$A$5:$F$99999,6,0), IF($B$11=713,VLOOKUP(Pedido!AT39,Regra_Aplicação!$A$5:$G$99999,7,0), IF($B$11=110,VLOOKUP(Pedido!AT39,Regra_Aplicação!$A$5:$H$99999,8,0), IF($B$11=211,VLOOKUP(Pedido!AT39,Regra_Aplicação!$A$5:$I$99999,9,0), IF($B$11=705,VLOOKUP(Pedido!AT39,Regra_Aplicação!$A$5:$J$99999,10,0), IF($B$11=121,VLOOKUP(Pedido!AT39,Regra_Aplicação!$A$5:$K$99999,11,0), IF($B$11=169,VLOOKUP(Pedido!AT39,Regra_Aplicação!$A$5:$L$99999,12,0),IF($B$11=717,VLOOKUP(Pedido!AT39,Regra_Aplicação!$A$5:$AN$99999,40,0), )))))))))),IF(OR($BV$5="RJ",$BV$5="MG",$BV$5="SP",$BV$5="RS",$BV$5="PR"), IF($B$11=168,VLOOKUP(Pedido!AT39,Regra_Aplicação!$A$5:$V$99999,22,0), IF($B$11=715,VLOOKUP(Pedido!AT39,Regra_Aplicação!$A$5:$W$99999,23,0), IF($B$11=103,VLOOKUP(Pedido!AT39,Regra_Aplicação!$A$5:$X$99999,24,0), IF($B$11=713,VLOOKUP(Pedido!AT39,Regra_Aplicação!$A$5:$Y$99999,25,0), IF($B$11=110,VLOOKUP(Pedido!AT39,Regra_Aplicação!$A$5:$Z$99999,26,0), IF($B$11=211,VLOOKUP(Pedido!AT39,Regra_Aplicação!$A$5:$AA$99999,27,0), IF($B$11=705,VLOOKUP(Pedido!AT39,Regra_Aplicação!$A$5:$AB$99999,28,0), IF($B$11=121,VLOOKUP(Pedido!AT39,Regra_Aplicação!$A$5:$AC$99999,29,0), IF($B$11=169,VLOOKUP(Pedido!AT39,Regra_Aplicação!$A$5:$AD$99999,30,0),))))))))), IF($BV$5="ES", IF($B$11=168,VLOOKUP(Pedido!AT39,Regra_Aplicação!$A$5:$AE$99999,31,0), IF($B$11=715,VLOOKUP(Pedido!AT39,Regra_Aplicação!$A$5:$AF$99999,32,0), IF($B$11=103,VLOOKUP(Pedido!AT39,Regra_Aplicação!$A$5:$AG$99999,33,0), IF($B$11=713,VLOOKUP(Pedido!AT39,Regra_Aplicação!$A$5:$AH$99999,34,0), IF($B$11=110,VLOOKUP(Pedido!AT39,Regra_Aplicação!$A$5:$AI$99999,35,0), IF($B$11=211,VLOOKUP(Pedido!AT39,Regra_Aplicação!$A$5:$AJ$99999,36,0), IF($B$11=705,VLOOKUP(Pedido!AT39,Regra_Aplicação!$A$5:$AK$99999,37,0), IF($B$11=121,VLOOKUP(Pedido!AT39,Regra_Aplicação!$A$5:$AL$99999,38,0), IF($B$11=169,VLOOKUP(Pedido!AT39,Regra_Aplicação!$A$5:$AM$99999,39,0),))))))))), IF($B$11=168,VLOOKUP(Pedido!AT39,Regra_Aplicação!$A$5:$M$99999,13,0), IF($B$11=715,VLOOKUP(Pedido!AT39,Regra_Aplicação!$A$5:$N$99999,14,0), IF($B$11=103,VLOOKUP(Pedido!AT39,Regra_Aplicação!$A$5:$O$99999,15,0), IF($B$11=713,VLOOKUP(Pedido!AT39,Regra_Aplicação!$A$5:$P$99999,16,0), IF($B$11=110,VLOOKUP(Pedido!AT39,Regra_Aplicação!$A$5:$Q$99999,17,0), IF($B$11=211,VLOOKUP(Pedido!AT39,Regra_Aplicação!$A$5:$R$99999,18,0), IF($B$11=705,VLOOKUP(Pedido!AT39,Regra_Aplicação!$A$5:$S$99999,19,0), IF($B$11=121,VLOOKUP(Pedido!AT39,Regra_Aplicação!$A$5:$T$99999,20,0), IF($B$11=169,VLOOKUP(Pedido!AT39,Regra_Aplicação!$A$5:$U$99999,21,0),)))))))))))),) -> 0
A40: =IFERROR(IF($B$15="TODOS",VLOOKUP($B$15,Catalogação!A17:B973,2,0),IF($B$15="ESPECIALIZADA",VLOOKUP($B$15,Catalogação!O17:P973,2,0),IF($B$15="DISTRIBUIDOR",VLOOKUP($B$15,Catalogação!X17:Y1013,2,0),IF($B$15="FARMA",VLOOKUP($B$15,Catalogação!AG17:AH994,2,0),IF($B$15="SUPERMERCADO",VLOOKUP($B$15,Catalogação!AP17:AQ1016,2,0),IF($B$15="COMBO ESP (P)",VLOOKUP($B$15,Catalogação!$AY16:AZ1014,2,0),IF($B$15="COMBO ESP (M)",VLOOKUP($B$15,Catalogação!BH16:BI1014,2,0),IF($B$15="COMBO DIST (M)",VLOOKUP($B$15,Catalogação!BQ16:BR1014,2,0),IF($B$15="BONIFICADO",VLOOKUP($B$15,Catalogação!BZ17:CA1014,2,0),IF($B$15="FDL",VLOOKUP($B$15,Catalogação!CI17:CJ1014,2,0))))))))))),) -> P02246 | B40: =IFERROR(IF($B$15="FDL",VLOOKUP(A40,Catalogação!$CJ$1:CO591,2,0),VLOOKUP(Pedido!A40,Catalogação!B:G,2,0)),"") -> Condicionador 400mL LANÇAMENTO!!! | G40: =IFERROR(IF($B$15="FDL",VLOOKUP(A40,Catalogação!$CJ$1:CP591,7,0),VLOOKUP(Pedido!A40,Catalogação!$B$1:H2955,7,0)),"") -> 7898746931503 | H40: =IFERROR(IF($B$15="FDL",VLOOKUP(A40,Catalogação!$CJ$1:CQ42,8,0),VLOOKUP(Pedido!A40,Catalogação!$B$1:I408,8,0)),"") -> LUMINO MAX MAIS CRESCIMENTO - PROBELLE | J40: =IFERROR(IF(AND($B$15="COMBO ESP (P)",$B$16="RJ"),VLOOKUP(A40,'Tabela Preço'!$Q$2:W997,7,0),IF(AND(Pedido!$B$15="COMBO ESP (M)",Pedido!$B$16="RJ"),VLOOKUP(Pedido!A40,'Tabela Preço'!$Q$2:Y997,8,0),IF(AND(Pedido!$B$15="COMBO ESP (P)",Pedido!$B$16="SP"),VLOOKUP(Pedido!A40,'Tabela Preço'!$Q$2:AB997,11,0),IF(AND(Pedido!$B$15="COMBO ESP (M)",Pedido!$B$16="SP"),VLOOKUP(Pedido!A40,'Tabela Preço'!$Q$2:AC997,12,0),IF(Pedido!$B$15="COMBO DIST (M)",VLOOKUP(Pedido!A40,'Tabela Preço'!$Q$2:Z997,9,0),IF(Pedido!$B$15="COMBO DIST (G)",VLOOKUP(Pedido!A40,'Tabela Preço'!$Q$2:AA997,10,0),IF($O$16=$P$16,VLOOKUP(A40,'Tabela Preço'!$A$3:E997,2,0),IF(AND($B$15="COMBO ESP (P)",$B$16="RJ"),VLOOKUP(A40,'Tabela Preço'!$Q$2:W997,7,0),IF(AND(Pedido!$B$15="COMBO ESP (M)",Pedido!$B$16="RJ"),VLOOKUP(Pedido!A40,'Tabela Preço'!$Q$2:Y997,8,0),IF(AND(Pedido!$B$15="COMBO ESP (P)",Pedido!$B$16="MG"),VLOOKUP(Pedido!A40,'Tabela Preço'!$Q$2:AB997,11,0),IF(AND(Pedido!$B$15="COMBO ESP (M)",Pedido!$B$16="MG"),VLOOKUP(Pedido!A40,'Tabela Preço'!$Q$2:AC997,12,0),IF(Pedido!$B$15="COMBO DIST (M)",VLOOKUP(Pedido!A40,'Tabela Preço'!$Q$2:Z997,9,0),IF(Pedido!$B$15="COMBO DIST (G)",VLOOKUP(Pedido!A40,'Tabela Preço'!Q17:AA997,10,0),IF($O$16=$P$16,VLOOKUP(A40,'Tabela Preço'!$A$3:E997,2,0),IF($O$16=$P$18,VLOOKUP(A40,'Tabela Preço'!$A$3:E997,3,0),IF($O$16=$P$19,VLOOKUP(A40,'Tabela Preço'!$A$3:E3598,4,0),IF($O$16=$P$15,VLOOKUP(A40,'Tabela Preço'!$A$3:G3598,7,0),IF($O$16=$P$21,VLOOKUP(A40,'Tabela Preço'!A:K,11,0),IF($O$16=$P$20,VLOOKUP(A40,'Tabela Preço'!$A$3:E997,5,0),IF($O$16=$P$22,VLOOKUP(A40,'Tabela Preço'!$A$3:F997,6,0),"")))))))))))))))))))),) ->  | L40: 0 | M40: 0 | S40: 17.48876613 | AC40: =IF(AE40>0,AE40,IFERROR(VLOOKUP(A40,Trava_Desconto!A:B,2,0),"")) -> 1 | AD40: =IFERROR(VLOOKUP(A40,Dados!A:H,8,0),"") -> 12 | AG40: =IFERROR(VLOOKUP(A40,'Relação SB e BURG - Preço Maior'!A:A,1,0),"") ->  | AT40: P02246 | AU40: Condicionador 400mL LANÇAMENTO!!! | AV40: LUMINO MAX MAIS CRESCIMENTO - PROBELLE | AW40: 0 | AX40: =IFERROR(VLOOKUP(AT40,'Tabela Preço Minimo'!$A$14:H1013,8,0),"") -> 3.216 | AY40: =IFERROR(IF(AW40>0,VLOOKUP(AT40,'Tabela Preço Minimo'!$A$14:$AB$984,27,0),""),"") ->  | AZ40: =IFERROR(VLOOKUP(AT40,Trava_Desconto!A16:U559,21,0),0) -> 0 | BA40: 0 | BB40: 0 | BE40: 0 | BG40: 0 | BH40: 0 | BI40: =VLOOKUP(AT40,BASE!AC:AM,11,0) -> 0 | BJ40: =IFERROR(VLOOKUP(AT40,Produtos_Linha!A:C,3,0),"") -> Profissional | BQ40: =IFERROR(VLOOKUP(AT40,'Tabela Preço Minimo'!$A$14:V577,22,0),"") ->  | BV40: =IFERROR(IF($BV$3<>200, IF($B$11=168,VLOOKUP(Pedido!AT40,Regra_Aplicação!$A$5:$D$99999,4,0), IF($B$11=715,VLOOKUP(Pedido!AT40,Regra_Aplicação!$A$5:$E$99999,5,0), IF($B$11=103,VLOOKUP(Pedido!AT40,Regra_Aplicação!$A$5:$F$99999,6,0), IF($B$11=713,VLOOKUP(Pedido!AT40,Regra_Aplicação!$A$5:$G$99999,7,0), IF($B$11=110,VLOOKUP(Pedido!AT40,Regra_Aplicação!$A$5:$H$99999,8,0), IF($B$11=211,VLOOKUP(Pedido!AT40,Regra_Aplicação!$A$5:$I$99999,9,0), IF($B$11=705,VLOOKUP(Pedido!AT40,Regra_Aplicação!$A$5:$J$99999,10,0), IF($B$11=121,VLOOKUP(Pedido!AT40,Regra_Aplicação!$A$5:$K$99999,11,0), IF($B$11=169,VLOOKUP(Pedido!AT40,Regra_Aplicação!$A$5:$L$99999,12,0),IF($B$11=717,VLOOKUP(Pedido!AT40,Regra_Aplicação!$A$5:$AN$99999,40,0), )))))))))),IF(OR($BV$5="RJ",$BV$5="MG",$BV$5="SP",$BV$5="RS",$BV$5="PR"), IF($B$11=168,VLOOKUP(Pedido!AT40,Regra_Aplicação!$A$5:$V$99999,22,0), IF($B$11=715,VLOOKUP(Pedido!AT40,Regra_Aplicação!$A$5:$W$99999,23,0), IF($B$11=103,VLOOKUP(Pedido!AT40,Regra_Aplicação!$A$5:$X$99999,24,0), IF($B$11=713,VLOOKUP(Pedido!AT40,Regra_Aplicação!$A$5:$Y$99999,25,0), IF($B$11=110,VLOOKUP(Pedido!AT40,Regra_Aplicação!$A$5:$Z$99999,26,0), IF($B$11=211,VLOOKUP(Pedido!AT40,Regra_Aplicação!$A$5:$AA$99999,27,0), IF($B$11=705,VLOOKUP(Pedido!AT40,Regra_Aplicação!$A$5:$AB$99999,28,0), IF($B$11=121,VLOOKUP(Pedido!AT40,Regra_Aplicação!$A$5:$AC$99999,29,0), IF($B$11=169,VLOOKUP(Pedido!AT40,Regra_Aplicação!$A$5:$AD$99999,30,0),))))))))), IF($BV$5="ES", IF($B$11=168,VLOOKUP(Pedido!AT40,Regra_Aplicação!$A$5:$AE$99999,31,0), IF($B$11=715,VLOOKUP(Pedido!AT40,Regra_Aplicação!$A$5:$AF$99999,32,0), IF($B$11=103,VLOOKUP(Pedido!AT40,Regra_Aplicação!$A$5:$AG$99999,33,0), IF($B$11=713,VLOOKUP(Pedido!AT40,Regra_Aplicação!$A$5:$AH$99999,34,0), IF($B$11=110,VLOOKUP(Pedido!AT40,Regra_Aplicação!$A$5:$AI$99999,35,0), IF($B$11=211,VLOOKUP(Pedido!AT40,Regra_Aplicação!$A$5:$AJ$99999,36,0), IF($B$11=705,VLOOKUP(Pedido!AT40,Regra_Aplicação!$A$5:$AK$99999,37,0), IF($B$11=121,VLOOKUP(Pedido!AT40,Regra_Aplicação!$A$5:$AL$99999,38,0), IF($B$11=169,VLOOKUP(Pedido!AT40,Regra_Aplicação!$A$5:$AM$99999,39,0),))))))))), IF($B$11=168,VLOOKUP(Pedido!AT40,Regra_Aplicação!$A$5:$M$99999,13,0), IF($B$11=715,VLOOKUP(Pedido!AT40,Regra_Aplicação!$A$5:$N$99999,14,0), IF($B$11=103,VLOOKUP(Pedido!AT40,Regra_Aplicação!$A$5:$O$99999,15,0), IF($B$11=713,VLOOKUP(Pedido!AT40,Regra_Aplicação!$A$5:$P$99999,16,0), IF($B$11=110,VLOOKUP(Pedido!AT40,Regra_Aplicação!$A$5:$Q$99999,17,0), IF($B$11=211,VLOOKUP(Pedido!AT40,Regra_Aplicação!$A$5:$R$99999,18,0), IF($B$11=705,VLOOKUP(Pedido!AT40,Regra_Aplicação!$A$5:$S$99999,19,0), IF($B$11=121,VLOOKUP(Pedido!AT40,Regra_Aplicação!$A$5:$T$99999,20,0), IF($B$11=169,VLOOKUP(Pedido!AT40,Regra_Aplicação!$A$5:$U$99999,21,0),)))))))))))),) -> 0
A41: =IFERROR(IF($B$15="TODOS",VLOOKUP($B$15,Catalogação!A18:B974,2,0),IF($B$15="ESPECIALIZADA",VLOOKUP($B$15,Catalogação!O18:P974,2,0),IF($B$15="DISTRIBUIDOR",VLOOKUP($B$15,Catalogação!X18:Y1014,2,0),IF($B$15="FARMA",VLOOKUP($B$15,Catalogação!AG18:AH995,2,0),IF($B$15="SUPERMERCADO",VLOOKUP($B$15,Catalogação!AP18:AQ1017,2,0),IF($B$15="COMBO ESP (P)",VLOOKUP($B$15,Catalogação!$AY17:AZ1015,2,0),IF($B$15="COMBO ESP (M)",VLOOKUP($B$15,Catalogação!BH17:BI1015,2,0),IF($B$15="COMBO DIST (M)",VLOOKUP($B$15,Catalogação!BQ17:BR1015,2,0),IF($B$15="BONIFICADO",VLOOKUP($B$15,Catalogação!BZ18:CA1015,2,0),IF($B$15="FDL",VLOOKUP($B$15,Catalogação!CI18:CJ1015,2,0))))))))))),) -> P02308 | B41: =IFERROR(IF($B$15="FDL",VLOOKUP(A41,Catalogação!$CJ$1:CO592,2,0),VLOOKUP(Pedido!A41,Catalogação!B:G,2,0)),"") -> Máscara 300g LANÇAMENTO!!! | G41: =IFERROR(IF($B$15="FDL",VLOOKUP(A41,Catalogação!$CJ$1:CP592,7,0),VLOOKUP(Pedido!A41,Catalogação!$B$1:H2956,7,0)),"") -> 7898746933385 | H41: =IFERROR(IF($B$15="FDL",VLOOKUP(A41,Catalogação!$CJ$1:CQ43,8,0),VLOOKUP(Pedido!A41,Catalogação!$B$1:I409,8,0)),"") -> LUMINO MAX MAIS CRESCIMENTO - PROBELLE | J41: =IFERROR(IF(AND($B$15="COMBO ESP (P)",$B$16="RJ"),VLOOKUP(A41,'Tabela Preço'!$Q$2:W998,7,0),IF(AND(Pedido!$B$15="COMBO ESP (M)",Pedido!$B$16="RJ"),VLOOKUP(Pedido!A41,'Tabela Preço'!$Q$2:Y998,8,0),IF(AND(Pedido!$B$15="COMBO ESP (P)",Pedido!$B$16="SP"),VLOOKUP(Pedido!A41,'Tabela Preço'!$Q$2:AB998,11,0),IF(AND(Pedido!$B$15="COMBO ESP (M)",Pedido!$B$16="SP"),VLOOKUP(Pedido!A41,'Tabela Preço'!$Q$2:AC998,12,0),IF(Pedido!$B$15="COMBO DIST (M)",VLOOKUP(Pedido!A41,'Tabela Preço'!$Q$2:Z998,9,0),IF(Pedido!$B$15="COMBO DIST (G)",VLOOKUP(Pedido!A41,'Tabela Preço'!$Q$2:AA998,10,0),IF($O$16=$P$16,VLOOKUP(A41,'Tabela Preço'!$A$3:E998,2,0),IF(AND($B$15="COMBO ESP (P)",$B$16="RJ"),VLOOKUP(A41,'Tabela Preço'!$Q$2:W998,7,0),IF(AND(Pedido!$B$15="COMBO ESP (M)",Pedido!$B$16="RJ"),VLOOKUP(Pedido!A41,'Tabela Preço'!$Q$2:Y998,8,0),IF(AND(Pedido!$B$15="COMBO ESP (P)",Pedido!$B$16="MG"),VLOOKUP(Pedido!A41,'Tabela Preço'!$Q$2:AB998,11,0),IF(AND(Pedido!$B$15="COMBO ESP (M)",Pedido!$B$16="MG"),VLOOKUP(Pedido!A41,'Tabela Preço'!$Q$2:AC998,12,0),IF(Pedido!$B$15="COMBO DIST (M)",VLOOKUP(Pedido!A41,'Tabela Preço'!$Q$2:Z998,9,0),IF(Pedido!$B$15="COMBO DIST (G)",VLOOKUP(Pedido!A41,'Tabela Preço'!Q18:AA998,10,0),IF($O$16=$P$16,VLOOKUP(A41,'Tabela Preço'!$A$3:E998,2,0),IF($O$16=$P$18,VLOOKUP(A41,'Tabela Preço'!$A$3:E998,3,0),IF($O$16=$P$19,VLOOKUP(A41,'Tabela Preço'!$A$3:E3599,4,0),IF($O$16=$P$15,VLOOKUP(A41,'Tabela Preço'!$A$3:G3599,7,0),IF($O$16=$P$21,VLOOKUP(A41,'Tabela Preço'!A:K,11,0),IF($O$16=$P$20,VLOOKUP(A41,'Tabela Preço'!$A$3:E998,5,0),IF($O$16=$P$22,VLOOKUP(A41,'Tabela Preço'!$A$3:F998,6,0),"")))))))))))))))))))),) ->  | L41: 0 | M41: 0 | S41: 18.48876613 | AC41: =IF(AE41>0,AE41,IFERROR(VLOOKUP(A41,Trava_Desconto!A:B,2,0),"")) -> 1 | AD41: =IFERROR(VLOOKUP(A41,Dados!A:H,8,0),"") -> 12 | AG41: =IFERROR(VLOOKUP(A41,'Relação SB e BURG - Preço Maior'!A:A,1,0),"") ->  | AT41: P02308 | AU41: Máscara 300g LANÇAMENTO!!! | AV41: LUMINO MAX MAIS CRESCIMENTO - PROBELLE | AW41: 0 | AX41: =IFERROR(VLOOKUP(AT41,'Tabela Preço Minimo'!$A$14:H1014,8,0),"") -> 3.265741843 | AY41: =IFERROR(IF(AW41>0,VLOOKUP(AT41,'Tabela Preço Minimo'!$A$14:$AB$984,27,0),""),"") ->  | AZ41: =IFERROR(VLOOKUP(AT41,Trava_Desconto!A17:U560,21,0),0) -> 0.05 | BA41: 0 | BB41: 0 | BE41: 0 | BG41: 0 | BH41: 0 | BI41: =VLOOKUP(AT41,BASE!AC:AM,11,0) -> 0 | BJ41: =IFERROR(VLOOKUP(AT41,Produtos_Linha!A:C,3,0),"") -> Profissional | BQ41: =IFERROR(VLOOKUP(AT41,'Tabela Preço Minimo'!$A$14:V578,22,0),"") ->  | BV41: =IFERROR(IF($BV$3<>200, IF($B$11=168,VLOOKUP(Pedido!AT41,Regra_Aplicação!$A$5:$D$99999,4,0), IF($B$11=715,VLOOKUP(Pedido!AT41,Regra_Aplicação!$A$5:$E$99999,5,0), IF($B$11=103,VLOOKUP(Pedido!AT41,Regra_Aplicação!$A$5:$F$99999,6,0), IF($B$11=713,VLOOKUP(Pedido!AT41,Regra_Aplicação!$A$5:$G$99999,7,0), IF($B$11=110,VLOOKUP(Pedido!AT41,Regra_Aplicação!$A$5:$H$99999,8,0), IF($B$11=211,VLOOKUP(Pedido!AT41,Regra_Aplicação!$A$5:$I$99999,9,0), IF($B$11=705,VLOOKUP(Pedido!AT41,Regra_Aplicação!$A$5:$J$99999,10,0), IF($B$11=121,VLOOKUP(Pedido!AT41,Regra_Aplicação!$A$5:$K$99999,11,0), IF($B$11=169,VLOOKUP(Pedido!AT41,Regra_Aplicação!$A$5:$L$99999,12,0),IF($B$11=717,VLOOKUP(Pedido!AT41,Regra_Aplicação!$A$5:$AN$99999,40,0), )))))))))),IF(OR($BV$5="RJ",$BV$5="MG",$BV$5="SP",$BV$5="RS",$BV$5="PR"), IF($B$11=168,VLOOKUP(Pedido!AT41,Regra_Aplicação!$A$5:$V$99999,22,0), IF($B$11=715,VLOOKUP(Pedido!AT41,Regra_Aplicação!$A$5:$W$99999,23,0), IF($B$11=103,VLOOKUP(Pedido!AT41,Regra_Aplicação!$A$5:$X$99999,24,0), IF($B$11=713,VLOOKUP(Pedido!AT41,Regra_Aplicação!$A$5:$Y$99999,25,0), IF($B$11=110,VLOOKUP(Pedido!AT41,Regra_Aplicação!$A$5:$Z$99999,26,0), IF($B$11=211,VLOOKUP(Pedido!AT41,Regra_Aplicação!$A$5:$AA$99999,27,0), IF($B$11=705,VLOOKUP(Pedido!AT41,Regra_Aplicação!$A$5:$AB$99999,28,0), IF($B$11=121,VLOOKUP(Pedido!AT41,Regra_Aplicação!$A$5:$AC$99999,29,0), IF($B$11=169,VLOOKUP(Pedido!AT41,Regra_Aplicação!$A$5:$AD$99999,30,0),))))))))), IF($BV$5="ES", IF($B$11=168,VLOOKUP(Pedido!AT41,Regra_Aplicação!$A$5:$AE$99999,31,0), IF($B$11=715,VLOOKUP(Pedido!AT41,Regra_Aplicação!$A$5:$AF$99999,32,0), IF($B$11=103,VLOOKUP(Pedido!AT41,Regra_Aplicação!$A$5:$AG$99999,33,0), IF($B$11=713,VLOOKUP(Pedido!AT41,Regra_Aplicação!$A$5:$AH$99999,34,0), IF($B$11=110,VLOOKUP(Pedido!AT41,Regra_Aplicação!$A$5:$AI$99999,35,0), IF($B$11=211,VLOOKUP(Pedido!AT41,Regra_Aplicação!$A$5:$AJ$99999,36,0), IF($B$11=705,VLOOKUP(Pedido!AT41,Regra_Aplicação!$A$5:$AK$99999,37,0), IF($B$11=121,VLOOKUP(Pedido!AT41,Regra_Aplicação!$A$5:$AL$99999,38,0), IF($B$11=169,VLOOKUP(Pedido!AT41,Regra_Aplicação!$A$5:$AM$99999,39,0),))))))))), IF($B$11=168,VLOOKUP(Pedido!AT41,Regra_Aplicação!$A$5:$M$99999,13,0), IF($B$11=715,VLOOKUP(Pedido!AT41,Regra_Aplicação!$A$5:$N$99999,14,0), IF($B$11=103,VLOOKUP(Pedido!AT41,Regra_Aplicação!$A$5:$O$99999,15,0), IF($B$11=713,VLOOKUP(Pedido!AT41,Regra_Aplicação!$A$5:$P$99999,16,0), IF($B$11=110,VLOOKUP(Pedido!AT41,Regra_Aplicação!$A$5:$Q$99999,17,0), IF($B$11=211,VLOOKUP(Pedido!AT41,Regra_Aplicação!$A$5:$R$99999,18,0), IF($B$11=705,VLOOKUP(Pedido!AT41,Regra_Aplicação!$A$5:$S$99999,19,0), IF($B$11=121,VLOOKUP(Pedido!AT41,Regra_Aplicação!$A$5:$T$99999,20,0), IF($B$11=169,VLOOKUP(Pedido!AT41,Regra_Aplicação!$A$5:$U$99999,21,0),)))))))))))),) -> 0
A42: =IFERROR(IF($B$15="TODOS",VLOOKUP($B$15,Catalogação!A19:B975,2,0),IF($B$15="ESPECIALIZADA",VLOOKUP($B$15,Catalogação!O19:P975,2,0),IF($B$15="DISTRIBUIDOR",VLOOKUP($B$15,Catalogação!X19:Y1015,2,0),IF($B$15="FARMA",VLOOKUP($B$15,Catalogação!AG19:AH996,2,0),IF($B$15="SUPERMERCADO",VLOOKUP($B$15,Catalogação!AP19:AQ1018,2,0),IF($B$15="COMBO ESP (P)",VLOOKUP($B$15,Catalogação!$AY18:AZ1016,2,0),IF($B$15="COMBO ESP (M)",VLOOKUP($B$15,Catalogação!BH18:BI1016,2,0),IF($B$15="COMBO DIST (M)",VLOOKUP($B$15,Catalogação!BQ18:BR1016,2,0),IF($B$15="BONIFICADO",VLOOKUP($B$15,Catalogação!BZ19:CA1016,2,0),IF($B$15="FDL",VLOOKUP($B$15,Catalogação!CI19:CJ1016,2,0))))))))))),) -> P02251 | B42: =IFERROR(IF($B$15="FDL",VLOOKUP(A42,Catalogação!$CJ$1:CO593,2,0),VLOOKUP(Pedido!A42,Catalogação!B:G,2,0)),"") -> Shampoo 400mL LANÇAMENTO!!! | G42: =IFERROR(IF($B$15="FDL",VLOOKUP(A42,Catalogação!$CJ$1:CP593,7,0),VLOOKUP(Pedido!A42,Catalogação!$B$1:H2957,7,0)),"") -> 7898746931466 | H42: =IFERROR(IF($B$15="FDL",VLOOKUP(A42,Catalogação!$CJ$1:CQ44,8,0),VLOOKUP(Pedido!A42,Catalogação!$B$1:I410,8,0)),"") -> FORCE ULTRA - PROBELLE | J42: =IFERROR(IF(AND($B$15="COMBO ESP (P)",$B$16="RJ"),VLOOKUP(A42,'Tabela Preço'!$Q$2:W999,7,0),IF(AND(Pedido!$B$15="COMBO ESP (M)",Pedido!$B$16="RJ"),VLOOKUP(Pedido!A42,'Tabela Preço'!$Q$2:Y999,8,0),IF(AND(Pedido!$B$15="COMBO ESP (P)",Pedido!$B$16="SP"),VLOOKUP(Pedido!A42,'Tabela Preço'!$Q$2:AB999,11,0),IF(AND(Pedido!$B$15="COMBO ESP (M)",Pedido!$B$16="SP"),VLOOKUP(Pedido!A42,'Tabela Preço'!$Q$2:AC999,12,0),IF(Pedido!$B$15="COMBO DIST (M)",VLOOKUP(Pedido!A42,'Tabela Preço'!$Q$2:Z999,9,0),IF(Pedido!$B$15="COMBO DIST (G)",VLOOKUP(Pedido!A42,'Tabela Preço'!$Q$2:AA999,10,0),IF($O$16=$P$16,VLOOKUP(A42,'Tabela Preço'!$A$3:E999,2,0),IF(AND($B$15="COMBO ESP (P)",$B$16="RJ"),VLOOKUP(A42,'Tabela Preço'!$Q$2:W999,7,0),IF(AND(Pedido!$B$15="COMBO ESP (M)",Pedido!$B$16="RJ"),VLOOKUP(Pedido!A42,'Tabela Preço'!$Q$2:Y999,8,0),IF(AND(Pedido!$B$15="COMBO ESP (P)",Pedido!$B$16="MG"),VLOOKUP(Pedido!A42,'Tabela Preço'!$Q$2:AB999,11,0),IF(AND(Pedido!$B$15="COMBO ESP (M)",Pedido!$B$16="MG"),VLOOKUP(Pedido!A42,'Tabela Preço'!$Q$2:AC999,12,0),IF(Pedido!$B$15="COMBO DIST (M)",VLOOKUP(Pedido!A42,'Tabela Preço'!$Q$2:Z999,9,0),IF(Pedido!$B$15="COMBO DIST (G)",VLOOKUP(Pedido!A42,'Tabela Preço'!Q19:AA999,10,0),IF($O$16=$P$16,VLOOKUP(A42,'Tabela Preço'!$A$3:E999,2,0),IF($O$16=$P$18,VLOOKUP(A42,'Tabela Preço'!$A$3:E999,3,0),IF($O$16=$P$19,VLOOKUP(A42,'Tabela Preço'!$A$3:E3600,4,0),IF($O$16=$P$15,VLOOKUP(A42,'Tabela Preço'!$A$3:G3600,7,0),IF($O$16=$P$21,VLOOKUP(A42,'Tabela Preço'!A:K,11,0),IF($O$16=$P$20,VLOOKUP(A42,'Tabela Preço'!$A$3:E999,5,0),IF($O$16=$P$22,VLOOKUP(A42,'Tabela Preço'!$A$3:F999,6,0),"")))))))))))))))))))),) ->  | L42: 0 | M42: 0 | S42: 19.48876613 | AC42: =IF(AE42>0,AE42,IFERROR(VLOOKUP(A42,Trava_Desconto!A:B,2,0),"")) -> 1 | AD42: =IFERROR(VLOOKUP(A42,Dados!A:H,8,0),"") -> 12 | AG42: =IFERROR(VLOOKUP(A42,'Relação SB e BURG - Preço Maior'!A:A,1,0),"") ->  | AT42: P02251 | AU42: Shampoo 400mL LANÇAMENTO!!! | AV42: FORCE ULTRA - PROBELLE | AW42: 0 | AX42: =IFERROR(VLOOKUP(AT42,'Tabela Preço Minimo'!$A$14:H1015,8,0),"") -> 3.099 | AY42: =IFERROR(IF(AW42>0,VLOOKUP(AT42,'Tabela Preço Minimo'!$A$14:$AB$984,27,0),""),"") ->  | AZ42: =IFERROR(VLOOKUP(AT42,Trava_Desconto!A18:U561,21,0),0) -> 0 | BA42: 0 | BB42: 0 | BE42: 0 | BG42: 0 | BH42: 0 | BI42: =VLOOKUP(AT42,BASE!AC:AM,11,0) -> 0 | BJ42: =IFERROR(VLOOKUP(AT42,Produtos_Linha!A:C,3,0),"") -> Profissional | BQ42: =IFERROR(VLOOKUP(AT42,'Tabela Preço Minimo'!$A$14:V579,22,0),"") ->  | BV42: =IFERROR(IF($BV$3<>200, IF($B$11=168,VLOOKUP(Pedido!AT42,Regra_Aplicação!$A$5:$D$99999,4,0), IF($B$11=715,VLOOKUP(Pedido!AT42,Regra_Aplicação!$A$5:$E$99999,5,0), IF($B$11=103,VLOOKUP(Pedido!AT42,Regra_Aplicação!$A$5:$F$99999,6,0), IF($B$11=713,VLOOKUP(Pedido!AT42,Regra_Aplicação!$A$5:$G$99999,7,0), IF($B$11=110,VLOOKUP(Pedido!AT42,Regra_Aplicação!$A$5:$H$99999,8,0), IF($B$11=211,VLOOKUP(Pedido!AT42,Regra_Aplicação!$A$5:$I$99999,9,0), IF($B$11=705,VLOOKUP(Pedido!AT42,Regra_Aplicação!$A$5:$J$99999,10,0), IF($B$11=121,VLOOKUP(Pedido!AT42,Regra_Aplicação!$A$5:$K$99999,11,0), IF($B$11=169,VLOOKUP(Pedido!AT42,Regra_Aplicação!$A$5:$L$99999,12,0),IF($B$11=717,VLOOKUP(Pedido!AT42,Regra_Aplicação!$A$5:$AN$99999,40,0), )))))))))),IF(OR($BV$5="RJ",$BV$5="MG",$BV$5="SP",$BV$5="RS",$BV$5="PR"), IF($B$11=168,VLOOKUP(Pedido!AT42,Regra_Aplicação!$A$5:$V$99999,22,0), IF($B$11=715,VLOOKUP(Pedido!AT42,Regra_Aplicação!$A$5:$W$99999,23,0), IF($B$11=103,VLOOKUP(Pedido!AT42,Regra_Aplicação!$A$5:$X$99999,24,0), IF($B$11=713,VLOOKUP(Pedido!AT42,Regra_Aplicação!$A$5:$Y$99999,25,0), IF($B$11=110,VLOOKUP(Pedido!AT42,Regra_Aplicação!$A$5:$Z$99999,26,0), IF($B$11=211,VLOOKUP(Pedido!AT42,Regra_Aplicação!$A$5:$AA$99999,27,0), IF($B$11=705,VLOOKUP(Pedido!AT42,Regra_Aplicação!$A$5:$AB$99999,28,0), IF($B$11=121,VLOOKUP(Pedido!AT42,Regra_Aplicação!$A$5:$AC$99999,29,0), IF($B$11=169,VLOOKUP(Pedido!AT42,Regra_Aplicação!$A$5:$AD$99999,30,0),))))))))), IF($BV$5="ES", IF($B$11=168,VLOOKUP(Pedido!AT42,Regra_Aplicação!$A$5:$AE$99999,31,0), IF($B$11=715,VLOOKUP(Pedido!AT42,Regra_Aplicação!$A$5:$AF$99999,32,0), IF($B$11=103,VLOOKUP(Pedido!AT42,Regra_Aplicação!$A$5:$AG$99999,33,0), IF($B$11=713,VLOOKUP(Pedido!AT42,Regra_Aplicação!$A$5:$AH$99999,34,0), IF($B$11=110,VLOOKUP(Pedido!AT42,Regra_Aplicação!$A$5:$AI$99999,35,0), IF($B$11=211,VLOOKUP(Pedido!AT42,Regra_Aplicação!$A$5:$AJ$99999,36,0), IF($B$11=705,VLOOKUP(Pedido!AT42,Regra_Aplicação!$A$5:$AK$99999,37,0), IF($B$11=121,VLOOKUP(Pedido!AT42,Regra_Aplicação!$A$5:$AL$99999,38,0), IF($B$11=169,VLOOKUP(Pedido!AT42,Regra_Aplicação!$A$5:$AM$99999,39,0),))))))))), IF($B$11=168,VLOOKUP(Pedido!AT42,Regra_Aplicação!$A$5:$M$99999,13,0), IF($B$11=715,VLOOKUP(Pedido!AT42,Regra_Aplicação!$A$5:$N$99999,14,0), IF($B$11=103,VLOOKUP(Pedido!AT42,Regra_Aplicação!$A$5:$O$99999,15,0), IF($B$11=713,VLOOKUP(Pedido!AT42,Regra_Aplicação!$A$5:$P$99999,16,0), IF($B$11=110,VLOOKUP(Pedido!AT42,Regra_Aplicação!$A$5:$Q$99999,17,0), IF($B$11=211,VLOOKUP(Pedido!AT42,Regra_Aplicação!$A$5:$R$99999,18,0), IF($B$11=705,VLOOKUP(Pedido!AT42,Regra_Aplicação!$A$5:$S$99999,19,0), IF($B$11=121,VLOOKUP(Pedido!AT42,Regra_Aplicação!$A$5:$T$99999,20,0), IF($B$11=169,VLOOKUP(Pedido!AT42,Regra_Aplicação!$A$5:$U$99999,21,0),)))))))))))),) -> 0
A43: =IFERROR(IF($B$15="TODOS",VLOOKUP($B$15,Catalogação!A20:B976,2,0),IF($B$15="ESPECIALIZADA",VLOOKUP($B$15,Catalogação!O20:P976,2,0),IF($B$15="DISTRIBUIDOR",VLOOKUP($B$15,Catalogação!X20:Y1016,2,0),IF($B$15="FARMA",VLOOKUP($B$15,Catalogação!AG20:AH997,2,0),IF($B$15="SUPERMERCADO",VLOOKUP($B$15,Catalogação!AP20:AQ1019,2,0),IF($B$15="COMBO ESP (P)",VLOOKUP($B$15,Catalogação!$AY19:AZ1017,2,0),IF($B$15="COMBO ESP (M)",VLOOKUP($B$15,Catalogação!BH19:BI1017,2,0),IF($B$15="COMBO DIST (M)",VLOOKUP($B$15,Catalogação!BQ19:BR1017,2,0),IF($B$15="BONIFICADO",VLOOKUP($B$15,Catalogação!BZ20:CA1017,2,0),IF($B$15="FDL",VLOOKUP($B$15,Catalogação!CI20:CJ1017,2,0))))))))))),) -> P02252 | B43: =IFERROR(IF($B$15="FDL",VLOOKUP(A43,Catalogação!$CJ$1:CO594,2,0),VLOOKUP(Pedido!A43,Catalogação!B:G,2,0)),"") -> Condicionador 400mL LANÇAMENTO!!! | G43: =IFERROR(IF($B$15="FDL",VLOOKUP(A43,Catalogação!$CJ$1:CP594,7,0),VLOOKUP(Pedido!A43,Catalogação!$B$1:H2958,7,0)),"") -> 7898746931459 | H43: =IFERROR(IF($B$15="FDL",VLOOKUP(A43,Catalogação!$CJ$1:CQ45,8,0),VLOOKUP(Pedido!A43,Catalogação!$B$1:I411,8,0)),"") -> FORCE ULTRA - PROBELLE | J43: =IFERROR(IF(AND($B$15="COMBO ESP (P)",$B$16="RJ"),VLOOKUP(A43,'Tabela Preço'!$Q$2:W1000,7,0),IF(AND(Pedido!$B$15="COMBO ESP (M)",Pedido!$B$16="RJ"),VLOOKUP(Pedido!A43,'Tabela Preço'!$Q$2:Y1000,8,0),IF(AND(Pedido!$B$15="COMBO ESP (P)",Pedido!$B$16="SP"),VLOOKUP(Pedido!A43,'Tabela Preço'!$Q$2:AB1000,11,0),IF(AND(Pedido!$B$15="COMBO ESP (M)",Pedido!$B$16="SP"),VLOOKUP(Pedido!A43,'Tabela Preço'!$Q$2:AC1000,12,0),IF(Pedido!$B$15="COMBO DIST (M)",VLOOKUP(Pedido!A43,'Tabela Preço'!$Q$2:Z1000,9,0),IF(Pedido!$B$15="COMBO DIST (G)",VLOOKUP(Pedido!A43,'Tabela Preço'!$Q$2:AA1000,10,0),IF($O$16=$P$16,VLOOKUP(A43,'Tabela Preço'!$A$3:E1000,2,0),IF(AND($B$15="COMBO ESP (P)",$B$16="RJ"),VLOOKUP(A43,'Tabela Preço'!$Q$2:W1000,7,0),IF(AND(Pedido!$B$15="COMBO ESP (M)",Pedido!$B$16="RJ"),VLOOKUP(Pedido!A43,'Tabela Preço'!$Q$2:Y1000,8,0),IF(AND(Pedido!$B$15="COMBO ESP (P)",Pedido!$B$16="MG"),VLOOKUP(Pedido!A43,'Tabela Preço'!$Q$2:AB1000,11,0),IF(AND(Pedido!$B$15="COMBO ESP (M)",Pedido!$B$16="MG"),VLOOKUP(Pedido!A43,'Tabela Preço'!$Q$2:AC1000,12,0),IF(Pedido!$B$15="COMBO DIST (M)",VLOOKUP(Pedido!A43,'Tabela Preço'!$Q$2:Z1000,9,0),IF(Pedido!$B$15="COMBO DIST (G)",VLOOKUP(Pedido!A43,'Tabela Preço'!Q20:AA1000,10,0),IF($O$16=$P$16,VLOOKUP(A43,'Tabela Preço'!$A$3:E1000,2,0),IF($O$16=$P$18,VLOOKUP(A43,'Tabela Preço'!$A$3:E1000,3,0),IF($O$16=$P$19,VLOOKUP(A43,'Tabela Preço'!$A$3:E3601,4,0),IF($O$16=$P$15,VLOOKUP(A43,'Tabela Preço'!$A$3:G3601,7,0),IF($O$16=$P$21,VLOOKUP(A43,'Tabela Preço'!A:K,11,0),IF($O$16=$P$20,VLOOKUP(A43,'Tabela Preço'!$A$3:E1000,5,0),IF($O$16=$P$22,VLOOKUP(A43,'Tabela Preço'!$A$3:F1000,6,0),"")))))))))))))))))))),) ->  | L43: 0 | M43: 0 | S43: 20.48876613 | AC43: =IF(AE43>0,AE43,IFERROR(VLOOKUP(A43,Trava_Desconto!A:B,2,0),"")) -> 1 | AD43: =IFERROR(VLOOKUP(A43,Dados!A:H,8,0),"") -> 12 | AG43: =IFERROR(VLOOKUP(A43,'Relação SB e BURG - Preço Maior'!A:A,1,0),"") ->  | AT43: P02252 | AU43: Condicionador 400mL LANÇAMENTO!!! | AV43: FORCE ULTRA - PROBELLE | AW43: 0 | AX43: =IFERROR(VLOOKUP(AT43,'Tabela Preço Minimo'!$A$14:H1016,8,0),"") -> 3.216 | AY43: =IFERROR(IF(AW43>0,VLOOKUP(AT43,'Tabela Preço Minimo'!$A$14:$AB$984,27,0),""),"") ->  | AZ43: =IFERROR(VLOOKUP(AT43,Trava_Desconto!A19:U562,21,0),0) -> 0 | BA43: 0 | BB43: 0 | BE43: 0 | BG43: 0 | BH43: 0 | BI43: =VLOOKUP(AT43,BASE!AC:AM,11,0) -> 0 | BJ43: =IFERROR(VLOOKUP(AT43,Produtos_Linha!A:C,3,0),"") -> Profissional | BQ43: =IFERROR(VLOOKUP(AT43,'Tabela Preço Minimo'!$A$14:V580,22,0),"") ->  | BV43: =IFERROR(IF($BV$3<>200, IF($B$11=168,VLOOKUP(Pedido!AT43,Regra_Aplicação!$A$5:$D$99999,4,0), IF($B$11=715,VLOOKUP(Pedido!AT43,Regra_Aplicação!$A$5:$E$99999,5,0), IF($B$11=103,VLOOKUP(Pedido!AT43,Regra_Aplicação!$A$5:$F$99999,6,0), IF($B$11=713,VLOOKUP(Pedido!AT43,Regra_Aplicação!$A$5:$G$99999,7,0), IF($B$11=110,VLOOKUP(Pedido!AT43,Regra_Aplicação!$A$5:$H$99999,8,0), IF($B$11=211,VLOOKUP(Pedido!AT43,Regra_Aplicação!$A$5:$I$99999,9,0), IF($B$11=705,VLOOKUP(Pedido!AT43,Regra_Aplicação!$A$5:$J$99999,10,0), IF($B$11=121,VLOOKUP(Pedido!AT43,Regra_Aplicação!$A$5:$K$99999,11,0), IF($B$11=169,VLOOKUP(Pedido!AT43,Regra_Aplicação!$A$5:$L$99999,12,0),IF($B$11=717,VLOOKUP(Pedido!AT43,Regra_Aplicação!$A$5:$AN$99999,40,0), )))))))))),IF(OR($BV$5="RJ",$BV$5="MG",$BV$5="SP",$BV$5="RS",$BV$5="PR"), IF($B$11=168,VLOOKUP(Pedido!AT43,Regra_Aplicação!$A$5:$V$99999,22,0), IF($B$11=715,VLOOKUP(Pedido!AT43,Regra_Aplicação!$A$5:$W$99999,23,0), IF($B$11=103,VLOOKUP(Pedido!AT43,Regra_Aplicação!$A$5:$X$99999,24,0), IF($B$11=713,VLOOKUP(Pedido!AT43,Regra_Aplicação!$A$5:$Y$99999,25,0), IF($B$11=110,VLOOKUP(Pedido!AT43,Regra_Aplicação!$A$5:$Z$99999,26,0), IF($B$11=211,VLOOKUP(Pedido!AT43,Regra_Aplicação!$A$5:$AA$99999,27,0), IF($B$11=705,VLOOKUP(Pedido!AT43,Regra_Aplicação!$A$5:$AB$99999,28,0), IF($B$11=121,VLOOKUP(Pedido!AT43,Regra_Aplicação!$A$5:$AC$99999,29,0), IF($B$11=169,VLOOKUP(Pedido!AT43,Regra_Aplicação!$A$5:$AD$99999,30,0),))))))))), IF($BV$5="ES", IF($B$11=168,VLOOKUP(Pedido!AT43,Regra_Aplicação!$A$5:$AE$99999,31,0), IF($B$11=715,VLOOKUP(Pedido!AT43,Regra_Aplicação!$A$5:$AF$99999,32,0), IF($B$11=103,VLOOKUP(Pedido!AT43,Regra_Aplicação!$A$5:$AG$99999,33,0), IF($B$11=713,VLOOKUP(Pedido!AT43,Regra_Aplicação!$A$5:$AH$99999,34,0), IF($B$11=110,VLOOKUP(Pedido!AT43,Regra_Aplicação!$A$5:$AI$99999,35,0), IF($B$11=211,VLOOKUP(Pedido!AT43,Regra_Aplicação!$A$5:$AJ$99999,36,0), IF($B$11=705,VLOOKUP(Pedido!AT43,Regra_Aplicação!$A$5:$AK$99999,37,0), IF($B$11=121,VLOOKUP(Pedido!AT43,Regra_Aplicação!$A$5:$AL$99999,38,0), IF($B$11=169,VLOOKUP(Pedido!AT43,Regra_Aplicação!$A$5:$AM$99999,39,0),))))))))), IF($B$11=168,VLOOKUP(Pedido!AT43,Regra_Aplicação!$A$5:$M$99999,13,0), IF($B$11=715,VLOOKUP(Pedido!AT43,Regra_Aplicação!$A$5:$N$99999,14,0), IF($B$11=103,VLOOKUP(Pedido!AT43,Regra_Aplicação!$A$5:$O$99999,15,0), IF($B$11=713,VLOOKUP(Pedido!AT43,Regra_Aplicação!$A$5:$P$99999,16,0), IF($B$11=110,VLOOKUP(Pedido!AT43,Regra_Aplicação!$A$5:$Q$99999,17,0), IF($B$11=211,VLOOKUP(Pedido!AT43,Regra_Aplicação!$A$5:$R$99999,18,0), IF($B$11=705,VLOOKUP(Pedido!AT43,Regra_Aplicação!$A$5:$S$99999,19,0), IF($B$11=121,VLOOKUP(Pedido!AT43,Regra_Aplicação!$A$5:$T$99999,20,0), IF($B$11=169,VLOOKUP(Pedido!AT43,Regra_Aplicação!$A$5:$U$99999,21,0),)))))))))))),) -> 0
A44: =IFERROR(IF($B$15="TODOS",VLOOKUP($B$15,Catalogação!A21:B977,2,0),IF($B$15="ESPECIALIZADA",VLOOKUP($B$15,Catalogação!O21:P977,2,0),IF($B$15="DISTRIBUIDOR",VLOOKUP($B$15,Catalogação!X21:Y1017,2,0),IF($B$15="FARMA",VLOOKUP($B$15,Catalogação!AG21:AH998,2,0),IF($B$15="SUPERMERCADO",VLOOKUP($B$15,Catalogação!AP21:AQ1020,2,0),IF($B$15="COMBO ESP (P)",VLOOKUP($B$15,Catalogação!$AY20:AZ1018,2,0),IF($B$15="COMBO ESP (M)",VLOOKUP($B$15,Catalogação!BH20:BI1018,2,0),IF($B$15="COMBO DIST (M)",VLOOKUP($B$15,Catalogação!BQ20:BR1018,2,0),IF($B$15="BONIFICADO",VLOOKUP($B$15,Catalogação!BZ21:CA1018,2,0),IF($B$15="FDL",VLOOKUP($B$15,Catalogação!CI21:CJ1018,2,0))))))))))),) -> P02310 | B44: =IFERROR(IF($B$15="FDL",VLOOKUP(A44,Catalogação!$CJ$1:CO595,2,0),VLOOKUP(Pedido!A44,Catalogação!B:G,2,0)),"") -> Máscara 300g LANÇAMENTO!!! | G44: =IFERROR(IF($B$15="FDL",VLOOKUP(A44,Catalogação!$CJ$1:CP595,7,0),VLOOKUP(Pedido!A44,Catalogação!$B$1:H2959,7,0)),"") -> 7898746933361 | H44: =IFERROR(IF($B$15="FDL",VLOOKUP(A44,Catalogação!$CJ$1:CQ46,8,0),VLOOKUP(Pedido!A44,Catalogação!$B$1:I412,8,0)),"") -> FORCE ULTRA - PROBELLE | J44: =IFERROR(IF(AND($B$15="COMBO ESP (P)",$B$16="RJ"),VLOOKUP(A44,'Tabela Preço'!$Q$2:W1001,7,0),IF(AND(Pedido!$B$15="COMBO ESP (M)",Pedido!$B$16="RJ"),VLOOKUP(Pedido!A44,'Tabela Preço'!$Q$2:Y1001,8,0),IF(AND(Pedido!$B$15="COMBO ESP (P)",Pedido!$B$16="SP"),VLOOKUP(Pedido!A44,'Tabela Preço'!$Q$2:AB1001,11,0),IF(AND(Pedido!$B$15="COMBO ESP (M)",Pedido!$B$16="SP"),VLOOKUP(Pedido!A44,'Tabela Preço'!$Q$2:AC1001,12,0),IF(Pedido!$B$15="COMBO DIST (M)",VLOOKUP(Pedido!A44,'Tabela Preço'!$Q$2:Z1001,9,0),IF(Pedido!$B$15="COMBO DIST (G)",VLOOKUP(Pedido!A44,'Tabela Preço'!$Q$2:AA1001,10,0),IF($O$16=$P$16,VLOOKUP(A44,'Tabela Preço'!$A$3:E1001,2,0),IF(AND($B$15="COMBO ESP (P)",$B$16="RJ"),VLOOKUP(A44,'Tabela Preço'!$Q$2:W1001,7,0),IF(AND(Pedido!$B$15="COMBO ESP (M)",Pedido!$B$16="RJ"),VLOOKUP(Pedido!A44,'Tabela Preço'!$Q$2:Y1001,8,0),IF(AND(Pedido!$B$15="COMBO ESP (P)",Pedido!$B$16="MG"),VLOOKUP(Pedido!A44,'Tabela Preço'!$Q$2:AB1001,11,0),IF(AND(Pedido!$B$15="COMBO ESP (M)",Pedido!$B$16="MG"),VLOOKUP(Pedido!A44,'Tabela Preço'!$Q$2:AC1001,12,0),IF(Pedido!$B$15="COMBO DIST (M)",VLOOKUP(Pedido!A44,'Tabela Preço'!$Q$2:Z1001,9,0),IF(Pedido!$B$15="COMBO DIST (G)",VLOOKUP(Pedido!A44,'Tabela Preço'!Q21:AA1001,10,0),IF($O$16=$P$16,VLOOKUP(A44,'Tabela Preço'!$A$3:E1001,2,0),IF($O$16=$P$18,VLOOKUP(A44,'Tabela Preço'!$A$3:E1001,3,0),IF($O$16=$P$19,VLOOKUP(A44,'Tabela Preço'!$A$3:E3602,4,0),IF($O$16=$P$15,VLOOKUP(A44,'Tabela Preço'!$A$3:G3602,7,0),IF($O$16=$P$21,VLOOKUP(A44,'Tabela Preço'!A:K,11,0),IF($O$16=$P$20,VLOOKUP(A44,'Tabela Preço'!$A$3:E1001,5,0),IF($O$16=$P$22,VLOOKUP(A44,'Tabela Preço'!$A$3:F1001,6,0),"")))))))))))))))))))),) ->  | L44: 0 | M44: 0 | S44: 21.48876613 | AC44: =IF(AE44>0,AE44,IFERROR(VLOOKUP(A44,Trava_Desconto!A:B,2,0),"")) -> 1 | AD44: =IFERROR(VLOOKUP(A44,Dados!A:H,8,0),"") -> 12 | AG44: =IFERROR(VLOOKUP(A44,'Relação SB e BURG - Preço Maior'!A:A,1,0),"") ->  | AT44: P02310 | AU44: Máscara 300g LANÇAMENTO!!! | AV44: FORCE ULTRA - PROBELLE | AW44: 0 | AX44: =IFERROR(VLOOKUP(AT44,'Tabela Preço Minimo'!$A$14:H1017,8,0),"") -> 3.265741843 | AY44: =IFERROR(IF(AW44>0,VLOOKUP(AT44,'Tabela Preço Minimo'!$A$14:$AB$984,27,0),""),"") ->  | AZ44: =IFERROR(VLOOKUP(AT44,Trava_Desconto!A20:U563,21,0),0) -> 0.05 | BA44: 0 | BB44: 0 | BE44: 0 | BG44: 0 | BH44: 0 | BI44: =VLOOKUP(AT44,BASE!AC:AM,11,0) -> 0 | BJ44: =IFERROR(VLOOKUP(AT44,Produtos_Linha!A:C,3,0),"") -> Profissional | BQ44: =IFERROR(VLOOKUP(AT44,'Tabela Preço Minimo'!$A$14:V581,22,0),"") ->  | BV44: =IFERROR(IF($BV$3<>200, IF($B$11=168,VLOOKUP(Pedido!AT44,Regra_Aplicação!$A$5:$D$99999,4,0), IF($B$11=715,VLOOKUP(Pedido!AT44,Regra_Aplicação!$A$5:$E$99999,5,0), IF($B$11=103,VLOOKUP(Pedido!AT44,Regra_Aplicação!$A$5:$F$99999,6,0), IF($B$11=713,VLOOKUP(Pedido!AT44,Regra_Aplicação!$A$5:$G$99999,7,0), IF($B$11=110,VLOOKUP(Pedido!AT44,Regra_Aplicação!$A$5:$H$99999,8,0), IF($B$11=211,VLOOKUP(Pedido!AT44,Regra_Aplicação!$A$5:$I$99999,9,0), IF($B$11=705,VLOOKUP(Pedido!AT44,Regra_Aplicação!$A$5:$J$99999,10,0), IF($B$11=121,VLOOKUP(Pedido!AT44,Regra_Aplicação!$A$5:$K$99999,11,0), IF($B$11=169,VLOOKUP(Pedido!AT44,Regra_Aplicação!$A$5:$L$99999,12,0),IF($B$11=717,VLOOKUP(Pedido!AT44,Regra_Aplicação!$A$5:$AN$99999,40,0), )))))))))),IF(OR($BV$5="RJ",$BV$5="MG",$BV$5="SP",$BV$5="RS",$BV$5="PR"), IF($B$11=168,VLOOKUP(Pedido!AT44,Regra_Aplicação!$A$5:$V$99999,22,0), IF($B$11=715,VLOOKUP(Pedido!AT44,Regra_Aplicação!$A$5:$W$99999,23,0), IF($B$11=103,VLOOKUP(Pedido!AT44,Regra_Aplicação!$A$5:$X$99999,24,0), IF($B$11=713,VLOOKUP(Pedido!AT44,Regra_Aplicação!$A$5:$Y$99999,25,0), IF($B$11=110,VLOOKUP(Pedido!AT44,Regra_Aplicação!$A$5:$Z$99999,26,0), IF($B$11=211,VLOOKUP(Pedido!AT44,Regra_Aplicação!$A$5:$AA$99999,27,0), IF($B$11=705,VLOOKUP(Pedido!AT44,Regra_Aplicação!$A$5:$AB$99999,28,0), IF($B$11=121,VLOOKUP(Pedido!AT44,Regra_Aplicação!$A$5:$AC$99999,29,0), IF($B$11=169,VLOOKUP(Pedido!AT44,Regra_Aplicação!$A$5:$AD$99999,30,0),))))))))), IF($BV$5="ES", IF($B$11=168,VLOOKUP(Pedido!AT44,Regra_Aplicação!$A$5:$AE$99999,31,0), IF($B$11=715,VLOOKUP(Pedido!AT44,Regra_Aplicação!$A$5:$AF$99999,32,0), IF($B$11=103,VLOOKUP(Pedido!AT44,Regra_Aplicação!$A$5:$AG$99999,33,0), IF($B$11=713,VLOOKUP(Pedido!AT44,Regra_Aplicação!$A$5:$AH$99999,34,0), IF($B$11=110,VLOOKUP(Pedido!AT44,Regra_Aplicação!$A$5:$AI$99999,35,0), IF($B$11=211,VLOOKUP(Pedido!AT44,Regra_Aplicação!$A$5:$AJ$99999,36,0), IF($B$11=705,VLOOKUP(Pedido!AT44,Regra_Aplicação!$A$5:$AK$99999,37,0), IF($B$11=121,VLOOKUP(Pedido!AT44,Regra_Aplicação!$A$5:$AL$99999,38,0), IF($B$11=169,VLOOKUP(Pedido!AT44,Regra_Aplicação!$A$5:$AM$99999,39,0),))))))))), IF($B$11=168,VLOOKUP(Pedido!AT44,Regra_Aplicação!$A$5:$M$99999,13,0), IF($B$11=715,VLOOKUP(Pedido!AT44,Regra_Aplicação!$A$5:$N$99999,14,0), IF($B$11=103,VLOOKUP(Pedido!AT44,Regra_Aplicação!$A$5:$O$99999,15,0), IF($B$11=713,VLOOKUP(Pedido!AT44,Regra_Aplicação!$A$5:$P$99999,16,0), IF($B$11=110,VLOOKUP(Pedido!AT44,Regra_Aplicação!$A$5:$Q$99999,17,0), IF($B$11=211,VLOOKUP(Pedido!AT44,Regra_Aplicação!$A$5:$R$99999,18,0), IF($B$11=705,VLOOKUP(Pedido!AT44,Regra_Aplicação!$A$5:$S$99999,19,0), IF($B$11=121,VLOOKUP(Pedido!AT44,Regra_Aplicação!$A$5:$T$99999,20,0), IF($B$11=169,VLOOKUP(Pedido!AT44,Regra_Aplicação!$A$5:$U$99999,21,0),)))))))))))),) -> 0
A45: =IFERROR(IF($B$15="TODOS",VLOOKUP($B$15,Catalogação!A22:B978,2,0),IF($B$15="ESPECIALIZADA",VLOOKUP($B$15,Catalogação!O22:P978,2,0),IF($B$15="DISTRIBUIDOR",VLOOKUP($B$15,Catalogação!X22:Y1018,2,0),IF($B$15="FARMA",VLOOKUP($B$15,Catalogação!AG22:AH999,2,0),IF($B$15="SUPERMERCADO",VLOOKUP($B$15,Catalogação!AP22:AQ1021,2,0),IF($B$15="COMBO ESP (P)",VLOOKUP($B$15,Catalogação!$AY21:AZ1019,2,0),IF($B$15="COMBO ESP (M)",VLOOKUP($B$15,Catalogação!BH21:BI1019,2,0),IF($B$15="COMBO DIST (M)",VLOOKUP($B$15,Catalogação!BQ21:BR1019,2,0),IF($B$15="BONIFICADO",VLOOKUP($B$15,Catalogação!BZ22:CA1019,2,0),IF($B$15="FDL",VLOOKUP($B$15,Catalogação!CI22:CJ1019,2,0))))))))))),) -> P00044 | B45: =IFERROR(IF($B$15="FDL",VLOOKUP(A45,Catalogação!$CJ$1:CO596,2,0),VLOOKUP(Pedido!A45,Catalogação!B:G,2,0)),"") -> Nutritive Repair 120mL | G45: =IFERROR(IF($B$15="FDL",VLOOKUP(A45,Catalogação!$CJ$1:CP596,7,0),VLOOKUP(Pedido!A45,Catalogação!$B$1:H2960,7,0)),"") -> 7898617520225 | H45: =IFERROR(IF($B$15="FDL",VLOOKUP(A45,Catalogação!$CJ$1:CQ47,8,0),VLOOKUP(Pedido!A45,Catalogação!$B$1:I413,8,0)),"") -> FORCE ULTRA - PROBELLE | J45: =IFERROR(IF(AND($B$15="COMBO ESP (P)",$B$16="RJ"),VLOOKUP(A45,'Tabela Preço'!$Q$2:W1002,7,0),IF(AND(Pedido!$B$15="COMBO ESP (M)",Pedido!$B$16="RJ"),VLOOKUP(Pedido!A45,'Tabela Preço'!$Q$2:Y1002,8,0),IF(AND(Pedido!$B$15="COMBO ESP (P)",Pedido!$B$16="SP"),VLOOKUP(Pedido!A45,'Tabela Preço'!$Q$2:AB1002,11,0),IF(AND(Pedido!$B$15="COMBO ESP (M)",Pedido!$B$16="SP"),VLOOKUP(Pedido!A45,'Tabela Preço'!$Q$2:AC1002,12,0),IF(Pedido!$B$15="COMBO DIST (M)",VLOOKUP(Pedido!A45,'Tabela Preço'!$Q$2:Z1002,9,0),IF(Pedido!$B$15="COMBO DIST (G)",VLOOKUP(Pedido!A45,'Tabela Preço'!$Q$2:AA1002,10,0),IF($O$16=$P$16,VLOOKUP(A45,'Tabela Preço'!$A$3:E1002,2,0),IF(AND($B$15="COMBO ESP (P)",$B$16="RJ"),VLOOKUP(A45,'Tabela Preço'!$Q$2:W1002,7,0),IF(AND(Pedido!$B$15="COMBO ESP (M)",Pedido!$B$16="RJ"),VLOOKUP(Pedido!A45,'Tabela Preço'!$Q$2:Y1002,8,0),IF(AND(Pedido!$B$15="COMBO ESP (P)",Pedido!$B$16="MG"),VLOOKUP(Pedido!A45,'Tabela Preço'!$Q$2:AB1002,11,0),IF(AND(Pedido!$B$15="COMBO ESP (M)",Pedido!$B$16="MG"),VLOOKUP(Pedido!A45,'Tabela Preço'!$Q$2:AC1002,12,0),IF(Pedido!$B$15="COMBO DIST (M)",VLOOKUP(Pedido!A45,'Tabela Preço'!$Q$2:Z1002,9,0),IF(Pedido!$B$15="COMBO DIST (G)",VLOOKUP(Pedido!A45,'Tabela Preço'!Q22:AA1002,10,0),IF($O$16=$P$16,VLOOKUP(A45,'Tabela Preço'!$A$3:E1002,2,0),IF($O$16=$P$18,VLOOKUP(A45,'Tabela Preço'!$A$3:E1002,3,0),IF($O$16=$P$19,VLOOKUP(A45,'Tabela Preço'!$A$3:E3603,4,0),IF($O$16=$P$15,VLOOKUP(A45,'Tabela Preço'!$A$3:G3603,7,0),IF($O$16=$P$21,VLOOKUP(A45,'Tabela Preço'!A:K,11,0),IF($O$16=$P$20,VLOOKUP(A45,'Tabela Preço'!$A$3:E1002,5,0),IF($O$16=$P$22,VLOOKUP(A45,'Tabela Preço'!$A$3:F1002,6,0),"")))))))))))))))))))),) ->  | L45: 0 | M45: 0 | S45: 22.48876613 | AC45: =IF(AE45>0,AE45,IFERROR(VLOOKUP(A45,Trava_Desconto!A:B,2,0),"")) -> 1 | AD45: =IFERROR(VLOOKUP(A45,Dados!A:H,8,0),"") -> 12 | AG45: =IFERROR(VLOOKUP(A45,'Relação SB e BURG - Preço Maior'!A:A,1,0),"") ->  | AT45: P00044 | AU45: Nutritive Repair 120mL | AV45: FORCE ULTRA - PROBELLE | AW45: 0 | AX45: =IFERROR(VLOOKUP(AT45,'Tabela Preço Minimo'!$A$14:H1018,8,0),"") -> 5.137918515 | AY45: =IFERROR(IF(AW45>0,VLOOKUP(AT45,'Tabela Preço Minimo'!$A$14:$AB$984,27,0),""),"") ->  | AZ45: =IFERROR(VLOOKUP(AT45,Trava_Desconto!A21:U564,21,0),0) -> 0.1 | BA45: 0 | BB45: 0 | BE45: 0 | BG45: 0 | BH45: 0 | BI45: =VLOOKUP(AT45,BASE!AC:AM,11,0) -> 0 | BJ45: =IFERROR(VLOOKUP(AT45,Produtos_Linha!A:C,3,0),"") -> Profissional | BQ45: =IFERROR(VLOOKUP(AT45,'Tabela Preço Minimo'!$A$14:V582,22,0),"") -> 0 | BV45: =IFERROR(IF($BV$3<>200, IF($B$11=168,VLOOKUP(Pedido!AT45,Regra_Aplicação!$A$5:$D$99999,4,0), IF($B$11=715,VLOOKUP(Pedido!AT45,Regra_Aplicação!$A$5:$E$99999,5,0), IF($B$11=103,VLOOKUP(Pedido!AT45,Regra_Aplicação!$A$5:$F$99999,6,0), IF($B$11=713,VLOOKUP(Pedido!AT45,Regra_Aplicação!$A$5:$G$99999,7,0), IF($B$11=110,VLOOKUP(Pedido!AT45,Regra_Aplicação!$A$5:$H$99999,8,0), IF($B$11=211,VLOOKUP(Pedido!AT45,Regra_Aplicação!$A$5:$I$99999,9,0), IF($B$11=705,VLOOKUP(Pedido!AT45,Regra_Aplicação!$A$5:$J$99999,10,0), IF($B$11=121,VLOOKUP(Pedido!AT45,Regra_Aplicação!$A$5:$K$99999,11,0), IF($B$11=169,VLOOKUP(Pedido!AT45,Regra_Aplicação!$A$5:$L$99999,12,0),IF($B$11=717,VLOOKUP(Pedido!AT45,Regra_Aplicação!$A$5:$AN$99999,40,0), )))))))))),IF(OR($BV$5="RJ",$BV$5="MG",$BV$5="SP",$BV$5="RS",$BV$5="PR"), IF($B$11=168,VLOOKUP(Pedido!AT45,Regra_Aplicação!$A$5:$V$99999,22,0), IF($B$11=715,VLOOKUP(Pedido!AT45,Regra_Aplicação!$A$5:$W$99999,23,0), IF($B$11=103,VLOOKUP(Pedido!AT45,Regra_Aplicação!$A$5:$X$99999,24,0), IF($B$11=713,VLOOKUP(Pedido!AT45,Regra_Aplicação!$A$5:$Y$99999,25,0), IF($B$11=110,VLOOKUP(Pedido!AT45,Regra_Aplicação!$A$5:$Z$99999,26,0), IF($B$11=211,VLOOKUP(Pedido!AT45,Regra_Aplicação!$A$5:$AA$99999,27,0), IF($B$11=705,VLOOKUP(Pedido!AT45,Regra_Aplicação!$A$5:$AB$99999,28,0), IF($B$11=121,VLOOKUP(Pedido!AT45,Regra_Aplicação!$A$5:$AC$99999,29,0), IF($B$11=169,VLOOKUP(Pedido!AT45,Regra_Aplicação!$A$5:$AD$99999,30,0),))))))))), IF($BV$5="ES", IF($B$11=168,VLOOKUP(Pedido!AT45,Regra_Aplicação!$A$5:$AE$99999,31,0), IF($B$11=715,VLOOKUP(Pedido!AT45,Regra_Aplicação!$A$5:$AF$99999,32,0), IF($B$11=103,VLOOKUP(Pedido!AT45,Regra_Aplicação!$A$5:$AG$99999,33,0), IF($B$11=713,VLOOKUP(Pedido!AT45,Regra_Aplicação!$A$5:$AH$99999,34,0), IF($B$11=110,VLOOKUP(Pedido!AT45,Regra_Aplicação!$A$5:$AI$99999,35,0), IF($B$11=211,VLOOKUP(Pedido!AT45,Regra_Aplicação!$A$5:$AJ$99999,36,0), IF($B$11=705,VLOOKUP(Pedido!AT45,Regra_Aplicação!$A$5:$AK$99999,37,0), IF($B$11=121,VLOOKUP(Pedido!AT45,Regra_Aplicação!$A$5:$AL$99999,38,0), IF($B$11=169,VLOOKUP(Pedido!AT45,Regra_Aplicação!$A$5:$AM$99999,39,0),))))))))), IF($B$11=168,VLOOKUP(Pedido!AT45,Regra_Aplicação!$A$5:$M$99999,13,0), IF($B$11=715,VLOOKUP(Pedido!AT45,Regra_Aplicação!$A$5:$N$99999,14,0), IF($B$11=103,VLOOKUP(Pedido!AT45,Regra_Aplicação!$A$5:$O$99999,15,0), IF($B$11=713,VLOOKUP(Pedido!AT45,Regra_Aplicação!$A$5:$P$99999,16,0), IF($B$11=110,VLOOKUP(Pedido!AT45,Regra_Aplicação!$A$5:$Q$99999,17,0), IF($B$11=211,VLOOKUP(Pedido!AT45,Regra_Aplicação!$A$5:$R$99999,18,0), IF($B$11=705,VLOOKUP(Pedido!AT45,Regra_Aplicação!$A$5:$S$99999,19,0), IF($B$11=121,VLOOKUP(Pedido!AT45,Regra_Aplicação!$A$5:$T$99999,20,0), IF($B$11=169,VLOOKUP(Pedido!AT45,Regra_Aplicação!$A$5:$U$99999,21,0),)))))))))))),) -> 0
A46: =IFERROR(IF($B$15="TODOS",VLOOKUP($B$15,Catalogação!A23:B979,2,0),IF($B$15="ESPECIALIZADA",VLOOKUP($B$15,Catalogação!O23:P979,2,0),IF($B$15="DISTRIBUIDOR",VLOOKUP($B$15,Catalogação!X23:Y1019,2,0),IF($B$15="FARMA",VLOOKUP($B$15,Catalogação!AG23:AH1000,2,0),IF($B$15="SUPERMERCADO",VLOOKUP($B$15,Catalogação!AP23:AQ1022,2,0),IF($B$15="COMBO ESP (P)",VLOOKUP($B$15,Catalogação!$AY22:AZ1020,2,0),IF($B$15="COMBO ESP (M)",VLOOKUP($B$15,Catalogação!BH22:BI1020,2,0),IF($B$15="COMBO DIST (M)",VLOOKUP($B$15,Catalogação!BQ22:BR1020,2,0),IF($B$15="BONIFICADO",VLOOKUP($B$15,Catalogação!BZ23:CA1020,2,0),IF($B$15="FDL",VLOOKUP($B$15,Catalogação!CI23:CJ1020,2,0))))))))))),) -> P00008 | B46: =IFERROR(IF($B$15="FDL",VLOOKUP(A46,Catalogação!$CJ$1:CO597,2,0),VLOOKUP(Pedido!A46,Catalogação!B:G,2,0)),"") -> Fluido Relax Force Ultra 140mL | G46: =IFERROR(IF($B$15="FDL",VLOOKUP(A46,Catalogação!$CJ$1:CP597,7,0),VLOOKUP(Pedido!A46,Catalogação!$B$1:H2961,7,0)),"") -> 7898617520201 | H46: =IFERROR(IF($B$15="FDL",VLOOKUP(A46,Catalogação!$CJ$1:CQ48,8,0),VLOOKUP(Pedido!A46,Catalogação!$B$1:I414,8,0)),"") -> ÓLEOS PROFISSIONAIS - PROBELLE | J46: =IFERROR(IF(AND($B$15="COMBO ESP (P)",$B$16="RJ"),VLOOKUP(A46,'Tabela Preço'!$Q$2:W1003,7,0),IF(AND(Pedido!$B$15="COMBO ESP (M)",Pedido!$B$16="RJ"),VLOOKUP(Pedido!A46,'Tabela Preço'!$Q$2:Y1003,8,0),IF(AND(Pedido!$B$15="COMBO ESP (P)",Pedido!$B$16="SP"),VLOOKUP(Pedido!A46,'Tabela Preço'!$Q$2:AB1003,11,0),IF(AND(Pedido!$B$15="COMBO ESP (M)",Pedido!$B$16="SP"),VLOOKUP(Pedido!A46,'Tabela Preço'!$Q$2:AC1003,12,0),IF(Pedido!$B$15="COMBO DIST (M)",VLOOKUP(Pedido!A46,'Tabela Preço'!$Q$2:Z1003,9,0),IF(Pedido!$B$15="COMBO DIST (G)",VLOOKUP(Pedido!A46,'Tabela Preço'!$Q$2:AA1003,10,0),IF($O$16=$P$16,VLOOKUP(A46,'Tabela Preço'!$A$3:E1003,2,0),IF(AND($B$15="COMBO ESP (P)",$B$16="RJ"),VLOOKUP(A46,'Tabela Preço'!$Q$2:W1003,7,0),IF(AND(Pedido!$B$15="COMBO ESP (M)",Pedido!$B$16="RJ"),VLOOKUP(Pedido!A46,'Tabela Preço'!$Q$2:Y1003,8,0),IF(AND(Pedido!$B$15="COMBO ESP (P)",Pedido!$B$16="MG"),VLOOKUP(Pedido!A46,'Tabela Preço'!$Q$2:AB1003,11,0),IF(AND(Pedido!$B$15="COMBO ESP (M)",Pedido!$B$16="MG"),VLOOKUP(Pedido!A46,'Tabela Preço'!$Q$2:AC1003,12,0),IF(Pedido!$B$15="COMBO DIST (M)",VLOOKUP(Pedido!A46,'Tabela Preço'!$Q$2:Z1003,9,0),IF(Pedido!$B$15="COMBO DIST (G)",VLOOKUP(Pedido!A46,'Tabela Preço'!Q23:AA1003,10,0),IF($O$16=$P$16,VLOOKUP(A46,'Tabela Preço'!$A$3:E1003,2,0),IF($O$16=$P$18,VLOOKUP(A46,'Tabela Preço'!$A$3:E1003,3,0),IF($O$16=$P$19,VLOOKUP(A46,'Tabela Preço'!$A$3:E3604,4,0),IF($O$16=$P$15,VLOOKUP(A46,'Tabela Preço'!$A$3:G3604,7,0),IF($O$16=$P$21,VLOOKUP(A46,'Tabela Preço'!A:K,11,0),IF($O$16=$P$20,VLOOKUP(A46,'Tabela Preço'!$A$3:E1003,5,0),IF($O$16=$P$22,VLOOKUP(A46,'Tabela Preço'!$A$3:F1003,6,0),"")))))))))))))))))))),) ->  | L46: 0 | M46: 0 | S46: 23.48876613 | AC46: =IF(AE46>0,AE46,IFERROR(VLOOKUP(A46,Trava_Desconto!A:B,2,0),"")) -> 1 | AD46: =IFERROR(VLOOKUP(A46,Dados!A:H,8,0),"") -> 12 | AG46: =IFERROR(VLOOKUP(A46,'Relação SB e BURG - Preço Maior'!A:A,1,0),"") ->  | AT46: P00008 | AU46: Fluido Relax Force Ultra 140mL | AV46: ÓLEOS PROFISSIONAIS - PROBELLE | AW46: 0 | AX46: =IFERROR(VLOOKUP(AT46,'Tabela Preço Minimo'!$A$14:H1019,8,0),"") -> 8.111430645 | AY46: =IFERROR(IF(AW46>0,VLOOKUP(AT46,'Tabela Preço Minimo'!$A$14:$AB$984,27,0),""),"") ->  | AZ46: =IFERROR(VLOOKUP(AT46,Trava_Desconto!A22:U565,21,0),0) -> 0.1 | BA46: 0 | BB46: 0 | BE46: 0 | BG46: 0 | BH46: 0 | BI46: =VLOOKUP(AT46,BASE!AC:AM,11,0) -> 0 | BJ46: =IFERROR(VLOOKUP(AT46,Produtos_Linha!A:C,3,0),"") -> Profissional | BQ46: =IFERROR(VLOOKUP(AT46,'Tabela Preço Minimo'!$A$14:V582,22,0),"") -> 0 | BV46: =IFERROR(IF($BV$3<>200, IF($B$11=168,VLOOKUP(Pedido!AT46,Regra_Aplicação!$A$5:$D$99999,4,0), IF($B$11=715,VLOOKUP(Pedido!AT46,Regra_Aplicação!$A$5:$E$99999,5,0), IF($B$11=103,VLOOKUP(Pedido!AT46,Regra_Aplicação!$A$5:$F$99999,6,0), IF($B$11=713,VLOOKUP(Pedido!AT46,Regra_Aplicação!$A$5:$G$99999,7,0), IF($B$11=110,VLOOKUP(Pedido!AT46,Regra_Aplicação!$A$5:$H$99999,8,0), IF($B$11=211,VLOOKUP(Pedido!AT46,Regra_Aplicação!$A$5:$I$99999,9,0), IF($B$11=705,VLOOKUP(Pedido!AT46,Regra_Aplicação!$A$5:$J$99999,10,0), IF($B$11=121,VLOOKUP(Pedido!AT46,Regra_Aplicação!$A$5:$K$99999,11,0), IF($B$11=169,VLOOKUP(Pedido!AT46,Regra_Aplicação!$A$5:$L$99999,12,0),IF($B$11=717,VLOOKUP(Pedido!AT46,Regra_Aplicação!$A$5:$AN$99999,40,0), )))))))))),IF(OR($BV$5="RJ",$BV$5="MG",$BV$5="SP",$BV$5="RS",$BV$5="PR"), IF($B$11=168,VLOOKUP(Pedido!AT46,Regra_Aplicação!$A$5:$V$99999,22,0), IF($B$11=715,VLOOKUP(Pedido!AT46,Regra_Aplicação!$A$5:$W$99999,23,0), IF($B$11=103,VLOOKUP(Pedido!AT46,Regra_Aplicação!$A$5:$X$99999,24,0), IF($B$11=713,VLOOKUP(Pedido!AT46,Regra_Aplicação!$A$5:$Y$99999,25,0), IF($B$11=110,VLOOKUP(Pedido!AT46,Regra_Aplicação!$A$5:$Z$99999,26,0), IF($B$11=211,VLOOKUP(Pedido!AT46,Regra_Aplicação!$A$5:$AA$99999,27,0), IF($B$11=705,VLOOKUP(Pedido!AT46,Regra_Aplicação!$A$5:$AB$99999,28,0), IF($B$11=121,VLOOKUP(Pedido!AT46,Regra_Aplicação!$A$5:$AC$99999,29,0), IF($B$11=169,VLOOKUP(Pedido!AT46,Regra_Aplicação!$A$5:$AD$99999,30,0),))))))))), IF($BV$5="ES", IF($B$11=168,VLOOKUP(Pedido!AT46,Regra_Aplicação!$A$5:$AE$99999,31,0), IF($B$11=715,VLOOKUP(Pedido!AT46,Regra_Aplicação!$A$5:$AF$99999,32,0), IF($B$11=103,VLOOKUP(Pedido!AT46,Regra_Aplicação!$A$5:$AG$99999,33,0), IF($B$11=713,VLOOKUP(Pedido!AT46,Regra_Aplicação!$A$5:$AH$99999,34,0), IF($B$11=110,VLOOKUP(Pedido!AT46,Regra_Aplicação!$A$5:$AI$99999,35,0), IF($B$11=211,VLOOKUP(Pedido!AT46,Regra_Aplicação!$A$5:$AJ$99999,36,0), IF($B$11=705,VLOOKUP(Pedido!AT46,Regra_Aplicação!$A$5:$AK$99999,37,0), IF($B$11=121,VLOOKUP(Pedido!AT46,Regra_Aplicação!$A$5:$AL$99999,38,0), IF($B$11=169,VLOOKUP(Pedido!AT46,Regra_Aplicação!$A$5:$AM$99999,39,0),))))))))), IF($B$11=168,VLOOKUP(Pedido!AT46,Regra_Aplicação!$A$5:$M$99999,13,0), IF($B$11=715,VLOOKUP(Pedido!AT46,Regra_Aplicação!$A$5:$N$99999,14,0), IF($B$11=103,VLOOKUP(Pedido!AT46,Regra_Aplicação!$A$5:$O$99999,15,0), IF($B$11=713,VLOOKUP(Pedido!AT46,Regra_Aplicação!$A$5:$P$99999,16,0), IF($B$11=110,VLOOKUP(Pedido!AT46,Regra_Aplicação!$A$5:$Q$99999,17,0), IF($B$11=211,VLOOKUP(Pedido!AT46,Regra_Aplicação!$A$5:$R$99999,18,0), IF($B$11=705,VLOOKUP(Pedido!AT46,Regra_Aplicação!$A$5:$S$99999,19,0), IF($B$11=121,VLOOKUP(Pedido!AT46,Regra_Aplicação!$A$5:$T$99999,20,0), IF($B$11=169,VLOOKUP(Pedido!AT46,Regra_Aplicação!$A$5:$U$99999,21,0),)))))))))))),) -> 0
A47: =IFERROR(IF($B$15="TODOS",VLOOKUP($B$15,Catalogação!A24:B980,2,0),IF($B$15="ESPECIALIZADA",VLOOKUP($B$15,Catalogação!O24:P980,2,0),IF($B$15="DISTRIBUIDOR",VLOOKUP($B$15,Catalogação!X24:Y1020,2,0),IF($B$15="FARMA",VLOOKUP($B$15,Catalogação!AG24:AH1001,2,0),IF($B$15="SUPERMERCADO",VLOOKUP($B$15,Catalogação!AP24:AQ1023,2,0),IF($B$15="COMBO ESP (P)",VLOOKUP($B$15,Catalogação!$AY23:AZ1021,2,0),IF($B$15="COMBO ESP (M)",VLOOKUP($B$15,Catalogação!BH23:BI1021,2,0),IF($B$15="COMBO DIST (M)",VLOOKUP($B$15,Catalogação!BQ23:BR1021,2,0),IF($B$15="BONIFICADO",VLOOKUP($B$15,Catalogação!BZ24:CA1021,2,0),IF($B$15="FDL",VLOOKUP($B$15,Catalogação!CI24:CJ1021,2,0))))))))))),) -> P02253 | B47: =IFERROR(IF($B$15="FDL",VLOOKUP(A47,Catalogação!$CJ$1:CO598,2,0),VLOOKUP(Pedido!A47,Catalogação!B:G,2,0)),"") -> Shampoo 400mL LANÇAMENTO!!! | G47: =IFERROR(IF($B$15="FDL",VLOOKUP(A47,Catalogação!$CJ$1:CP598,7,0),VLOOKUP(Pedido!A47,Catalogação!$B$1:H2962,7,0)),"") -> 7898746931442 | H47: =IFERROR(IF($B$15="FDL",VLOOKUP(A47,Catalogação!$CJ$1:CQ49,8,0),VLOOKUP(Pedido!A47,Catalogação!$B$1:I415,8,0)),"") -> AGE ULTRA - PROBELLE | J47: =IFERROR(IF(AND($B$15="COMBO ESP (P)",$B$16="RJ"),VLOOKUP(A47,'Tabela Preço'!$Q$2:W1004,7,0),IF(AND(Pedido!$B$15="COMBO ESP (M)",Pedido!$B$16="RJ"),VLOOKUP(Pedido!A47,'Tabela Preço'!$Q$2:Y1004,8,0),IF(AND(Pedido!$B$15="COMBO ESP (P)",Pedido!$B$16="SP"),VLOOKUP(Pedido!A47,'Tabela Preço'!$Q$2:AB1004,11,0),IF(AND(Pedido!$B$15="COMBO ESP (M)",Pedido!$B$16="SP"),VLOOKUP(Pedido!A47,'Tabela Preço'!$Q$2:AC1004,12,0),IF(Pedido!$B$15="COMBO DIST (M)",VLOOKUP(Pedido!A47,'Tabela Preço'!$Q$2:Z1004,9,0),IF(Pedido!$B$15="COMBO DIST (G)",VLOOKUP(Pedido!A47,'Tabela Preço'!$Q$2:AA1004,10,0),IF($O$16=$P$16,VLOOKUP(A47,'Tabela Preço'!$A$3:E1004,2,0),IF(AND($B$15="COMBO ESP (P)",$B$16="RJ"),VLOOKUP(A47,'Tabela Preço'!$Q$2:W1004,7,0),IF(AND(Pedido!$B$15="COMBO ESP (M)",Pedido!$B$16="RJ"),VLOOKUP(Pedido!A47,'Tabela Preço'!$Q$2:Y1004,8,0),IF(AND(Pedido!$B$15="COMBO ESP (P)",Pedido!$B$16="MG"),VLOOKUP(Pedido!A47,'Tabela Preço'!$Q$2:AB1004,11,0),IF(AND(Pedido!$B$15="COMBO ESP (M)",Pedido!$B$16="MG"),VLOOKUP(Pedido!A47,'Tabela Preço'!$Q$2:AC1004,12,0),IF(Pedido!$B$15="COMBO DIST (M)",VLOOKUP(Pedido!A47,'Tabela Preço'!$Q$2:Z1004,9,0),IF(Pedido!$B$15="COMBO DIST (G)",VLOOKUP(Pedido!A47,'Tabela Preço'!Q24:AA1004,10,0),IF($O$16=$P$16,VLOOKUP(A47,'Tabela Preço'!$A$3:E1004,2,0),IF($O$16=$P$18,VLOOKUP(A47,'Tabela Preço'!$A$3:E1004,3,0),IF($O$16=$P$19,VLOOKUP(A47,'Tabela Preço'!$A$3:E3605,4,0),IF($O$16=$P$15,VLOOKUP(A47,'Tabela Preço'!$A$3:G3605,7,0),IF($O$16=$P$21,VLOOKUP(A47,'Tabela Preço'!A:K,11,0),IF($O$16=$P$20,VLOOKUP(A47,'Tabela Preço'!$A$3:E1004,5,0),IF($O$16=$P$22,VLOOKUP(A47,'Tabela Preço'!$A$3:F1004,6,0),"")))))))))))))))))))),) ->  | L47: 0 | M47: 0 | S47: 24.48876613 | AC47: =IF(AE47>0,AE47,IFERROR(VLOOKUP(A47,Trava_Desconto!A:B,2,0),"")) -> 1 | AD47: =IFERROR(VLOOKUP(A47,Dados!A:H,8,0),"") -> 12 | AG47: =IFERROR(VLOOKUP(A47,'Relação SB e BURG - Preço Maior'!A:A,1,0),"") ->  | AT47: P02253 | AU47: Shampoo 400mL LANÇAMENTO!!! | AV47: AGE ULTRA - PROBELLE | AW47: 0 | AX47: =IFERROR(VLOOKUP(AT47,'Tabela Preço Minimo'!$A$14:H1020,8,0),"") -> 3.099 | AY47: =IFERROR(IF(AW47>0,VLOOKUP(AT47,'Tabela Preço Minimo'!$A$14:$AB$984,27,0),""),"") ->  | AZ47: =IFERROR(VLOOKUP(AT47,Trava_Desconto!A23:U566,21,0),0) -> 0 | BA47: 0 | BB47: 0 | BE47: 0 | BG47: 0 | BH47: 0 | BI47: =VLOOKUP(AT47,BASE!AC:AM,11,0) -> 0 | BJ47: =IFERROR(VLOOKUP(AT47,Produtos_Linha!A:C,3,0),"") -> Profissional | BQ47: =IFERROR(VLOOKUP(AT47,'Tabela Preço Minimo'!$A$14:V583,22,0),"") ->  | BV47: =IFERROR(IF($BV$3<>200, IF($B$11=168,VLOOKUP(Pedido!AT47,Regra_Aplicação!$A$5:$D$99999,4,0), IF($B$11=715,VLOOKUP(Pedido!AT47,Regra_Aplicação!$A$5:$E$99999,5,0), IF($B$11=103,VLOOKUP(Pedido!AT47,Regra_Aplicação!$A$5:$F$99999,6,0), IF($B$11=713,VLOOKUP(Pedido!AT47,Regra_Aplicação!$A$5:$G$99999,7,0), IF($B$11=110,VLOOKUP(Pedido!AT47,Regra_Aplicação!$A$5:$H$99999,8,0), IF($B$11=211,VLOOKUP(Pedido!AT47,Regra_Aplicação!$A$5:$I$99999,9,0), IF($B$11=705,VLOOKUP(Pedido!AT47,Regra_Aplicação!$A$5:$J$99999,10,0), IF($B$11=121,VLOOKUP(Pedido!AT47,Regra_Aplicação!$A$5:$K$99999,11,0), IF($B$11=169,VLOOKUP(Pedido!AT47,Regra_Aplicação!$A$5:$L$99999,12,0),IF($B$11=717,VLOOKUP(Pedido!AT47,Regra_Aplicação!$A$5:$AN$99999,40,0), )))))))))),IF(OR($BV$5="RJ",$BV$5="MG",$BV$5="SP",$BV$5="RS",$BV$5="PR"), IF($B$11=168,VLOOKUP(Pedido!AT47,Regra_Aplicação!$A$5:$V$99999,22,0), IF($B$11=715,VLOOKUP(Pedido!AT47,Regra_Aplicação!$A$5:$W$99999,23,0), IF($B$11=103,VLOOKUP(Pedido!AT47,Regra_Aplicação!$A$5:$X$99999,24,0), IF($B$11=713,VLOOKUP(Pedido!AT47,Regra_Aplicação!$A$5:$Y$99999,25,0), IF($B$11=110,VLOOKUP(Pedido!AT47,Regra_Aplicação!$A$5:$Z$99999,26,0), IF($B$11=211,VLOOKUP(Pedido!AT47,Regra_Aplicação!$A$5:$AA$99999,27,0), IF($B$11=705,VLOOKUP(Pedido!AT47,Regra_Aplicação!$A$5:$AB$99999,28,0), IF($B$11=121,VLOOKUP(Pedido!AT47,Regra_Aplicação!$A$5:$AC$99999,29,0), IF($B$11=169,VLOOKUP(Pedido!AT47,Regra_Aplicação!$A$5:$AD$99999,30,0),))))))))), IF($BV$5="ES", IF($B$11=168,VLOOKUP(Pedido!AT47,Regra_Aplicação!$A$5:$AE$99999,31,0), IF($B$11=715,VLOOKUP(Pedido!AT47,Regra_Aplicação!$A$5:$AF$99999,32,0), IF($B$11=103,VLOOKUP(Pedido!AT47,Regra_Aplicação!$A$5:$AG$99999,33,0), IF($B$11=713,VLOOKUP(Pedido!AT47,Regra_Aplicação!$A$5:$AH$99999,34,0), IF($B$11=110,VLOOKUP(Pedido!AT47,Regra_Aplicação!$A$5:$AI$99999,35,0), IF($B$11=211,VLOOKUP(Pedido!AT47,Regra_Aplicação!$A$5:$AJ$99999,36,0), IF($B$11=705,VLOOKUP(Pedido!AT47,Regra_Aplicação!$A$5:$AK$99999,37,0), IF($B$11=121,VLOOKUP(Pedido!AT47,Regra_Aplicação!$A$5:$AL$99999,38,0), IF($B$11=169,VLOOKUP(Pedido!AT47,Regra_Aplicação!$A$5:$AM$99999,39,0),))))))))), IF($B$11=168,VLOOKUP(Pedido!AT47,Regra_Aplicação!$A$5:$M$99999,13,0), IF($B$11=715,VLOOKUP(Pedido!AT47,Regra_Aplicação!$A$5:$N$99999,14,0), IF($B$11=103,VLOOKUP(Pedido!AT47,Regra_Aplicação!$A$5:$O$99999,15,0), IF($B$11=713,VLOOKUP(Pedido!AT47,Regra_Aplicação!$A$5:$P$99999,16,0), IF($B$11=110,VLOOKUP(Pedido!AT47,Regra_Aplicação!$A$5:$Q$99999,17,0), IF($B$11=211,VLOOKUP(Pedido!AT47,Regra_Aplicação!$A$5:$R$99999,18,0), IF($B$11=705,VLOOKUP(Pedido!AT47,Regra_Aplicação!$A$5:$S$99999,19,0), IF($B$11=121,VLOOKUP(Pedido!AT47,Regra_Aplicação!$A$5:$T$99999,20,0), IF($B$11=169,VLOOKUP(Pedido!AT47,Regra_Aplicação!$A$5:$U$99999,21,0),)))))))))))),) -> 0
A48: =IFERROR(IF($B$15="TODOS",VLOOKUP($B$15,Catalogação!A25:B981,2,0),IF($B$15="ESPECIALIZADA",VLOOKUP($B$15,Catalogação!O25:P981,2,0),IF($B$15="DISTRIBUIDOR",VLOOKUP($B$15,Catalogação!X25:Y1021,2,0),IF($B$15="FARMA",VLOOKUP($B$15,Catalogação!AG25:AH1002,2,0),IF($B$15="SUPERMERCADO",VLOOKUP($B$15,Catalogação!AP25:AQ1024,2,0),IF($B$15="COMBO ESP (P)",VLOOKUP($B$15,Catalogação!$AY24:AZ1022,2,0),IF($B$15="COMBO ESP (M)",VLOOKUP($B$15,Catalogação!BH24:BI1022,2,0),IF($B$15="COMBO DIST (M)",VLOOKUP($B$15,Catalogação!BQ24:BR1022,2,0),IF($B$15="BONIFICADO",VLOOKUP($B$15,Catalogação!BZ25:CA1022,2,0),IF($B$15="FDL",VLOOKUP($B$15,Catalogação!CI25:CJ1022,2,0))))))))))),) -> P02254 | B48: =IFERROR(IF($B$15="FDL",VLOOKUP(A48,Catalogação!$CJ$1:CO599,2,0),VLOOKUP(Pedido!A48,Catalogação!B:G,2,0)),"") -> Condicionador 400mL LANÇAMENTO!!! | G48: =IFERROR(IF($B$15="FDL",VLOOKUP(A48,Catalogação!$CJ$1:CP599,7,0),VLOOKUP(Pedido!A48,Catalogação!$B$1:H2963,7,0)),"") -> 7898746931435 | H48: =IFERROR(IF($B$15="FDL",VLOOKUP(A48,Catalogação!$CJ$1:CQ50,8,0),VLOOKUP(Pedido!A48,Catalogação!$B$1:I416,8,0)),"") -> AGE ULTRA - PROBELLE | J48: =IFERROR(IF(AND($B$15="COMBO ESP (P)",$B$16="RJ"),VLOOKUP(A48,'Tabela Preço'!$Q$2:W1005,7,0),IF(AND(Pedido!$B$15="COMBO ESP (M)",Pedido!$B$16="RJ"),VLOOKUP(Pedido!A48,'Tabela Preço'!$Q$2:Y1005,8,0),IF(AND(Pedido!$B$15="COMBO ESP (P)",Pedido!$B$16="SP"),VLOOKUP(Pedido!A48,'Tabela Preço'!$Q$2:AB1005,11,0),IF(AND(Pedido!$B$15="COMBO ESP (M)",Pedido!$B$16="SP"),VLOOKUP(Pedido!A48,'Tabela Preço'!$Q$2:AC1005,12,0),IF(Pedido!$B$15="COMBO DIST (M)",VLOOKUP(Pedido!A48,'Tabela Preço'!$Q$2:Z1005,9,0),IF(Pedido!$B$15="COMBO DIST (G)",VLOOKUP(Pedido!A48,'Tabela Preço'!$Q$2:AA1005,10,0),IF($O$16=$P$16,VLOOKUP(A48,'Tabela Preço'!$A$3:E1005,2,0),IF(AND($B$15="COMBO ESP (P)",$B$16="RJ"),VLOOKUP(A48,'Tabela Preço'!$Q$2:W1005,7,0),IF(AND(Pedido!$B$15="COMBO ESP (M)",Pedido!$B$16="RJ"),VLOOKUP(Pedido!A48,'Tabela Preço'!$Q$2:Y1005,8,0),IF(AND(Pedido!$B$15="COMBO ESP (P)",Pedido!$B$16="MG"),VLOOKUP(Pedido!A48,'Tabela Preço'!$Q$2:AB1005,11,0),IF(AND(Pedido!$B$15="COMBO ESP (M)",Pedido!$B$16="MG"),VLOOKUP(Pedido!A48,'Tabela Preço'!$Q$2:AC1005,12,0),IF(Pedido!$B$15="COMBO DIST (M)",VLOOKUP(Pedido!A48,'Tabela Preço'!$Q$2:Z1005,9,0),IF(Pedido!$B$15="COMBO DIST (G)",VLOOKUP(Pedido!A48,'Tabela Preço'!Q25:AA1005,10,0),IF($O$16=$P$16,VLOOKUP(A48,'Tabela Preço'!$A$3:E1005,2,0),IF($O$16=$P$18,VLOOKUP(A48,'Tabela Preço'!$A$3:E1005,3,0),IF($O$16=$P$19,VLOOKUP(A48,'Tabela Preço'!$A$3:E3606,4,0),IF($O$16=$P$15,VLOOKUP(A48,'Tabela Preço'!$A$3:G3606,7,0),IF($O$16=$P$21,VLOOKUP(A48,'Tabela Preço'!A:K,11,0),IF($O$16=$P$20,VLOOKUP(A48,'Tabela Preço'!$A$3:E1005,5,0),IF($O$16=$P$22,VLOOKUP(A48,'Tabela Preço'!$A$3:F1005,6,0),"")))))))))))))))))))),) ->  | L48: 0 | M48: 0 | S48: 25.48876613 | AC48: =IF(AE48>0,AE48,IFERROR(VLOOKUP(A48,Trava_Desconto!A:B,2,0),"")) -> 1 | AD48: =IFERROR(VLOOKUP(A48,Dados!A:H,8,0),"") -> 12 | AG48: =IFERROR(VLOOKUP(A48,'Relação SB e BURG - Preço Maior'!A:A,1,0),"") ->  | AT48: P02254 | AU48: Condicionador 400mL LANÇAMENTO!!! | AV48: AGE ULTRA - PROBELLE | AW48: 0 | AX48: =IFERROR(VLOOKUP(AT48,'Tabela Preço Minimo'!$A$14:H1021,8,0),"") -> 3.216 | AY48: =IFERROR(IF(AW48>0,VLOOKUP(AT48,'Tabela Preço Minimo'!$A$14:$AB$984,27,0),""),"") ->  | AZ48: =IFERROR(VLOOKUP(AT48,Trava_Desconto!A24:U567,21,0),0) -> 0 | BA48: 0 | BB48: 0 | BE48: 0 | BG48: 0 | BH48: 0 | BI48: =VLOOKUP(AT48,BASE!AC:AM,11,0) -> 0 | BJ48: =IFERROR(VLOOKUP(AT48,Produtos_Linha!A:C,3,0),"") -> Profissional | BQ48: =IFERROR(VLOOKUP(AT48,'Tabela Preço Minimo'!$A$14:V584,22,0),"") ->  | BV48: =IFERROR(IF($BV$3<>200, IF($B$11=168,VLOOKUP(Pedido!AT48,Regra_Aplicação!$A$5:$D$99999,4,0), IF($B$11=715,VLOOKUP(Pedido!AT48,Regra_Aplicação!$A$5:$E$99999,5,0), IF($B$11=103,VLOOKUP(Pedido!AT48,Regra_Aplicação!$A$5:$F$99999,6,0), IF($B$11=713,VLOOKUP(Pedido!AT48,Regra_Aplicação!$A$5:$G$99999,7,0), IF($B$11=110,VLOOKUP(Pedido!AT48,Regra_Aplicação!$A$5:$H$99999,8,0), IF($B$11=211,VLOOKUP(Pedido!AT48,Regra_Aplicação!$A$5:$I$99999,9,0), IF($B$11=705,VLOOKUP(Pedido!AT48,Regra_Aplicação!$A$5:$J$99999,10,0), IF($B$11=121,VLOOKUP(Pedido!AT48,Regra_Aplicação!$A$5:$K$99999,11,0), IF($B$11=169,VLOOKUP(Pedido!AT48,Regra_Aplicação!$A$5:$L$99999,12,0),IF($B$11=717,VLOOKUP(Pedido!AT48,Regra_Aplicação!$A$5:$AN$99999,40,0), )))))))))),IF(OR($BV$5="RJ",$BV$5="MG",$BV$5="SP",$BV$5="RS",$BV$5="PR"), IF($B$11=168,VLOOKUP(Pedido!AT48,Regra_Aplicação!$A$5:$V$99999,22,0), IF($B$11=715,VLOOKUP(Pedido!AT48,Regra_Aplicação!$A$5:$W$99999,23,0), IF($B$11=103,VLOOKUP(Pedido!AT48,Regra_Aplicação!$A$5:$X$99999,24,0), IF($B$11=713,VLOOKUP(Pedido!AT48,Regra_Aplicação!$A$5:$Y$99999,25,0), IF($B$11=110,VLOOKUP(Pedido!AT48,Regra_Aplicação!$A$5:$Z$99999,26,0), IF($B$11=211,VLOOKUP(Pedido!AT48,Regra_Aplicação!$A$5:$AA$99999,27,0), IF($B$11=705,VLOOKUP(Pedido!AT48,Regra_Aplicação!$A$5:$AB$99999,28,0), IF($B$11=121,VLOOKUP(Pedido!AT48,Regra_Aplicação!$A$5:$AC$99999,29,0), IF($B$11=169,VLOOKUP(Pedido!AT48,Regra_Aplicação!$A$5:$AD$99999,30,0),))))))))), IF($BV$5="ES", IF($B$11=168,VLOOKUP(Pedido!AT48,Regra_Aplicação!$A$5:$AE$99999,31,0), IF($B$11=715,VLOOKUP(Pedido!AT48,Regra_Aplicação!$A$5:$AF$99999,32,0), IF($B$11=103,VLOOKUP(Pedido!AT48,Regra_Aplicação!$A$5:$AG$99999,33,0), IF($B$11=713,VLOOKUP(Pedido!AT48,Regra_Aplicação!$A$5:$AH$99999,34,0), IF($B$11=110,VLOOKUP(Pedido!AT48,Regra_Aplicação!$A$5:$AI$99999,35,0), IF($B$11=211,VLOOKUP(Pedido!AT48,Regra_Aplicação!$A$5:$AJ$99999,36,0), IF($B$11=705,VLOOKUP(Pedido!AT48,Regra_Aplicação!$A$5:$AK$99999,37,0), IF($B$11=121,VLOOKUP(Pedido!AT48,Regra_Aplicação!$A$5:$AL$99999,38,0), IF($B$11=169,VLOOKUP(Pedido!AT48,Regra_Aplicação!$A$5:$AM$99999,39,0),))))))))), IF($B$11=168,VLOOKUP(Pedido!AT48,Regra_Aplicação!$A$5:$M$99999,13,0), IF($B$11=715,VLOOKUP(Pedido!AT48,Regra_Aplicação!$A$5:$N$99999,14,0), IF($B$11=103,VLOOKUP(Pedido!AT48,Regra_Aplicação!$A$5:$O$99999,15,0), IF($B$11=713,VLOOKUP(Pedido!AT48,Regra_Aplicação!$A$5:$P$99999,16,0), IF($B$11=110,VLOOKUP(Pedido!AT48,Regra_Aplicação!$A$5:$Q$99999,17,0), IF($B$11=211,VLOOKUP(Pedido!AT48,Regra_Aplicação!$A$5:$R$99999,18,0), IF($B$11=705,VLOOKUP(Pedido!AT48,Regra_Aplicação!$A$5:$S$99999,19,0), IF($B$11=121,VLOOKUP(Pedido!AT48,Regra_Aplicação!$A$5:$T$99999,20,0), IF($B$11=169,VLOOKUP(Pedido!AT48,Regra_Aplicação!$A$5:$U$99999,21,0),)))))))))))),) -> 0
A49: =IFERROR(IF($B$15="TODOS",VLOOKUP($B$15,Catalogação!A26:B982,2,0),IF($B$15="ESPECIALIZADA",VLOOKUP($B$15,Catalogação!O26:P982,2,0),IF($B$15="DISTRIBUIDOR",VLOOKUP($B$15,Catalogação!X26:Y1022,2,0),IF($B$15="FARMA",VLOOKUP($B$15,Catalogação!AG26:AH1003,2,0),IF($B$15="SUPERMERCADO",VLOOKUP($B$15,Catalogação!AP26:AQ1025,2,0),IF($B$15="COMBO ESP (P)",VLOOKUP($B$15,Catalogação!$AY25:AZ1023,2,0),IF($B$15="COMBO ESP (M)",VLOOKUP($B$15,Catalogação!BH25:BI1023,2,0),IF($B$15="COMBO DIST (M)",VLOOKUP($B$15,Catalogação!BQ25:BR1023,2,0),IF($B$15="BONIFICADO",VLOOKUP($B$15,Catalogação!BZ26:CA1023,2,0),IF($B$15="FDL",VLOOKUP($B$15,Catalogação!CI26:CJ1023,2,0))))))))))),) -> P02311 | B49: =IFERROR(IF($B$15="FDL",VLOOKUP(A49,Catalogação!$CJ$1:CO600,2,0),VLOOKUP(Pedido!A49,Catalogação!B:G,2,0)),"") -> Máscara 300g LANÇAMENTO!!! | G49: =IFERROR(IF($B$15="FDL",VLOOKUP(A49,Catalogação!$CJ$1:CP600,7,0),VLOOKUP(Pedido!A49,Catalogação!$B$1:H2964,7,0)),"") -> 7898746933354 | H49: =IFERROR(IF($B$15="FDL",VLOOKUP(A49,Catalogação!$CJ$1:CQ51,8,0),VLOOKUP(Pedido!A49,Catalogação!$B$1:I417,8,0)),"") -> AGE ULTRA - PROBELLE | J49: =IFERROR(IF(AND($B$15="COMBO ESP (P)",$B$16="RJ"),VLOOKUP(A49,'Tabela Preço'!$Q$2:W1006,7,0),IF(AND(Pedido!$B$15="COMBO ESP (M)",Pedido!$B$16="RJ"),VLOOKUP(Pedido!A49,'Tabela Preço'!$Q$2:Y1006,8,0),IF(AND(Pedido!$B$15="COMBO ESP (P)",Pedido!$B$16="SP"),VLOOKUP(Pedido!A49,'Tabela Preço'!$Q$2:AB1006,11,0),IF(AND(Pedido!$B$15="COMBO ESP (M)",Pedido!$B$16="SP"),VLOOKUP(Pedido!A49,'Tabela Preço'!$Q$2:AC1006,12,0),IF(Pedido!$B$15="COMBO DIST (M)",VLOOKUP(Pedido!A49,'Tabela Preço'!$Q$2:Z1006,9,0),IF(Pedido!$B$15="COMBO DIST (G)",VLOOKUP(Pedido!A49,'Tabela Preço'!$Q$2:AA1006,10,0),IF($O$16=$P$16,VLOOKUP(A49,'Tabela Preço'!$A$3:E1006,2,0),IF(AND($B$15="COMBO ESP (P)",$B$16="RJ"),VLOOKUP(A49,'Tabela Preço'!$Q$2:W1006,7,0),IF(AND(Pedido!$B$15="COMBO ESP (M)",Pedido!$B$16="RJ"),VLOOKUP(Pedido!A49,'Tabela Preço'!$Q$2:Y1006,8,0),IF(AND(Pedido!$B$15="COMBO ESP (P)",Pedido!$B$16="MG"),VLOOKUP(Pedido!A49,'Tabela Preço'!$Q$2:AB1006,11,0),IF(AND(Pedido!$B$15="COMBO ESP (M)",Pedido!$B$16="MG"),VLOOKUP(Pedido!A49,'Tabela Preço'!$Q$2:AC1006,12,0),IF(Pedido!$B$15="COMBO DIST (M)",VLOOKUP(Pedido!A49,'Tabela Preço'!$Q$2:Z1006,9,0),IF(Pedido!$B$15="COMBO DIST (G)",VLOOKUP(Pedido!A49,'Tabela Preço'!Q26:AA1006,10,0),IF($O$16=$P$16,VLOOKUP(A49,'Tabela Preço'!$A$3:E1006,2,0),IF($O$16=$P$18,VLOOKUP(A49,'Tabela Preço'!$A$3:E1006,3,0),IF($O$16=$P$19,VLOOKUP(A49,'Tabela Preço'!$A$3:E3607,4,0),IF($O$16=$P$15,VLOOKUP(A49,'Tabela Preço'!$A$3:G3607,7,0),IF($O$16=$P$21,VLOOKUP(A49,'Tabela Preço'!A:K,11,0),IF($O$16=$P$20,VLOOKUP(A49,'Tabela Preço'!$A$3:E1006,5,0),IF($O$16=$P$22,VLOOKUP(A49,'Tabela Preço'!$A$3:F1006,6,0),"")))))))))))))))))))),) ->  | L49: 0 | M49: 0 | S49: 26.48876613 | AC49: =IF(AE49>0,AE49,IFERROR(VLOOKUP(A49,Trava_Desconto!A:B,2,0),"")) -> 1 | AD49: =IFERROR(VLOOKUP(A49,Dados!A:H,8,0),"") -> 12 | AG49: =IFERROR(VLOOKUP(A49,'Relação SB e BURG - Preço Maior'!A:A,1,0),"") ->  | AT49: P02311 | AU49: Máscara 300g LANÇAMENTO!!! | AV49: AGE ULTRA - PROBELLE | AW49: 0 | AX49: =IFERROR(VLOOKUP(AT49,'Tabela Preço Minimo'!$A$14:H1022,8,0),"") -> 3.265741843 | AY49: =IFERROR(IF(AW49>0,VLOOKUP(AT49,'Tabela Preço Minimo'!$A$14:$AB$984,27,0),""),"") ->  | AZ49: =IFERROR(VLOOKUP(AT49,Trava_Desconto!A25:U568,21,0),0) -> 0.05 | BA49: 0 | BB49: 0 | BE49: 0 | BG49: 0 | BH49: 0 | BI49: =VLOOKUP(AT49,BASE!AC:AM,11,0) -> 0 | BJ49: =IFERROR(VLOOKUP(AT49,Produtos_Linha!A:C,3,0),"") -> Profissional | BQ49: =IFERROR(VLOOKUP(AT49,'Tabela Preço Minimo'!$A$14:V585,22,0),"") ->  | BV49: =IFERROR(IF($BV$3<>200, IF($B$11=168,VLOOKUP(Pedido!AT49,Regra_Aplicação!$A$5:$D$99999,4,0), IF($B$11=715,VLOOKUP(Pedido!AT49,Regra_Aplicação!$A$5:$E$99999,5,0), IF($B$11=103,VLOOKUP(Pedido!AT49,Regra_Aplicação!$A$5:$F$99999,6,0), IF($B$11=713,VLOOKUP(Pedido!AT49,Regra_Aplicação!$A$5:$G$99999,7,0), IF($B$11=110,VLOOKUP(Pedido!AT49,Regra_Aplicação!$A$5:$H$99999,8,0), IF($B$11=211,VLOOKUP(Pedido!AT49,Regra_Aplicação!$A$5:$I$99999,9,0), IF($B$11=705,VLOOKUP(Pedido!AT49,Regra_Aplicação!$A$5:$J$99999,10,0), IF($B$11=121,VLOOKUP(Pedido!AT49,Regra_Aplicação!$A$5:$K$99999,11,0), IF($B$11=169,VLOOKUP(Pedido!AT49,Regra_Aplicação!$A$5:$L$99999,12,0),IF($B$11=717,VLOOKUP(Pedido!AT49,Regra_Aplicação!$A$5:$AN$99999,40,0), )))))))))),IF(OR($BV$5="RJ",$BV$5="MG",$BV$5="SP",$BV$5="RS",$BV$5="PR"), IF($B$11=168,VLOOKUP(Pedido!AT49,Regra_Aplicação!$A$5:$V$99999,22,0), IF($B$11=715,VLOOKUP(Pedido!AT49,Regra_Aplicação!$A$5:$W$99999,23,0), IF($B$11=103,VLOOKUP(Pedido!AT49,Regra_Aplicação!$A$5:$X$99999,24,0), IF($B$11=713,VLOOKUP(Pedido!AT49,Regra_Aplicação!$A$5:$Y$99999,25,0), IF($B$11=110,VLOOKUP(Pedido!AT49,Regra_Aplicação!$A$5:$Z$99999,26,0), IF($B$11=211,VLOOKUP(Pedido!AT49,Regra_Aplicação!$A$5:$AA$99999,27,0), IF($B$11=705,VLOOKUP(Pedido!AT49,Regra_Aplicação!$A$5:$AB$99999,28,0), IF($B$11=121,VLOOKUP(Pedido!AT49,Regra_Aplicação!$A$5:$AC$99999,29,0), IF($B$11=169,VLOOKUP(Pedido!AT49,Regra_Aplicação!$A$5:$AD$99999,30,0),))))))))), IF($BV$5="ES", IF($B$11=168,VLOOKUP(Pedido!AT49,Regra_Aplicação!$A$5:$AE$99999,31,0), IF($B$11=715,VLOOKUP(Pedido!AT49,Regra_Aplicação!$A$5:$AF$99999,32,0), IF($B$11=103,VLOOKUP(Pedido!AT49,Regra_Aplicação!$A$5:$AG$99999,33,0), IF($B$11=713,VLOOKUP(Pedido!AT49,Regra_Aplicação!$A$5:$AH$99999,34,0), IF($B$11=110,VLOOKUP(Pedido!AT49,Regra_Aplicação!$A$5:$AI$99999,35,0), IF($B$11=211,VLOOKUP(Pedido!AT49,Regra_Aplicação!$A$5:$AJ$99999,36,0), IF($B$11=705,VLOOKUP(Pedido!AT49,Regra_Aplicação!$A$5:$AK$99999,37,0), IF($B$11=121,VLOOKUP(Pedido!AT49,Regra_Aplicação!$A$5:$AL$99999,38,0), IF($B$11=169,VLOOKUP(Pedido!AT49,Regra_Aplicação!$A$5:$AM$99999,39,0),))))))))), IF($B$11=168,VLOOKUP(Pedido!AT49,Regra_Aplicação!$A$5:$M$99999,13,0), IF($B$11=715,VLOOKUP(Pedido!AT49,Regra_Aplicação!$A$5:$N$99999,14,0), IF($B$11=103,VLOOKUP(Pedido!AT49,Regra_Aplicação!$A$5:$O$99999,15,0), IF($B$11=713,VLOOKUP(Pedido!AT49,Regra_Aplicação!$A$5:$P$99999,16,0), IF($B$11=110,VLOOKUP(Pedido!AT49,Regra_Aplicação!$A$5:$Q$99999,17,0), IF($B$11=211,VLOOKUP(Pedido!AT49,Regra_Aplicação!$A$5:$R$99999,18,0), IF($B$11=705,VLOOKUP(Pedido!AT49,Regra_Aplicação!$A$5:$S$99999,19,0), IF($B$11=121,VLOOKUP(Pedido!AT49,Regra_Aplicação!$A$5:$T$99999,20,0), IF($B$11=169,VLOOKUP(Pedido!AT49,Regra_Aplicação!$A$5:$U$99999,21,0),)))))))))))),) -> 0
A50: =IFERROR(IF($B$15="TODOS",VLOOKUP($B$15,Catalogação!A27:B983,2,0),IF($B$15="ESPECIALIZADA",VLOOKUP($B$15,Catalogação!O27:P983,2,0),IF($B$15="DISTRIBUIDOR",VLOOKUP($B$15,Catalogação!X27:Y1023,2,0),IF($B$15="FARMA",VLOOKUP($B$15,Catalogação!AG27:AH1004,2,0),IF($B$15="SUPERMERCADO",VLOOKUP($B$15,Catalogação!AP27:AQ1026,2,0),IF($B$15="COMBO ESP (P)",VLOOKUP($B$15,Catalogação!$AY26:AZ1024,2,0),IF($B$15="COMBO ESP (M)",VLOOKUP($B$15,Catalogação!BH26:BI1024,2,0),IF($B$15="COMBO DIST (M)",VLOOKUP($B$15,Catalogação!BQ26:BR1024,2,0),IF($B$15="BONIFICADO",VLOOKUP($B$15,Catalogação!BZ27:CA1024,2,0),IF($B$15="FDL",VLOOKUP($B$15,Catalogação!CI27:CJ1024,2,0))))))))))),) -> P01077 | B50: =IFERROR(IF($B$15="FDL",VLOOKUP(A50,Catalogação!$CJ$1:CO601,2,0),VLOOKUP(Pedido!A50,Catalogação!B:G,2,0)),"") -> Condiocionador 250mL | G50: =IFERROR(IF($B$15="FDL",VLOOKUP(A50,Catalogação!$CJ$1:CP601,7,0),VLOOKUP(Pedido!A50,Catalogação!$B$1:H2965,7,0)),"") -> 7898617525534 | H50: =IFERROR(IF($B$15="FDL",VLOOKUP(A50,Catalogação!$CJ$1:CQ52,8,0),VLOOKUP(Pedido!A50,Catalogação!$B$1:I418,8,0)),"") -> AGE ULTRA PURO COLÁGENO - PROBELLE | J50: =IFERROR(IF(AND($B$15="COMBO ESP (P)",$B$16="RJ"),VLOOKUP(A50,'Tabela Preço'!$Q$2:W1007,7,0),IF(AND(Pedido!$B$15="COMBO ESP (M)",Pedido!$B$16="RJ"),VLOOKUP(Pedido!A50,'Tabela Preço'!$Q$2:Y1007,8,0),IF(AND(Pedido!$B$15="COMBO ESP (P)",Pedido!$B$16="SP"),VLOOKUP(Pedido!A50,'Tabela Preço'!$Q$2:AB1007,11,0),IF(AND(Pedido!$B$15="COMBO ESP (M)",Pedido!$B$16="SP"),VLOOKUP(Pedido!A50,'Tabela Preço'!$Q$2:AC1007,12,0),IF(Pedido!$B$15="COMBO DIST (M)",VLOOKUP(Pedido!A50,'Tabela Preço'!$Q$2:Z1007,9,0),IF(Pedido!$B$15="COMBO DIST (G)",VLOOKUP(Pedido!A50,'Tabela Preço'!$Q$2:AA1007,10,0),IF($O$16=$P$16,VLOOKUP(A50,'Tabela Preço'!$A$3:E1007,2,0),IF(AND($B$15="COMBO ESP (P)",$B$16="RJ"),VLOOKUP(A50,'Tabela Preço'!$Q$2:W1007,7,0),IF(AND(Pedido!$B$15="COMBO ESP (M)",Pedido!$B$16="RJ"),VLOOKUP(Pedido!A50,'Tabela Preço'!$Q$2:Y1007,8,0),IF(AND(Pedido!$B$15="COMBO ESP (P)",Pedido!$B$16="MG"),VLOOKUP(Pedido!A50,'Tabela Preço'!$Q$2:AB1007,11,0),IF(AND(Pedido!$B$15="COMBO ESP (M)",Pedido!$B$16="MG"),VLOOKUP(Pedido!A50,'Tabela Preço'!$Q$2:AC1007,12,0),IF(Pedido!$B$15="COMBO DIST (M)",VLOOKUP(Pedido!A50,'Tabela Preço'!$Q$2:Z1007,9,0),IF(Pedido!$B$15="COMBO DIST (G)",VLOOKUP(Pedido!A50,'Tabela Preço'!Q27:AA1007,10,0),IF($O$16=$P$16,VLOOKUP(A50,'Tabela Preço'!$A$3:E1007,2,0),IF($O$16=$P$18,VLOOKUP(A50,'Tabela Preço'!$A$3:E1007,3,0),IF($O$16=$P$19,VLOOKUP(A50,'Tabela Preço'!$A$3:E3608,4,0),IF($O$16=$P$15,VLOOKUP(A50,'Tabela Preço'!$A$3:G3608,7,0),IF($O$16=$P$21,VLOOKUP(A50,'Tabela Preço'!A:K,11,0),IF($O$16=$P$20,VLOOKUP(A50,'Tabela Preço'!$A$3:E1007,5,0),IF($O$16=$P$22,VLOOKUP(A50,'Tabela Preço'!$A$3:F1007,6,0),"")))))))))))))))))))),) ->  | L50: 0 | M50: 0 | S50: 27.48876613 | AC50: =IF(AE50>0,AE50,IFERROR(VLOOKUP(A50,Trava_Desconto!A:B,2,0),"")) -> 1 | AD50: =IFERROR(VLOOKUP(A50,Dados!A:H,8,0),"") -> 12 | AG50: =IFERROR(VLOOKUP(A50,'Relação SB e BURG - Preço Maior'!A:A,1,0),"") ->  | AT50: P01077 | AU50: Condiocionador 250mL | AV50: AGE ULTRA PURO COLÁGENO - PROBELLE | AW50: 0 | AX50: =IFERROR(VLOOKUP(AT50,'Tabela Preço Minimo'!$A$14:H1023,8,0),"") -> 2.775015194 | AY50: =IFERROR(IF(AW50>0,VLOOKUP(AT50,'Tabela Preço Minimo'!$A$14:$AB$984,27,0),""),"") ->  | AZ50: =IFERROR(VLOOKUP(AT50,Trava_Desconto!A26:U569,21,0),0) -> 0.35 | BA50: 0 | BB50: 0 | BE50: 0 | BG50: 0 | BH50: 0 | BI50: =VLOOKUP(AT50,BASE!AC:AM,11,0) -> 0 | BJ50: =IFERROR(VLOOKUP(AT50,Produtos_Linha!A:C,3,0),"") -> Profissional | BQ50: =IFERROR(VLOOKUP(AT50,'Tabela Preço Minimo'!$A$14:V586,22,0),"") -> 0 | BV50: =IFERROR(IF($BV$3<>200, IF($B$11=168,VLOOKUP(Pedido!AT50,Regra_Aplicação!$A$5:$D$99999,4,0), IF($B$11=715,VLOOKUP(Pedido!AT50,Regra_Aplicação!$A$5:$E$99999,5,0), IF($B$11=103,VLOOKUP(Pedido!AT50,Regra_Aplicação!$A$5:$F$99999,6,0), IF($B$11=713,VLOOKUP(Pedido!AT50,Regra_Aplicação!$A$5:$G$99999,7,0), IF($B$11=110,VLOOKUP(Pedido!AT50,Regra_Aplicação!$A$5:$H$99999,8,0), IF($B$11=211,VLOOKUP(Pedido!AT50,Regra_Aplicação!$A$5:$I$99999,9,0), IF($B$11=705,VLOOKUP(Pedido!AT50,Regra_Aplicação!$A$5:$J$99999,10,0), IF($B$11=121,VLOOKUP(Pedido!AT50,Regra_Aplicação!$A$5:$K$99999,11,0), IF($B$11=169,VLOOKUP(Pedido!AT50,Regra_Aplicação!$A$5:$L$99999,12,0),IF($B$11=717,VLOOKUP(Pedido!AT50,Regra_Aplicação!$A$5:$AN$99999,40,0), )))))))))),IF(OR($BV$5="RJ",$BV$5="MG",$BV$5="SP",$BV$5="RS",$BV$5="PR"), IF($B$11=168,VLOOKUP(Pedido!AT50,Regra_Aplicação!$A$5:$V$99999,22,0), IF($B$11=715,VLOOKUP(Pedido!AT50,Regra_Aplicação!$A$5:$W$99999,23,0), IF($B$11=103,VLOOKUP(Pedido!AT50,Regra_Aplicação!$A$5:$X$99999,24,0), IF($B$11=713,VLOOKUP(Pedido!AT50,Regra_Aplicação!$A$5:$Y$99999,25,0), IF($B$11=110,VLOOKUP(Pedido!AT50,Regra_Aplicação!$A$5:$Z$99999,26,0), IF($B$11=211,VLOOKUP(Pedido!AT50,Regra_Aplicação!$A$5:$AA$99999,27,0), IF($B$11=705,VLOOKUP(Pedido!AT50,Regra_Aplicação!$A$5:$AB$99999,28,0), IF($B$11=121,VLOOKUP(Pedido!AT50,Regra_Aplicação!$A$5:$AC$99999,29,0), IF($B$11=169,VLOOKUP(Pedido!AT50,Regra_Aplicação!$A$5:$AD$99999,30,0),))))))))), IF($BV$5="ES", IF($B$11=168,VLOOKUP(Pedido!AT50,Regra_Aplicação!$A$5:$AE$99999,31,0), IF($B$11=715,VLOOKUP(Pedido!AT50,Regra_Aplicação!$A$5:$AF$99999,32,0), IF($B$11=103,VLOOKUP(Pedido!AT50,Regra_Aplicação!$A$5:$AG$99999,33,0), IF($B$11=713,VLOOKUP(Pedido!AT50,Regra_Aplicação!$A$5:$AH$99999,34,0), IF($B$11=110,VLOOKUP(Pedido!AT50,Regra_Aplicação!$A$5:$AI$99999,35,0), IF($B$11=211,VLOOKUP(Pedido!AT50,Regra_Aplicação!$A$5:$AJ$99999,36,0), IF($B$11=705,VLOOKUP(Pedido!AT50,Regra_Aplicação!$A$5:$AK$99999,37,0), IF($B$11=121,VLOOKUP(Pedido!AT50,Regra_Aplicação!$A$5:$AL$99999,38,0), IF($B$11=169,VLOOKUP(Pedido!AT50,Regra_Aplicação!$A$5:$AM$99999,39,0),))))))))), IF($B$11=168,VLOOKUP(Pedido!AT50,Regra_Aplicação!$A$5:$M$99999,13,0), IF($B$11=715,VLOOKUP(Pedido!AT50,Regra_Aplicação!$A$5:$N$99999,14,0), IF($B$11=103,VLOOKUP(Pedido!AT50,Regra_Aplicação!$A$5:$O$99999,15,0), IF($B$11=713,VLOOKUP(Pedido!AT50,Regra_Aplicação!$A$5:$P$99999,16,0), IF($B$11=110,VLOOKUP(Pedido!AT50,Regra_Aplicação!$A$5:$Q$99999,17,0), IF($B$11=211,VLOOKUP(Pedido!AT50,Regra_Aplicação!$A$5:$R$99999,18,0), IF($B$11=705,VLOOKUP(Pedido!AT50,Regra_Aplicação!$A$5:$S$99999,19,0), IF($B$11=121,VLOOKUP(Pedido!AT50,Regra_Aplicação!$A$5:$T$99999,20,0), IF($B$11=169,VLOOKUP(Pedido!AT50,Regra_Aplicação!$A$5:$U$99999,21,0),)))))))))))),) -> 0
A51: =IFERROR(IF($B$15="TODOS",VLOOKUP($B$15,Catalogação!A28:B984,2,0),IF($B$15="ESPECIALIZADA",VLOOKUP($B$15,Catalogação!O28:P984,2,0),IF($B$15="DISTRIBUIDOR",VLOOKUP($B$15,Catalogação!X28:Y1024,2,0),IF($B$15="FARMA",VLOOKUP($B$15,Catalogação!AG28:AH1005,2,0),IF($B$15="SUPERMERCADO",VLOOKUP($B$15,Catalogação!AP28:AQ1027,2,0),IF($B$15="COMBO ESP (P)",VLOOKUP($B$15,Catalogação!$AY27:AZ1025,2,0),IF($B$15="COMBO ESP (M)",VLOOKUP($B$15,Catalogação!BH27:BI1025,2,0),IF($B$15="COMBO DIST (M)",VLOOKUP($B$15,Catalogação!BQ27:BR1025,2,0),IF($B$15="BONIFICADO",VLOOKUP($B$15,Catalogação!BZ28:CA1025,2,0),IF($B$15="FDL",VLOOKUP($B$15,Catalogação!CI28:CJ1025,2,0))))))))))),) -> P00050 | B51: =IFERROR(IF($B$15="FDL",VLOOKUP(A51,Catalogação!$CJ$1:CO602,2,0),VLOOKUP(Pedido!A51,Catalogação!B:G,2,0)),"") -> Cabelos Comportado 350g | G51: =IFERROR(IF($B$15="FDL",VLOOKUP(A51,Catalogação!$CJ$1:CP602,7,0),VLOOKUP(Pedido!A51,Catalogação!$B$1:H2966,7,0)),"") -> 7898617520607 | H51: =IFERROR(IF($B$15="FDL",VLOOKUP(A51,Catalogação!$CJ$1:CQ53,8,0),VLOOKUP(Pedido!A51,Catalogação!$B$1:I419,8,0)),"") -> EXPLOSÃO DE CACHOS - PROBELLE | J51: =IFERROR(IF(AND($B$15="COMBO ESP (P)",$B$16="RJ"),VLOOKUP(A51,'Tabela Preço'!$Q$2:W1008,7,0),IF(AND(Pedido!$B$15="COMBO ESP (M)",Pedido!$B$16="RJ"),VLOOKUP(Pedido!A51,'Tabela Preço'!$Q$2:Y1008,8,0),IF(AND(Pedido!$B$15="COMBO ESP (P)",Pedido!$B$16="SP"),VLOOKUP(Pedido!A51,'Tabela Preço'!$Q$2:AB1008,11,0),IF(AND(Pedido!$B$15="COMBO ESP (M)",Pedido!$B$16="SP"),VLOOKUP(Pedido!A51,'Tabela Preço'!$Q$2:AC1008,12,0),IF(Pedido!$B$15="COMBO DIST (M)",VLOOKUP(Pedido!A51,'Tabela Preço'!$Q$2:Z1008,9,0),IF(Pedido!$B$15="COMBO DIST (G)",VLOOKUP(Pedido!A51,'Tabela Preço'!$Q$2:AA1008,10,0),IF($O$16=$P$16,VLOOKUP(A51,'Tabela Preço'!$A$3:E1008,2,0),IF(AND($B$15="COMBO ESP (P)",$B$16="RJ"),VLOOKUP(A51,'Tabela Preço'!$Q$2:W1008,7,0),IF(AND(Pedido!$B$15="COMBO ESP (M)",Pedido!$B$16="RJ"),VLOOKUP(Pedido!A51,'Tabela Preço'!$Q$2:Y1008,8,0),IF(AND(Pedido!$B$15="COMBO ESP (P)",Pedido!$B$16="MG"),VLOOKUP(Pedido!A51,'Tabela Preço'!$Q$2:AB1008,11,0),IF(AND(Pedido!$B$15="COMBO ESP (M)",Pedido!$B$16="MG"),VLOOKUP(Pedido!A51,'Tabela Preço'!$Q$2:AC1008,12,0),IF(Pedido!$B$15="COMBO DIST (M)",VLOOKUP(Pedido!A51,'Tabela Preço'!$Q$2:Z1008,9,0),IF(Pedido!$B$15="COMBO DIST (G)",VLOOKUP(Pedido!A51,'Tabela Preço'!Q28:AA1008,10,0),IF($O$16=$P$16,VLOOKUP(A51,'Tabela Preço'!$A$3:E1008,2,0),IF($O$16=$P$18,VLOOKUP(A51,'Tabela Preço'!$A$3:E1008,3,0),IF($O$16=$P$19,VLOOKUP(A51,'Tabela Preço'!$A$3:E3609,4,0),IF($O$16=$P$15,VLOOKUP(A51,'Tabela Preço'!$A$3:G3609,7,0),IF($O$16=$P$21,VLOOKUP(A51,'Tabela Preço'!A:K,11,0),IF($O$16=$P$20,VLOOKUP(A51,'Tabela Preço'!$A$3:E1008,5,0),IF($O$16=$P$22,VLOOKUP(A51,'Tabela Preço'!$A$3:F1008,6,0),"")))))))))))))))))))),) ->  | L51: 0 | M51: 0 | S51: 28.48876613 | AC51: =IF(AE51>0,AE51,IFERROR(VLOOKUP(A51,Trava_Desconto!A:B,2,0),"")) -> 1 | AD51: =IFERROR(VLOOKUP(A51,Dados!A:H,8,0),"") -> 12 | AG51: =IFERROR(VLOOKUP(A51,'Relação SB e BURG - Preço Maior'!A:A,1,0),"") ->  | AT51: P00050 | AU51: Cabelos Comportado 350g | AV51: EXPLOSÃO DE CACHOS - PROBELLE | AW51: 0 | AX51: =IFERROR(VLOOKUP(AT51,'Tabela Preço Minimo'!$A$14:H1024,8,0),"") -> 4.751319518 | AY51: =IFERROR(IF(AW51>0,VLOOKUP(AT51,'Tabela Preço Minimo'!$A$14:$AB$984,27,0),""),"") ->  | AZ51: =IFERROR(VLOOKUP(AT51,Trava_Desconto!A27:U570,21,0),0) -> 0.3 | BA51: 0 | BB51: 0 | BE51: 0 | BG51: 0 | BH51: 0 | BI51: =VLOOKUP(AT51,BASE!AC:AM,11,0) -> 0 | BJ51: =IFERROR(VLOOKUP(AT51,Produtos_Linha!A:C,3,0),"") -> Profissional | BQ51: =IFERROR(VLOOKUP(AT51,'Tabela Preço Minimo'!$A$14:V587,22,0),"") -> 0 | BV51: =IFERROR(IF($BV$3<>200, IF($B$11=168,VLOOKUP(Pedido!AT51,Regra_Aplicação!$A$5:$D$99999,4,0), IF($B$11=715,VLOOKUP(Pedido!AT51,Regra_Aplicação!$A$5:$E$99999,5,0), IF($B$11=103,VLOOKUP(Pedido!AT51,Regra_Aplicação!$A$5:$F$99999,6,0), IF($B$11=713,VLOOKUP(Pedido!AT51,Regra_Aplicação!$A$5:$G$99999,7,0), IF($B$11=110,VLOOKUP(Pedido!AT51,Regra_Aplicação!$A$5:$H$99999,8,0), IF($B$11=211,VLOOKUP(Pedido!AT51,Regra_Aplicação!$A$5:$I$99999,9,0), IF($B$11=705,VLOOKUP(Pedido!AT51,Regra_Aplicação!$A$5:$J$99999,10,0), IF($B$11=121,VLOOKUP(Pedido!AT51,Regra_Aplicação!$A$5:$K$99999,11,0), IF($B$11=169,VLOOKUP(Pedido!AT51,Regra_Aplicação!$A$5:$L$99999,12,0),IF($B$11=717,VLOOKUP(Pedido!AT51,Regra_Aplicação!$A$5:$AN$99999,40,0), )))))))))),IF(OR($BV$5="RJ",$BV$5="MG",$BV$5="SP",$BV$5="RS",$BV$5="PR"), IF($B$11=168,VLOOKUP(Pedido!AT51,Regra_Aplicação!$A$5:$V$99999,22,0), IF($B$11=715,VLOOKUP(Pedido!AT51,Regra_Aplicação!$A$5:$W$99999,23,0), IF($B$11=103,VLOOKUP(Pedido!AT51,Regra_Aplicação!$A$5:$X$99999,24,0), IF($B$11=713,VLOOKUP(Pedido!AT51,Regra_Aplicação!$A$5:$Y$99999,25,0), IF($B$11=110,VLOOKUP(Pedido!AT51,Regra_Aplicação!$A$5:$Z$99999,26,0), IF($B$11=211,VLOOKUP(Pedido!AT51,Regra_Aplicação!$A$5:$AA$99999,27,0), IF($B$11=705,VLOOKUP(Pedido!AT51,Regra_Aplicação!$A$5:$AB$99999,28,0), IF($B$11=121,VLOOKUP(Pedido!AT51,Regra_Aplicação!$A$5:$AC$99999,29,0), IF($B$11=169,VLOOKUP(Pedido!AT51,Regra_Aplicação!$A$5:$AD$99999,30,0),))))))))), IF($BV$5="ES", IF($B$11=168,VLOOKUP(Pedido!AT51,Regra_Aplicação!$A$5:$AE$99999,31,0), IF($B$11=715,VLOOKUP(Pedido!AT51,Regra_Aplicação!$A$5:$AF$99999,32,0), IF($B$11=103,VLOOKUP(Pedido!AT51,Regra_Aplicação!$A$5:$AG$99999,33,0), IF($B$11=713,VLOOKUP(Pedido!AT51,Regra_Aplicação!$A$5:$AH$99999,34,0), IF($B$11=110,VLOOKUP(Pedido!AT51,Regra_Aplicação!$A$5:$AI$99999,35,0), IF($B$11=211,VLOOKUP(Pedido!AT51,Regra_Aplicação!$A$5:$AJ$99999,36,0), IF($B$11=705,VLOOKUP(Pedido!AT51,Regra_Aplicação!$A$5:$AK$99999,37,0), IF($B$11=121,VLOOKUP(Pedido!AT51,Regra_Aplicação!$A$5:$AL$99999,38,0), IF($B$11=169,VLOOKUP(Pedido!AT51,Regra_Aplicação!$A$5:$AM$99999,39,0),))))))))), IF($B$11=168,VLOOKUP(Pedido!AT51,Regra_Aplicação!$A$5:$M$99999,13,0), IF($B$11=715,VLOOKUP(Pedido!AT51,Regra_Aplicação!$A$5:$N$99999,14,0), IF($B$11=103,VLOOKUP(Pedido!AT51,Regra_Aplicação!$A$5:$O$99999,15,0), IF($B$11=713,VLOOKUP(Pedido!AT51,Regra_Aplicação!$A$5:$P$99999,16,0), IF($B$11=110,VLOOKUP(Pedido!AT51,Regra_Aplicação!$A$5:$Q$99999,17,0), IF($B$11=211,VLOOKUP(Pedido!AT51,Regra_Aplicação!$A$5:$R$99999,18,0), IF($B$11=705,VLOOKUP(Pedido!AT51,Regra_Aplicação!$A$5:$S$99999,19,0), IF($B$11=121,VLOOKUP(Pedido!AT51,Regra_Aplicação!$A$5:$T$99999,20,0), IF($B$11=169,VLOOKUP(Pedido!AT51,Regra_Aplicação!$A$5:$U$99999,21,0),)))))))))))),) -> 0
A52: =IFERROR(IF($B$15="TODOS",VLOOKUP($B$15,Catalogação!A29:B985,2,0),IF($B$15="ESPECIALIZADA",VLOOKUP($B$15,Catalogação!O29:P985,2,0),IF($B$15="DISTRIBUIDOR",VLOOKUP($B$15,Catalogação!X29:Y1025,2,0),IF($B$15="FARMA",VLOOKUP($B$15,Catalogação!AG29:AH1006,2,0),IF($B$15="SUPERMERCADO",VLOOKUP($B$15,Catalogação!AP29:AQ1028,2,0),IF($B$15="COMBO ESP (P)",VLOOKUP($B$15,Catalogação!$AY28:AZ1026,2,0),IF($B$15="COMBO ESP (M)",VLOOKUP($B$15,Catalogação!BH28:BI1026,2,0),IF($B$15="COMBO DIST (M)",VLOOKUP($B$15,Catalogação!BQ28:BR1026,2,0),IF($B$15="BONIFICADO",VLOOKUP($B$15,Catalogação!BZ29:CA1026,2,0),IF($B$15="FDL",VLOOKUP($B$15,Catalogação!CI29:CJ1026,2,0))))))))))),) -> P01079 | B52: =IFERROR(IF($B$15="FDL",VLOOKUP(A52,Catalogação!$CJ$1:CO603,2,0),VLOOKUP(Pedido!A52,Catalogação!B:G,2,0)),"") -> Shampoo 250mL | G52: =IFERROR(IF($B$15="FDL",VLOOKUP(A52,Catalogação!$CJ$1:CP603,7,0),VLOOKUP(Pedido!A52,Catalogação!$B$1:H2967,7,0)),"") -> 7898617525558 | H52: =IFERROR(IF($B$15="FDL",VLOOKUP(A52,Catalogação!$CJ$1:CQ54,8,0),VLOOKUP(Pedido!A52,Catalogação!$B$1:I420,8,0)),"") -> LISO FORTE PRECISÃO MOLECULAR - PROBELLE | J52: =IFERROR(IF(AND($B$15="COMBO ESP (P)",$B$16="RJ"),VLOOKUP(A52,'Tabela Preço'!$Q$2:W1009,7,0),IF(AND(Pedido!$B$15="COMBO ESP (M)",Pedido!$B$16="RJ"),VLOOKUP(Pedido!A52,'Tabela Preço'!$Q$2:Y1009,8,0),IF(AND(Pedido!$B$15="COMBO ESP (P)",Pedido!$B$16="SP"),VLOOKUP(Pedido!A52,'Tabela Preço'!$Q$2:AB1009,11,0),IF(AND(Pedido!$B$15="COMBO ESP (M)",Pedido!$B$16="SP"),VLOOKUP(Pedido!A52,'Tabela Preço'!$Q$2:AC1009,12,0),IF(Pedido!$B$15="COMBO DIST (M)",VLOOKUP(Pedido!A52,'Tabela Preço'!$Q$2:Z1009,9,0),IF(Pedido!$B$15="COMBO DIST (G)",VLOOKUP(Pedido!A52,'Tabela Preço'!$Q$2:AA1009,10,0),IF($O$16=$P$16,VLOOKUP(A52,'Tabela Preço'!$A$3:E1009,2,0),IF(AND($B$15="COMBO ESP (P)",$B$16="RJ"),VLOOKUP(A52,'Tabela Preço'!$Q$2:W1009,7,0),IF(AND(Pedido!$B$15="COMBO ESP (M)",Pedido!$B$16="RJ"),VLOOKUP(Pedido!A52,'Tabela Preço'!$Q$2:Y1009,8,0),IF(AND(Pedido!$B$15="COMBO ESP (P)",Pedido!$B$16="MG"),VLOOKUP(Pedido!A52,'Tabela Preço'!$Q$2:AB1009,11,0),IF(AND(Pedido!$B$15="COMBO ESP (M)",Pedido!$B$16="MG"),VLOOKUP(Pedido!A52,'Tabela Preço'!$Q$2:AC1009,12,0),IF(Pedido!$B$15="COMBO DIST (M)",VLOOKUP(Pedido!A52,'Tabela Preço'!$Q$2:Z1009,9,0),IF(Pedido!$B$15="COMBO DIST (G)",VLOOKUP(Pedido!A52,'Tabela Preço'!Q29:AA1009,10,0),IF($O$16=$P$16,VLOOKUP(A52,'Tabela Preço'!$A$3:E1009,2,0),IF($O$16=$P$18,VLOOKUP(A52,'Tabela Preço'!$A$3:E1009,3,0),IF($O$16=$P$19,VLOOKUP(A52,'Tabela Preço'!$A$3:E3610,4,0),IF($O$16=$P$15,VLOOKUP(A52,'Tabela Preço'!$A$3:G3610,7,0),IF($O$16=$P$21,VLOOKUP(A52,'Tabela Preço'!A:K,11,0),IF($O$16=$P$20,VLOOKUP(A52,'Tabela Preço'!$A$3:E1009,5,0),IF($O$16=$P$22,VLOOKUP(A52,'Tabela Preço'!$A$3:F1009,6,0),"")))))))))))))))))))),) ->  | L52: 0 | M52: 0 | S52: 29.48876613 | AC52: =IF(AE52>0,AE52,IFERROR(VLOOKUP(A52,Trava_Desconto!A:B,2,0),"")) -> 1 | AD52: =IFERROR(VLOOKUP(A52,Dados!A:H,8,0),"") -> 12 | AG52: =IFERROR(VLOOKUP(A52,'Relação SB e BURG - Preço Maior'!A:A,1,0),"") ->  | AT52: P01079 | AU52: Shampoo 250mL | AV52: LISO FORTE PRECISÃO MOLECULAR - PROBELLE | AW52: 0 | AX52: =IFERROR(VLOOKUP(AT52,'Tabela Preço Minimo'!$A$14:H1025,8,0),"") -> 2.897785857 | AY52: =IFERROR(IF(AW52>0,VLOOKUP(AT52,'Tabela Preço Minimo'!$A$14:$AB$984,27,0),""),"") ->  | AZ52: =IFERROR(VLOOKUP(AT52,Trava_Desconto!A28:U571,21,0),0) -> 0.1 | BA52: 0 | BB52: 0 | BE52: 0 | BG52: 0 | BH52: 0 | BI52: =VLOOKUP(AT52,BASE!AC:AM,11,0) -> 0 | BJ52: =IFERROR(VLOOKUP(AT52,Produtos_Linha!A:C,3,0),"") -> Profissional | BQ52: =IFERROR(VLOOKUP(AT52,'Tabela Preço Minimo'!$A$14:V588,22,0),"") -> 0 | BV52: =IFERROR(IF($BV$3<>200, IF($B$11=168,VLOOKUP(Pedido!AT52,Regra_Aplicação!$A$5:$D$99999,4,0), IF($B$11=715,VLOOKUP(Pedido!AT52,Regra_Aplicação!$A$5:$E$99999,5,0), IF($B$11=103,VLOOKUP(Pedido!AT52,Regra_Aplicação!$A$5:$F$99999,6,0), IF($B$11=713,VLOOKUP(Pedido!AT52,Regra_Aplicação!$A$5:$G$99999,7,0), IF($B$11=110,VLOOKUP(Pedido!AT52,Regra_Aplicação!$A$5:$H$99999,8,0), IF($B$11=211,VLOOKUP(Pedido!AT52,Regra_Aplicação!$A$5:$I$99999,9,0), IF($B$11=705,VLOOKUP(Pedido!AT52,Regra_Aplicação!$A$5:$J$99999,10,0), IF($B$11=121,VLOOKUP(Pedido!AT52,Regra_Aplicação!$A$5:$K$99999,11,0), IF($B$11=169,VLOOKUP(Pedido!AT52,Regra_Aplicação!$A$5:$L$99999,12,0),IF($B$11=717,VLOOKUP(Pedido!AT52,Regra_Aplicação!$A$5:$AN$99999,40,0), )))))))))),IF(OR($BV$5="RJ",$BV$5="MG",$BV$5="SP",$BV$5="RS",$BV$5="PR"), IF($B$11=168,VLOOKUP(Pedido!AT52,Regra_Aplicação!$A$5:$V$99999,22,0), IF($B$11=715,VLOOKUP(Pedido!AT52,Regra_Aplicação!$A$5:$W$99999,23,0), IF($B$11=103,VLOOKUP(Pedido!AT52,Regra_Aplicação!$A$5:$X$99999,24,0), IF($B$11=713,VLOOKUP(Pedido!AT52,Regra_Aplicação!$A$5:$Y$99999,25,0), IF($B$11=110,VLOOKUP(Pedido!AT52,Regra_Aplicação!$A$5:$Z$99999,26,0), IF($B$11=211,VLOOKUP(Pedido!AT52,Regra_Aplicação!$A$5:$AA$99999,27,0), IF($B$11=705,VLOOKUP(Pedido!AT52,Regra_Aplicação!$A$5:$AB$99999,28,0), IF($B$11=121,VLOOKUP(Pedido!AT52,Regra_Aplicação!$A$5:$AC$99999,29,0), IF($B$11=169,VLOOKUP(Pedido!AT52,Regra_Aplicação!$A$5:$AD$99999,30,0),))))))))), IF($BV$5="ES", IF($B$11=168,VLOOKUP(Pedido!AT52,Regra_Aplicação!$A$5:$AE$99999,31,0), IF($B$11=715,VLOOKUP(Pedido!AT52,Regra_Aplicação!$A$5:$AF$99999,32,0), IF($B$11=103,VLOOKUP(Pedido!AT52,Regra_Aplicação!$A$5:$AG$99999,33,0), IF($B$11=713,VLOOKUP(Pedido!AT52,Regra_Aplicação!$A$5:$AH$99999,34,0), IF($B$11=110,VLOOKUP(Pedido!AT52,Regra_Aplicação!$A$5:$AI$99999,35,0), IF($B$11=211,VLOOKUP(Pedido!AT52,Regra_Aplicação!$A$5:$AJ$99999,36,0), IF($B$11=705,VLOOKUP(Pedido!AT52,Regra_Aplicação!$A$5:$AK$99999,37,0), IF($B$11=121,VLOOKUP(Pedido!AT52,Regra_Aplicação!$A$5:$AL$99999,38,0), IF($B$11=169,VLOOKUP(Pedido!AT52,Regra_Aplicação!$A$5:$AM$99999,39,0),))))))))), IF($B$11=168,VLOOKUP(Pedido!AT52,Regra_Aplicação!$A$5:$M$99999,13,0), IF($B$11=715,VLOOKUP(Pedido!AT52,Regra_Aplicação!$A$5:$N$99999,14,0), IF($B$11=103,VLOOKUP(Pedido!AT52,Regra_Aplicação!$A$5:$O$99999,15,0), IF($B$11=713,VLOOKUP(Pedido!AT52,Regra_Aplicação!$A$5:$P$99999,16,0), IF($B$11=110,VLOOKUP(Pedido!AT52,Regra_Aplicação!$A$5:$Q$99999,17,0), IF($B$11=211,VLOOKUP(Pedido!AT52,Regra_Aplicação!$A$5:$R$99999,18,0), IF($B$11=705,VLOOKUP(Pedido!AT52,Regra_Aplicação!$A$5:$S$99999,19,0), IF($B$11=121,VLOOKUP(Pedido!AT52,Regra_Aplicação!$A$5:$T$99999,20,0), IF($B$11=169,VLOOKUP(Pedido!AT52,Regra_Aplicação!$A$5:$U$99999,21,0),)))))))))))),) -> 0
A53: =IFERROR(IF($B$15="TODOS",VLOOKUP($B$15,Catalogação!A30:B986,2,0),IF($B$15="ESPECIALIZADA",VLOOKUP($B$15,Catalogação!O30:P986,2,0),IF($B$15="DISTRIBUIDOR",VLOOKUP($B$15,Catalogação!X30:Y1026,2,0),IF($B$15="FARMA",VLOOKUP($B$15,Catalogação!AG30:AH1007,2,0),IF($B$15="SUPERMERCADO",VLOOKUP($B$15,Catalogação!AP30:AQ1029,2,0),IF($B$15="COMBO ESP (P)",VLOOKUP($B$15,Catalogação!$AY29:AZ1027,2,0),IF($B$15="COMBO ESP (M)",VLOOKUP($B$15,Catalogação!BH29:BI1027,2,0),IF($B$15="COMBO DIST (M)",VLOOKUP($B$15,Catalogação!BQ29:BR1027,2,0),IF($B$15="BONIFICADO",VLOOKUP($B$15,Catalogação!BZ30:CA1027,2,0),IF($B$15="FDL",VLOOKUP($B$15,Catalogação!CI30:CJ1027,2,0))))))))))),) -> P01080 | B53: =IFERROR(IF($B$15="FDL",VLOOKUP(A53,Catalogação!$CJ$1:CO604,2,0),VLOOKUP(Pedido!A53,Catalogação!B:G,2,0)),"") -> Condicionador 250mL | G53: =IFERROR(IF($B$15="FDL",VLOOKUP(A53,Catalogação!$CJ$1:CP604,7,0),VLOOKUP(Pedido!A53,Catalogação!$B$1:H2968,7,0)),"") -> 7898617525565 | H53: =IFERROR(IF($B$15="FDL",VLOOKUP(A53,Catalogação!$CJ$1:CQ55,8,0),VLOOKUP(Pedido!A53,Catalogação!$B$1:I421,8,0)),"") -> LISO FORTE PRECISÃO MOLECULAR - PROBELLE | J53: =IFERROR(IF(AND($B$15="COMBO ESP (P)",$B$16="RJ"),VLOOKUP(A53,'Tabela Preço'!$Q$2:W1010,7,0),IF(AND(Pedido!$B$15="COMBO ESP (M)",Pedido!$B$16="RJ"),VLOOKUP(Pedido!A53,'Tabela Preço'!$Q$2:Y1010,8,0),IF(AND(Pedido!$B$15="COMBO ESP (P)",Pedido!$B$16="SP"),VLOOKUP(Pedido!A53,'Tabela Preço'!$Q$2:AB1010,11,0),IF(AND(Pedido!$B$15="COMBO ESP (M)",Pedido!$B$16="SP"),VLOOKUP(Pedido!A53,'Tabela Preço'!$Q$2:AC1010,12,0),IF(Pedido!$B$15="COMBO DIST (M)",VLOOKUP(Pedido!A53,'Tabela Preço'!$Q$2:Z1010,9,0),IF(Pedido!$B$15="COMBO DIST (G)",VLOOKUP(Pedido!A53,'Tabela Preço'!$Q$2:AA1010,10,0),IF($O$16=$P$16,VLOOKUP(A53,'Tabela Preço'!$A$3:E1010,2,0),IF(AND($B$15="COMBO ESP (P)",$B$16="RJ"),VLOOKUP(A53,'Tabela Preço'!$Q$2:W1010,7,0),IF(AND(Pedido!$B$15="COMBO ESP (M)",Pedido!$B$16="RJ"),VLOOKUP(Pedido!A53,'Tabela Preço'!$Q$2:Y1010,8,0),IF(AND(Pedido!$B$15="COMBO ESP (P)",Pedido!$B$16="MG"),VLOOKUP(Pedido!A53,'Tabela Preço'!$Q$2:AB1010,11,0),IF(AND(Pedido!$B$15="COMBO ESP (M)",Pedido!$B$16="MG"),VLOOKUP(Pedido!A53,'Tabela Preço'!$Q$2:AC1010,12,0),IF(Pedido!$B$15="COMBO DIST (M)",VLOOKUP(Pedido!A53,'Tabela Preço'!$Q$2:Z1010,9,0),IF(Pedido!$B$15="COMBO DIST (G)",VLOOKUP(Pedido!A53,'Tabela Preço'!Q30:AA1010,10,0),IF($O$16=$P$16,VLOOKUP(A53,'Tabela Preço'!$A$3:E1010,2,0),IF($O$16=$P$18,VLOOKUP(A53,'Tabela Preço'!$A$3:E1010,3,0),IF($O$16=$P$19,VLOOKUP(A53,'Tabela Preço'!$A$3:E3611,4,0),IF($O$16=$P$15,VLOOKUP(A53,'Tabela Preço'!$A$3:G3611,7,0),IF($O$16=$P$21,VLOOKUP(A53,'Tabela Preço'!A:K,11,0),IF($O$16=$P$20,VLOOKUP(A53,'Tabela Preço'!$A$3:E1010,5,0),IF($O$16=$P$22,VLOOKUP(A53,'Tabela Preço'!$A$3:F1010,6,0),"")))))))))))))))))))),) ->  | L53: 0 | M53: 0 | S53: 30.48876613 | AC53: =IF(AE53>0,AE53,IFERROR(VLOOKUP(A53,Trava_Desconto!A:B,2,0),"")) -> 1 | AD53: =IFERROR(VLOOKUP(A53,Dados!A:H,8,0),"") -> 12 | AG53: =IFERROR(VLOOKUP(A53,'Relação SB e BURG - Preço Maior'!A:A,1,0),"") ->  | AT53: P01080 | AU53: Condicionador 250mL | AV53: LISO FORTE PRECISÃO MOLECULAR - PROBELLE | AW53: 0 | AX53: =IFERROR(VLOOKUP(AT53,'Tabela Preço Minimo'!$A$14:H1026,8,0),"") -> 3.013014343 | AY53: =IFERROR(IF(AW53>0,VLOOKUP(AT53,'Tabela Preço Minimo'!$A$14:$AB$984,27,0),""),"") ->  | AZ53: =IFERROR(VLOOKUP(AT53,Trava_Desconto!A29:U572,21,0),0) -> 0.1 | BA53: 0 | BB53: 0 | BE53: 0 | BG53: 0 | BH53: 0 | BI53: =VLOOKUP(AT53,BASE!AC:AM,11,0) -> 0 | BJ53: =IFERROR(VLOOKUP(AT53,Produtos_Linha!A:C,3,0),"") -> Profissional | BQ53: =IFERROR(VLOOKUP(AT53,'Tabela Preço Minimo'!$A$14:V589,22,0),"") -> 0 | BV53: =IFERROR(IF($BV$3<>200, IF($B$11=168,VLOOKUP(Pedido!AT53,Regra_Aplicação!$A$5:$D$99999,4,0), IF($B$11=715,VLOOKUP(Pedido!AT53,Regra_Aplicação!$A$5:$E$99999,5,0), IF($B$11=103,VLOOKUP(Pedido!AT53,Regra_Aplicação!$A$5:$F$99999,6,0), IF($B$11=713,VLOOKUP(Pedido!AT53,Regra_Aplicação!$A$5:$G$99999,7,0), IF($B$11=110,VLOOKUP(Pedido!AT53,Regra_Aplicação!$A$5:$H$99999,8,0), IF($B$11=211,VLOOKUP(Pedido!AT53,Regra_Aplicação!$A$5:$I$99999,9,0), IF($B$11=705,VLOOKUP(Pedido!AT53,Regra_Aplicação!$A$5:$J$99999,10,0), IF($B$11=121,VLOOKUP(Pedido!AT53,Regra_Aplicação!$A$5:$K$99999,11,0), IF($B$11=169,VLOOKUP(Pedido!AT53,Regra_Aplicação!$A$5:$L$99999,12,0),IF($B$11=717,VLOOKUP(Pedido!AT53,Regra_Aplicação!$A$5:$AN$99999,40,0), )))))))))),IF(OR($BV$5="RJ",$BV$5="MG",$BV$5="SP",$BV$5="RS",$BV$5="PR"), IF($B$11=168,VLOOKUP(Pedido!AT53,Regra_Aplicação!$A$5:$V$99999,22,0), IF($B$11=715,VLOOKUP(Pedido!AT53,Regra_Aplicação!$A$5:$W$99999,23,0), IF($B$11=103,VLOOKUP(Pedido!AT53,Regra_Aplicação!$A$5:$X$99999,24,0), IF($B$11=713,VLOOKUP(Pedido!AT53,Regra_Aplicação!$A$5:$Y$99999,25,0), IF($B$11=110,VLOOKUP(Pedido!AT53,Regra_Aplicação!$A$5:$Z$99999,26,0), IF($B$11=211,VLOOKUP(Pedido!AT53,Regra_Aplicação!$A$5:$AA$99999,27,0), IF($B$11=705,VLOOKUP(Pedido!AT53,Regra_Aplicação!$A$5:$AB$99999,28,0), IF($B$11=121,VLOOKUP(Pedido!AT53,Regra_Aplicação!$A$5:$AC$99999,29,0), IF($B$11=169,VLOOKUP(Pedido!AT53,Regra_Aplicação!$A$5:$AD$99999,30,0),))))))))), IF($BV$5="ES", IF($B$11=168,VLOOKUP(Pedido!AT53,Regra_Aplicação!$A$5:$AE$99999,31,0), IF($B$11=715,VLOOKUP(Pedido!AT53,Regra_Aplicação!$A$5:$AF$99999,32,0), IF($B$11=103,VLOOKUP(Pedido!AT53,Regra_Aplicação!$A$5:$AG$99999,33,0), IF($B$11=713,VLOOKUP(Pedido!AT53,Regra_Aplicação!$A$5:$AH$99999,34,0), IF($B$11=110,VLOOKUP(Pedido!AT53,Regra_Aplicação!$A$5:$AI$99999,35,0), IF($B$11=211,VLOOKUP(Pedido!AT53,Regra_Aplicação!$A$5:$AJ$99999,36,0), IF($B$11=705,VLOOKUP(Pedido!AT53,Regra_Aplicação!$A$5:$AK$99999,37,0), IF($B$11=121,VLOOKUP(Pedido!AT53,Regra_Aplicação!$A$5:$AL$99999,38,0), IF($B$11=169,VLOOKUP(Pedido!AT53,Regra_Aplicação!$A$5:$AM$99999,39,0),))))))))), IF($B$11=168,VLOOKUP(Pedido!AT53,Regra_Aplicação!$A$5:$M$99999,13,0), IF($B$11=715,VLOOKUP(Pedido!AT53,Regra_Aplicação!$A$5:$N$99999,14,0), IF($B$11=103,VLOOKUP(Pedido!AT53,Regra_Aplicação!$A$5:$O$99999,15,0), IF($B$11=713,VLOOKUP(Pedido!AT53,Regra_Aplicação!$A$5:$P$99999,16,0), IF($B$11=110,VLOOKUP(Pedido!AT53,Regra_Aplicação!$A$5:$Q$99999,17,0), IF($B$11=211,VLOOKUP(Pedido!AT53,Regra_Aplicação!$A$5:$R$99999,18,0), IF($B$11=705,VLOOKUP(Pedido!AT53,Regra_Aplicação!$A$5:$S$99999,19,0), IF($B$11=121,VLOOKUP(Pedido!AT53,Regra_Aplicação!$A$5:$T$99999,20,0), IF($B$11=169,VLOOKUP(Pedido!AT53,Regra_Aplicação!$A$5:$U$99999,21,0),)))))))))))),) -> 0
A54: =IFERROR(IF($B$15="TODOS",VLOOKUP($B$15,Catalogação!A31:B987,2,0),IF($B$15="ESPECIALIZADA",VLOOKUP($B$15,Catalogação!O31:P987,2,0),IF($B$15="DISTRIBUIDOR",VLOOKUP($B$15,Catalogação!X31:Y1027,2,0),IF($B$15="FARMA",VLOOKUP($B$15,Catalogação!AG31:AH1008,2,0),IF($B$15="SUPERMERCADO",VLOOKUP($B$15,Catalogação!AP31:AQ1030,2,0),IF($B$15="COMBO ESP (P)",VLOOKUP($B$15,Catalogação!$AY30:AZ1028,2,0),IF($B$15="COMBO ESP (M)",VLOOKUP($B$15,Catalogação!BH30:BI1028,2,0),IF($B$15="COMBO DIST (M)",VLOOKUP($B$15,Catalogação!BQ30:BR1028,2,0),IF($B$15="BONIFICADO",VLOOKUP($B$15,Catalogação!BZ31:CA1028,2,0),IF($B$15="FDL",VLOOKUP($B$15,Catalogação!CI31:CJ1028,2,0))))))))))),) -> P01082 | B54: =IFERROR(IF($B$15="FDL",VLOOKUP(A54,Catalogação!$CJ$1:CO605,2,0),VLOOKUP(Pedido!A54,Catalogação!B:G,2,0)),"") -> Shampoo 250mL | G54: =IFERROR(IF($B$15="FDL",VLOOKUP(A54,Catalogação!$CJ$1:CP605,7,0),VLOOKUP(Pedido!A54,Catalogação!$B$1:H2969,7,0)),"") -> 7898617525473 | H54: =IFERROR(IF($B$15="FDL",VLOOKUP(A54,Catalogação!$CJ$1:CQ56,8,0),VLOOKUP(Pedido!A54,Catalogação!$B$1:I422,8,0)),"") -> CACHOS DEFINIDOS - PROBELLE | J54: =IFERROR(IF(AND($B$15="COMBO ESP (P)",$B$16="RJ"),VLOOKUP(A54,'Tabela Preço'!$Q$2:W1011,7,0),IF(AND(Pedido!$B$15="COMBO ESP (M)",Pedido!$B$16="RJ"),VLOOKUP(Pedido!A54,'Tabela Preço'!$Q$2:Y1011,8,0),IF(AND(Pedido!$B$15="COMBO ESP (P)",Pedido!$B$16="SP"),VLOOKUP(Pedido!A54,'Tabela Preço'!$Q$2:AB1011,11,0),IF(AND(Pedido!$B$15="COMBO ESP (M)",Pedido!$B$16="SP"),VLOOKUP(Pedido!A54,'Tabela Preço'!$Q$2:AC1011,12,0),IF(Pedido!$B$15="COMBO DIST (M)",VLOOKUP(Pedido!A54,'Tabela Preço'!$Q$2:Z1011,9,0),IF(Pedido!$B$15="COMBO DIST (G)",VLOOKUP(Pedido!A54,'Tabela Preço'!$Q$2:AA1011,10,0),IF($O$16=$P$16,VLOOKUP(A54,'Tabela Preço'!$A$3:E1011,2,0),IF(AND($B$15="COMBO ESP (P)",$B$16="RJ"),VLOOKUP(A54,'Tabela Preço'!$Q$2:W1011,7,0),IF(AND(Pedido!$B$15="COMBO ESP (M)",Pedido!$B$16="RJ"),VLOOKUP(Pedido!A54,'Tabela Preço'!$Q$2:Y1011,8,0),IF(AND(Pedido!$B$15="COMBO ESP (P)",Pedido!$B$16="MG"),VLOOKUP(Pedido!A54,'Tabela Preço'!$Q$2:AB1011,11,0),IF(AND(Pedido!$B$15="COMBO ESP (M)",Pedido!$B$16="MG"),VLOOKUP(Pedido!A54,'Tabela Preço'!$Q$2:AC1011,12,0),IF(Pedido!$B$15="COMBO DIST (M)",VLOOKUP(Pedido!A54,'Tabela Preço'!$Q$2:Z1011,9,0),IF(Pedido!$B$15="COMBO DIST (G)",VLOOKUP(Pedido!A54,'Tabela Preço'!Q31:AA1011,10,0),IF($O$16=$P$16,VLOOKUP(A54,'Tabela Preço'!$A$3:E1011,2,0),IF($O$16=$P$18,VLOOKUP(A54,'Tabela Preço'!$A$3:E1011,3,0),IF($O$16=$P$19,VLOOKUP(A54,'Tabela Preço'!$A$3:E3612,4,0),IF($O$16=$P$15,VLOOKUP(A54,'Tabela Preço'!$A$3:G3612,7,0),IF($O$16=$P$21,VLOOKUP(A54,'Tabela Preço'!A:K,11,0),IF($O$16=$P$20,VLOOKUP(A54,'Tabela Preço'!$A$3:E1011,5,0),IF($O$16=$P$22,VLOOKUP(A54,'Tabela Preço'!$A$3:F1011,6,0),"")))))))))))))))))))),) ->  | L54: 0 | M54: 0 | S54: 31.48876613 | AC54: =IF(AE54>0,AE54,IFERROR(VLOOKUP(A54,Trava_Desconto!A:B,2,0),"")) -> 1 | AD54: =IFERROR(VLOOKUP(A54,Dados!A:H,8,0),"") -> 12 | AG54: =IFERROR(VLOOKUP(A54,'Relação SB e BURG - Preço Maior'!A:A,1,0),"") ->  | AT54: P01082 | AU54: Shampoo 250mL | AV54: CACHOS DEFINIDOS - PROBELLE | AW54: 0 | AX54: =IFERROR(VLOOKUP(AT54,'Tabela Preço Minimo'!$A$14:H1027,8,0),"") -> 2.844816372 | AY54: =IFERROR(IF(AW54>0,VLOOKUP(AT54,'Tabela Preço Minimo'!$A$14:$AB$984,27,0),""),"") ->  | AZ54: =IFERROR(VLOOKUP(AT54,Trava_Desconto!A30:U573,21,0),0) -> 0.35 | BA54: 0 | BB54: 0 | BE54: 0 | BG54: 0 | BH54: 0 | BI54: =VLOOKUP(AT54,BASE!AC:AM,11,0) -> 0 | BJ54: =IFERROR(VLOOKUP(AT54,Produtos_Linha!A:C,3,0),"") -> Profissional | BQ54: =IFERROR(VLOOKUP(AT54,'Tabela Preço Minimo'!$A$14:V591,22,0),"") -> 0 | BV54: =IFERROR(IF($BV$3<>200, IF($B$11=168,VLOOKUP(Pedido!AT54,Regra_Aplicação!$A$5:$D$99999,4,0), IF($B$11=715,VLOOKUP(Pedido!AT54,Regra_Aplicação!$A$5:$E$99999,5,0), IF($B$11=103,VLOOKUP(Pedido!AT54,Regra_Aplicação!$A$5:$F$99999,6,0), IF($B$11=713,VLOOKUP(Pedido!AT54,Regra_Aplicação!$A$5:$G$99999,7,0), IF($B$11=110,VLOOKUP(Pedido!AT54,Regra_Aplicação!$A$5:$H$99999,8,0), IF($B$11=211,VLOOKUP(Pedido!AT54,Regra_Aplicação!$A$5:$I$99999,9,0), IF($B$11=705,VLOOKUP(Pedido!AT54,Regra_Aplicação!$A$5:$J$99999,10,0), IF($B$11=121,VLOOKUP(Pedido!AT54,Regra_Aplicação!$A$5:$K$99999,11,0), IF($B$11=169,VLOOKUP(Pedido!AT54,Regra_Aplicação!$A$5:$L$99999,12,0),IF($B$11=717,VLOOKUP(Pedido!AT54,Regra_Aplicação!$A$5:$AN$99999,40,0), )))))))))),IF(OR($BV$5="RJ",$BV$5="MG",$BV$5="SP",$BV$5="RS",$BV$5="PR"), IF($B$11=168,VLOOKUP(Pedido!AT54,Regra_Aplicação!$A$5:$V$99999,22,0), IF($B$11=715,VLOOKUP(Pedido!AT54,Regra_Aplicação!$A$5:$W$99999,23,0), IF($B$11=103,VLOOKUP(Pedido!AT54,Regra_Aplicação!$A$5:$X$99999,24,0), IF($B$11=713,VLOOKUP(Pedido!AT54,Regra_Aplicação!$A$5:$Y$99999,25,0), IF($B$11=110,VLOOKUP(Pedido!AT54,Regra_Aplicação!$A$5:$Z$99999,26,0), IF($B$11=211,VLOOKUP(Pedido!AT54,Regra_Aplicação!$A$5:$AA$99999,27,0), IF($B$11=705,VLOOKUP(Pedido!AT54,Regra_Aplicação!$A$5:$AB$99999,28,0), IF($B$11=121,VLOOKUP(Pedido!AT54,Regra_Aplicação!$A$5:$AC$99999,29,0), IF($B$11=169,VLOOKUP(Pedido!AT54,Regra_Aplicação!$A$5:$AD$99999,30,0),))))))))), IF($BV$5="ES", IF($B$11=168,VLOOKUP(Pedido!AT54,Regra_Aplicação!$A$5:$AE$99999,31,0), IF($B$11=715,VLOOKUP(Pedido!AT54,Regra_Aplicação!$A$5:$AF$99999,32,0), IF($B$11=103,VLOOKUP(Pedido!AT54,Regra_Aplicação!$A$5:$AG$99999,33,0), IF($B$11=713,VLOOKUP(Pedido!AT54,Regra_Aplicação!$A$5:$AH$99999,34,0), IF($B$11=110,VLOOKUP(Pedido!AT54,Regra_Aplicação!$A$5:$AI$99999,35,0), IF($B$11=211,VLOOKUP(Pedido!AT54,Regra_Aplicação!$A$5:$AJ$99999,36,0), IF($B$11=705,VLOOKUP(Pedido!AT54,Regra_Aplicação!$A$5:$AK$99999,37,0), IF($B$11=121,VLOOKUP(Pedido!AT54,Regra_Aplicação!$A$5:$AL$99999,38,0), IF($B$11=169,VLOOKUP(Pedido!AT54,Regra_Aplicação!$A$5:$AM$99999,39,0),))))))))), IF($B$11=168,VLOOKUP(Pedido!AT54,Regra_Aplicação!$A$5:$M$99999,13,0), IF($B$11=715,VLOOKUP(Pedido!AT54,Regra_Aplicação!$A$5:$N$99999,14,0), IF($B$11=103,VLOOKUP(Pedido!AT54,Regra_Aplicação!$A$5:$O$99999,15,0), IF($B$11=713,VLOOKUP(Pedido!AT54,Regra_Aplicação!$A$5:$P$99999,16,0), IF($B$11=110,VLOOKUP(Pedido!AT54,Regra_Aplicação!$A$5:$Q$99999,17,0), IF($B$11=211,VLOOKUP(Pedido!AT54,Regra_Aplicação!$A$5:$R$99999,18,0), IF($B$11=705,VLOOKUP(Pedido!AT54,Regra_Aplicação!$A$5:$S$99999,19,0), IF($B$11=121,VLOOKUP(Pedido!AT54,Regra_Aplicação!$A$5:$T$99999,20,0), IF($B$11=169,VLOOKUP(Pedido!AT54,Regra_Aplicação!$A$5:$U$99999,21,0),)))))))))))),) -> 0
A55: =IFERROR(IF($B$15="TODOS",VLOOKUP($B$15,Catalogação!A32:B988,2,0),IF($B$15="ESPECIALIZADA",VLOOKUP($B$15,Catalogação!O32:P988,2,0),IF($B$15="DISTRIBUIDOR",VLOOKUP($B$15,Catalogação!X32:Y1028,2,0),IF($B$15="FARMA",VLOOKUP($B$15,Catalogação!AG32:AH1009,2,0),IF($B$15="SUPERMERCADO",VLOOKUP($B$15,Catalogação!AP32:AQ1031,2,0),IF($B$15="COMBO ESP (P)",VLOOKUP($B$15,Catalogação!$AY31:AZ1029,2,0),IF($B$15="COMBO ESP (M)",VLOOKUP($B$15,Catalogação!BH31:BI1029,2,0),IF($B$15="COMBO DIST (M)",VLOOKUP($B$15,Catalogação!BQ31:BR1029,2,0),IF($B$15="BONIFICADO",VLOOKUP($B$15,Catalogação!BZ32:CA1029,2,0),IF($B$15="FDL",VLOOKUP($B$15,Catalogação!CI32:CJ1029,2,0))))))))))),) -> P01083 | B55: =IFERROR(IF($B$15="FDL",VLOOKUP(A55,Catalogação!$CJ$1:CO606,2,0),VLOOKUP(Pedido!A55,Catalogação!B:G,2,0)),"") -> Condicionador 250mL | G55: =IFERROR(IF($B$15="FDL",VLOOKUP(A55,Catalogação!$CJ$1:CP606,7,0),VLOOKUP(Pedido!A55,Catalogação!$B$1:H2970,7,0)),"") -> 7898617525466 | H55: =IFERROR(IF($B$15="FDL",VLOOKUP(A55,Catalogação!$CJ$1:CQ57,8,0),VLOOKUP(Pedido!A55,Catalogação!$B$1:I423,8,0)),"") -> CACHOS DEFINIDOS - PROBELLE | J55: =IFERROR(IF(AND($B$15="COMBO ESP (P)",$B$16="RJ"),VLOOKUP(A55,'Tabela Preço'!$Q$2:W1012,7,0),IF(AND(Pedido!$B$15="COMBO ESP (M)",Pedido!$B$16="RJ"),VLOOKUP(Pedido!A55,'Tabela Preço'!$Q$2:Y1012,8,0),IF(AND(Pedido!$B$15="COMBO ESP (P)",Pedido!$B$16="SP"),VLOOKUP(Pedido!A55,'Tabela Preço'!$Q$2:AB1012,11,0),IF(AND(Pedido!$B$15="COMBO ESP (M)",Pedido!$B$16="SP"),VLOOKUP(Pedido!A55,'Tabela Preço'!$Q$2:AC1012,12,0),IF(Pedido!$B$15="COMBO DIST (M)",VLOOKUP(Pedido!A55,'Tabela Preço'!$Q$2:Z1012,9,0),IF(Pedido!$B$15="COMBO DIST (G)",VLOOKUP(Pedido!A55,'Tabela Preço'!$Q$2:AA1012,10,0),IF($O$16=$P$16,VLOOKUP(A55,'Tabela Preço'!$A$3:E1012,2,0),IF(AND($B$15="COMBO ESP (P)",$B$16="RJ"),VLOOKUP(A55,'Tabela Preço'!$Q$2:W1012,7,0),IF(AND(Pedido!$B$15="COMBO ESP (M)",Pedido!$B$16="RJ"),VLOOKUP(Pedido!A55,'Tabela Preço'!$Q$2:Y1012,8,0),IF(AND(Pedido!$B$15="COMBO ESP (P)",Pedido!$B$16="MG"),VLOOKUP(Pedido!A55,'Tabela Preço'!$Q$2:AB1012,11,0),IF(AND(Pedido!$B$15="COMBO ESP (M)",Pedido!$B$16="MG"),VLOOKUP(Pedido!A55,'Tabela Preço'!$Q$2:AC1012,12,0),IF(Pedido!$B$15="COMBO DIST (M)",VLOOKUP(Pedido!A55,'Tabela Preço'!$Q$2:Z1012,9,0),IF(Pedido!$B$15="COMBO DIST (G)",VLOOKUP(Pedido!A55,'Tabela Preço'!Q32:AA1012,10,0),IF($O$16=$P$16,VLOOKUP(A55,'Tabela Preço'!$A$3:E1012,2,0),IF($O$16=$P$18,VLOOKUP(A55,'Tabela Preço'!$A$3:E1012,3,0),IF($O$16=$P$19,VLOOKUP(A55,'Tabela Preço'!$A$3:E3613,4,0),IF($O$16=$P$15,VLOOKUP(A55,'Tabela Preço'!$A$3:G3613,7,0),IF($O$16=$P$21,VLOOKUP(A55,'Tabela Preço'!A:K,11,0),IF($O$16=$P$20,VLOOKUP(A55,'Tabela Preço'!$A$3:E1012,5,0),IF($O$16=$P$22,VLOOKUP(A55,'Tabela Preço'!$A$3:F1012,6,0),"")))))))))))))))))))),) ->  | L55: 0 | M55: 0 | S55: 32.48876613 | AC55: =IF(AE55>0,AE55,IFERROR(VLOOKUP(A55,Trava_Desconto!A:B,2,0),"")) -> 1 | AD55: =IFERROR(VLOOKUP(A55,Dados!A:H,8,0),"") -> 12 | AG55: =IFERROR(VLOOKUP(A55,'Relação SB e BURG - Preço Maior'!A:A,1,0),"") ->  | AT55: P01083 | AU55: Condicionador 250mL | AV55: CACHOS DEFINIDOS - PROBELLE | AW55: 0 | AX55: =IFERROR(VLOOKUP(AT55,'Tabela Preço Minimo'!$A$14:H1028,8,0),"") -> 2.401172956 | AY55: =IFERROR(IF(AW55>0,VLOOKUP(AT55,'Tabela Preço Minimo'!$A$14:$AB$984,27,0),""),"") ->  | AZ55: =IFERROR(VLOOKUP(AT55,Trava_Desconto!A31:U574,21,0),0) -> 0.35 | BA55: 0 | BB55: 0 | BE55: 0 | BG55: 0 | BH55: 0 | BI55: =VLOOKUP(AT55,BASE!AC:AM,11,0) -> 0 | BJ55: =IFERROR(VLOOKUP(AT55,Produtos_Linha!A:C,3,0),"") -> Profissional | BQ55: =IFERROR(VLOOKUP(AT55,'Tabela Preço Minimo'!$A$14:V592,22,0),"") -> 0 | BV55: =IFERROR(IF($BV$3<>200, IF($B$11=168,VLOOKUP(Pedido!AT55,Regra_Aplicação!$A$5:$D$99999,4,0), IF($B$11=715,VLOOKUP(Pedido!AT55,Regra_Aplicação!$A$5:$E$99999,5,0), IF($B$11=103,VLOOKUP(Pedido!AT55,Regra_Aplicação!$A$5:$F$99999,6,0), IF($B$11=713,VLOOKUP(Pedido!AT55,Regra_Aplicação!$A$5:$G$99999,7,0), IF($B$11=110,VLOOKUP(Pedido!AT55,Regra_Aplicação!$A$5:$H$99999,8,0), IF($B$11=211,VLOOKUP(Pedido!AT55,Regra_Aplicação!$A$5:$I$99999,9,0), IF($B$11=705,VLOOKUP(Pedido!AT55,Regra_Aplicação!$A$5:$J$99999,10,0), IF($B$11=121,VLOOKUP(Pedido!AT55,Regra_Aplicação!$A$5:$K$99999,11,0), IF($B$11=169,VLOOKUP(Pedido!AT55,Regra_Aplicação!$A$5:$L$99999,12,0),IF($B$11=717,VLOOKUP(Pedido!AT55,Regra_Aplicação!$A$5:$AN$99999,40,0), )))))))))),IF(OR($BV$5="RJ",$BV$5="MG",$BV$5="SP",$BV$5="RS",$BV$5="PR"), IF($B$11=168,VLOOKUP(Pedido!AT55,Regra_Aplicação!$A$5:$V$99999,22,0), IF($B$11=715,VLOOKUP(Pedido!AT55,Regra_Aplicação!$A$5:$W$99999,23,0), IF($B$11=103,VLOOKUP(Pedido!AT55,Regra_Aplicação!$A$5:$X$99999,24,0), IF($B$11=713,VLOOKUP(Pedido!AT55,Regra_Aplicação!$A$5:$Y$99999,25,0), IF($B$11=110,VLOOKUP(Pedido!AT55,Regra_Aplicação!$A$5:$Z$99999,26,0), IF($B$11=211,VLOOKUP(Pedido!AT55,Regra_Aplicação!$A$5:$AA$99999,27,0), IF($B$11=705,VLOOKUP(Pedido!AT55,Regra_Aplicação!$A$5:$AB$99999,28,0), IF($B$11=121,VLOOKUP(Pedido!AT55,Regra_Aplicação!$A$5:$AC$99999,29,0), IF($B$11=169,VLOOKUP(Pedido!AT55,Regra_Aplicação!$A$5:$AD$99999,30,0),))))))))), IF($BV$5="ES", IF($B$11=168,VLOOKUP(Pedido!AT55,Regra_Aplicação!$A$5:$AE$99999,31,0), IF($B$11=715,VLOOKUP(Pedido!AT55,Regra_Aplicação!$A$5:$AF$99999,32,0), IF($B$11=103,VLOOKUP(Pedido!AT55,Regra_Aplicação!$A$5:$AG$99999,33,0), IF($B$11=713,VLOOKUP(Pedido!AT55,Regra_Aplicação!$A$5:$AH$99999,34,0), IF($B$11=110,VLOOKUP(Pedido!AT55,Regra_Aplicação!$A$5:$AI$99999,35,0), IF($B$11=211,VLOOKUP(Pedido!AT55,Regra_Aplicação!$A$5:$AJ$99999,36,0), IF($B$11=705,VLOOKUP(Pedido!AT55,Regra_Aplicação!$A$5:$AK$99999,37,0), IF($B$11=121,VLOOKUP(Pedido!AT55,Regra_Aplicação!$A$5:$AL$99999,38,0), IF($B$11=169,VLOOKUP(Pedido!AT55,Regra_Aplicação!$A$5:$AM$99999,39,0),))))))))), IF($B$11=168,VLOOKUP(Pedido!AT55,Regra_Aplicação!$A$5:$M$99999,13,0), IF($B$11=715,VLOOKUP(Pedido!AT55,Regra_Aplicação!$A$5:$N$99999,14,0), IF($B$11=103,VLOOKUP(Pedido!AT55,Regra_Aplicação!$A$5:$O$99999,15,0), IF($B$11=713,VLOOKUP(Pedido!AT55,Regra_Aplicação!$A$5:$P$99999,16,0), IF($B$11=110,VLOOKUP(Pedido!AT55,Regra_Aplicação!$A$5:$Q$99999,17,0), IF($B$11=211,VLOOKUP(Pedido!AT55,Regra_Aplicação!$A$5:$R$99999,18,0), IF($B$11=705,VLOOKUP(Pedido!AT55,Regra_Aplicação!$A$5:$S$99999,19,0), IF($B$11=121,VLOOKUP(Pedido!AT55,Regra_Aplicação!$A$5:$T$99999,20,0), IF($B$11=169,VLOOKUP(Pedido!AT55,Regra_Aplicação!$A$5:$U$99999,21,0),)))))))))))),) -> 0
A56: =IFERROR(IF($B$15="TODOS",VLOOKUP($B$15,Catalogação!A33:B989,2,0),IF($B$15="ESPECIALIZADA",VLOOKUP($B$15,Catalogação!O33:P989,2,0),IF($B$15="DISTRIBUIDOR",VLOOKUP($B$15,Catalogação!X33:Y1029,2,0),IF($B$15="FARMA",VLOOKUP($B$15,Catalogação!AG33:AH1010,2,0),IF($B$15="SUPERMERCADO",VLOOKUP($B$15,Catalogação!AP33:AQ1032,2,0),IF($B$15="COMBO ESP (P)",VLOOKUP($B$15,Catalogação!$AY32:AZ1030,2,0),IF($B$15="COMBO ESP (M)",VLOOKUP($B$15,Catalogação!BH32:BI1030,2,0),IF($B$15="COMBO DIST (M)",VLOOKUP($B$15,Catalogação!BQ32:BR1030,2,0),IF($B$15="BONIFICADO",VLOOKUP($B$15,Catalogação!BZ33:CA1030,2,0),IF($B$15="FDL",VLOOKUP($B$15,Catalogação!CI33:CJ1030,2,0))))))))))),) -> P01085 | B56: =IFERROR(IF($B$15="FDL",VLOOKUP(A56,Catalogação!$CJ$1:CO607,2,0),VLOOKUP(Pedido!A56,Catalogação!B:G,2,0)),"") -> Shampoo 250mL | G56: =IFERROR(IF($B$15="FDL",VLOOKUP(A56,Catalogação!$CJ$1:CP607,7,0),VLOOKUP(Pedido!A56,Catalogação!$B$1:H2971,7,0)),"") -> 7898617525442 | H56: =IFERROR(IF($B$15="FDL",VLOOKUP(A56,Catalogação!$CJ$1:CQ58,8,0),VLOOKUP(Pedido!A56,Catalogação!$B$1:I424,8,0)),"") -> CACHOS SENSACIONAIS - PROBELLE | J56: =IFERROR(IF(AND($B$15="COMBO ESP (P)",$B$16="RJ"),VLOOKUP(A56,'Tabela Preço'!$Q$2:W1013,7,0),IF(AND(Pedido!$B$15="COMBO ESP (M)",Pedido!$B$16="RJ"),VLOOKUP(Pedido!A56,'Tabela Preço'!$Q$2:Y1013,8,0),IF(AND(Pedido!$B$15="COMBO ESP (P)",Pedido!$B$16="SP"),VLOOKUP(Pedido!A56,'Tabela Preço'!$Q$2:AB1013,11,0),IF(AND(Pedido!$B$15="COMBO ESP (M)",Pedido!$B$16="SP"),VLOOKUP(Pedido!A56,'Tabela Preço'!$Q$2:AC1013,12,0),IF(Pedido!$B$15="COMBO DIST (M)",VLOOKUP(Pedido!A56,'Tabela Preço'!$Q$2:Z1013,9,0),IF(Pedido!$B$15="COMBO DIST (G)",VLOOKUP(Pedido!A56,'Tabela Preço'!$Q$2:AA1013,10,0),IF($O$16=$P$16,VLOOKUP(A56,'Tabela Preço'!$A$3:E1013,2,0),IF(AND($B$15="COMBO ESP (P)",$B$16="RJ"),VLOOKUP(A56,'Tabela Preço'!$Q$2:W1013,7,0),IF(AND(Pedido!$B$15="COMBO ESP (M)",Pedido!$B$16="RJ"),VLOOKUP(Pedido!A56,'Tabela Preço'!$Q$2:Y1013,8,0),IF(AND(Pedido!$B$15="COMBO ESP (P)",Pedido!$B$16="MG"),VLOOKUP(Pedido!A56,'Tabela Preço'!$Q$2:AB1013,11,0),IF(AND(Pedido!$B$15="COMBO ESP (M)",Pedido!$B$16="MG"),VLOOKUP(Pedido!A56,'Tabela Preço'!$Q$2:AC1013,12,0),IF(Pedido!$B$15="COMBO DIST (M)",VLOOKUP(Pedido!A56,'Tabela Preço'!$Q$2:Z1013,9,0),IF(Pedido!$B$15="COMBO DIST (G)",VLOOKUP(Pedido!A56,'Tabela Preço'!Q33:AA1013,10,0),IF($O$16=$P$16,VLOOKUP(A56,'Tabela Preço'!$A$3:E1013,2,0),IF($O$16=$P$18,VLOOKUP(A56,'Tabela Preço'!$A$3:E1013,3,0),IF($O$16=$P$19,VLOOKUP(A56,'Tabela Preço'!$A$3:E3614,4,0),IF($O$16=$P$15,VLOOKUP(A56,'Tabela Preço'!$A$3:G3614,7,0),IF($O$16=$P$21,VLOOKUP(A56,'Tabela Preço'!A:K,11,0),IF($O$16=$P$20,VLOOKUP(A56,'Tabela Preço'!$A$3:E1013,5,0),IF($O$16=$P$22,VLOOKUP(A56,'Tabela Preço'!$A$3:F1013,6,0),"")))))))))))))))))))),) ->  | L56: 0 | M56: 0 | S56: 33.48876613 | AC56: =IF(AE56>0,AE56,IFERROR(VLOOKUP(A56,Trava_Desconto!A:B,2,0),"")) -> 1 | AD56: =IFERROR(VLOOKUP(A56,Dados!A:H,8,0),"") -> 12 | AG56: =IFERROR(VLOOKUP(A56,'Relação SB e BURG - Preço Maior'!A:A,1,0),"") ->  | AT56: P01085 | AU56: Shampoo 250mL | AV56: CACHOS SENSACIONAIS - PROBELLE | AW56: 0 | AX56: =IFERROR(VLOOKUP(AT56,'Tabela Preço Minimo'!$A$14:H1029,8,0),"") -> 2.270342222 | AY56: =IFERROR(IF(AW56>0,VLOOKUP(AT56,'Tabela Preço Minimo'!$A$14:$AB$984,27,0),""),"") ->  | AZ56: =IFERROR(VLOOKUP(AT56,Trava_Desconto!A32:U575,21,0),0) -> 0.1 | BA56: 0 | BB56: 0 | BE56: 0 | BG56: 0 | BH56: 0 | BI56: =VLOOKUP(AT56,BASE!AC:AM,11,0) -> 0 | BJ56: =IFERROR(VLOOKUP(AT56,Produtos_Linha!A:C,3,0),"") -> Profissional | BQ56: =IFERROR(VLOOKUP(AT56,'Tabela Preço Minimo'!$A$14:V593,22,0),"") -> 0 | BV56: =IFERROR(IF($BV$3<>200, IF($B$11=168,VLOOKUP(Pedido!AT56,Regra_Aplicação!$A$5:$D$99999,4,0), IF($B$11=715,VLOOKUP(Pedido!AT56,Regra_Aplicação!$A$5:$E$99999,5,0), IF($B$11=103,VLOOKUP(Pedido!AT56,Regra_Aplicação!$A$5:$F$99999,6,0), IF($B$11=713,VLOOKUP(Pedido!AT56,Regra_Aplicação!$A$5:$G$99999,7,0), IF($B$11=110,VLOOKUP(Pedido!AT56,Regra_Aplicação!$A$5:$H$99999,8,0), IF($B$11=211,VLOOKUP(Pedido!AT56,Regra_Aplicação!$A$5:$I$99999,9,0), IF($B$11=705,VLOOKUP(Pedido!AT56,Regra_Aplicação!$A$5:$J$99999,10,0), IF($B$11=121,VLOOKUP(Pedido!AT56,Regra_Aplicação!$A$5:$K$99999,11,0), IF($B$11=169,VLOOKUP(Pedido!AT56,Regra_Aplicação!$A$5:$L$99999,12,0),IF($B$11=717,VLOOKUP(Pedido!AT56,Regra_Aplicação!$A$5:$AN$99999,40,0), )))))))))),IF(OR($BV$5="RJ",$BV$5="MG",$BV$5="SP",$BV$5="RS",$BV$5="PR"), IF($B$11=168,VLOOKUP(Pedido!AT56,Regra_Aplicação!$A$5:$V$99999,22,0), IF($B$11=715,VLOOKUP(Pedido!AT56,Regra_Aplicação!$A$5:$W$99999,23,0), IF($B$11=103,VLOOKUP(Pedido!AT56,Regra_Aplicação!$A$5:$X$99999,24,0), IF($B$11=713,VLOOKUP(Pedido!AT56,Regra_Aplicação!$A$5:$Y$99999,25,0), IF($B$11=110,VLOOKUP(Pedido!AT56,Regra_Aplicação!$A$5:$Z$99999,26,0), IF($B$11=211,VLOOKUP(Pedido!AT56,Regra_Aplicação!$A$5:$AA$99999,27,0), IF($B$11=705,VLOOKUP(Pedido!AT56,Regra_Aplicação!$A$5:$AB$99999,28,0), IF($B$11=121,VLOOKUP(Pedido!AT56,Regra_Aplicação!$A$5:$AC$99999,29,0), IF($B$11=169,VLOOKUP(Pedido!AT56,Regra_Aplicação!$A$5:$AD$99999,30,0),))))))))), IF($BV$5="ES", IF($B$11=168,VLOOKUP(Pedido!AT56,Regra_Aplicação!$A$5:$AE$99999,31,0), IF($B$11=715,VLOOKUP(Pedido!AT56,Regra_Aplicação!$A$5:$AF$99999,32,0), IF($B$11=103,VLOOKUP(Pedido!AT56,Regra_Aplicação!$A$5:$AG$99999,33,0), IF($B$11=713,VLOOKUP(Pedido!AT56,Regra_Aplicação!$A$5:$AH$99999,34,0), IF($B$11=110,VLOOKUP(Pedido!AT56,Regra_Aplicação!$A$5:$AI$99999,35,0), IF($B$11=211,VLOOKUP(Pedido!AT56,Regra_Aplicação!$A$5:$AJ$99999,36,0), IF($B$11=705,VLOOKUP(Pedido!AT56,Regra_Aplicação!$A$5:$AK$99999,37,0), IF($B$11=121,VLOOKUP(Pedido!AT56,Regra_Aplicação!$A$5:$AL$99999,38,0), IF($B$11=169,VLOOKUP(Pedido!AT56,Regra_Aplicação!$A$5:$AM$99999,39,0),))))))))), IF($B$11=168,VLOOKUP(Pedido!AT56,Regra_Aplicação!$A$5:$M$99999,13,0), IF($B$11=715,VLOOKUP(Pedido!AT56,Regra_Aplicação!$A$5:$N$99999,14,0), IF($B$11=103,VLOOKUP(Pedido!AT56,Regra_Aplicação!$A$5:$O$99999,15,0), IF($B$11=713,VLOOKUP(Pedido!AT56,Regra_Aplicação!$A$5:$P$99999,16,0), IF($B$11=110,VLOOKUP(Pedido!AT56,Regra_Aplicação!$A$5:$Q$99999,17,0), IF($B$11=211,VLOOKUP(Pedido!AT56,Regra_Aplicação!$A$5:$R$99999,18,0), IF($B$11=705,VLOOKUP(Pedido!AT56,Regra_Aplicação!$A$5:$S$99999,19,0), IF($B$11=121,VLOOKUP(Pedido!AT56,Regra_Aplicação!$A$5:$T$99999,20,0), IF($B$11=169,VLOOKUP(Pedido!AT56,Regra_Aplicação!$A$5:$U$99999,21,0),)))))))))))),) -> 0
A57: =IFERROR(IF($B$15="TODOS",VLOOKUP($B$15,Catalogação!A34:B990,2,0),IF($B$15="ESPECIALIZADA",VLOOKUP($B$15,Catalogação!O34:P990,2,0),IF($B$15="DISTRIBUIDOR",VLOOKUP($B$15,Catalogação!X34:Y1030,2,0),IF($B$15="FARMA",VLOOKUP($B$15,Catalogação!AG34:AH1011,2,0),IF($B$15="SUPERMERCADO",VLOOKUP($B$15,Catalogação!AP34:AQ1033,2,0),IF($B$15="COMBO ESP (P)",VLOOKUP($B$15,Catalogação!$AY33:AZ1031,2,0),IF($B$15="COMBO ESP (M)",VLOOKUP($B$15,Catalogação!BH33:BI1031,2,0),IF($B$15="COMBO DIST (M)",VLOOKUP($B$15,Catalogação!BQ33:BR1031,2,0),IF($B$15="BONIFICADO",VLOOKUP($B$15,Catalogação!BZ34:CA1031,2,0),IF($B$15="FDL",VLOOKUP($B$15,Catalogação!CI34:CJ1031,2,0))))))))))),) -> P01086 | B57: =IFERROR(IF($B$15="FDL",VLOOKUP(A57,Catalogação!$CJ$1:CO608,2,0),VLOOKUP(Pedido!A57,Catalogação!B:G,2,0)),"") -> Condicionador 250mL | G57: =IFERROR(IF($B$15="FDL",VLOOKUP(A57,Catalogação!$CJ$1:CP608,7,0),VLOOKUP(Pedido!A57,Catalogação!$B$1:H2972,7,0)),"") -> 7898617525435 | H57: =IFERROR(IF($B$15="FDL",VLOOKUP(A57,Catalogação!$CJ$1:CQ59,8,0),VLOOKUP(Pedido!A57,Catalogação!$B$1:I425,8,0)),"") -> CACHOS SENSACIONAIS - PROBELLE | J57: =IFERROR(IF(AND($B$15="COMBO ESP (P)",$B$16="RJ"),VLOOKUP(A57,'Tabela Preço'!$Q$2:W1014,7,0),IF(AND(Pedido!$B$15="COMBO ESP (M)",Pedido!$B$16="RJ"),VLOOKUP(Pedido!A57,'Tabela Preço'!$Q$2:Y1014,8,0),IF(AND(Pedido!$B$15="COMBO ESP (P)",Pedido!$B$16="SP"),VLOOKUP(Pedido!A57,'Tabela Preço'!$Q$2:AB1014,11,0),IF(AND(Pedido!$B$15="COMBO ESP (M)",Pedido!$B$16="SP"),VLOOKUP(Pedido!A57,'Tabela Preço'!$Q$2:AC1014,12,0),IF(Pedido!$B$15="COMBO DIST (M)",VLOOKUP(Pedido!A57,'Tabela Preço'!$Q$2:Z1014,9,0),IF(Pedido!$B$15="COMBO DIST (G)",VLOOKUP(Pedido!A57,'Tabela Preço'!$Q$2:AA1014,10,0),IF($O$16=$P$16,VLOOKUP(A57,'Tabela Preço'!$A$3:E1014,2,0),IF(AND($B$15="COMBO ESP (P)",$B$16="RJ"),VLOOKUP(A57,'Tabela Preço'!$Q$2:W1014,7,0),IF(AND(Pedido!$B$15="COMBO ESP (M)",Pedido!$B$16="RJ"),VLOOKUP(Pedido!A57,'Tabela Preço'!$Q$2:Y1014,8,0),IF(AND(Pedido!$B$15="COMBO ESP (P)",Pedido!$B$16="MG"),VLOOKUP(Pedido!A57,'Tabela Preço'!$Q$2:AB1014,11,0),IF(AND(Pedido!$B$15="COMBO ESP (M)",Pedido!$B$16="MG"),VLOOKUP(Pedido!A57,'Tabela Preço'!$Q$2:AC1014,12,0),IF(Pedido!$B$15="COMBO DIST (M)",VLOOKUP(Pedido!A57,'Tabela Preço'!$Q$2:Z1014,9,0),IF(Pedido!$B$15="COMBO DIST (G)",VLOOKUP(Pedido!A57,'Tabela Preço'!Q34:AA1014,10,0),IF($O$16=$P$16,VLOOKUP(A57,'Tabela Preço'!$A$3:E1014,2,0),IF($O$16=$P$18,VLOOKUP(A57,'Tabela Preço'!$A$3:E1014,3,0),IF($O$16=$P$19,VLOOKUP(A57,'Tabela Preço'!$A$3:E3615,4,0),IF($O$16=$P$15,VLOOKUP(A57,'Tabela Preço'!$A$3:G3615,7,0),IF($O$16=$P$21,VLOOKUP(A57,'Tabela Preço'!A:K,11,0),IF($O$16=$P$20,VLOOKUP(A57,'Tabela Preço'!$A$3:E1014,5,0),IF($O$16=$P$22,VLOOKUP(A57,'Tabela Preço'!$A$3:F1014,6,0),"")))))))))))))))))))),) ->  | L57: 0 | M57: 0 | S57: 34.48876613 | AC57: =IF(AE57>0,AE57,IFERROR(VLOOKUP(A57,Trava_Desconto!A:B,2,0),"")) -> 1 | AD57: =IFERROR(VLOOKUP(A57,Dados!A:H,8,0),"") -> 12 | AG57: =IFERROR(VLOOKUP(A57,'Relação SB e BURG - Preço Maior'!A:A,1,0),"") ->  | AT57: P01086 | AU57: Condicionador 250mL | AV57: CACHOS SENSACIONAIS - PROBELLE | AW57: 0 | AX57: =IFERROR(VLOOKUP(AT57,'Tabela Preço Minimo'!$A$14:H1030,8,0),"") -> 2.3757046 | AY57: =IFERROR(IF(AW57>0,VLOOKUP(AT57,'Tabela Preço Minimo'!$A$14:$AB$984,27,0),""),"") ->  | AZ57: =IFERROR(VLOOKUP(AT57,Trava_Desconto!A33:U576,21,0),0) -> 0.1 | BA57: 0 | BB57: 0 | BE57: 0 | BG57: 0 | BH57: 0 | BI57: =VLOOKUP(AT57,BASE!AC:AM,11,0) -> 0 | BJ57: =IFERROR(VLOOKUP(AT57,Produtos_Linha!A:C,3,0),"") -> Profissional | BQ57: =IFERROR(VLOOKUP(AT57,'Tabela Preço Minimo'!$A$14:V594,22,0),"") -> 0 | BV57: =IFERROR(IF($BV$3<>200, IF($B$11=168,VLOOKUP(Pedido!AT57,Regra_Aplicação!$A$5:$D$99999,4,0), IF($B$11=715,VLOOKUP(Pedido!AT57,Regra_Aplicação!$A$5:$E$99999,5,0), IF($B$11=103,VLOOKUP(Pedido!AT57,Regra_Aplicação!$A$5:$F$99999,6,0), IF($B$11=713,VLOOKUP(Pedido!AT57,Regra_Aplicação!$A$5:$G$99999,7,0), IF($B$11=110,VLOOKUP(Pedido!AT57,Regra_Aplicação!$A$5:$H$99999,8,0), IF($B$11=211,VLOOKUP(Pedido!AT57,Regra_Aplicação!$A$5:$I$99999,9,0), IF($B$11=705,VLOOKUP(Pedido!AT57,Regra_Aplicação!$A$5:$J$99999,10,0), IF($B$11=121,VLOOKUP(Pedido!AT57,Regra_Aplicação!$A$5:$K$99999,11,0), IF($B$11=169,VLOOKUP(Pedido!AT57,Regra_Aplicação!$A$5:$L$99999,12,0),IF($B$11=717,VLOOKUP(Pedido!AT57,Regra_Aplicação!$A$5:$AN$99999,40,0), )))))))))),IF(OR($BV$5="RJ",$BV$5="MG",$BV$5="SP",$BV$5="RS",$BV$5="PR"), IF($B$11=168,VLOOKUP(Pedido!AT57,Regra_Aplicação!$A$5:$V$99999,22,0), IF($B$11=715,VLOOKUP(Pedido!AT57,Regra_Aplicação!$A$5:$W$99999,23,0), IF($B$11=103,VLOOKUP(Pedido!AT57,Regra_Aplicação!$A$5:$X$99999,24,0), IF($B$11=713,VLOOKUP(Pedido!AT57,Regra_Aplicação!$A$5:$Y$99999,25,0), IF($B$11=110,VLOOKUP(Pedido!AT57,Regra_Aplicação!$A$5:$Z$99999,26,0), IF($B$11=211,VLOOKUP(Pedido!AT57,Regra_Aplicação!$A$5:$AA$99999,27,0), IF($B$11=705,VLOOKUP(Pedido!AT57,Regra_Aplicação!$A$5:$AB$99999,28,0), IF($B$11=121,VLOOKUP(Pedido!AT57,Regra_Aplicação!$A$5:$AC$99999,29,0), IF($B$11=169,VLOOKUP(Pedido!AT57,Regra_Aplicação!$A$5:$AD$99999,30,0),))))))))), IF($BV$5="ES", IF($B$11=168,VLOOKUP(Pedido!AT57,Regra_Aplicação!$A$5:$AE$99999,31,0), IF($B$11=715,VLOOKUP(Pedido!AT57,Regra_Aplicação!$A$5:$AF$99999,32,0), IF($B$11=103,VLOOKUP(Pedido!AT57,Regra_Aplicação!$A$5:$AG$99999,33,0), IF($B$11=713,VLOOKUP(Pedido!AT57,Regra_Aplicação!$A$5:$AH$99999,34,0), IF($B$11=110,VLOOKUP(Pedido!AT57,Regra_Aplicação!$A$5:$AI$99999,35,0), IF($B$11=211,VLOOKUP(Pedido!AT57,Regra_Aplicação!$A$5:$AJ$99999,36,0), IF($B$11=705,VLOOKUP(Pedido!AT57,Regra_Aplicação!$A$5:$AK$99999,37,0), IF($B$11=121,VLOOKUP(Pedido!AT57,Regra_Aplicação!$A$5:$AL$99999,38,0), IF($B$11=169,VLOOKUP(Pedido!AT57,Regra_Aplicação!$A$5:$AM$99999,39,0),))))))))), IF($B$11=168,VLOOKUP(Pedido!AT57,Regra_Aplicação!$A$5:$M$99999,13,0), IF($B$11=715,VLOOKUP(Pedido!AT57,Regra_Aplicação!$A$5:$N$99999,14,0), IF($B$11=103,VLOOKUP(Pedido!AT57,Regra_Aplicação!$A$5:$O$99999,15,0), IF($B$11=713,VLOOKUP(Pedido!AT57,Regra_Aplicação!$A$5:$P$99999,16,0), IF($B$11=110,VLOOKUP(Pedido!AT57,Regra_Aplicação!$A$5:$Q$99999,17,0), IF($B$11=211,VLOOKUP(Pedido!AT57,Regra_Aplicação!$A$5:$R$99999,18,0), IF($B$11=705,VLOOKUP(Pedido!AT57,Regra_Aplicação!$A$5:$S$99999,19,0), IF($B$11=121,VLOOKUP(Pedido!AT57,Regra_Aplicação!$A$5:$T$99999,20,0), IF($B$11=169,VLOOKUP(Pedido!AT57,Regra_Aplicação!$A$5:$U$99999,21,0),)))))))))))),) -> 0
A58: =IFERROR(IF($B$15="TODOS",VLOOKUP($B$15,Catalogação!A35:B991,2,0),IF($B$15="ESPECIALIZADA",VLOOKUP($B$15,Catalogação!O35:P991,2,0),IF($B$15="DISTRIBUIDOR",VLOOKUP($B$15,Catalogação!X35:Y1031,2,0),IF($B$15="FARMA",VLOOKUP($B$15,Catalogação!AG35:AH1012,2,0),IF($B$15="SUPERMERCADO",VLOOKUP($B$15,Catalogação!AP35:AQ1034,2,0),IF($B$15="COMBO ESP (P)",VLOOKUP($B$15,Catalogação!$AY34:AZ1032,2,0),IF($B$15="COMBO ESP (M)",VLOOKUP($B$15,Catalogação!BH34:BI1032,2,0),IF($B$15="COMBO DIST (M)",VLOOKUP($B$15,Catalogação!BQ34:BR1032,2,0),IF($B$15="BONIFICADO",VLOOKUP($B$15,Catalogação!BZ35:CA1032,2,0),IF($B$15="FDL",VLOOKUP($B$15,Catalogação!CI35:CJ1032,2,0))))))))))),) -> P01087 | B58: =IFERROR(IF($B$15="FDL",VLOOKUP(A58,Catalogação!$CJ$1:CO609,2,0),VLOOKUP(Pedido!A58,Catalogação!B:G,2,0)),"") -> Máscara 250g | G58: =IFERROR(IF($B$15="FDL",VLOOKUP(A58,Catalogação!$CJ$1:CP609,7,0),VLOOKUP(Pedido!A58,Catalogação!$B$1:H2973,7,0)),"") -> 7898617525428 | H58: =IFERROR(IF($B$15="FDL",VLOOKUP(A58,Catalogação!$CJ$1:CQ60,8,0),VLOOKUP(Pedido!A58,Catalogação!$B$1:I426,8,0)),"") -> CACHOS SENSACIONAIS - PROBELLE | J58: =IFERROR(IF(AND($B$15="COMBO ESP (P)",$B$16="RJ"),VLOOKUP(A58,'Tabela Preço'!$Q$2:W1015,7,0),IF(AND(Pedido!$B$15="COMBO ESP (M)",Pedido!$B$16="RJ"),VLOOKUP(Pedido!A58,'Tabela Preço'!$Q$2:Y1015,8,0),IF(AND(Pedido!$B$15="COMBO ESP (P)",Pedido!$B$16="SP"),VLOOKUP(Pedido!A58,'Tabela Preço'!$Q$2:AB1015,11,0),IF(AND(Pedido!$B$15="COMBO ESP (M)",Pedido!$B$16="SP"),VLOOKUP(Pedido!A58,'Tabela Preço'!$Q$2:AC1015,12,0),IF(Pedido!$B$15="COMBO DIST (M)",VLOOKUP(Pedido!A58,'Tabela Preço'!$Q$2:Z1015,9,0),IF(Pedido!$B$15="COMBO DIST (G)",VLOOKUP(Pedido!A58,'Tabela Preço'!$Q$2:AA1015,10,0),IF($O$16=$P$16,VLOOKUP(A58,'Tabela Preço'!$A$3:E1015,2,0),IF(AND($B$15="COMBO ESP (P)",$B$16="RJ"),VLOOKUP(A58,'Tabela Preço'!$Q$2:W1015,7,0),IF(AND(Pedido!$B$15="COMBO ESP (M)",Pedido!$B$16="RJ"),VLOOKUP(Pedido!A58,'Tabela Preço'!$Q$2:Y1015,8,0),IF(AND(Pedido!$B$15="COMBO ESP (P)",Pedido!$B$16="MG"),VLOOKUP(Pedido!A58,'Tabela Preço'!$Q$2:AB1015,11,0),IF(AND(Pedido!$B$15="COMBO ESP (M)",Pedido!$B$16="MG"),VLOOKUP(Pedido!A58,'Tabela Preço'!$Q$2:AC1015,12,0),IF(Pedido!$B$15="COMBO DIST (M)",VLOOKUP(Pedido!A58,'Tabela Preço'!$Q$2:Z1015,9,0),IF(Pedido!$B$15="COMBO DIST (G)",VLOOKUP(Pedido!A58,'Tabela Preço'!Q35:AA1015,10,0),IF($O$16=$P$16,VLOOKUP(A58,'Tabela Preço'!$A$3:E1015,2,0),IF($O$16=$P$18,VLOOKUP(A58,'Tabela Preço'!$A$3:E1015,3,0),IF($O$16=$P$19,VLOOKUP(A58,'Tabela Preço'!$A$3:E3616,4,0),IF($O$16=$P$15,VLOOKUP(A58,'Tabela Preço'!$A$3:G3616,7,0),IF($O$16=$P$21,VLOOKUP(A58,'Tabela Preço'!A:K,11,0),IF($O$16=$P$20,VLOOKUP(A58,'Tabela Preço'!$A$3:E1015,5,0),IF($O$16=$P$22,VLOOKUP(A58,'Tabela Preço'!$A$3:F1015,6,0),"")))))))))))))))))))),) ->  | L58: 0 | M58: 0 | S58: 35.48876613 | AC58: =IF(AE58>0,AE58,IFERROR(VLOOKUP(A58,Trava_Desconto!A:B,2,0),"")) -> 1 | AD58: =IFERROR(VLOOKUP(A58,Dados!A:H,8,0),"") -> 12 | AG58: =IFERROR(VLOOKUP(A58,'Relação SB e BURG - Preço Maior'!A:A,1,0),"") ->  | AT58: P01087 | AU58: Máscara 250g | AV58: CACHOS SENSACIONAIS - PROBELLE | AW58: 0 | AX58: =IFERROR(VLOOKUP(AT58,'Tabela Preço Minimo'!$A$14:H1031,8,0),"") -> 3.154210993 | AY58: =IFERROR(IF(AW58>0,VLOOKUP(AT58,'Tabela Preço Minimo'!$A$14:$AB$984,27,0),""),"") ->  | AZ58: =IFERROR(VLOOKUP(AT58,Trava_Desconto!A34:U577,21,0),0) -> 0.1 | BA58: 0 | BB58: 0 | BE58: 0 | BG58: 0 | BH58: 0 | BI58: =VLOOKUP(AT58,BASE!AC:AM,11,0) -> 0 | BJ58: =IFERROR(VLOOKUP(AT58,Produtos_Linha!A:C,3,0),"") -> Profissional | BQ58: =IFERROR(VLOOKUP(AT58,'Tabela Preço Minimo'!$A$14:V595,22,0),"") -> 0 | BV58: =IFERROR(IF($BV$3<>200, IF($B$11=168,VLOOKUP(Pedido!AT58,Regra_Aplicação!$A$5:$D$99999,4,0), IF($B$11=715,VLOOKUP(Pedido!AT58,Regra_Aplicação!$A$5:$E$99999,5,0), IF($B$11=103,VLOOKUP(Pedido!AT58,Regra_Aplicação!$A$5:$F$99999,6,0), IF($B$11=713,VLOOKUP(Pedido!AT58,Regra_Aplicação!$A$5:$G$99999,7,0), IF($B$11=110,VLOOKUP(Pedido!AT58,Regra_Aplicação!$A$5:$H$99999,8,0), IF($B$11=211,VLOOKUP(Pedido!AT58,Regra_Aplicação!$A$5:$I$99999,9,0), IF($B$11=705,VLOOKUP(Pedido!AT58,Regra_Aplicação!$A$5:$J$99999,10,0), IF($B$11=121,VLOOKUP(Pedido!AT58,Regra_Aplicação!$A$5:$K$99999,11,0), IF($B$11=169,VLOOKUP(Pedido!AT58,Regra_Aplicação!$A$5:$L$99999,12,0),IF($B$11=717,VLOOKUP(Pedido!AT58,Regra_Aplicação!$A$5:$AN$99999,40,0), )))))))))),IF(OR($BV$5="RJ",$BV$5="MG",$BV$5="SP",$BV$5="RS",$BV$5="PR"), IF($B$11=168,VLOOKUP(Pedido!AT58,Regra_Aplicação!$A$5:$V$99999,22,0), IF($B$11=715,VLOOKUP(Pedido!AT58,Regra_Aplicação!$A$5:$W$99999,23,0), IF($B$11=103,VLOOKUP(Pedido!AT58,Regra_Aplicação!$A$5:$X$99999,24,0), IF($B$11=713,VLOOKUP(Pedido!AT58,Regra_Aplicação!$A$5:$Y$99999,25,0), IF($B$11=110,VLOOKUP(Pedido!AT58,Regra_Aplicação!$A$5:$Z$99999,26,0), IF($B$11=211,VLOOKUP(Pedido!AT58,Regra_Aplicação!$A$5:$AA$99999,27,0), IF($B$11=705,VLOOKUP(Pedido!AT58,Regra_Aplicação!$A$5:$AB$99999,28,0), IF($B$11=121,VLOOKUP(Pedido!AT58,Regra_Aplicação!$A$5:$AC$99999,29,0), IF($B$11=169,VLOOKUP(Pedido!AT58,Regra_Aplicação!$A$5:$AD$99999,30,0),))))))))), IF($BV$5="ES", IF($B$11=168,VLOOKUP(Pedido!AT58,Regra_Aplicação!$A$5:$AE$99999,31,0), IF($B$11=715,VLOOKUP(Pedido!AT58,Regra_Aplicação!$A$5:$AF$99999,32,0), IF($B$11=103,VLOOKUP(Pedido!AT58,Regra_Aplicação!$A$5:$AG$99999,33,0), IF($B$11=713,VLOOKUP(Pedido!AT58,Regra_Aplicação!$A$5:$AH$99999,34,0), IF($B$11=110,VLOOKUP(Pedido!AT58,Regra_Aplicação!$A$5:$AI$99999,35,0), IF($B$11=211,VLOOKUP(Pedido!AT58,Regra_Aplicação!$A$5:$AJ$99999,36,0), IF($B$11=705,VLOOKUP(Pedido!AT58,Regra_Aplicação!$A$5:$AK$99999,37,0), IF($B$11=121,VLOOKUP(Pedido!AT58,Regra_Aplicação!$A$5:$AL$99999,38,0), IF($B$11=169,VLOOKUP(Pedido!AT58,Regra_Aplicação!$A$5:$AM$99999,39,0),))))))))), IF($B$11=168,VLOOKUP(Pedido!AT58,Regra_Aplicação!$A$5:$M$99999,13,0), IF($B$11=715,VLOOKUP(Pedido!AT58,Regra_Aplicação!$A$5:$N$99999,14,0), IF($B$11=103,VLOOKUP(Pedido!AT58,Regra_Aplicação!$A$5:$O$99999,15,0), IF($B$11=713,VLOOKUP(Pedido!AT58,Regra_Aplicação!$A$5:$P$99999,16,0), IF($B$11=110,VLOOKUP(Pedido!AT58,Regra_Aplicação!$A$5:$Q$99999,17,0), IF($B$11=211,VLOOKUP(Pedido!AT58,Regra_Aplicação!$A$5:$R$99999,18,0), IF($B$11=705,VLOOKUP(Pedido!AT58,Regra_Aplicação!$A$5:$S$99999,19,0), IF($B$11=121,VLOOKUP(Pedido!AT58,Regra_Aplicação!$A$5:$T$99999,20,0), IF($B$11=169,VLOOKUP(Pedido!AT58,Regra_Aplicação!$A$5:$U$99999,21,0),)))))))))))),) -> 0
A59: =IFERROR(IF($B$15="TODOS",VLOOKUP($B$15,Catalogação!A36:B992,2,0),IF($B$15="ESPECIALIZADA",VLOOKUP($B$15,Catalogação!O36:P992,2,0),IF($B$15="DISTRIBUIDOR",VLOOKUP($B$15,Catalogação!X36:Y1032,2,0),IF($B$15="FARMA",VLOOKUP($B$15,Catalogação!AG36:AH1013,2,0),IF($B$15="SUPERMERCADO",VLOOKUP($B$15,Catalogação!AP36:AQ1035,2,0),IF($B$15="COMBO ESP (P)",VLOOKUP($B$15,Catalogação!$AY35:AZ1033,2,0),IF($B$15="COMBO ESP (M)",VLOOKUP($B$15,Catalogação!BH35:BI1033,2,0),IF($B$15="COMBO DIST (M)",VLOOKUP($B$15,Catalogação!BQ35:BR1033,2,0),IF($B$15="BONIFICADO",VLOOKUP($B$15,Catalogação!BZ36:CA1033,2,0),IF($B$15="FDL",VLOOKUP($B$15,Catalogação!CI36:CJ1033,2,0))))))))))),) -> P01505 | B59: =IFERROR(IF($B$15="FDL",VLOOKUP(A59,Catalogação!$CJ$1:CO610,2,0),VLOOKUP(Pedido!A59,Catalogação!B:G,2,0)),"") -> Shampoo Transição Capilar 250mL | G59: =IFERROR(IF($B$15="FDL",VLOOKUP(A59,Catalogação!$CJ$1:CP610,7,0),VLOOKUP(Pedido!A59,Catalogação!$B$1:H2974,7,0)),"") -> 7898617527217 | H59: =IFERROR(IF($B$15="FDL",VLOOKUP(A59,Catalogação!$CJ$1:CQ61,8,0),VLOOKUP(Pedido!A59,Catalogação!$B$1:I427,8,0)),"") -> TRANSIÇÃO CAPILAR - PROBELLE | J59: =IFERROR(IF(AND($B$15="COMBO ESP (P)",$B$16="RJ"),VLOOKUP(A59,'Tabela Preço'!$Q$2:W1016,7,0),IF(AND(Pedido!$B$15="COMBO ESP (M)",Pedido!$B$16="RJ"),VLOOKUP(Pedido!A59,'Tabela Preço'!$Q$2:Y1016,8,0),IF(AND(Pedido!$B$15="COMBO ESP (P)",Pedido!$B$16="SP"),VLOOKUP(Pedido!A59,'Tabela Preço'!$Q$2:AB1016,11,0),IF(AND(Pedido!$B$15="COMBO ESP (M)",Pedido!$B$16="SP"),VLOOKUP(Pedido!A59,'Tabela Preço'!$Q$2:AC1016,12,0),IF(Pedido!$B$15="COMBO DIST (M)",VLOOKUP(Pedido!A59,'Tabela Preço'!$Q$2:Z1016,9,0),IF(Pedido!$B$15="COMBO DIST (G)",VLOOKUP(Pedido!A59,'Tabela Preço'!$Q$2:AA1016,10,0),IF($O$16=$P$16,VLOOKUP(A59,'Tabela Preço'!$A$3:E1016,2,0),IF(AND($B$15="COMBO ESP (P)",$B$16="RJ"),VLOOKUP(A59,'Tabela Preço'!$Q$2:W1016,7,0),IF(AND(Pedido!$B$15="COMBO ESP (M)",Pedido!$B$16="RJ"),VLOOKUP(Pedido!A59,'Tabela Preço'!$Q$2:Y1016,8,0),IF(AND(Pedido!$B$15="COMBO ESP (P)",Pedido!$B$16="MG"),VLOOKUP(Pedido!A59,'Tabela Preço'!$Q$2:AB1016,11,0),IF(AND(Pedido!$B$15="COMBO ESP (M)",Pedido!$B$16="MG"),VLOOKUP(Pedido!A59,'Tabela Preço'!$Q$2:AC1016,12,0),IF(Pedido!$B$15="COMBO DIST (M)",VLOOKUP(Pedido!A59,'Tabela Preço'!$Q$2:Z1016,9,0),IF(Pedido!$B$15="COMBO DIST (G)",VLOOKUP(Pedido!A59,'Tabela Preço'!Q36:AA1016,10,0),IF($O$16=$P$16,VLOOKUP(A59,'Tabela Preço'!$A$3:E1016,2,0),IF($O$16=$P$18,VLOOKUP(A59,'Tabela Preço'!$A$3:E1016,3,0),IF($O$16=$P$19,VLOOKUP(A59,'Tabela Preço'!$A$3:E3617,4,0),IF($O$16=$P$15,VLOOKUP(A59,'Tabela Preço'!$A$3:G3617,7,0),IF($O$16=$P$21,VLOOKUP(A59,'Tabela Preço'!A:K,11,0),IF($O$16=$P$20,VLOOKUP(A59,'Tabela Preço'!$A$3:E1016,5,0),IF($O$16=$P$22,VLOOKUP(A59,'Tabela Preço'!$A$3:F1016,6,0),"")))))))))))))))))))),) ->  | L59: 0 | M59: 0 | S59: 36.48876613 | AC59: =IF(AE59>0,AE59,IFERROR(VLOOKUP(A59,Trava_Desconto!A:B,2,0),"")) -> 1 | AD59: =IFERROR(VLOOKUP(A59,Dados!A:H,8,0),"") -> 12 | AG59: =IFERROR(VLOOKUP(A59,'Relação SB e BURG - Preço Maior'!A:A,1,0),"") ->  | AT59: P01505 | AU59: Shampoo Transição Capilar 250mL | AV59: TRANSIÇÃO CAPILAR - PROBELLE | AW59: 0 | AX59: =IFERROR(VLOOKUP(AT59,'Tabela Preço Minimo'!$A$14:H1032,8,0),"") -> 3.159708175 | AY59: =IFERROR(IF(AW59>0,VLOOKUP(AT59,'Tabela Preço Minimo'!$A$14:$AB$984,27,0),""),"") ->  | AZ59: =IFERROR(VLOOKUP(AT59,Trava_Desconto!A35:U578,21,0),0) -> 0.1 | BA59: 0 | BB59: 0 | BE59: 0 | BG59: 0 | BH59: 0 | BI59: =VLOOKUP(AT59,BASE!AC:AM,11,0) -> 0 | BJ59: =IFERROR(VLOOKUP(AT59,Produtos_Linha!A:C,3,0),"") -> Profissional | BQ59: =IFERROR(VLOOKUP(AT59,'Tabela Preço Minimo'!$A$14:V596,22,0),"") -> 0 | BV59: =IFERROR(IF($BV$3<>200, IF($B$11=168,VLOOKUP(Pedido!AT59,Regra_Aplicação!$A$5:$D$99999,4,0), IF($B$11=715,VLOOKUP(Pedido!AT59,Regra_Aplicação!$A$5:$E$99999,5,0), IF($B$11=103,VLOOKUP(Pedido!AT59,Regra_Aplicação!$A$5:$F$99999,6,0), IF($B$11=713,VLOOKUP(Pedido!AT59,Regra_Aplicação!$A$5:$G$99999,7,0), IF($B$11=110,VLOOKUP(Pedido!AT59,Regra_Aplicação!$A$5:$H$99999,8,0), IF($B$11=211,VLOOKUP(Pedido!AT59,Regra_Aplicação!$A$5:$I$99999,9,0), IF($B$11=705,VLOOKUP(Pedido!AT59,Regra_Aplicação!$A$5:$J$99999,10,0), IF($B$11=121,VLOOKUP(Pedido!AT59,Regra_Aplicação!$A$5:$K$99999,11,0), IF($B$11=169,VLOOKUP(Pedido!AT59,Regra_Aplicação!$A$5:$L$99999,12,0),IF($B$11=717,VLOOKUP(Pedido!AT59,Regra_Aplicação!$A$5:$AN$99999,40,0), )))))))))),IF(OR($BV$5="RJ",$BV$5="MG",$BV$5="SP",$BV$5="RS",$BV$5="PR"), IF($B$11=168,VLOOKUP(Pedido!AT59,Regra_Aplicação!$A$5:$V$99999,22,0), IF($B$11=715,VLOOKUP(Pedido!AT59,Regra_Aplicação!$A$5:$W$99999,23,0), IF($B$11=103,VLOOKUP(Pedido!AT59,Regra_Aplicação!$A$5:$X$99999,24,0), IF($B$11=713,VLOOKUP(Pedido!AT59,Regra_Aplicação!$A$5:$Y$99999,25,0), IF($B$11=110,VLOOKUP(Pedido!AT59,Regra_Aplicação!$A$5:$Z$99999,26,0), IF($B$11=211,VLOOKUP(Pedido!AT59,Regra_Aplicação!$A$5:$AA$99999,27,0), IF($B$11=705,VLOOKUP(Pedido!AT59,Regra_Aplicação!$A$5:$AB$99999,28,0), IF($B$11=121,VLOOKUP(Pedido!AT59,Regra_Aplicação!$A$5:$AC$99999,29,0), IF($B$11=169,VLOOKUP(Pedido!AT59,Regra_Aplicação!$A$5:$AD$99999,30,0),))))))))), IF($BV$5="ES", IF($B$11=168,VLOOKUP(Pedido!AT59,Regra_Aplicação!$A$5:$AE$99999,31,0), IF($B$11=715,VLOOKUP(Pedido!AT59,Regra_Aplicação!$A$5:$AF$99999,32,0), IF($B$11=103,VLOOKUP(Pedido!AT59,Regra_Aplicação!$A$5:$AG$99999,33,0), IF($B$11=713,VLOOKUP(Pedido!AT59,Regra_Aplicação!$A$5:$AH$99999,34,0), IF($B$11=110,VLOOKUP(Pedido!AT59,Regra_Aplicação!$A$5:$AI$99999,35,0), IF($B$11=211,VLOOKUP(Pedido!AT59,Regra_Aplicação!$A$5:$AJ$99999,36,0), IF($B$11=705,VLOOKUP(Pedido!AT59,Regra_Aplicação!$A$5:$AK$99999,37,0), IF($B$11=121,VLOOKUP(Pedido!AT59,Regra_Aplicação!$A$5:$AL$99999,38,0), IF($B$11=169,VLOOKUP(Pedido!AT59,Regra_Aplicação!$A$5:$AM$99999,39,0),))))))))), IF($B$11=168,VLOOKUP(Pedido!AT59,Regra_Aplicação!$A$5:$M$99999,13,0), IF($B$11=715,VLOOKUP(Pedido!AT59,Regra_Aplicação!$A$5:$N$99999,14,0), IF($B$11=103,VLOOKUP(Pedido!AT59,Regra_Aplicação!$A$5:$O$99999,15,0), IF($B$11=713,VLOOKUP(Pedido!AT59,Regra_Aplicação!$A$5:$P$99999,16,0), IF($B$11=110,VLOOKUP(Pedido!AT59,Regra_Aplicação!$A$5:$Q$99999,17,0), IF($B$11=211,VLOOKUP(Pedido!AT59,Regra_Aplicação!$A$5:$R$99999,18,0), IF($B$11=705,VLOOKUP(Pedido!AT59,Regra_Aplicação!$A$5:$S$99999,19,0), IF($B$11=121,VLOOKUP(Pedido!AT59,Regra_Aplicação!$A$5:$T$99999,20,0), IF($B$11=169,VLOOKUP(Pedido!AT59,Regra_Aplicação!$A$5:$U$99999,21,0),)))))))))))),) -> 0
A60: =IFERROR(IF($B$15="TODOS",VLOOKUP($B$15,Catalogação!A37:B993,2,0),IF($B$15="ESPECIALIZADA",VLOOKUP($B$15,Catalogação!O37:P993,2,0),IF($B$15="DISTRIBUIDOR",VLOOKUP($B$15,Catalogação!X37:Y1033,2,0),IF($B$15="FARMA",VLOOKUP($B$15,Catalogação!AG37:AH1014,2,0),IF($B$15="SUPERMERCADO",VLOOKUP($B$15,Catalogação!AP37:AQ1036,2,0),IF($B$15="COMBO ESP (P)",VLOOKUP($B$15,Catalogação!$AY36:AZ1034,2,0),IF($B$15="COMBO ESP (M)",VLOOKUP($B$15,Catalogação!BH36:BI1034,2,0),IF($B$15="COMBO DIST (M)",VLOOKUP($B$15,Catalogação!BQ36:BR1034,2,0),IF($B$15="BONIFICADO",VLOOKUP($B$15,Catalogação!BZ37:CA1034,2,0),IF($B$15="FDL",VLOOKUP($B$15,Catalogação!CI37:CJ1034,2,0))))))))))),) -> P01506 | B60: =IFERROR(IF($B$15="FDL",VLOOKUP(A60,Catalogação!$CJ$1:CO611,2,0),VLOOKUP(Pedido!A60,Catalogação!B:G,2,0)),"") -> Condicionador Transição Capilar 250mL | G60: =IFERROR(IF($B$15="FDL",VLOOKUP(A60,Catalogação!$CJ$1:CP611,7,0),VLOOKUP(Pedido!A60,Catalogação!$B$1:H2975,7,0)),"") -> 7898617527200 | H60: =IFERROR(IF($B$15="FDL",VLOOKUP(A60,Catalogação!$CJ$1:CQ62,8,0),VLOOKUP(Pedido!A60,Catalogação!$B$1:I428,8,0)),"") -> TRANSIÇÃO CAPILAR - PROBELLE | J60: =IFERROR(IF(AND($B$15="COMBO ESP (P)",$B$16="RJ"),VLOOKUP(A60,'Tabela Preço'!$Q$2:W1017,7,0),IF(AND(Pedido!$B$15="COMBO ESP (M)",Pedido!$B$16="RJ"),VLOOKUP(Pedido!A60,'Tabela Preço'!$Q$2:Y1017,8,0),IF(AND(Pedido!$B$15="COMBO ESP (P)",Pedido!$B$16="SP"),VLOOKUP(Pedido!A60,'Tabela Preço'!$Q$2:AB1017,11,0),IF(AND(Pedido!$B$15="COMBO ESP (M)",Pedido!$B$16="SP"),VLOOKUP(Pedido!A60,'Tabela Preço'!$Q$2:AC1017,12,0),IF(Pedido!$B$15="COMBO DIST (M)",VLOOKUP(Pedido!A60,'Tabela Preço'!$Q$2:Z1017,9,0),IF(Pedido!$B$15="COMBO DIST (G)",VLOOKUP(Pedido!A60,'Tabela Preço'!$Q$2:AA1017,10,0),IF($O$16=$P$16,VLOOKUP(A60,'Tabela Preço'!$A$3:E1017,2,0),IF(AND($B$15="COMBO ESP (P)",$B$16="RJ"),VLOOKUP(A60,'Tabela Preço'!$Q$2:W1017,7,0),IF(AND(Pedido!$B$15="COMBO ESP (M)",Pedido!$B$16="RJ"),VLOOKUP(Pedido!A60,'Tabela Preço'!$Q$2:Y1017,8,0),IF(AND(Pedido!$B$15="COMBO ESP (P)",Pedido!$B$16="MG"),VLOOKUP(Pedido!A60,'Tabela Preço'!$Q$2:AB1017,11,0),IF(AND(Pedido!$B$15="COMBO ESP (M)",Pedido!$B$16="MG"),VLOOKUP(Pedido!A60,'Tabela Preço'!$Q$2:AC1017,12,0),IF(Pedido!$B$15="COMBO DIST (M)",VLOOKUP(Pedido!A60,'Tabela Preço'!$Q$2:Z1017,9,0),IF(Pedido!$B$15="COMBO DIST (G)",VLOOKUP(Pedido!A60,'Tabela Preço'!Q37:AA1017,10,0),IF($O$16=$P$16,VLOOKUP(A60,'Tabela Preço'!$A$3:E1017,2,0),IF($O$16=$P$18,VLOOKUP(A60,'Tabela Preço'!$A$3:E1017,3,0),IF($O$16=$P$19,VLOOKUP(A60,'Tabela Preço'!$A$3:E3618,4,0),IF($O$16=$P$15,VLOOKUP(A60,'Tabela Preço'!$A$3:G3618,7,0),IF($O$16=$P$21,VLOOKUP(A60,'Tabela Preço'!A:K,11,0),IF($O$16=$P$20,VLOOKUP(A60,'Tabela Preço'!$A$3:E1017,5,0),IF($O$16=$P$22,VLOOKUP(A60,'Tabela Preço'!$A$3:F1017,6,0),"")))))))))))))))))))),) ->  | L60: 0 | M60: 0 | S60: 37.48876613 | AC60: =IF(AE60>0,AE60,IFERROR(VLOOKUP(A60,Trava_Desconto!A:B,2,0),"")) -> 1 | AD60: =IFERROR(VLOOKUP(A60,Dados!A:H,8,0),"") -> 12 | AG60: =IFERROR(VLOOKUP(A60,'Relação SB e BURG - Preço Maior'!A:A,1,0),"") ->  | AT60: P01506 | AU60: Condicionador Transição Capilar 250mL | AV60: TRANSIÇÃO CAPILAR - PROBELLE | AW60: 0 | AX60: =IFERROR(VLOOKUP(AT60,'Tabela Preço Minimo'!$A$14:H1033,8,0),"") -> 3.32117896 | AY60: =IFERROR(IF(AW60>0,VLOOKUP(AT60,'Tabela Preço Minimo'!$A$14:$AB$984,27,0),""),"") ->  | AZ60: =IFERROR(VLOOKUP(AT60,Trava_Desconto!A36:U579,21,0),0) -> 0.1 | BA60: 0 | BB60: 0 | BE60: 0 | BG60: 0 | BH60: 0 | BI60: =VLOOKUP(AT60,BASE!AC:AM,11,0) -> 0 | BJ60: =IFERROR(VLOOKUP(AT60,Produtos_Linha!A:C,3,0),"") -> Profissional | BQ60: =IFERROR(VLOOKUP(AT60,'Tabela Preço Minimo'!$A$14:V597,22,0),"") -> 0 | BV60: =IFERROR(IF($BV$3<>200, IF($B$11=168,VLOOKUP(Pedido!AT60,Regra_Aplicação!$A$5:$D$99999,4,0), IF($B$11=715,VLOOKUP(Pedido!AT60,Regra_Aplicação!$A$5:$E$99999,5,0), IF($B$11=103,VLOOKUP(Pedido!AT60,Regra_Aplicação!$A$5:$F$99999,6,0), IF($B$11=713,VLOOKUP(Pedido!AT60,Regra_Aplicação!$A$5:$G$99999,7,0), IF($B$11=110,VLOOKUP(Pedido!AT60,Regra_Aplicação!$A$5:$H$99999,8,0), IF($B$11=211,VLOOKUP(Pedido!AT60,Regra_Aplicação!$A$5:$I$99999,9,0), IF($B$11=705,VLOOKUP(Pedido!AT60,Regra_Aplicação!$A$5:$J$99999,10,0), IF($B$11=121,VLOOKUP(Pedido!AT60,Regra_Aplicação!$A$5:$K$99999,11,0), IF($B$11=169,VLOOKUP(Pedido!AT60,Regra_Aplicação!$A$5:$L$99999,12,0),IF($B$11=717,VLOOKUP(Pedido!AT60,Regra_Aplicação!$A$5:$AN$99999,40,0), )))))))))),IF(OR($BV$5="RJ",$BV$5="MG",$BV$5="SP",$BV$5="RS",$BV$5="PR"), IF($B$11=168,VLOOKUP(Pedido!AT60,Regra_Aplicação!$A$5:$V$99999,22,0), IF($B$11=715,VLOOKUP(Pedido!AT60,Regra_Aplicação!$A$5:$W$99999,23,0), IF($B$11=103,VLOOKUP(Pedido!AT60,Regra_Aplicação!$A$5:$X$99999,24,0), IF($B$11=713,VLOOKUP(Pedido!AT60,Regra_Aplicação!$A$5:$Y$99999,25,0), IF($B$11=110,VLOOKUP(Pedido!AT60,Regra_Aplicação!$A$5:$Z$99999,26,0), IF($B$11=211,VLOOKUP(Pedido!AT60,Regra_Aplicação!$A$5:$AA$99999,27,0), IF($B$11=705,VLOOKUP(Pedido!AT60,Regra_Aplicação!$A$5:$AB$99999,28,0), IF($B$11=121,VLOOKUP(Pedido!AT60,Regra_Aplicação!$A$5:$AC$99999,29,0), IF($B$11=169,VLOOKUP(Pedido!AT60,Regra_Aplicação!$A$5:$AD$99999,30,0),))))))))), IF($BV$5="ES", IF($B$11=168,VLOOKUP(Pedido!AT60,Regra_Aplicação!$A$5:$AE$99999,31,0), IF($B$11=715,VLOOKUP(Pedido!AT60,Regra_Aplicação!$A$5:$AF$99999,32,0), IF($B$11=103,VLOOKUP(Pedido!AT60,Regra_Aplicação!$A$5:$AG$99999,33,0), IF($B$11=713,VLOOKUP(Pedido!AT60,Regra_Aplicação!$A$5:$AH$99999,34,0), IF($B$11=110,VLOOKUP(Pedido!AT60,Regra_Aplicação!$A$5:$AI$99999,35,0), IF($B$11=211,VLOOKUP(Pedido!AT60,Regra_Aplicação!$A$5:$AJ$99999,36,0), IF($B$11=705,VLOOKUP(Pedido!AT60,Regra_Aplicação!$A$5:$AK$99999,37,0), IF($B$11=121,VLOOKUP(Pedido!AT60,Regra_Aplicação!$A$5:$AL$99999,38,0), IF($B$11=169,VLOOKUP(Pedido!AT60,Regra_Aplicação!$A$5:$AM$99999,39,0),))))))))), IF($B$11=168,VLOOKUP(Pedido!AT60,Regra_Aplicação!$A$5:$M$99999,13,0), IF($B$11=715,VLOOKUP(Pedido!AT60,Regra_Aplicação!$A$5:$N$99999,14,0), IF($B$11=103,VLOOKUP(Pedido!AT60,Regra_Aplicação!$A$5:$O$99999,15,0), IF($B$11=713,VLOOKUP(Pedido!AT60,Regra_Aplicação!$A$5:$P$99999,16,0), IF($B$11=110,VLOOKUP(Pedido!AT60,Regra_Aplicação!$A$5:$Q$99999,17,0), IF($B$11=211,VLOOKUP(Pedido!AT60,Regra_Aplicação!$A$5:$R$99999,18,0), IF($B$11=705,VLOOKUP(Pedido!AT60,Regra_Aplicação!$A$5:$S$99999,19,0), IF($B$11=121,VLOOKUP(Pedido!AT60,Regra_Aplicação!$A$5:$T$99999,20,0), IF($B$11=169,VLOOKUP(Pedido!AT60,Regra_Aplicação!$A$5:$U$99999,21,0),)))))))))))),) -> 0
A61: =IFERROR(IF($B$15="TODOS",VLOOKUP($B$15,Catalogação!A38:B994,2,0),IF($B$15="ESPECIALIZADA",VLOOKUP($B$15,Catalogação!O38:P994,2,0),IF($B$15="DISTRIBUIDOR",VLOOKUP($B$15,Catalogação!X38:Y1034,2,0),IF($B$15="FARMA",VLOOKUP($B$15,Catalogação!AG38:AH1015,2,0),IF($B$15="SUPERMERCADO",VLOOKUP($B$15,Catalogação!AP38:AQ1037,2,0),IF($B$15="COMBO ESP (P)",VLOOKUP($B$15,Catalogação!$AY37:AZ1035,2,0),IF($B$15="COMBO ESP (M)",VLOOKUP($B$15,Catalogação!BH37:BI1035,2,0),IF($B$15="COMBO DIST (M)",VLOOKUP($B$15,Catalogação!BQ37:BR1035,2,0),IF($B$15="BONIFICADO",VLOOKUP($B$15,Catalogação!BZ38:CA1035,2,0),IF($B$15="FDL",VLOOKUP($B$15,Catalogação!CI38:CJ1035,2,0))))))))))),) -> P02008 | B61: =IFERROR(IF($B$15="FDL",VLOOKUP(A61,Catalogação!$CJ$1:CO612,2,0),VLOOKUP(Pedido!A61,Catalogação!B:G,2,0)),"") -> Tratamento Cronograma Capilar 10 em 1 LANÇAMENTO!!! | G61: =IFERROR(IF($B$15="FDL",VLOOKUP(A61,Catalogação!$CJ$1:CP612,7,0),VLOOKUP(Pedido!A61,Catalogação!$B$1:H2976,7,0)),"") -> 7898617526944 | H61: =IFERROR(IF($B$15="FDL",VLOOKUP(A61,Catalogação!$CJ$1:CQ63,8,0),VLOOKUP(Pedido!A61,Catalogação!$B$1:I429,8,0)),"") -> ÓLEOS TRATAMENTO MULTIFUNCIONAL - PROBELLE | J61: =IFERROR(IF(AND($B$15="COMBO ESP (P)",$B$16="RJ"),VLOOKUP(A61,'Tabela Preço'!$Q$2:W1018,7,0),IF(AND(Pedido!$B$15="COMBO ESP (M)",Pedido!$B$16="RJ"),VLOOKUP(Pedido!A61,'Tabela Preço'!$Q$2:Y1018,8,0),IF(AND(Pedido!$B$15="COMBO ESP (P)",Pedido!$B$16="SP"),VLOOKUP(Pedido!A61,'Tabela Preço'!$Q$2:AB1018,11,0),IF(AND(Pedido!$B$15="COMBO ESP (M)",Pedido!$B$16="SP"),VLOOKUP(Pedido!A61,'Tabela Preço'!$Q$2:AC1018,12,0),IF(Pedido!$B$15="COMBO DIST (M)",VLOOKUP(Pedido!A61,'Tabela Preço'!$Q$2:Z1018,9,0),IF(Pedido!$B$15="COMBO DIST (G)",VLOOKUP(Pedido!A61,'Tabela Preço'!$Q$2:AA1018,10,0),IF($O$16=$P$16,VLOOKUP(A61,'Tabela Preço'!$A$3:E1018,2,0),IF(AND($B$15="COMBO ESP (P)",$B$16="RJ"),VLOOKUP(A61,'Tabela Preço'!$Q$2:W1018,7,0),IF(AND(Pedido!$B$15="COMBO ESP (M)",Pedido!$B$16="RJ"),VLOOKUP(Pedido!A61,'Tabela Preço'!$Q$2:Y1018,8,0),IF(AND(Pedido!$B$15="COMBO ESP (P)",Pedido!$B$16="MG"),VLOOKUP(Pedido!A61,'Tabela Preço'!$Q$2:AB1018,11,0),IF(AND(Pedido!$B$15="COMBO ESP (M)",Pedido!$B$16="MG"),VLOOKUP(Pedido!A61,'Tabela Preço'!$Q$2:AC1018,12,0),IF(Pedido!$B$15="COMBO DIST (M)",VLOOKUP(Pedido!A61,'Tabela Preço'!$Q$2:Z1018,9,0),IF(Pedido!$B$15="COMBO DIST (G)",VLOOKUP(Pedido!A61,'Tabela Preço'!Q38:AA1018,10,0),IF($O$16=$P$16,VLOOKUP(A61,'Tabela Preço'!$A$3:E1018,2,0),IF($O$16=$P$18,VLOOKUP(A61,'Tabela Preço'!$A$3:E1018,3,0),IF($O$16=$P$19,VLOOKUP(A61,'Tabela Preço'!$A$3:E3619,4,0),IF($O$16=$P$15,VLOOKUP(A61,'Tabela Preço'!$A$3:G3619,7,0),IF($O$16=$P$21,VLOOKUP(A61,'Tabela Preço'!A:K,11,0),IF($O$16=$P$20,VLOOKUP(A61,'Tabela Preço'!$A$3:E1018,5,0),IF($O$16=$P$22,VLOOKUP(A61,'Tabela Preço'!$A$3:F1018,6,0),"")))))))))))))))))))),) ->  | L61: 0 | M61: 0 | S61: 38.48876613 | AC61: =IF(AE61>0,AE61,IFERROR(VLOOKUP(A61,Trava_Desconto!A:B,2,0),"")) -> 1 | AD61: =IFERROR(VLOOKUP(A61,Dados!A:H,8,0),"") -> 12 | AG61: =IFERROR(VLOOKUP(A61,'Relação SB e BURG - Preço Maior'!A:A,1,0),"") ->  | AT61: P02008 | AU61: Tratamento Cronograma Capilar 10 em 1 LANÇAMENTO!!! | AV61: ÓLEOS TRATAMENTO MULTIFUNCIONAL - PROBELLE | AW61: 0 | AX61: =IFERROR(VLOOKUP(AT61,'Tabela Preço Minimo'!$A$14:H1034,8,0),"") -> 4.394859954 | AY61: =IFERROR(IF(AW61>0,VLOOKUP(AT61,'Tabela Preço Minimo'!$A$14:$AB$984,27,0),""),"") ->  | AZ61: =IFERROR(VLOOKUP(AT61,Trava_Desconto!A37:U580,21,0),0) -> 0.1 | BA61: 0 | BB61: 0 | BE61: 0 | BG61: 0 | BH61: 0 | BI61: =VLOOKUP(AT61,BASE!AC:AM,11,0) -> 0 | BJ61: =IFERROR(VLOOKUP(AT61,Produtos_Linha!A:C,3,0),"") -> Profissional | BQ61: =IFERROR(VLOOKUP(AT61,'Tabela Preço Minimo'!$A$14:V598,22,0),"") -> 0 | BV61: =IFERROR(IF($BV$3<>200, IF($B$11=168,VLOOKUP(Pedido!AT61,Regra_Aplicação!$A$5:$D$99999,4,0), IF($B$11=715,VLOOKUP(Pedido!AT61,Regra_Aplicação!$A$5:$E$99999,5,0), IF($B$11=103,VLOOKUP(Pedido!AT61,Regra_Aplicação!$A$5:$F$99999,6,0), IF($B$11=713,VLOOKUP(Pedido!AT61,Regra_Aplicação!$A$5:$G$99999,7,0), IF($B$11=110,VLOOKUP(Pedido!AT61,Regra_Aplicação!$A$5:$H$99999,8,0), IF($B$11=211,VLOOKUP(Pedido!AT61,Regra_Aplicação!$A$5:$I$99999,9,0), IF($B$11=705,VLOOKUP(Pedido!AT61,Regra_Aplicação!$A$5:$J$99999,10,0), IF($B$11=121,VLOOKUP(Pedido!AT61,Regra_Aplicação!$A$5:$K$99999,11,0), IF($B$11=169,VLOOKUP(Pedido!AT61,Regra_Aplicação!$A$5:$L$99999,12,0),IF($B$11=717,VLOOKUP(Pedido!AT61,Regra_Aplicação!$A$5:$AN$99999,40,0), )))))))))),IF(OR($BV$5="RJ",$BV$5="MG",$BV$5="SP",$BV$5="RS",$BV$5="PR"), IF($B$11=168,VLOOKUP(Pedido!AT61,Regra_Aplicação!$A$5:$V$99999,22,0), IF($B$11=715,VLOOKUP(Pedido!AT61,Regra_Aplicação!$A$5:$W$99999,23,0), IF($B$11=103,VLOOKUP(Pedido!AT61,Regra_Aplicação!$A$5:$X$99999,24,0), IF($B$11=713,VLOOKUP(Pedido!AT61,Regra_Aplicação!$A$5:$Y$99999,25,0), IF($B$11=110,VLOOKUP(Pedido!AT61,Regra_Aplicação!$A$5:$Z$99999,26,0), IF($B$11=211,VLOOKUP(Pedido!AT61,Regra_Aplicação!$A$5:$AA$99999,27,0), IF($B$11=705,VLOOKUP(Pedido!AT61,Regra_Aplicação!$A$5:$AB$99999,28,0), IF($B$11=121,VLOOKUP(Pedido!AT61,Regra_Aplicação!$A$5:$AC$99999,29,0), IF($B$11=169,VLOOKUP(Pedido!AT61,Regra_Aplicação!$A$5:$AD$99999,30,0),))))))))), IF($BV$5="ES", IF($B$11=168,VLOOKUP(Pedido!AT61,Regra_Aplicação!$A$5:$AE$99999,31,0), IF($B$11=715,VLOOKUP(Pedido!AT61,Regra_Aplicação!$A$5:$AF$99999,32,0), IF($B$11=103,VLOOKUP(Pedido!AT61,Regra_Aplicação!$A$5:$AG$99999,33,0), IF($B$11=713,VLOOKUP(Pedido!AT61,Regra_Aplicação!$A$5:$AH$99999,34,0), IF($B$11=110,VLOOKUP(Pedido!AT61,Regra_Aplicação!$A$5:$AI$99999,35,0), IF($B$11=211,VLOOKUP(Pedido!AT61,Regra_Aplicação!$A$5:$AJ$99999,36,0), IF($B$11=705,VLOOKUP(Pedido!AT61,Regra_Aplicação!$A$5:$AK$99999,37,0), IF($B$11=121,VLOOKUP(Pedido!AT61,Regra_Aplicação!$A$5:$AL$99999,38,0), IF($B$11=169,VLOOKUP(Pedido!AT61,Regra_Aplicação!$A$5:$AM$99999,39,0),))))))))), IF($B$11=168,VLOOKUP(Pedido!AT61,Regra_Aplicação!$A$5:$M$99999,13,0), IF($B$11=715,VLOOKUP(Pedido!AT61,Regra_Aplicação!$A$5:$N$99999,14,0), IF($B$11=103,VLOOKUP(Pedido!AT61,Regra_Aplicação!$A$5:$O$99999,15,0), IF($B$11=713,VLOOKUP(Pedido!AT61,Regra_Aplicação!$A$5:$P$99999,16,0), IF($B$11=110,VLOOKUP(Pedido!AT61,Regra_Aplicação!$A$5:$Q$99999,17,0), IF($B$11=211,VLOOKUP(Pedido!AT61,Regra_Aplicação!$A$5:$R$99999,18,0), IF($B$11=705,VLOOKUP(Pedido!AT61,Regra_Aplicação!$A$5:$S$99999,19,0), IF($B$11=121,VLOOKUP(Pedido!AT61,Regra_Aplicação!$A$5:$T$99999,20,0), IF($B$11=169,VLOOKUP(Pedido!AT61,Regra_Aplicação!$A$5:$U$99999,21,0),)))))))))))),) -> 0
A62: =IFERROR(IF($B$15="TODOS",VLOOKUP($B$15,Catalogação!A39:B995,2,0),IF($B$15="ESPECIALIZADA",VLOOKUP($B$15,Catalogação!O39:P995,2,0),IF($B$15="DISTRIBUIDOR",VLOOKUP($B$15,Catalogação!X39:Y1035,2,0),IF($B$15="FARMA",VLOOKUP($B$15,Catalogação!AG39:AH1016,2,0),IF($B$15="SUPERMERCADO",VLOOKUP($B$15,Catalogação!AP39:AQ1038,2,0),IF($B$15="COMBO ESP (P)",VLOOKUP($B$15,Catalogação!$AY38:AZ1036,2,0),IF($B$15="COMBO ESP (M)",VLOOKUP($B$15,Catalogação!BH38:BI1036,2,0),IF($B$15="COMBO DIST (M)",VLOOKUP($B$15,Catalogação!BQ38:BR1036,2,0),IF($B$15="BONIFICADO",VLOOKUP($B$15,Catalogação!BZ39:CA1036,2,0),IF($B$15="FDL",VLOOKUP($B$15,Catalogação!CI39:CJ1036,2,0))))))))))),) -> P00020 | B62: =IFERROR(IF($B$15="FDL",VLOOKUP(A62,Catalogação!$CJ$1:CO613,2,0),VLOOKUP(Pedido!A62,Catalogação!B:G,2,0)),"") -> Óleo Argan 140mL | G62: =IFERROR(IF($B$15="FDL",VLOOKUP(A62,Catalogação!$CJ$1:CP613,7,0),VLOOKUP(Pedido!A62,Catalogação!$B$1:H2977,7,0)),"") -> 7898617520294 | H62: =IFERROR(IF($B$15="FDL",VLOOKUP(A62,Catalogação!$CJ$1:CQ64,8,0),VLOOKUP(Pedido!A62,Catalogação!$B$1:I430,8,0)),"") -> ÓLEOS PROFISSIONAIS - PROBELLE | J62: =IFERROR(IF(AND($B$15="COMBO ESP (P)",$B$16="RJ"),VLOOKUP(A62,'Tabela Preço'!$Q$2:W1019,7,0),IF(AND(Pedido!$B$15="COMBO ESP (M)",Pedido!$B$16="RJ"),VLOOKUP(Pedido!A62,'Tabela Preço'!$Q$2:Y1019,8,0),IF(AND(Pedido!$B$15="COMBO ESP (P)",Pedido!$B$16="SP"),VLOOKUP(Pedido!A62,'Tabela Preço'!$Q$2:AB1019,11,0),IF(AND(Pedido!$B$15="COMBO ESP (M)",Pedido!$B$16="SP"),VLOOKUP(Pedido!A62,'Tabela Preço'!$Q$2:AC1019,12,0),IF(Pedido!$B$15="COMBO DIST (M)",VLOOKUP(Pedido!A62,'Tabela Preço'!$Q$2:Z1019,9,0),IF(Pedido!$B$15="COMBO DIST (G)",VLOOKUP(Pedido!A62,'Tabela Preço'!$Q$2:AA1019,10,0),IF($O$16=$P$16,VLOOKUP(A62,'Tabela Preço'!$A$3:E1019,2,0),IF(AND($B$15="COMBO ESP (P)",$B$16="RJ"),VLOOKUP(A62,'Tabela Preço'!$Q$2:W1019,7,0),IF(AND(Pedido!$B$15="COMBO ESP (M)",Pedido!$B$16="RJ"),VLOOKUP(Pedido!A62,'Tabela Preço'!$Q$2:Y1019,8,0),IF(AND(Pedido!$B$15="COMBO ESP (P)",Pedido!$B$16="MG"),VLOOKUP(Pedido!A62,'Tabela Preço'!$Q$2:AB1019,11,0),IF(AND(Pedido!$B$15="COMBO ESP (M)",Pedido!$B$16="MG"),VLOOKUP(Pedido!A62,'Tabela Preço'!$Q$2:AC1019,12,0),IF(Pedido!$B$15="COMBO DIST (M)",VLOOKUP(Pedido!A62,'Tabela Preço'!$Q$2:Z1019,9,0),IF(Pedido!$B$15="COMBO DIST (G)",VLOOKUP(Pedido!A62,'Tabela Preço'!Q39:AA1019,10,0),IF($O$16=$P$16,VLOOKUP(A62,'Tabela Preço'!$A$3:E1019,2,0),IF($O$16=$P$18,VLOOKUP(A62,'Tabela Preço'!$A$3:E1019,3,0),IF($O$16=$P$19,VLOOKUP(A62,'Tabela Preço'!$A$3:E3620,4,0),IF($O$16=$P$15,VLOOKUP(A62,'Tabela Preço'!$A$3:G3620,7,0),IF($O$16=$P$21,VLOOKUP(A62,'Tabela Preço'!A:K,11,0),IF($O$16=$P$20,VLOOKUP(A62,'Tabela Preço'!$A$3:E1019,5,0),IF($O$16=$P$22,VLOOKUP(A62,'Tabela Preço'!$A$3:F1019,6,0),"")))))))))))))))))))),) ->  | L62: 0 | M62: 0 | S62: 39.48876613 | AC62: =IF(AE62>0,AE62,IFERROR(VLOOKUP(A62,Trava_Desconto!A:B,2,0),"")) -> 1 | AD62: =IFERROR(VLOOKUP(A62,Dados!A:H,8,0),"") -> 12 | AG62: =IFERROR(VLOOKUP(A62,'Relação SB e BURG - Preço Maior'!A:A,1,0),"") ->  | AT62: P00020 | AU62: Óleo Argan 140mL | AV62: ÓLEOS PROFISSIONAIS - PROBELLE | AW62: 0 | AX62: =IFERROR(VLOOKUP(AT62,'Tabela Preço Minimo'!$A$14:H1035,8,0),"") -> 7.845243778 | AY62: =IFERROR(IF(AW62>0,VLOOKUP(AT62,'Tabela Preço Minimo'!$A$14:$AB$984,27,0),""),"") ->  | AZ62: =IFERROR(VLOOKUP(AT62,Trava_Desconto!A38:U581,21,0),0) -> 0.1 | BA62: 0 | BB62: 0 | BE62: 0 | BG62: 0 | BH62: 0 | BI62: =VLOOKUP(AT62,BASE!AC:AM,11,0) -> 0 | BJ62: =IFERROR(VLOOKUP(AT62,Produtos_Linha!A:C,3,0),"") -> Profissional | BQ62: =IFERROR(VLOOKUP(AT62,'Tabela Preço Minimo'!$A$14:V599,22,0),"") -> 0 | BV62: =IFERROR(IF($BV$3<>200, IF($B$11=168,VLOOKUP(Pedido!AT62,Regra_Aplicação!$A$5:$D$99999,4,0), IF($B$11=715,VLOOKUP(Pedido!AT62,Regra_Aplicação!$A$5:$E$99999,5,0), IF($B$11=103,VLOOKUP(Pedido!AT62,Regra_Aplicação!$A$5:$F$99999,6,0), IF($B$11=713,VLOOKUP(Pedido!AT62,Regra_Aplicação!$A$5:$G$99999,7,0), IF($B$11=110,VLOOKUP(Pedido!AT62,Regra_Aplicação!$A$5:$H$99999,8,0), IF($B$11=211,VLOOKUP(Pedido!AT62,Regra_Aplicação!$A$5:$I$99999,9,0), IF($B$11=705,VLOOKUP(Pedido!AT62,Regra_Aplicação!$A$5:$J$99999,10,0), IF($B$11=121,VLOOKUP(Pedido!AT62,Regra_Aplicação!$A$5:$K$99999,11,0), IF($B$11=169,VLOOKUP(Pedido!AT62,Regra_Aplicação!$A$5:$L$99999,12,0),IF($B$11=717,VLOOKUP(Pedido!AT62,Regra_Aplicação!$A$5:$AN$99999,40,0), )))))))))),IF(OR($BV$5="RJ",$BV$5="MG",$BV$5="SP",$BV$5="RS",$BV$5="PR"), IF($B$11=168,VLOOKUP(Pedido!AT62,Regra_Aplicação!$A$5:$V$99999,22,0), IF($B$11=715,VLOOKUP(Pedido!AT62,Regra_Aplicação!$A$5:$W$99999,23,0), IF($B$11=103,VLOOKUP(Pedido!AT62,Regra_Aplicação!$A$5:$X$99999,24,0), IF($B$11=713,VLOOKUP(Pedido!AT62,Regra_Aplicação!$A$5:$Y$99999,25,0), IF($B$11=110,VLOOKUP(Pedido!AT62,Regra_Aplicação!$A$5:$Z$99999,26,0), IF($B$11=211,VLOOKUP(Pedido!AT62,Regra_Aplicação!$A$5:$AA$99999,27,0), IF($B$11=705,VLOOKUP(Pedido!AT62,Regra_Aplicação!$A$5:$AB$99999,28,0), IF($B$11=121,VLOOKUP(Pedido!AT62,Regra_Aplicação!$A$5:$AC$99999,29,0), IF($B$11=169,VLOOKUP(Pedido!AT62,Regra_Aplicação!$A$5:$AD$99999,30,0),))))))))), IF($BV$5="ES", IF($B$11=168,VLOOKUP(Pedido!AT62,Regra_Aplicação!$A$5:$AE$99999,31,0), IF($B$11=715,VLOOKUP(Pedido!AT62,Regra_Aplicação!$A$5:$AF$99999,32,0), IF($B$11=103,VLOOKUP(Pedido!AT62,Regra_Aplicação!$A$5:$AG$99999,33,0), IF($B$11=713,VLOOKUP(Pedido!AT62,Regra_Aplicação!$A$5:$AH$99999,34,0), IF($B$11=110,VLOOKUP(Pedido!AT62,Regra_Aplicação!$A$5:$AI$99999,35,0), IF($B$11=211,VLOOKUP(Pedido!AT62,Regra_Aplicação!$A$5:$AJ$99999,36,0), IF($B$11=705,VLOOKUP(Pedido!AT62,Regra_Aplicação!$A$5:$AK$99999,37,0), IF($B$11=121,VLOOKUP(Pedido!AT62,Regra_Aplicação!$A$5:$AL$99999,38,0), IF($B$11=169,VLOOKUP(Pedido!AT62,Regra_Aplicação!$A$5:$AM$99999,39,0),))))))))), IF($B$11=168,VLOOKUP(Pedido!AT62,Regra_Aplicação!$A$5:$M$99999,13,0), IF($B$11=715,VLOOKUP(Pedido!AT62,Regra_Aplicação!$A$5:$N$99999,14,0), IF($B$11=103,VLOOKUP(Pedido!AT62,Regra_Aplicação!$A$5:$O$99999,15,0), IF($B$11=713,VLOOKUP(Pedido!AT62,Regra_Aplicação!$A$5:$P$99999,16,0), IF($B$11=110,VLOOKUP(Pedido!AT62,Regra_Aplicação!$A$5:$Q$99999,17,0), IF($B$11=211,VLOOKUP(Pedido!AT62,Regra_Aplicação!$A$5:$R$99999,18,0), IF($B$11=705,VLOOKUP(Pedido!AT62,Regra_Aplicação!$A$5:$S$99999,19,0), IF($B$11=121,VLOOKUP(Pedido!AT62,Regra_Aplicação!$A$5:$T$99999,20,0), IF($B$11=169,VLOOKUP(Pedido!AT62,Regra_Aplicação!$A$5:$U$99999,21,0),)))))))))))),) -> 0
A63: =IFERROR(IF($B$15="TODOS",VLOOKUP($B$15,Catalogação!A40:B996,2,0),IF($B$15="ESPECIALIZADA",VLOOKUP($B$15,Catalogação!O40:P996,2,0),IF($B$15="DISTRIBUIDOR",VLOOKUP($B$15,Catalogação!X40:Y1036,2,0),IF($B$15="FARMA",VLOOKUP($B$15,Catalogação!AG40:AH1017,2,0),IF($B$15="SUPERMERCADO",VLOOKUP($B$15,Catalogação!AP40:AQ1039,2,0),IF($B$15="COMBO ESP (P)",VLOOKUP($B$15,Catalogação!$AY39:AZ1037,2,0),IF($B$15="COMBO ESP (M)",VLOOKUP($B$15,Catalogação!BH39:BI1037,2,0),IF($B$15="COMBO DIST (M)",VLOOKUP($B$15,Catalogação!BQ39:BR1037,2,0),IF($B$15="BONIFICADO",VLOOKUP($B$15,Catalogação!BZ40:CA1037,2,0),IF($B$15="FDL",VLOOKUP($B$15,Catalogação!CI40:CJ1037,2,0))))))))))),) -> P01551 | B63: =IFERROR(IF($B$15="FDL",VLOOKUP(A63,Catalogação!$CJ$1:CO614,2,0),VLOOKUP(Pedido!A63,Catalogação!B:G,2,0)),"") -> Óleo Argan 100mL | G63: =IFERROR(IF($B$15="FDL",VLOOKUP(A63,Catalogação!$CJ$1:CP614,7,0),VLOOKUP(Pedido!A63,Catalogação!$B$1:H2978,7,0)),"") -> 7898617527255 | H63: =IFERROR(IF($B$15="FDL",VLOOKUP(A63,Catalogação!$CJ$1:CQ65,8,0),VLOOKUP(Pedido!A63,Catalogação!$B$1:I431,8,0)),"") -> ÓLEOS PROFISSIONAIS - PROBELLE | J63: =IFERROR(IF(AND($B$15="COMBO ESP (P)",$B$16="RJ"),VLOOKUP(A63,'Tabela Preço'!$Q$2:W1020,7,0),IF(AND(Pedido!$B$15="COMBO ESP (M)",Pedido!$B$16="RJ"),VLOOKUP(Pedido!A63,'Tabela Preço'!$Q$2:Y1020,8,0),IF(AND(Pedido!$B$15="COMBO ESP (P)",Pedido!$B$16="SP"),VLOOKUP(Pedido!A63,'Tabela Preço'!$Q$2:AB1020,11,0),IF(AND(Pedido!$B$15="COMBO ESP (M)",Pedido!$B$16="SP"),VLOOKUP(Pedido!A63,'Tabela Preço'!$Q$2:AC1020,12,0),IF(Pedido!$B$15="COMBO DIST (M)",VLOOKUP(Pedido!A63,'Tabela Preço'!$Q$2:Z1020,9,0),IF(Pedido!$B$15="COMBO DIST (G)",VLOOKUP(Pedido!A63,'Tabela Preço'!$Q$2:AA1020,10,0),IF($O$16=$P$16,VLOOKUP(A63,'Tabela Preço'!$A$3:E1020,2,0),IF(AND($B$15="COMBO ESP (P)",$B$16="RJ"),VLOOKUP(A63,'Tabela Preço'!$Q$2:W1020,7,0),IF(AND(Pedido!$B$15="COMBO ESP (M)",Pedido!$B$16="RJ"),VLOOKUP(Pedido!A63,'Tabela Preço'!$Q$2:Y1020,8,0),IF(AND(Pedido!$B$15="COMBO ESP (P)",Pedido!$B$16="MG"),VLOOKUP(Pedido!A63,'Tabela Preço'!$Q$2:AB1020,11,0),IF(AND(Pedido!$B$15="COMBO ESP (M)",Pedido!$B$16="MG"),VLOOKUP(Pedido!A63,'Tabela Preço'!$Q$2:AC1020,12,0),IF(Pedido!$B$15="COMBO DIST (M)",VLOOKUP(Pedido!A63,'Tabela Preço'!$Q$2:Z1020,9,0),IF(Pedido!$B$15="COMBO DIST (G)",VLOOKUP(Pedido!A63,'Tabela Preço'!Q40:AA1020,10,0),IF($O$16=$P$16,VLOOKUP(A63,'Tabela Preço'!$A$3:E1020,2,0),IF($O$16=$P$18,VLOOKUP(A63,'Tabela Preço'!$A$3:E1020,3,0),IF($O$16=$P$19,VLOOKUP(A63,'Tabela Preço'!$A$3:E3621,4,0),IF($O$16=$P$15,VLOOKUP(A63,'Tabela Preço'!$A$3:G3621,7,0),IF($O$16=$P$21,VLOOKUP(A63,'Tabela Preço'!A:K,11,0),IF($O$16=$P$20,VLOOKUP(A63,'Tabela Preço'!$A$3:E1020,5,0),IF($O$16=$P$22,VLOOKUP(A63,'Tabela Preço'!$A$3:F1020,6,0),"")))))))))))))))))))),) ->  | L63: 0 | M63: 0 | S63: 40.48876613 | AC63: =IF(AE63>0,AE63,IFERROR(VLOOKUP(A63,Trava_Desconto!A:B,2,0),"")) -> 1 | AD63: =IFERROR(VLOOKUP(A63,Dados!A:H,8,0),"") -> 12 | AG63: =IFERROR(VLOOKUP(A63,'Relação SB e BURG - Preço Maior'!A:A,1,0),"") ->  | AT63: P01551 | AU63: Óleo Argan 100mL | AV63: ÓLEOS PROFISSIONAIS - PROBELLE | AW63: 0 | AX63: =IFERROR(VLOOKUP(AT63,'Tabela Preço Minimo'!$A$14:H1036,8,0),"") -> 4.90381165 | AY63: =IFERROR(IF(AW63>0,VLOOKUP(AT63,'Tabela Preço Minimo'!$A$14:$AB$984,27,0),""),"") ->  | AZ63: =IFERROR(VLOOKUP(AT63,Trava_Desconto!A39:U582,21,0),0) -> 0.1 | BA63: 0 | BB63: 0 | BE63: 0 | BG63: 0 | BH63: 0 | BI63: =VLOOKUP(AT63,BASE!AC:AM,11,0) -> 0 | BJ63: =IFERROR(VLOOKUP(AT63,Produtos_Linha!A:C,3,0),"") -> Profissional | BQ63: =IFERROR(VLOOKUP(AT63,'Tabela Preço Minimo'!$A$14:V600,22,0),"") -> 0 | BV63: =IFERROR(IF($BV$3<>200, IF($B$11=168,VLOOKUP(Pedido!AT63,Regra_Aplicação!$A$5:$D$99999,4,0), IF($B$11=715,VLOOKUP(Pedido!AT63,Regra_Aplicação!$A$5:$E$99999,5,0), IF($B$11=103,VLOOKUP(Pedido!AT63,Regra_Aplicação!$A$5:$F$99999,6,0), IF($B$11=713,VLOOKUP(Pedido!AT63,Regra_Aplicação!$A$5:$G$99999,7,0), IF($B$11=110,VLOOKUP(Pedido!AT63,Regra_Aplicação!$A$5:$H$99999,8,0), IF($B$11=211,VLOOKUP(Pedido!AT63,Regra_Aplicação!$A$5:$I$99999,9,0), IF($B$11=705,VLOOKUP(Pedido!AT63,Regra_Aplicação!$A$5:$J$99999,10,0), IF($B$11=121,VLOOKUP(Pedido!AT63,Regra_Aplicação!$A$5:$K$99999,11,0), IF($B$11=169,VLOOKUP(Pedido!AT63,Regra_Aplicação!$A$5:$L$99999,12,0),IF($B$11=717,VLOOKUP(Pedido!AT63,Regra_Aplicação!$A$5:$AN$99999,40,0), )))))))))),IF(OR($BV$5="RJ",$BV$5="MG",$BV$5="SP",$BV$5="RS",$BV$5="PR"), IF($B$11=168,VLOOKUP(Pedido!AT63,Regra_Aplicação!$A$5:$V$99999,22,0), IF($B$11=715,VLOOKUP(Pedido!AT63,Regra_Aplicação!$A$5:$W$99999,23,0), IF($B$11=103,VLOOKUP(Pedido!AT63,Regra_Aplicação!$A$5:$X$99999,24,0), IF($B$11=713,VLOOKUP(Pedido!AT63,Regra_Aplicação!$A$5:$Y$99999,25,0), IF($B$11=110,VLOOKUP(Pedido!AT63,Regra_Aplicação!$A$5:$Z$99999,26,0), IF($B$11=211,VLOOKUP(Pedido!AT63,Regra_Aplicação!$A$5:$AA$99999,27,0), IF($B$11=705,VLOOKUP(Pedido!AT63,Regra_Aplicação!$A$5:$AB$99999,28,0), IF($B$11=121,VLOOKUP(Pedido!AT63,Regra_Aplicação!$A$5:$AC$99999,29,0), IF($B$11=169,VLOOKUP(Pedido!AT63,Regra_Aplicação!$A$5:$AD$99999,30,0),))))))))), IF($BV$5="ES", IF($B$11=168,VLOOKUP(Pedido!AT63,Regra_Aplicação!$A$5:$AE$99999,31,0), IF($B$11=715,VLOOKUP(Pedido!AT63,Regra_Aplicação!$A$5:$AF$99999,32,0), IF($B$11=103,VLOOKUP(Pedido!AT63,Regra_Aplicação!$A$5:$AG$99999,33,0), IF($B$11=713,VLOOKUP(Pedido!AT63,Regra_Aplicação!$A$5:$AH$99999,34,0), IF($B$11=110,VLOOKUP(Pedido!AT63,Regra_Aplicação!$A$5:$AI$99999,35,0), IF($B$11=211,VLOOKUP(Pedido!AT63,Regra_Aplicação!$A$5:$AJ$99999,36,0), IF($B$11=705,VLOOKUP(Pedido!AT63,Regra_Aplicação!$A$5:$AK$99999,37,0), IF($B$11=121,VLOOKUP(Pedido!AT63,Regra_Aplicação!$A$5:$AL$99999,38,0), IF($B$11=169,VLOOKUP(Pedido!AT63,Regra_Aplicação!$A$5:$AM$99999,39,0),))))))))), IF($B$11=168,VLOOKUP(Pedido!AT63,Regra_Aplicação!$A$5:$M$99999,13,0), IF($B$11=715,VLOOKUP(Pedido!AT63,Regra_Aplicação!$A$5:$N$99999,14,0), IF($B$11=103,VLOOKUP(Pedido!AT63,Regra_Aplicação!$A$5:$O$99999,15,0), IF($B$11=713,VLOOKUP(Pedido!AT63,Regra_Aplicação!$A$5:$P$99999,16,0), IF($B$11=110,VLOOKUP(Pedido!AT63,Regra_Aplicação!$A$5:$Q$99999,17,0), IF($B$11=211,VLOOKUP(Pedido!AT63,Regra_Aplicação!$A$5:$R$99999,18,0), IF($B$11=705,VLOOKUP(Pedido!AT63,Regra_Aplicação!$A$5:$S$99999,19,0), IF($B$11=121,VLOOKUP(Pedido!AT63,Regra_Aplicação!$A$5:$T$99999,20,0), IF($B$11=169,VLOOKUP(Pedido!AT63,Regra_Aplicação!$A$5:$U$99999,21,0),)))))))))))),) -> 0
A64: =IFERROR(IF($B$15="TODOS",VLOOKUP($B$15,Catalogação!A41:B997,2,0),IF($B$15="ESPECIALIZADA",VLOOKUP($B$15,Catalogação!O41:P997,2,0),IF($B$15="DISTRIBUIDOR",VLOOKUP($B$15,Catalogação!X41:Y1037,2,0),IF($B$15="FARMA",VLOOKUP($B$15,Catalogação!AG41:AH1018,2,0),IF($B$15="SUPERMERCADO",VLOOKUP($B$15,Catalogação!AP41:AQ1040,2,0),IF($B$15="COMBO ESP (P)",VLOOKUP($B$15,Catalogação!$AY40:AZ1038,2,0),IF($B$15="COMBO ESP (M)",VLOOKUP($B$15,Catalogação!BH40:BI1038,2,0),IF($B$15="COMBO DIST (M)",VLOOKUP($B$15,Catalogação!BQ40:BR1038,2,0),IF($B$15="BONIFICADO",VLOOKUP($B$15,Catalogação!BZ41:CA1038,2,0),IF($B$15="FDL",VLOOKUP($B$15,Catalogação!CI41:CJ1038,2,0))))))))))),) -> P02269 | B64: =IFERROR(IF($B$15="FDL",VLOOKUP(A64,Catalogação!$CJ$1:CO615,2,0),VLOOKUP(Pedido!A64,Catalogação!B:G,2,0)),"") -> ÓLEO PROBELLE 10 EM 1 SUPER BLEND 100mL LANÇAMENTO!!! | G64: =IFERROR(IF($B$15="FDL",VLOOKUP(A64,Catalogação!$CJ$1:CP615,7,0),VLOOKUP(Pedido!A64,Catalogação!$B$1:H2979,7,0)),"") -> 7898746933323 | H64: =IFERROR(IF($B$15="FDL",VLOOKUP(A64,Catalogação!$CJ$1:CQ66,8,0),VLOOKUP(Pedido!A64,Catalogação!$B$1:I432,8,0)),"") -> ÓLEOS PROFISSIONAIS - PROBELLE | J64: =IFERROR(IF(AND($B$15="COMBO ESP (P)",$B$16="RJ"),VLOOKUP(A64,'Tabela Preço'!$Q$2:W1021,7,0),IF(AND(Pedido!$B$15="COMBO ESP (M)",Pedido!$B$16="RJ"),VLOOKUP(Pedido!A64,'Tabela Preço'!$Q$2:Y1021,8,0),IF(AND(Pedido!$B$15="COMBO ESP (P)",Pedido!$B$16="SP"),VLOOKUP(Pedido!A64,'Tabela Preço'!$Q$2:AB1021,11,0),IF(AND(Pedido!$B$15="COMBO ESP (M)",Pedido!$B$16="SP"),VLOOKUP(Pedido!A64,'Tabela Preço'!$Q$2:AC1021,12,0),IF(Pedido!$B$15="COMBO DIST (M)",VLOOKUP(Pedido!A64,'Tabela Preço'!$Q$2:Z1021,9,0),IF(Pedido!$B$15="COMBO DIST (G)",VLOOKUP(Pedido!A64,'Tabela Preço'!$Q$2:AA1021,10,0),IF($O$16=$P$16,VLOOKUP(A64,'Tabela Preço'!$A$3:E1021,2,0),IF(AND($B$15="COMBO ESP (P)",$B$16="RJ"),VLOOKUP(A64,'Tabela Preço'!$Q$2:W1021,7,0),IF(AND(Pedido!$B$15="COMBO ESP (M)",Pedido!$B$16="RJ"),VLOOKUP(Pedido!A64,'Tabela Preço'!$Q$2:Y1021,8,0),IF(AND(Pedido!$B$15="COMBO ESP (P)",Pedido!$B$16="MG"),VLOOKUP(Pedido!A64,'Tabela Preço'!$Q$2:AB1021,11,0),IF(AND(Pedido!$B$15="COMBO ESP (M)",Pedido!$B$16="MG"),VLOOKUP(Pedido!A64,'Tabela Preço'!$Q$2:AC1021,12,0),IF(Pedido!$B$15="COMBO DIST (M)",VLOOKUP(Pedido!A64,'Tabela Preço'!$Q$2:Z1021,9,0),IF(Pedido!$B$15="COMBO DIST (G)",VLOOKUP(Pedido!A64,'Tabela Preço'!Q41:AA1021,10,0),IF($O$16=$P$16,VLOOKUP(A64,'Tabela Preço'!$A$3:E1021,2,0),IF($O$16=$P$18,VLOOKUP(A64,'Tabela Preço'!$A$3:E1021,3,0),IF($O$16=$P$19,VLOOKUP(A64,'Tabela Preço'!$A$3:E3622,4,0),IF($O$16=$P$15,VLOOKUP(A64,'Tabela Preço'!$A$3:G3622,7,0),IF($O$16=$P$21,VLOOKUP(A64,'Tabela Preço'!A:K,11,0),IF($O$16=$P$20,VLOOKUP(A64,'Tabela Preço'!$A$3:E1021,5,0),IF($O$16=$P$22,VLOOKUP(A64,'Tabela Preço'!$A$3:F1021,6,0),"")))))))))))))))))))),) ->  | L64: 0 | M64: 0 | S64: 41.48876613 | AC64: =IF(AE64>0,AE64,IFERROR(VLOOKUP(A64,Trava_Desconto!A:B,2,0),"")) -> 1 | AD64: =IFERROR(VLOOKUP(A64,Dados!A:H,8,0),"") -> 12 | AG64: =IFERROR(VLOOKUP(A64,'Relação SB e BURG - Preço Maior'!A:A,1,0),"") ->  | AT64: P02269 | AU64: ÓLEO PROBELLE 10 EM 1 SUPER BLEND 100mL LANÇAMENTO!!! | AV64: ÓLEOS PROFISSIONAIS - PROBELLE | AW64: 0 | AX64: =IFERROR(VLOOKUP(AT64,'Tabela Preço Minimo'!$A$14:H1037,8,0),"") -> 5.132302413 | AY64: =IFERROR(IF(AW64>0,VLOOKUP(AT64,'Tabela Preço Minimo'!$A$14:$AB$984,27,0),""),"") ->  | AZ64: =IFERROR(VLOOKUP(AT64,Trava_Desconto!A40:U583,21,0),0) -> 0.05 | BA64: 0 | BB64: 0 | BE64: 0 | BG64: 0 | BH64: 0 | BI64: =VLOOKUP(AT64,BASE!AC:AM,11,0) -> 0 | BJ64: =IFERROR(VLOOKUP(AT64,Produtos_Linha!A:C,3,0),"") -> Profissional | BQ64: =IFERROR(VLOOKUP(AT64,'Tabela Preço Minimo'!$A$14:V601,22,0),"") ->  | BV64: =IFERROR(IF($BV$3<>200, IF($B$11=168,VLOOKUP(Pedido!AT64,Regra_Aplicação!$A$5:$D$99999,4,0), IF($B$11=715,VLOOKUP(Pedido!AT64,Regra_Aplicação!$A$5:$E$99999,5,0), IF($B$11=103,VLOOKUP(Pedido!AT64,Regra_Aplicação!$A$5:$F$99999,6,0), IF($B$11=713,VLOOKUP(Pedido!AT64,Regra_Aplicação!$A$5:$G$99999,7,0), IF($B$11=110,VLOOKUP(Pedido!AT64,Regra_Aplicação!$A$5:$H$99999,8,0), IF($B$11=211,VLOOKUP(Pedido!AT64,Regra_Aplicação!$A$5:$I$99999,9,0), IF($B$11=705,VLOOKUP(Pedido!AT64,Regra_Aplicação!$A$5:$J$99999,10,0), IF($B$11=121,VLOOKUP(Pedido!AT64,Regra_Aplicação!$A$5:$K$99999,11,0), IF($B$11=169,VLOOKUP(Pedido!AT64,Regra_Aplicação!$A$5:$L$99999,12,0),IF($B$11=717,VLOOKUP(Pedido!AT64,Regra_Aplicação!$A$5:$AN$99999,40,0), )))))))))),IF(OR($BV$5="RJ",$BV$5="MG",$BV$5="SP",$BV$5="RS",$BV$5="PR"), IF($B$11=168,VLOOKUP(Pedido!AT64,Regra_Aplicação!$A$5:$V$99999,22,0), IF($B$11=715,VLOOKUP(Pedido!AT64,Regra_Aplicação!$A$5:$W$99999,23,0), IF($B$11=103,VLOOKUP(Pedido!AT64,Regra_Aplicação!$A$5:$X$99999,24,0), IF($B$11=713,VLOOKUP(Pedido!AT64,Regra_Aplicação!$A$5:$Y$99999,25,0), IF($B$11=110,VLOOKUP(Pedido!AT64,Regra_Aplicação!$A$5:$Z$99999,26,0), IF($B$11=211,VLOOKUP(Pedido!AT64,Regra_Aplicação!$A$5:$AA$99999,27,0), IF($B$11=705,VLOOKUP(Pedido!AT64,Regra_Aplicação!$A$5:$AB$99999,28,0), IF($B$11=121,VLOOKUP(Pedido!AT64,Regra_Aplicação!$A$5:$AC$99999,29,0), IF($B$11=169,VLOOKUP(Pedido!AT64,Regra_Aplicação!$A$5:$AD$99999,30,0),))))))))), IF($BV$5="ES", IF($B$11=168,VLOOKUP(Pedido!AT64,Regra_Aplicação!$A$5:$AE$99999,31,0), IF($B$11=715,VLOOKUP(Pedido!AT64,Regra_Aplicação!$A$5:$AF$99999,32,0), IF($B$11=103,VLOOKUP(Pedido!AT64,Regra_Aplicação!$A$5:$AG$99999,33,0), IF($B$11=713,VLOOKUP(Pedido!AT64,Regra_Aplicação!$A$5:$AH$99999,34,0), IF($B$11=110,VLOOKUP(Pedido!AT64,Regra_Aplicação!$A$5:$AI$99999,35,0), IF($B$11=211,VLOOKUP(Pedido!AT64,Regra_Aplicação!$A$5:$AJ$99999,36,0), IF($B$11=705,VLOOKUP(Pedido!AT64,Regra_Aplicação!$A$5:$AK$99999,37,0), IF($B$11=121,VLOOKUP(Pedido!AT64,Regra_Aplicação!$A$5:$AL$99999,38,0), IF($B$11=169,VLOOKUP(Pedido!AT64,Regra_Aplicação!$A$5:$AM$99999,39,0),))))))))), IF($B$11=168,VLOOKUP(Pedido!AT64,Regra_Aplicação!$A$5:$M$99999,13,0), IF($B$11=715,VLOOKUP(Pedido!AT64,Regra_Aplicação!$A$5:$N$99999,14,0), IF($B$11=103,VLOOKUP(Pedido!AT64,Regra_Aplicação!$A$5:$O$99999,15,0), IF($B$11=713,VLOOKUP(Pedido!AT64,Regra_Aplicação!$A$5:$P$99999,16,0), IF($B$11=110,VLOOKUP(Pedido!AT64,Regra_Aplicação!$A$5:$Q$99999,17,0), IF($B$11=211,VLOOKUP(Pedido!AT64,Regra_Aplicação!$A$5:$R$99999,18,0), IF($B$11=705,VLOOKUP(Pedido!AT64,Regra_Aplicação!$A$5:$S$99999,19,0), IF($B$11=121,VLOOKUP(Pedido!AT64,Regra_Aplicação!$A$5:$T$99999,20,0), IF($B$11=169,VLOOKUP(Pedido!AT64,Regra_Aplicação!$A$5:$U$99999,21,0),)))))))))))),) -> 0
A65: =IFERROR(IF($B$15="TODOS",VLOOKUP($B$15,Catalogação!A42:B998,2,0),IF($B$15="ESPECIALIZADA",VLOOKUP($B$15,Catalogação!O42:P998,2,0),IF($B$15="DISTRIBUIDOR",VLOOKUP($B$15,Catalogação!X42:Y1038,2,0),IF($B$15="FARMA",VLOOKUP($B$15,Catalogação!AG42:AH1019,2,0),IF($B$15="SUPERMERCADO",VLOOKUP($B$15,Catalogação!AP42:AQ1041,2,0),IF($B$15="COMBO ESP (P)",VLOOKUP($B$15,Catalogação!$AY41:AZ1039,2,0),IF($B$15="COMBO ESP (M)",VLOOKUP($B$15,Catalogação!BH41:BI1039,2,0),IF($B$15="COMBO DIST (M)",VLOOKUP($B$15,Catalogação!BQ41:BR1039,2,0),IF($B$15="BONIFICADO",VLOOKUP($B$15,Catalogação!BZ42:CA1039,2,0),IF($B$15="FDL",VLOOKUP($B$15,Catalogação!CI42:CJ1039,2,0))))))))))),) -> P02268 | B65: =IFERROR(IF($B$15="FDL",VLOOKUP(A65,Catalogação!$CJ$1:CO616,2,0),VLOOKUP(Pedido!A65,Catalogação!B:G,2,0)),"") -> ÓLEO PROBELLE FLUÍDO RELAX FORCE ULTRA 100mL LANÇAMENTO!!! | G65: =IFERROR(IF($B$15="FDL",VLOOKUP(A65,Catalogação!$CJ$1:CP616,7,0),VLOOKUP(Pedido!A65,Catalogação!$B$1:H2980,7,0)),"") -> 7898746933316 | H65: =IFERROR(IF($B$15="FDL",VLOOKUP(A65,Catalogação!$CJ$1:CQ67,8,0),VLOOKUP(Pedido!A65,Catalogação!$B$1:I433,8,0)),"") -> ÓLEOS PROFISSIONAIS - PROBELLE | J65: =IFERROR(IF(AND($B$15="COMBO ESP (P)",$B$16="RJ"),VLOOKUP(A65,'Tabela Preço'!$Q$2:W1022,7,0),IF(AND(Pedido!$B$15="COMBO ESP (M)",Pedido!$B$16="RJ"),VLOOKUP(Pedido!A65,'Tabela Preço'!$Q$2:Y1022,8,0),IF(AND(Pedido!$B$15="COMBO ESP (P)",Pedido!$B$16="SP"),VLOOKUP(Pedido!A65,'Tabela Preço'!$Q$2:AB1022,11,0),IF(AND(Pedido!$B$15="COMBO ESP (M)",Pedido!$B$16="SP"),VLOOKUP(Pedido!A65,'Tabela Preço'!$Q$2:AC1022,12,0),IF(Pedido!$B$15="COMBO DIST (M)",VLOOKUP(Pedido!A65,'Tabela Preço'!$Q$2:Z1022,9,0),IF(Pedido!$B$15="COMBO DIST (G)",VLOOKUP(Pedido!A65,'Tabela Preço'!$Q$2:AA1022,10,0),IF($O$16=$P$16,VLOOKUP(A65,'Tabela Preço'!$A$3:E1022,2,0),IF(AND($B$15="COMBO ESP (P)",$B$16="RJ"),VLOOKUP(A65,'Tabela Preço'!$Q$2:W1022,7,0),IF(AND(Pedido!$B$15="COMBO ESP (M)",Pedido!$B$16="RJ"),VLOOKUP(Pedido!A65,'Tabela Preço'!$Q$2:Y1022,8,0),IF(AND(Pedido!$B$15="COMBO ESP (P)",Pedido!$B$16="MG"),VLOOKUP(Pedido!A65,'Tabela Preço'!$Q$2:AB1022,11,0),IF(AND(Pedido!$B$15="COMBO ESP (M)",Pedido!$B$16="MG"),VLOOKUP(Pedido!A65,'Tabela Preço'!$Q$2:AC1022,12,0),IF(Pedido!$B$15="COMBO DIST (M)",VLOOKUP(Pedido!A65,'Tabela Preço'!$Q$2:Z1022,9,0),IF(Pedido!$B$15="COMBO DIST (G)",VLOOKUP(Pedido!A65,'Tabela Preço'!Q42:AA1022,10,0),IF($O$16=$P$16,VLOOKUP(A65,'Tabela Preço'!$A$3:E1022,2,0),IF($O$16=$P$18,VLOOKUP(A65,'Tabela Preço'!$A$3:E1022,3,0),IF($O$16=$P$19,VLOOKUP(A65,'Tabela Preço'!$A$3:E3623,4,0),IF($O$16=$P$15,VLOOKUP(A65,'Tabela Preço'!$A$3:G3623,7,0),IF($O$16=$P$21,VLOOKUP(A65,'Tabela Preço'!A:K,11,0),IF($O$16=$P$20,VLOOKUP(A65,'Tabela Preço'!$A$3:E1022,5,0),IF($O$16=$P$22,VLOOKUP(A65,'Tabela Preço'!$A$3:F1022,6,0),"")))))))))))))))))))),) ->  | L65: 0 | M65: 0 | S65: 42.48876613 | AC65: =IF(AE65>0,AE65,IFERROR(VLOOKUP(A65,Trava_Desconto!A:B,2,0),"")) -> 1 | AD65: =IFERROR(VLOOKUP(A65,Dados!A:H,8,0),"") -> 12 | AG65: =IFERROR(VLOOKUP(A65,'Relação SB e BURG - Preço Maior'!A:A,1,0),"") ->  | AT65: P02268 | AU65: ÓLEO PROBELLE FLUÍDO RELAX FORCE ULTRA 100mL LANÇAMENTO!!! | AV65: ÓLEOS PROFISSIONAIS - PROBELLE | AW65: 0 | AX65: =IFERROR(VLOOKUP(AT65,'Tabela Preço Minimo'!$A$14:H1038,8,0),"") -> 5.132302413 | AY65: =IFERROR(IF(AW65>0,VLOOKUP(AT65,'Tabela Preço Minimo'!$A$14:$AB$984,27,0),""),"") ->  | AZ65: =IFERROR(VLOOKUP(AT65,Trava_Desconto!A41:U584,21,0),0) -> 0.05 | BA65: 0 | BB65: 0 | BE65: 0 | BG65: 0 | BH65: 0 | BI65: =VLOOKUP(AT65,BASE!AC:AM,11,0) -> 0 | BJ65: =IFERROR(VLOOKUP(AT65,Produtos_Linha!A:C,3,0),"") -> Profissional | BQ65: =IFERROR(VLOOKUP(AT65,'Tabela Preço Minimo'!$A$14:V602,22,0),"") ->  | BV65: =IFERROR(IF($BV$3<>200, IF($B$11=168,VLOOKUP(Pedido!AT65,Regra_Aplicação!$A$5:$D$99999,4,0), IF($B$11=715,VLOOKUP(Pedido!AT65,Regra_Aplicação!$A$5:$E$99999,5,0), IF($B$11=103,VLOOKUP(Pedido!AT65,Regra_Aplicação!$A$5:$F$99999,6,0), IF($B$11=713,VLOOKUP(Pedido!AT65,Regra_Aplicação!$A$5:$G$99999,7,0), IF($B$11=110,VLOOKUP(Pedido!AT65,Regra_Aplicação!$A$5:$H$99999,8,0), IF($B$11=211,VLOOKUP(Pedido!AT65,Regra_Aplicação!$A$5:$I$99999,9,0), IF($B$11=705,VLOOKUP(Pedido!AT65,Regra_Aplicação!$A$5:$J$99999,10,0), IF($B$11=121,VLOOKUP(Pedido!AT65,Regra_Aplicação!$A$5:$K$99999,11,0), IF($B$11=169,VLOOKUP(Pedido!AT65,Regra_Aplicação!$A$5:$L$99999,12,0),IF($B$11=717,VLOOKUP(Pedido!AT65,Regra_Aplicação!$A$5:$AN$99999,40,0), )))))))))),IF(OR($BV$5="RJ",$BV$5="MG",$BV$5="SP",$BV$5="RS",$BV$5="PR"), IF($B$11=168,VLOOKUP(Pedido!AT65,Regra_Aplicação!$A$5:$V$99999,22,0), IF($B$11=715,VLOOKUP(Pedido!AT65,Regra_Aplicação!$A$5:$W$99999,23,0), IF($B$11=103,VLOOKUP(Pedido!AT65,Regra_Aplicação!$A$5:$X$99999,24,0), IF($B$11=713,VLOOKUP(Pedido!AT65,Regra_Aplicação!$A$5:$Y$99999,25,0), IF($B$11=110,VLOOKUP(Pedido!AT65,Regra_Aplicação!$A$5:$Z$99999,26,0), IF($B$11=211,VLOOKUP(Pedido!AT65,Regra_Aplicação!$A$5:$AA$99999,27,0), IF($B$11=705,VLOOKUP(Pedido!AT65,Regra_Aplicação!$A$5:$AB$99999,28,0), IF($B$11=121,VLOOKUP(Pedido!AT65,Regra_Aplicação!$A$5:$AC$99999,29,0), IF($B$11=169,VLOOKUP(Pedido!AT65,Regra_Aplicação!$A$5:$AD$99999,30,0),))))))))), IF($BV$5="ES", IF($B$11=168,VLOOKUP(Pedido!AT65,Regra_Aplicação!$A$5:$AE$99999,31,0), IF($B$11=715,VLOOKUP(Pedido!AT65,Regra_Aplicação!$A$5:$AF$99999,32,0), IF($B$11=103,VLOOKUP(Pedido!AT65,Regra_Aplicação!$A$5:$AG$99999,33,0), IF($B$11=713,VLOOKUP(Pedido!AT65,Regra_Aplicação!$A$5:$AH$99999,34,0), IF($B$11=110,VLOOKUP(Pedido!AT65,Regra_Aplicação!$A$5:$AI$99999,35,0), IF($B$11=211,VLOOKUP(Pedido!AT65,Regra_Aplicação!$A$5:$AJ$99999,36,0), IF($B$11=705,VLOOKUP(Pedido!AT65,Regra_Aplicação!$A$5:$AK$99999,37,0), IF($B$11=121,VLOOKUP(Pedido!AT65,Regra_Aplicação!$A$5:$AL$99999,38,0), IF($B$11=169,VLOOKUP(Pedido!AT65,Regra_Aplicação!$A$5:$AM$99999,39,0),))))))))), IF($B$11=168,VLOOKUP(Pedido!AT65,Regra_Aplicação!$A$5:$M$99999,13,0), IF($B$11=715,VLOOKUP(Pedido!AT65,Regra_Aplicação!$A$5:$N$99999,14,0), IF($B$11=103,VLOOKUP(Pedido!AT65,Regra_Aplicação!$A$5:$O$99999,15,0), IF($B$11=713,VLOOKUP(Pedido!AT65,Regra_Aplicação!$A$5:$P$99999,16,0), IF($B$11=110,VLOOKUP(Pedido!AT65,Regra_Aplicação!$A$5:$Q$99999,17,0), IF($B$11=211,VLOOKUP(Pedido!AT65,Regra_Aplicação!$A$5:$R$99999,18,0), IF($B$11=705,VLOOKUP(Pedido!AT65,Regra_Aplicação!$A$5:$S$99999,19,0), IF($B$11=121,VLOOKUP(Pedido!AT65,Regra_Aplicação!$A$5:$T$99999,20,0), IF($B$11=169,VLOOKUP(Pedido!AT65,Regra_Aplicação!$A$5:$U$99999,21,0),)))))))))))),) -> 0
A66: =IFERROR(IF($B$15="TODOS",VLOOKUP($B$15,Catalogação!A43:B999,2,0),IF($B$15="ESPECIALIZADA",VLOOKUP($B$15,Catalogação!O43:P999,2,0),IF($B$15="DISTRIBUIDOR",VLOOKUP($B$15,Catalogação!X43:Y1039,2,0),IF($B$15="FARMA",VLOOKUP($B$15,Catalogação!AG43:AH1020,2,0),IF($B$15="SUPERMERCADO",VLOOKUP($B$15,Catalogação!AP43:AQ1042,2,0),IF($B$15="COMBO ESP (P)",VLOOKUP($B$15,Catalogação!$AY42:AZ1040,2,0),IF($B$15="COMBO ESP (M)",VLOOKUP($B$15,Catalogação!BH42:BI1040,2,0),IF($B$15="COMBO DIST (M)",VLOOKUP($B$15,Catalogação!BQ42:BR1040,2,0),IF($B$15="BONIFICADO",VLOOKUP($B$15,Catalogação!BZ43:CA1040,2,0),IF($B$15="FDL",VLOOKUP($B$15,Catalogação!CI43:CJ1040,2,0))))))))))),) -> P02271 | B66: =IFERROR(IF($B$15="FDL",VLOOKUP(A66,Catalogação!$CJ$1:CO617,2,0),VLOOKUP(Pedido!A66,Catalogação!B:G,2,0)),"") -> ÓLEO PROBELLE MILAGROSO SUPER OIL 100mL LANÇAMENTO!!! | G66: =IFERROR(IF($B$15="FDL",VLOOKUP(A66,Catalogação!$CJ$1:CP617,7,0),VLOOKUP(Pedido!A66,Catalogação!$B$1:H2981,7,0)),"") -> 7898746933347 | H66: =IFERROR(IF($B$15="FDL",VLOOKUP(A66,Catalogação!$CJ$1:CQ68,8,0),VLOOKUP(Pedido!A66,Catalogação!$B$1:I434,8,0)),"") -> ÓLEOS PROFISSIONAIS - PROBELLE | J66: =IFERROR(IF(AND($B$15="COMBO ESP (P)",$B$16="RJ"),VLOOKUP(A66,'Tabela Preço'!$Q$2:W1023,7,0),IF(AND(Pedido!$B$15="COMBO ESP (M)",Pedido!$B$16="RJ"),VLOOKUP(Pedido!A66,'Tabela Preço'!$Q$2:Y1023,8,0),IF(AND(Pedido!$B$15="COMBO ESP (P)",Pedido!$B$16="SP"),VLOOKUP(Pedido!A66,'Tabela Preço'!$Q$2:AB1023,11,0),IF(AND(Pedido!$B$15="COMBO ESP (M)",Pedido!$B$16="SP"),VLOOKUP(Pedido!A66,'Tabela Preço'!$Q$2:AC1023,12,0),IF(Pedido!$B$15="COMBO DIST (M)",VLOOKUP(Pedido!A66,'Tabela Preço'!$Q$2:Z1023,9,0),IF(Pedido!$B$15="COMBO DIST (G)",VLOOKUP(Pedido!A66,'Tabela Preço'!$Q$2:AA1023,10,0),IF($O$16=$P$16,VLOOKUP(A66,'Tabela Preço'!$A$3:E1023,2,0),IF(AND($B$15="COMBO ESP (P)",$B$16="RJ"),VLOOKUP(A66,'Tabela Preço'!$Q$2:W1023,7,0),IF(AND(Pedido!$B$15="COMBO ESP (M)",Pedido!$B$16="RJ"),VLOOKUP(Pedido!A66,'Tabela Preço'!$Q$2:Y1023,8,0),IF(AND(Pedido!$B$15="COMBO ESP (P)",Pedido!$B$16="MG"),VLOOKUP(Pedido!A66,'Tabela Preço'!$Q$2:AB1023,11,0),IF(AND(Pedido!$B$15="COMBO ESP (M)",Pedido!$B$16="MG"),VLOOKUP(Pedido!A66,'Tabela Preço'!$Q$2:AC1023,12,0),IF(Pedido!$B$15="COMBO DIST (M)",VLOOKUP(Pedido!A66,'Tabela Preço'!$Q$2:Z1023,9,0),IF(Pedido!$B$15="COMBO DIST (G)",VLOOKUP(Pedido!A66,'Tabela Preço'!Q43:AA1023,10,0),IF($O$16=$P$16,VLOOKUP(A66,'Tabela Preço'!$A$3:E1023,2,0),IF($O$16=$P$18,VLOOKUP(A66,'Tabela Preço'!$A$3:E1023,3,0),IF($O$16=$P$19,VLOOKUP(A66,'Tabela Preço'!$A$3:E3624,4,0),IF($O$16=$P$15,VLOOKUP(A66,'Tabela Preço'!$A$3:G3624,7,0),IF($O$16=$P$21,VLOOKUP(A66,'Tabela Preço'!A:K,11,0),IF($O$16=$P$20,VLOOKUP(A66,'Tabela Preço'!$A$3:E1023,5,0),IF($O$16=$P$22,VLOOKUP(A66,'Tabela Preço'!$A$3:F1023,6,0),"")))))))))))))))))))),) ->  | L66: 0 | M66: 0 | S66: 43.48876613 | AC66: =IF(AE66>0,AE66,IFERROR(VLOOKUP(A66,Trava_Desconto!A:B,2,0),"")) -> 1 | AD66: =IFERROR(VLOOKUP(A66,Dados!A:H,8,0),"") -> 12 | AG66: =IFERROR(VLOOKUP(A66,'Relação SB e BURG - Preço Maior'!A:A,1,0),"") ->  | AT66: P02271 | AU66: ÓLEO PROBELLE MILAGROSO SUPER OIL 100mL LANÇAMENTO!!! | AV66: ÓLEOS PROFISSIONAIS - PROBELLE | AW66: 0 | AX66: =IFERROR(VLOOKUP(AT66,'Tabela Preço Minimo'!$A$14:H1039,8,0),"") -> 5.132302413 | AY66: =IFERROR(IF(AW66>0,VLOOKUP(AT66,'Tabela Preço Minimo'!$A$14:$AB$984,27,0),""),"") ->  | AZ66: =IFERROR(VLOOKUP(AT66,Trava_Desconto!A42:U585,21,0),0) -> 0.05 | BA66: 0 | BB66: 0 | BE66: 0 | BG66: 0 | BH66: 0 | BI66: =VLOOKUP(AT66,BASE!AC:AM,11,0) -> 0 | BJ66: =IFERROR(VLOOKUP(AT66,Produtos_Linha!A:C,3,0),"") -> Profissional | BQ66: =IFERROR(VLOOKUP(AT66,'Tabela Preço Minimo'!$A$14:V603,22,0),"") ->  | BV66: =IFERROR(IF($BV$3<>200, IF($B$11=168,VLOOKUP(Pedido!AT66,Regra_Aplicação!$A$5:$D$99999,4,0), IF($B$11=715,VLOOKUP(Pedido!AT66,Regra_Aplicação!$A$5:$E$99999,5,0), IF($B$11=103,VLOOKUP(Pedido!AT66,Regra_Aplicação!$A$5:$F$99999,6,0), IF($B$11=713,VLOOKUP(Pedido!AT66,Regra_Aplicação!$A$5:$G$99999,7,0), IF($B$11=110,VLOOKUP(Pedido!AT66,Regra_Aplicação!$A$5:$H$99999,8,0), IF($B$11=211,VLOOKUP(Pedido!AT66,Regra_Aplicação!$A$5:$I$99999,9,0), IF($B$11=705,VLOOKUP(Pedido!AT66,Regra_Aplicação!$A$5:$J$99999,10,0), IF($B$11=121,VLOOKUP(Pedido!AT66,Regra_Aplicação!$A$5:$K$99999,11,0), IF($B$11=169,VLOOKUP(Pedido!AT66,Regra_Aplicação!$A$5:$L$99999,12,0),IF($B$11=717,VLOOKUP(Pedido!AT66,Regra_Aplicação!$A$5:$AN$99999,40,0), )))))))))),IF(OR($BV$5="RJ",$BV$5="MG",$BV$5="SP",$BV$5="RS",$BV$5="PR"), IF($B$11=168,VLOOKUP(Pedido!AT66,Regra_Aplicação!$A$5:$V$99999,22,0), IF($B$11=715,VLOOKUP(Pedido!AT66,Regra_Aplicação!$A$5:$W$99999,23,0), IF($B$11=103,VLOOKUP(Pedido!AT66,Regra_Aplicação!$A$5:$X$99999,24,0), IF($B$11=713,VLOOKUP(Pedido!AT66,Regra_Aplicação!$A$5:$Y$99999,25,0), IF($B$11=110,VLOOKUP(Pedido!AT66,Regra_Aplicação!$A$5:$Z$99999,26,0), IF($B$11=211,VLOOKUP(Pedido!AT66,Regra_Aplicação!$A$5:$AA$99999,27,0), IF($B$11=705,VLOOKUP(Pedido!AT66,Regra_Aplicação!$A$5:$AB$99999,28,0), IF($B$11=121,VLOOKUP(Pedido!AT66,Regra_Aplicação!$A$5:$AC$99999,29,0), IF($B$11=169,VLOOKUP(Pedido!AT66,Regra_Aplicação!$A$5:$AD$99999,30,0),))))))))), IF($BV$5="ES", IF($B$11=168,VLOOKUP(Pedido!AT66,Regra_Aplicação!$A$5:$AE$99999,31,0), IF($B$11=715,VLOOKUP(Pedido!AT66,Regra_Aplicação!$A$5:$AF$99999,32,0), IF($B$11=103,VLOOKUP(Pedido!AT66,Regra_Aplicação!$A$5:$AG$99999,33,0), IF($B$11=713,VLOOKUP(Pedido!AT66,Regra_Aplicação!$A$5:$AH$99999,34,0), IF($B$11=110,VLOOKUP(Pedido!AT66,Regra_Aplicação!$A$5:$AI$99999,35,0), IF($B$11=211,VLOOKUP(Pedido!AT66,Regra_Aplicação!$A$5:$AJ$99999,36,0), IF($B$11=705,VLOOKUP(Pedido!AT66,Regra_Aplicação!$A$5:$AK$99999,37,0), IF($B$11=121,VLOOKUP(Pedido!AT66,Regra_Aplicação!$A$5:$AL$99999,38,0), IF($B$11=169,VLOOKUP(Pedido!AT66,Regra_Aplicação!$A$5:$AM$99999,39,0),))))))))), IF($B$11=168,VLOOKUP(Pedido!AT66,Regra_Aplicação!$A$5:$M$99999,13,0), IF($B$11=715,VLOOKUP(Pedido!AT66,Regra_Aplicação!$A$5:$N$99999,14,0), IF($B$11=103,VLOOKUP(Pedido!AT66,Regra_Aplicação!$A$5:$O$99999,15,0), IF($B$11=713,VLOOKUP(Pedido!AT66,Regra_Aplicação!$A$5:$P$99999,16,0), IF($B$11=110,VLOOKUP(Pedido!AT66,Regra_Aplicação!$A$5:$Q$99999,17,0), IF($B$11=211,VLOOKUP(Pedido!AT66,Regra_Aplicação!$A$5:$R$99999,18,0), IF($B$11=705,VLOOKUP(Pedido!AT66,Regra_Aplicação!$A$5:$S$99999,19,0), IF($B$11=121,VLOOKUP(Pedido!AT66,Regra_Aplicação!$A$5:$T$99999,20,0), IF($B$11=169,VLOOKUP(Pedido!AT66,Regra_Aplicação!$A$5:$U$99999,21,0),)))))))))))),) -> 0
A67: =IFERROR(IF($B$15="TODOS",VLOOKUP($B$15,Catalogação!A44:B1000,2,0),IF($B$15="ESPECIALIZADA",VLOOKUP($B$15,Catalogação!O44:P1000,2,0),IF($B$15="DISTRIBUIDOR",VLOOKUP($B$15,Catalogação!X44:Y1040,2,0),IF($B$15="FARMA",VLOOKUP($B$15,Catalogação!AG44:AH1021,2,0),IF($B$15="SUPERMERCADO",VLOOKUP($B$15,Catalogação!AP44:AQ1043,2,0),IF($B$15="COMBO ESP (P)",VLOOKUP($B$15,Catalogação!$AY43:AZ1041,2,0),IF($B$15="COMBO ESP (M)",VLOOKUP($B$15,Catalogação!BH43:BI1041,2,0),IF($B$15="COMBO DIST (M)",VLOOKUP($B$15,Catalogação!BQ43:BR1041,2,0),IF($B$15="BONIFICADO",VLOOKUP($B$15,Catalogação!BZ44:CA1041,2,0),IF($B$15="FDL",VLOOKUP($B$15,Catalogação!CI44:CJ1041,2,0))))))))))),) -> P02270 | B67: =IFERROR(IF($B$15="FDL",VLOOKUP(A67,Catalogação!$CJ$1:CO618,2,0),VLOOKUP(Pedido!A67,Catalogação!B:G,2,0)),"") -> ÓLEO PROBELLE ARGAN 100mL LANÇAMENTO!!! | G67: =IFERROR(IF($B$15="FDL",VLOOKUP(A67,Catalogação!$CJ$1:CP618,7,0),VLOOKUP(Pedido!A67,Catalogação!$B$1:H2982,7,0)),"") -> 7898746933330 | H67: =IFERROR(IF($B$15="FDL",VLOOKUP(A67,Catalogação!$CJ$1:CQ69,8,0),VLOOKUP(Pedido!A67,Catalogação!$B$1:I435,8,0)),"") -> ÓLEOS PROFISSIONAIS - PROBELLE | J67: =IFERROR(IF(AND($B$15="COMBO ESP (P)",$B$16="RJ"),VLOOKUP(A67,'Tabela Preço'!$Q$2:W1024,7,0),IF(AND(Pedido!$B$15="COMBO ESP (M)",Pedido!$B$16="RJ"),VLOOKUP(Pedido!A67,'Tabela Preço'!$Q$2:Y1024,8,0),IF(AND(Pedido!$B$15="COMBO ESP (P)",Pedido!$B$16="SP"),VLOOKUP(Pedido!A67,'Tabela Preço'!$Q$2:AB1024,11,0),IF(AND(Pedido!$B$15="COMBO ESP (M)",Pedido!$B$16="SP"),VLOOKUP(Pedido!A67,'Tabela Preço'!$Q$2:AC1024,12,0),IF(Pedido!$B$15="COMBO DIST (M)",VLOOKUP(Pedido!A67,'Tabela Preço'!$Q$2:Z1024,9,0),IF(Pedido!$B$15="COMBO DIST (G)",VLOOKUP(Pedido!A67,'Tabela Preço'!$Q$2:AA1024,10,0),IF($O$16=$P$16,VLOOKUP(A67,'Tabela Preço'!$A$3:E1024,2,0),IF(AND($B$15="COMBO ESP (P)",$B$16="RJ"),VLOOKUP(A67,'Tabela Preço'!$Q$2:W1024,7,0),IF(AND(Pedido!$B$15="COMBO ESP (M)",Pedido!$B$16="RJ"),VLOOKUP(Pedido!A67,'Tabela Preço'!$Q$2:Y1024,8,0),IF(AND(Pedido!$B$15="COMBO ESP (P)",Pedido!$B$16="MG"),VLOOKUP(Pedido!A67,'Tabela Preço'!$Q$2:AB1024,11,0),IF(AND(Pedido!$B$15="COMBO ESP (M)",Pedido!$B$16="MG"),VLOOKUP(Pedido!A67,'Tabela Preço'!$Q$2:AC1024,12,0),IF(Pedido!$B$15="COMBO DIST (M)",VLOOKUP(Pedido!A67,'Tabela Preço'!$Q$2:Z1024,9,0),IF(Pedido!$B$15="COMBO DIST (G)",VLOOKUP(Pedido!A67,'Tabela Preço'!Q44:AA1024,10,0),IF($O$16=$P$16,VLOOKUP(A67,'Tabela Preço'!$A$3:E1024,2,0),IF($O$16=$P$18,VLOOKUP(A67,'Tabela Preço'!$A$3:E1024,3,0),IF($O$16=$P$19,VLOOKUP(A67,'Tabela Preço'!$A$3:E3625,4,0),IF($O$16=$P$15,VLOOKUP(A67,'Tabela Preço'!$A$3:G3625,7,0),IF($O$16=$P$21,VLOOKUP(A67,'Tabela Preço'!A:K,11,0),IF($O$16=$P$20,VLOOKUP(A67,'Tabela Preço'!$A$3:E1024,5,0),IF($O$16=$P$22,VLOOKUP(A67,'Tabela Preço'!$A$3:F1024,6,0),"")))))))))))))))))))),) ->  | L67: 0 | M67: 0 | S67: 44.48876613 | AC67: =IF(AE67>0,AE67,IFERROR(VLOOKUP(A67,Trava_Desconto!A:B,2,0),"")) -> 1 | AD67: =IFERROR(VLOOKUP(A67,Dados!A:H,8,0),"") -> 12 | AG67: =IFERROR(VLOOKUP(A67,'Relação SB e BURG - Preço Maior'!A:A,1,0),"") ->  | AT67: P02270 | AU67: ÓLEO PROBELLE ARGAN 100mL LANÇAMENTO!!! | AV67: ÓLEOS PROFISSIONAIS - PROBELLE | AW67: 0 | AX67: =IFERROR(VLOOKUP(AT67,'Tabela Preço Minimo'!$A$14:H1040,8,0),"") -> 5.132302413 | AY67: =IFERROR(IF(AW67>0,VLOOKUP(AT67,'Tabela Preço Minimo'!$A$14:$AB$984,27,0),""),"") ->  | AZ67: =IFERROR(VLOOKUP(AT67,Trava_Desconto!A43:U586,21,0),0) -> 0.05 | BA67: 0 | BB67: 0 | BE67: 0 | BG67: 0 | BH67: 0 | BI67: =VLOOKUP(AT67,BASE!AC:AM,11,0) -> 0 | BJ67: =IFERROR(VLOOKUP(AT67,Produtos_Linha!A:C,3,0),"") -> Profissional | BQ67: =IFERROR(VLOOKUP(AT67,'Tabela Preço Minimo'!$A$14:V604,22,0),"") ->  | BV67: =IFERROR(IF($BV$3<>200, IF($B$11=168,VLOOKUP(Pedido!AT67,Regra_Aplicação!$A$5:$D$99999,4,0), IF($B$11=715,VLOOKUP(Pedido!AT67,Regra_Aplicação!$A$5:$E$99999,5,0), IF($B$11=103,VLOOKUP(Pedido!AT67,Regra_Aplicação!$A$5:$F$99999,6,0), IF($B$11=713,VLOOKUP(Pedido!AT67,Regra_Aplicação!$A$5:$G$99999,7,0), IF($B$11=110,VLOOKUP(Pedido!AT67,Regra_Aplicação!$A$5:$H$99999,8,0), IF($B$11=211,VLOOKUP(Pedido!AT67,Regra_Aplicação!$A$5:$I$99999,9,0), IF($B$11=705,VLOOKUP(Pedido!AT67,Regra_Aplicação!$A$5:$J$99999,10,0), IF($B$11=121,VLOOKUP(Pedido!AT67,Regra_Aplicação!$A$5:$K$99999,11,0), IF($B$11=169,VLOOKUP(Pedido!AT67,Regra_Aplicação!$A$5:$L$99999,12,0),IF($B$11=717,VLOOKUP(Pedido!AT67,Regra_Aplicação!$A$5:$AN$99999,40,0), )))))))))),IF(OR($BV$5="RJ",$BV$5="MG",$BV$5="SP",$BV$5="RS",$BV$5="PR"), IF($B$11=168,VLOOKUP(Pedido!AT67,Regra_Aplicação!$A$5:$V$99999,22,0), IF($B$11=715,VLOOKUP(Pedido!AT67,Regra_Aplicação!$A$5:$W$99999,23,0), IF($B$11=103,VLOOKUP(Pedido!AT67,Regra_Aplicação!$A$5:$X$99999,24,0), IF($B$11=713,VLOOKUP(Pedido!AT67,Regra_Aplicação!$A$5:$Y$99999,25,0), IF($B$11=110,VLOOKUP(Pedido!AT67,Regra_Aplicação!$A$5:$Z$99999,26,0), IF($B$11=211,VLOOKUP(Pedido!AT67,Regra_Aplicação!$A$5:$AA$99999,27,0), IF($B$11=705,VLOOKUP(Pedido!AT67,Regra_Aplicação!$A$5:$AB$99999,28,0), IF($B$11=121,VLOOKUP(Pedido!AT67,Regra_Aplicação!$A$5:$AC$99999,29,0), IF($B$11=169,VLOOKUP(Pedido!AT67,Regra_Aplicação!$A$5:$AD$99999,30,0),))))))))), IF($BV$5="ES", IF($B$11=168,VLOOKUP(Pedido!AT67,Regra_Aplicação!$A$5:$AE$99999,31,0), IF($B$11=715,VLOOKUP(Pedido!AT67,Regra_Aplicação!$A$5:$AF$99999,32,0), IF($B$11=103,VLOOKUP(Pedido!AT67,Regra_Aplicação!$A$5:$AG$99999,33,0), IF($B$11=713,VLOOKUP(Pedido!AT67,Regra_Aplicação!$A$5:$AH$99999,34,0), IF($B$11=110,VLOOKUP(Pedido!AT67,Regra_Aplicação!$A$5:$AI$99999,35,0), IF($B$11=211,VLOOKUP(Pedido!AT67,Regra_Aplicação!$A$5:$AJ$99999,36,0), IF($B$11=705,VLOOKUP(Pedido!AT67,Regra_Aplicação!$A$5:$AK$99999,37,0), IF($B$11=121,VLOOKUP(Pedido!AT67,Regra_Aplicação!$A$5:$AL$99999,38,0), IF($B$11=169,VLOOKUP(Pedido!AT67,Regra_Aplicação!$A$5:$AM$99999,39,0),))))))))), IF($B$11=168,VLOOKUP(Pedido!AT67,Regra_Aplicação!$A$5:$M$99999,13,0), IF($B$11=715,VLOOKUP(Pedido!AT67,Regra_Aplicação!$A$5:$N$99999,14,0), IF($B$11=103,VLOOKUP(Pedido!AT67,Regra_Aplicação!$A$5:$O$99999,15,0), IF($B$11=713,VLOOKUP(Pedido!AT67,Regra_Aplicação!$A$5:$P$99999,16,0), IF($B$11=110,VLOOKUP(Pedido!AT67,Regra_Aplicação!$A$5:$Q$99999,17,0), IF($B$11=211,VLOOKUP(Pedido!AT67,Regra_Aplicação!$A$5:$R$99999,18,0), IF($B$11=705,VLOOKUP(Pedido!AT67,Regra_Aplicação!$A$5:$S$99999,19,0), IF($B$11=121,VLOOKUP(Pedido!AT67,Regra_Aplicação!$A$5:$T$99999,20,0), IF($B$11=169,VLOOKUP(Pedido!AT67,Regra_Aplicação!$A$5:$U$99999,21,0),)))))))))))),) -> 0
A68: =IFERROR(IF($B$15="TODOS",VLOOKUP($B$15,Catalogação!A45:B1001,2,0),IF($B$15="ESPECIALIZADA",VLOOKUP($B$15,Catalogação!O45:P1001,2,0),IF($B$15="DISTRIBUIDOR",VLOOKUP($B$15,Catalogação!X45:Y1041,2,0),IF($B$15="FARMA",VLOOKUP($B$15,Catalogação!AG45:AH1022,2,0),IF($B$15="SUPERMERCADO",VLOOKUP($B$15,Catalogação!AP45:AQ1044,2,0),IF($B$15="COMBO ESP (P)",VLOOKUP($B$15,Catalogação!$AY44:AZ1042,2,0),IF($B$15="COMBO ESP (M)",VLOOKUP($B$15,Catalogação!BH44:BI1042,2,0),IF($B$15="COMBO DIST (M)",VLOOKUP($B$15,Catalogação!BQ44:BR1042,2,0),IF($B$15="BONIFICADO",VLOOKUP($B$15,Catalogação!BZ45:CA1042,2,0),IF($B$15="FDL",VLOOKUP($B$15,Catalogação!CI45:CJ1042,2,0))))))))))),) -> P02273 | B68: =IFERROR(IF($B$15="FDL",VLOOKUP(A68,Catalogação!$CJ$1:CO619,2,0),VLOOKUP(Pedido!A68,Catalogação!B:G,2,0)),"") -> ÓLEO PROBELLE 10 EM 1 SUPER BLEND 45mL LANÇAMENTO!!! | G68: =IFERROR(IF($B$15="FDL",VLOOKUP(A68,Catalogação!$CJ$1:CP619,7,0),VLOOKUP(Pedido!A68,Catalogação!$B$1:H2983,7,0)),"") -> 7898746932982 | H68: =IFERROR(IF($B$15="FDL",VLOOKUP(A68,Catalogação!$CJ$1:CQ70,8,0),VLOOKUP(Pedido!A68,Catalogação!$B$1:I436,8,0)),"") -> ÓLEOS PROFISSIONAIS - PROBELLE | J68: =IFERROR(IF(AND($B$15="COMBO ESP (P)",$B$16="RJ"),VLOOKUP(A68,'Tabela Preço'!$Q$2:W1025,7,0),IF(AND(Pedido!$B$15="COMBO ESP (M)",Pedido!$B$16="RJ"),VLOOKUP(Pedido!A68,'Tabela Preço'!$Q$2:Y1025,8,0),IF(AND(Pedido!$B$15="COMBO ESP (P)",Pedido!$B$16="SP"),VLOOKUP(Pedido!A68,'Tabela Preço'!$Q$2:AB1025,11,0),IF(AND(Pedido!$B$15="COMBO ESP (M)",Pedido!$B$16="SP"),VLOOKUP(Pedido!A68,'Tabela Preço'!$Q$2:AC1025,12,0),IF(Pedido!$B$15="COMBO DIST (M)",VLOOKUP(Pedido!A68,'Tabela Preço'!$Q$2:Z1025,9,0),IF(Pedido!$B$15="COMBO DIST (G)",VLOOKUP(Pedido!A68,'Tabela Preço'!$Q$2:AA1025,10,0),IF($O$16=$P$16,VLOOKUP(A68,'Tabela Preço'!$A$3:E1025,2,0),IF(AND($B$15="COMBO ESP (P)",$B$16="RJ"),VLOOKUP(A68,'Tabela Preço'!$Q$2:W1025,7,0),IF(AND(Pedido!$B$15="COMBO ESP (M)",Pedido!$B$16="RJ"),VLOOKUP(Pedido!A68,'Tabela Preço'!$Q$2:Y1025,8,0),IF(AND(Pedido!$B$15="COMBO ESP (P)",Pedido!$B$16="MG"),VLOOKUP(Pedido!A68,'Tabela Preço'!$Q$2:AB1025,11,0),IF(AND(Pedido!$B$15="COMBO ESP (M)",Pedido!$B$16="MG"),VLOOKUP(Pedido!A68,'Tabela Preço'!$Q$2:AC1025,12,0),IF(Pedido!$B$15="COMBO DIST (M)",VLOOKUP(Pedido!A68,'Tabela Preço'!$Q$2:Z1025,9,0),IF(Pedido!$B$15="COMBO DIST (G)",VLOOKUP(Pedido!A68,'Tabela Preço'!Q45:AA1025,10,0),IF($O$16=$P$16,VLOOKUP(A68,'Tabela Preço'!$A$3:E1025,2,0),IF($O$16=$P$18,VLOOKUP(A68,'Tabela Preço'!$A$3:E1025,3,0),IF($O$16=$P$19,VLOOKUP(A68,'Tabela Preço'!$A$3:E3626,4,0),IF($O$16=$P$15,VLOOKUP(A68,'Tabela Preço'!$A$3:G3626,7,0),IF($O$16=$P$21,VLOOKUP(A68,'Tabela Preço'!A:K,11,0),IF($O$16=$P$20,VLOOKUP(A68,'Tabela Preço'!$A$3:E1025,5,0),IF($O$16=$P$22,VLOOKUP(A68,'Tabela Preço'!$A$3:F1025,6,0),"")))))))))))))))))))),) ->  | L68: 0 | M68: 0 | S68: 45.48876613 | AC68: =IF(AE68>0,AE68,IFERROR(VLOOKUP(A68,Trava_Desconto!A:B,2,0),"")) -> 1 | AD68: =IFERROR(VLOOKUP(A68,Dados!A:H,8,0),"") -> 12 | AG68: =IFERROR(VLOOKUP(A68,'Relação SB e BURG - Preço Maior'!A:A,1,0),"") ->  | AT68: P02273 | AU68: ÓLEO PROBELLE 10 EM 1 SUPER BLEND 45mL LANÇAMENTO!!! | AV68: ÓLEOS PROFISSIONAIS - PROBELLE | AW68: 0 | AX68: =IFERROR(VLOOKUP(AT68,'Tabela Preço Minimo'!$A$14:H1041,8,0),"") -> 3.044 | AY68: =IFERROR(IF(AW68>0,VLOOKUP(AT68,'Tabela Preço Minimo'!$A$14:$AB$984,27,0),""),"") ->  | AZ68: =IFERROR(VLOOKUP(AT68,Trava_Desconto!A44:U587,21,0),0) -> 0.05 | BA68: 0 | BB68: 0 | BE68: 0 | BG68: 0 | BH68: 0 | BI68: =VLOOKUP(AT68,BASE!AC:AM,11,0) -> 0 | BJ68: =IFERROR(VLOOKUP(AT68,Produtos_Linha!A:C,3,0),"") -> Profissional | BQ68: =IFERROR(VLOOKUP(AT68,'Tabela Preço Minimo'!$A$14:V605,22,0),"") ->  | BV68: =IFERROR(IF($BV$3<>200, IF($B$11=168,VLOOKUP(Pedido!AT68,Regra_Aplicação!$A$5:$D$99999,4,0), IF($B$11=715,VLOOKUP(Pedido!AT68,Regra_Aplicação!$A$5:$E$99999,5,0), IF($B$11=103,VLOOKUP(Pedido!AT68,Regra_Aplicação!$A$5:$F$99999,6,0), IF($B$11=713,VLOOKUP(Pedido!AT68,Regra_Aplicação!$A$5:$G$99999,7,0), IF($B$11=110,VLOOKUP(Pedido!AT68,Regra_Aplicação!$A$5:$H$99999,8,0), IF($B$11=211,VLOOKUP(Pedido!AT68,Regra_Aplicação!$A$5:$I$99999,9,0), IF($B$11=705,VLOOKUP(Pedido!AT68,Regra_Aplicação!$A$5:$J$99999,10,0), IF($B$11=121,VLOOKUP(Pedido!AT68,Regra_Aplicação!$A$5:$K$99999,11,0), IF($B$11=169,VLOOKUP(Pedido!AT68,Regra_Aplicação!$A$5:$L$99999,12,0),IF($B$11=717,VLOOKUP(Pedido!AT68,Regra_Aplicação!$A$5:$AN$99999,40,0), )))))))))),IF(OR($BV$5="RJ",$BV$5="MG",$BV$5="SP",$BV$5="RS",$BV$5="PR"), IF($B$11=168,VLOOKUP(Pedido!AT68,Regra_Aplicação!$A$5:$V$99999,22,0), IF($B$11=715,VLOOKUP(Pedido!AT68,Regra_Aplicação!$A$5:$W$99999,23,0), IF($B$11=103,VLOOKUP(Pedido!AT68,Regra_Aplicação!$A$5:$X$99999,24,0), IF($B$11=713,VLOOKUP(Pedido!AT68,Regra_Aplicação!$A$5:$Y$99999,25,0), IF($B$11=110,VLOOKUP(Pedido!AT68,Regra_Aplicação!$A$5:$Z$99999,26,0), IF($B$11=211,VLOOKUP(Pedido!AT68,Regra_Aplicação!$A$5:$AA$99999,27,0), IF($B$11=705,VLOOKUP(Pedido!AT68,Regra_Aplicação!$A$5:$AB$99999,28,0), IF($B$11=121,VLOOKUP(Pedido!AT68,Regra_Aplicação!$A$5:$AC$99999,29,0), IF($B$11=169,VLOOKUP(Pedido!AT68,Regra_Aplicação!$A$5:$AD$99999,30,0),))))))))), IF($BV$5="ES", IF($B$11=168,VLOOKUP(Pedido!AT68,Regra_Aplicação!$A$5:$AE$99999,31,0), IF($B$11=715,VLOOKUP(Pedido!AT68,Regra_Aplicação!$A$5:$AF$99999,32,0), IF($B$11=103,VLOOKUP(Pedido!AT68,Regra_Aplicação!$A$5:$AG$99999,33,0), IF($B$11=713,VLOOKUP(Pedido!AT68,Regra_Aplicação!$A$5:$AH$99999,34,0), IF($B$11=110,VLOOKUP(Pedido!AT68,Regra_Aplicação!$A$5:$AI$99999,35,0), IF($B$11=211,VLOOKUP(Pedido!AT68,Regra_Aplicação!$A$5:$AJ$99999,36,0), IF($B$11=705,VLOOKUP(Pedido!AT68,Regra_Aplicação!$A$5:$AK$99999,37,0), IF($B$11=121,VLOOKUP(Pedido!AT68,Regra_Aplicação!$A$5:$AL$99999,38,0), IF($B$11=169,VLOOKUP(Pedido!AT68,Regra_Aplicação!$A$5:$AM$99999,39,0),))))))))), IF($B$11=168,VLOOKUP(Pedido!AT68,Regra_Aplicação!$A$5:$M$99999,13,0), IF($B$11=715,VLOOKUP(Pedido!AT68,Regra_Aplicação!$A$5:$N$99999,14,0), IF($B$11=103,VLOOKUP(Pedido!AT68,Regra_Aplicação!$A$5:$O$99999,15,0), IF($B$11=713,VLOOKUP(Pedido!AT68,Regra_Aplicação!$A$5:$P$99999,16,0), IF($B$11=110,VLOOKUP(Pedido!AT68,Regra_Aplicação!$A$5:$Q$99999,17,0), IF($B$11=211,VLOOKUP(Pedido!AT68,Regra_Aplicação!$A$5:$R$99999,18,0), IF($B$11=705,VLOOKUP(Pedido!AT68,Regra_Aplicação!$A$5:$S$99999,19,0), IF($B$11=121,VLOOKUP(Pedido!AT68,Regra_Aplicação!$A$5:$T$99999,20,0), IF($B$11=169,VLOOKUP(Pedido!AT68,Regra_Aplicação!$A$5:$U$99999,21,0),)))))))))))),) -> 0
A69: =IFERROR(IF($B$15="TODOS",VLOOKUP($B$15,Catalogação!A46:B1002,2,0),IF($B$15="ESPECIALIZADA",VLOOKUP($B$15,Catalogação!O46:P1002,2,0),IF($B$15="DISTRIBUIDOR",VLOOKUP($B$15,Catalogação!X46:Y1042,2,0),IF($B$15="FARMA",VLOOKUP($B$15,Catalogação!AG46:AH1023,2,0),IF($B$15="SUPERMERCADO",VLOOKUP($B$15,Catalogação!AP46:AQ1045,2,0),IF($B$15="COMBO ESP (P)",VLOOKUP($B$15,Catalogação!$AY45:AZ1043,2,0),IF($B$15="COMBO ESP (M)",VLOOKUP($B$15,Catalogação!BH45:BI1043,2,0),IF($B$15="COMBO DIST (M)",VLOOKUP($B$15,Catalogação!BQ45:BR1043,2,0),IF($B$15="BONIFICADO",VLOOKUP($B$15,Catalogação!BZ46:CA1043,2,0),IF($B$15="FDL",VLOOKUP($B$15,Catalogação!CI46:CJ1043,2,0))))))))))),) -> P02272 | B69: =IFERROR(IF($B$15="FDL",VLOOKUP(A69,Catalogação!$CJ$1:CO620,2,0),VLOOKUP(Pedido!A69,Catalogação!B:G,2,0)),"") -> ÓLEO PROBELLE FLUÍDO RELAX FORCE ULTRA 45mL LANÇAMENTO!!! | G69: =IFERROR(IF($B$15="FDL",VLOOKUP(A69,Catalogação!$CJ$1:CP620,7,0),VLOOKUP(Pedido!A69,Catalogação!$B$1:H2984,7,0)),"") -> 7898746932975 | H69: =IFERROR(IF($B$15="FDL",VLOOKUP(A69,Catalogação!$CJ$1:CQ71,8,0),VLOOKUP(Pedido!A69,Catalogação!$B$1:I437,8,0)),"") -> ÓLEOS PROFISSIONAIS - PROBELLE | J69: =IFERROR(IF(AND($B$15="COMBO ESP (P)",$B$16="RJ"),VLOOKUP(A69,'Tabela Preço'!$Q$2:W1026,7,0),IF(AND(Pedido!$B$15="COMBO ESP (M)",Pedido!$B$16="RJ"),VLOOKUP(Pedido!A69,'Tabela Preço'!$Q$2:Y1026,8,0),IF(AND(Pedido!$B$15="COMBO ESP (P)",Pedido!$B$16="SP"),VLOOKUP(Pedido!A69,'Tabela Preço'!$Q$2:AB1026,11,0),IF(AND(Pedido!$B$15="COMBO ESP (M)",Pedido!$B$16="SP"),VLOOKUP(Pedido!A69,'Tabela Preço'!$Q$2:AC1026,12,0),IF(Pedido!$B$15="COMBO DIST (M)",VLOOKUP(Pedido!A69,'Tabela Preço'!$Q$2:Z1026,9,0),IF(Pedido!$B$15="COMBO DIST (G)",VLOOKUP(Pedido!A69,'Tabela Preço'!$Q$2:AA1026,10,0),IF($O$16=$P$16,VLOOKUP(A69,'Tabela Preço'!$A$3:E1026,2,0),IF(AND($B$15="COMBO ESP (P)",$B$16="RJ"),VLOOKUP(A69,'Tabela Preço'!$Q$2:W1026,7,0),IF(AND(Pedido!$B$15="COMBO ESP (M)",Pedido!$B$16="RJ"),VLOOKUP(Pedido!A69,'Tabela Preço'!$Q$2:Y1026,8,0),IF(AND(Pedido!$B$15="COMBO ESP (P)",Pedido!$B$16="MG"),VLOOKUP(Pedido!A69,'Tabela Preço'!$Q$2:AB1026,11,0),IF(AND(Pedido!$B$15="COMBO ESP (M)",Pedido!$B$16="MG"),VLOOKUP(Pedido!A69,'Tabela Preço'!$Q$2:AC1026,12,0),IF(Pedido!$B$15="COMBO DIST (M)",VLOOKUP(Pedido!A69,'Tabela Preço'!$Q$2:Z1026,9,0),IF(Pedido!$B$15="COMBO DIST (G)",VLOOKUP(Pedido!A69,'Tabela Preço'!Q46:AA1026,10,0),IF($O$16=$P$16,VLOOKUP(A69,'Tabela Preço'!$A$3:E1026,2,0),IF($O$16=$P$18,VLOOKUP(A69,'Tabela Preço'!$A$3:E1026,3,0),IF($O$16=$P$19,VLOOKUP(A69,'Tabela Preço'!$A$3:E3627,4,0),IF($O$16=$P$15,VLOOKUP(A69,'Tabela Preço'!$A$3:G3627,7,0),IF($O$16=$P$21,VLOOKUP(A69,'Tabela Preço'!A:K,11,0),IF($O$16=$P$20,VLOOKUP(A69,'Tabela Preço'!$A$3:E1026,5,0),IF($O$16=$P$22,VLOOKUP(A69,'Tabela Preço'!$A$3:F1026,6,0),"")))))))))))))))))))),) ->  | L69: 0 | M69: 0 | S69: 46.48876613 | AC69: =IF(AE69>0,AE69,IFERROR(VLOOKUP(A69,Trava_Desconto!A:B,2,0),"")) -> 1 | AD69: =IFERROR(VLOOKUP(A69,Dados!A:H,8,0),"") -> 12 | AG69: =IFERROR(VLOOKUP(A69,'Relação SB e BURG - Preço Maior'!A:A,1,0),"") ->  | AT69: P02272 | AU69: ÓLEO PROBELLE FLUÍDO RELAX FORCE ULTRA 45mL LANÇAMENTO!!! | AV69: ÓLEOS PROFISSIONAIS - PROBELLE | AW69: 0 | AX69: =IFERROR(VLOOKUP(AT69,'Tabela Preço Minimo'!$A$14:H1042,8,0),"") -> 3.044 | AY69: =IFERROR(IF(AW69>0,VLOOKUP(AT69,'Tabela Preço Minimo'!$A$14:$AB$984,27,0),""),"") ->  | AZ69: =IFERROR(VLOOKUP(AT69,Trava_Desconto!A45:U588,21,0),0) -> 0.05 | BA69: 0 | BB69: 0 | BE69: 0 | BG69: 0 | BH69: 0 | BI69: =VLOOKUP(AT69,BASE!AC:AM,11,0) -> 0 | BJ69: =IFERROR(VLOOKUP(AT69,Produtos_Linha!A:C,3,0),"") -> Profissional | BQ69: =IFERROR(VLOOKUP(AT69,'Tabela Preço Minimo'!$A$14:V606,22,0),"") ->  | BV69: =IFERROR(IF($BV$3<>200, IF($B$11=168,VLOOKUP(Pedido!AT69,Regra_Aplicação!$A$5:$D$99999,4,0), IF($B$11=715,VLOOKUP(Pedido!AT69,Regra_Aplicação!$A$5:$E$99999,5,0), IF($B$11=103,VLOOKUP(Pedido!AT69,Regra_Aplicação!$A$5:$F$99999,6,0), IF($B$11=713,VLOOKUP(Pedido!AT69,Regra_Aplicação!$A$5:$G$99999,7,0), IF($B$11=110,VLOOKUP(Pedido!AT69,Regra_Aplicação!$A$5:$H$99999,8,0), IF($B$11=211,VLOOKUP(Pedido!AT69,Regra_Aplicação!$A$5:$I$99999,9,0), IF($B$11=705,VLOOKUP(Pedido!AT69,Regra_Aplicação!$A$5:$J$99999,10,0), IF($B$11=121,VLOOKUP(Pedido!AT69,Regra_Aplicação!$A$5:$K$99999,11,0), IF($B$11=169,VLOOKUP(Pedido!AT69,Regra_Aplicação!$A$5:$L$99999,12,0),IF($B$11=717,VLOOKUP(Pedido!AT69,Regra_Aplicação!$A$5:$AN$99999,40,0), )))))))))),IF(OR($BV$5="RJ",$BV$5="MG",$BV$5="SP",$BV$5="RS",$BV$5="PR"), IF($B$11=168,VLOOKUP(Pedido!AT69,Regra_Aplicação!$A$5:$V$99999,22,0), IF($B$11=715,VLOOKUP(Pedido!AT69,Regra_Aplicação!$A$5:$W$99999,23,0), IF($B$11=103,VLOOKUP(Pedido!AT69,Regra_Aplicação!$A$5:$X$99999,24,0), IF($B$11=713,VLOOKUP(Pedido!AT69,Regra_Aplicação!$A$5:$Y$99999,25,0), IF($B$11=110,VLOOKUP(Pedido!AT69,Regra_Aplicação!$A$5:$Z$99999,26,0), IF($B$11=211,VLOOKUP(Pedido!AT69,Regra_Aplicação!$A$5:$AA$99999,27,0), IF($B$11=705,VLOOKUP(Pedido!AT69,Regra_Aplicação!$A$5:$AB$99999,28,0), IF($B$11=121,VLOOKUP(Pedido!AT69,Regra_Aplicação!$A$5:$AC$99999,29,0), IF($B$11=169,VLOOKUP(Pedido!AT69,Regra_Aplicação!$A$5:$AD$99999,30,0),))))))))), IF($BV$5="ES", IF($B$11=168,VLOOKUP(Pedido!AT69,Regra_Aplicação!$A$5:$AE$99999,31,0), IF($B$11=715,VLOOKUP(Pedido!AT69,Regra_Aplicação!$A$5:$AF$99999,32,0), IF($B$11=103,VLOOKUP(Pedido!AT69,Regra_Aplicação!$A$5:$AG$99999,33,0), IF($B$11=713,VLOOKUP(Pedido!AT69,Regra_Aplicação!$A$5:$AH$99999,34,0), IF($B$11=110,VLOOKUP(Pedido!AT69,Regra_Aplicação!$A$5:$AI$99999,35,0), IF($B$11=211,VLOOKUP(Pedido!AT69,Regra_Aplicação!$A$5:$AJ$99999,36,0), IF($B$11=705,VLOOKUP(Pedido!AT69,Regra_Aplicação!$A$5:$AK$99999,37,0), IF($B$11=121,VLOOKUP(Pedido!AT69,Regra_Aplicação!$A$5:$AL$99999,38,0), IF($B$11=169,VLOOKUP(Pedido!AT69,Regra_Aplicação!$A$5:$AM$99999,39,0),))))))))), IF($B$11=168,VLOOKUP(Pedido!AT69,Regra_Aplicação!$A$5:$M$99999,13,0), IF($B$11=715,VLOOKUP(Pedido!AT69,Regra_Aplicação!$A$5:$N$99999,14,0), IF($B$11=103,VLOOKUP(Pedido!AT69,Regra_Aplicação!$A$5:$O$99999,15,0), IF($B$11=713,VLOOKUP(Pedido!AT69,Regra_Aplicação!$A$5:$P$99999,16,0), IF($B$11=110,VLOOKUP(Pedido!AT69,Regra_Aplicação!$A$5:$Q$99999,17,0), IF($B$11=211,VLOOKUP(Pedido!AT69,Regra_Aplicação!$A$5:$R$99999,18,0), IF($B$11=705,VLOOKUP(Pedido!AT69,Regra_Aplicação!$A$5:$S$99999,19,0), IF($B$11=121,VLOOKUP(Pedido!AT69,Regra_Aplicação!$A$5:$T$99999,20,0), IF($B$11=169,VLOOKUP(Pedido!AT69,Regra_Aplicação!$A$5:$U$99999,21,0),)))))))))))),) -> 0
